Workbook

Sheet Calculateur (hidden)
C1: Nbre n°
C2: 20 | D2: 1 | E2: =D2*C2 -> 20 | F2: =D2*36-E2 -> 16 | G2: 1
D3: 2 | E3: =D3*$C$2+E2 -> 60 | F3: 12 | G3: 2
D4: 5 | E4: =D4*C2+E3 -> 160 | F4: 20 | G4: 3
D5: 11 | E5: =D5*C2+E4 -> 380 | F5: 16 | G5: 4
D6: 25 | E6: =D6*$C$2+E5 -> 880 | F6: 20
D7: 56 | E7: =D7*$C$2+E6 -> 2000 | F7: 16
D8: 126 | E8: =D8*$C$2+E7 -> 4520 | F8: 16

Sheet >>Paramètres (hidden)
C1: PARAMETRES
B3: Casino | C3: Nova 21 | D3: Date | E3: =TODAY() -> 2024-12-01 | F3: Heure | G3: =NOW() -> 45627.69477 | H3: Mise max | I3: =IF(C5>=1000,1,IF(C5>=500,0.5,IF(C5>=300,0.3,IF(C5>=200,0.1,0.1)))) -> 0.1 | K3: 40434.81694 | M3: =(G3-K3)*1000 -> 5192877.839
B5: Départ € | C5: ='>>Input'!K1 -> 0 | D5: Arrivée € | E5: 400 | F5: Gain € | G5: =E5-C5 -> 400
B7: Gain max | C7: =(C5*0.1)+C5 -> 0 | D7: Perte max | E7: =-(C7-C5)+C5 -> 0 | F7: Différence | G7: =C7-C5 -> 0
C10: 20 améliorer
C11: 7 Chanceux
C12: Méthode 3-2
C13: Méthode le 21
C14: Master
C15: Infaillible
C16: 8 or
C17: 10 magiques
C18: Pivot
C19: 1_2_3
C20: Martingal
C21: Alternées
C22: Longue
C23: LG
C25: Commentaire

Sheet >>BD_AS_4
A1: =IF($L$2>=C1,B1,"") -> 36 | B1: ='>>Convertisseur'!A15 -> 36 | C1: 1
B2: ='>>Convertisseur'!A16 -> 2 | C2: 2 | D2: Nbre ligne | E2: ='>>Input'!AH39 -> 0 | G2: Nombre N° | H2: ='>>Calculs_AS_4'!H39 -> 35 | K2: Compteur | L2: ='>>Input'!AK42 -> 1
B3: ='>>Convertisseur'!A17 -> 0 | C3: 3
B4: ='>>Convertisseur'!A18 -> 0 | C4: 4
B5: ='>>Convertisseur'!A19 -> 0 | C5: 5
B6: ='>>Convertisseur'!A20 -> 0 | C6: 6
B7: ='>>Convertisseur'!A21 -> 0 | C7: 7 | D7: =IF(OR($A$1=D31,$A$2=D31,$A$3=D31,$A$4=D31,$A$5=D31,$A$6=D31,$A$7=D31,$A$8=D31,$A$9=D31,$A$10=D31,$A$11=D31,$A$12=D31,$A$13=D31,$A$14=D31,$A$15=D31,$A$16=D31),1,0) -> 0 | E7: 0 | F7: 0 | G7: 0 | H7: 0
B8: ='>>Convertisseur'!A22 -> 0 | C8: 8 | D8: 0 | E8: 0 | F8: 0 | G8: 0 | H8: 0
B9: ='>>Convertisseur'!A23 -> 0 | C9: 9 | D9: 0 | E9: 0 | F9: 0 | G9: 0 | H9: 0
B10: ='>>Convertisseur'!A24 -> 0 | C10: 10 | D10: 0 | E10: 0 | F10: 0 | G10: 0 | H10: 0
B11: ='>>Convertisseur'!A25 -> 0 | C11: 11 | D11: 0 | E11: 0 | F11: 0 | G11: 0 | H11: 0
B12: ='>>Convertisseur'!A26 -> 0 | C12: 12 | D12: 0 | E12: 0 | F12: 0 | G12: 0 | H12: 0
B13: ='>>Convertisseur'!A27 -> 0 | C13: 13
B14: ='>>Convertisseur'!A28 -> 0 | C14: 14 | D14: =IF(OR($A$17=D31,$A$18=D31,$A$19=D31,$A$20=D31,$A$21=D31,$A$22=D31,$A$23=D31,$A$24=D31,$A$25=D31,$A$26=D31,$A$27=D31,$A$28=D31,$A$29=D31,$A$30=D31,$A$31=D31,$A$32=D31),1,0) -> 0 | E14: 0 | F14: 0 | G14: 0 | H14: 0
B15: ='>>Convertisseur'!A29 -> 0 | C15: 15 | D15: 0 | E15: 0 | F15: 0 | G15: 0 | H15: 0
B16: ='>>Convertisseur'!A30 -> 0 | C16: 16 | D16: 0 | E16: 0 | F16: 0 | G16: 0 | H16: 0
B17: ='>>Convertisseur'!A31 -> 0 | C17: 17 | D17: 0 | E17: 0 | F17: 0 | G17: 0 | H17: 0
B18: ='>>Convertisseur'!A32 -> 0 | C18: 18 | D18: 0 | E18: 0 | F18: 0 | G18: 0 | H18: 0
B19: ='>>Convertisseur'!A33 -> 0 | C19: 19 | D19: 0 | E19: 0 | F19: 0 | G19: 0 | H19: 0
B20: ='>>Convertisseur'!A34 -> 0 | C20: 20
B21: ='>>Convertisseur'!A35 -> 0 | C21: 21
B22: ='>>Convertisseur'!A36 -> 0 | C22: 22 | D22: =IF(D14=1,1,IF(D7=1,1,0)) -> 0 | E22: 0 | F22: 0 | G22: 0 | H22: 0 | I22: =SUM(D22:H22) -> 0
B23: ='>>Convertisseur'!A37 -> 0 | C23: 23 | D23: 0 | E23: 0 | F23: 0 | G23: 0 | H23: 0 | I23: 0
B24: ='>>Convertisseur'!A38 -> 0 | C24: 24 | D24: 0 | E24: 0 | F24: 0 | G24: 0 | H24: 0 | I24: 0
B25: ='>>Convertisseur'!A39 -> 0 | C25: 25 | D25: 0 | E25: 0 | F25: 0 | G25: 0 | H25: 0 | I25: 0
B26: ='>>Convertisseur'!A40 -> 0 | C26: 26 | D26: 0 | E26: 0 | F26: 0 | G26: 0 | H26: 0 | I26: 0 | Q26: =IF(ISERROR(SEARCH(1,AP47,1)-1),"",SEARCH(1,AP47,1)-1) -> 
B27: ='>>Convertisseur'!A41 -> 0 | C27: 27 | D27: 0 | E27: 0 | F27: 0 | G27: 0 | H27: 0 | I27: 0
B28: ='>>Convertisseur'!A42 -> 0 | C28: 28
B29: ='>>Convertisseur'!A43 -> 0 | C29: 29
B30: ='>>Convertisseur'!A44 -> 0 | C30: 30
C31: Grille 1 | D31: 11 | E31: 13 | F31: 21 | G31: 26 | H31: 28 | J31: =IF(AND(I22>=$E$2,D22=0),D31,"") -> 11 | K31: =IF(AND(I22>=$E$2,E22=0),E31,"") -> 13 | L31: =IF(AND(I22>=$E$2,F22=0),F31,"") -> 21 | M31: =IF(AND(I22>=$E$2,G22=0),G31,"") -> 26 | N31: =IF(AND(I22>=$E$2,H22=0),H31,"") -> 28 | P31: =IF(J31<>"",1,0) -> 1 | Q31: 1 | R31: 1 | S31: 1 | T31: 1 | V31: =SUM(P31:U31) -> 5
D32: 12 | E32: 14 | F32: 22 | G32: 25 | H32: 27 | J32: 12 | K32: 14 | L32: 22 | M32: 25 | N32: 27 | P32: 1 | Q32: 1 | R32: 1 | S32: 1 | T32: 1 | V32: 5
D33: 13 | E33: 11 | F33: 15 | G33: 21 | H33: 24 | J33: 13 | K33: 11 | L33: 15 | M33: 21 | N33: 24 | P33: 1 | Q33: 1 | R33: 1 | S33: 1 | T33: 1 | V33: 5
D34: 14 | E34: 12 | F34: 16 | G34: 22 | H34: 23 | J34: 14 | K34: 12 | L34: 16 | M34: 22 | N34: 23 | P34: 1 | Q34: 1 | R34: 1 | S34: 1 | T34: 1 | V34: 5
D35: 15 | E35: 13 | F35: 19 | G35: 24 | H35: 28 | J35: 15 | K35: 13 | L35: 19 | M35: 24 | N35: 28 | P35: 1 | Q35: 1 | R35: 1 | S35: 1 | T35: 1 | V35: 5
D36: 16 | E36: 14 | F36: 20 | G36: 23 | H36: 27 | J36: 16 | K36: 14 | L36: 20 | M36: 23 | N36: 27 | P36: 1 | Q36: 1 | R36: 1 | S36: 1 | T36: 1 | V36: 5
D39: =IF(OR($A$1=D63,$A$2=D63,$A$3=D63,$A$4=D63,$A$5=D63,$A$6=D63,$A$7=D63,$A$8=D63,$A$9=D63,$A$10=D63,$A$11=D63,$A$12=D63,$A$13=D63,$A$14=D63,$A$15=D63,$A$16=D63),1,0) -> 0 | E39: 0 | F39: 0 | G39: 0 | H39: 1
D40: 0 | E40: 0 | F40: 0 | G40: 0 | H40: 0
D41: 0 | E41: 0 | F41: 0 | G41: 0 | H41: 1
D42: 0 | E42: 0 | F42: 0 | G42: 0 | H42: 0
D43: 0 | E43: 0 | F43: 0 | G43: 0 | H43: 0
D44: 0 | E44: 0 | F44: 0 | G44: 0 | H44: 1
D46: =IF(OR($A$17=D63,$A$18=D63,$A$19=D63,$A$20=D63,$A$21=D63,$A$22=D63,$A$23=D63,$A$24=D63,$A$25=D63,$A$26=D63,$A$27=D63,$A$28=D63,$A$29=D63,$A$30=D63,$A$31=D63,$A$32=D63),1,0) -> 0 | E46: 0 | F46: 0 | G46: 0 | H46: 0
D47: 0 | E47: 0 | F47: 0 | G47: 0 | H47: 0
D48: 0 | E48: 0 | F48: 0 | G48: 0 | H48: 0
D49: 0 | E49: 0 | F49: 0 | G49: 0 | H49: 0
D50: 0 | E50: 0 | F50: 0 | G50: 0 | H50: 0
D51: 0 | E51: 0 | F51: 0 | G51: 0 | H51: 0
D54: =IF(D46=1,1,IF(D39=1,1,0)) -> 0 | E54: 0 | F54: 0 | G54: 0 | H54: 1 | I54: =SUM(D54:H54) -> 1
D55: 0 | E55: 0 | F55: 0 | G55: 0 | H55: 0 | I55: 0 | Z55: 1
D56: 0 | E56: 0 | F56: 0 | G56: 0 | H56: 1 | I56: 1 | Z56: 4
D57: 0 | E57: 0 | F57: 0 | G57: 0 | H57: 0 | I57: 0 | Z57: 5
D58: 0 | E58: 0 | F58: 0 | G58: 0 | H58: 0 | I58: 0 | Q58: =IF(ISERROR(SEARCH(1,AP79,1)-1),"",SEARCH(1,AP79,1)-1) ->  | Z58: 9
D59: 0 | E59: 0 | F59: 0 | G59: 0 | H59: 1 | I59: 1 | Z59: 11
Z60: 12
Z61: 14
Z62: 17
C63: Grille 2 | D63: 1 | E63: 3 | F63: 7 | G63: 33 | H63: 36 | J63: =IF(AND(I54>=$E$2,D54=0),D63,"") -> 1 | K63: =IF(AND(I54>=$E$2,E54=0),E63,"") -> 3 | L63: =IF(AND(I54>=$E$2,F54=0),F63,"") -> 7 | M63: =IF(AND(I54>=$E$2,G54=0),G63,"") -> 33 | N63: =IF(AND(I54>=$E$2,H54=0),H63,"") ->  | P63: =IF(J63<>"",1,0) -> 1 | Q63: 1 | R63: 1 | S63: 1 | T63: 0 | V63: =SUM(P63:U63) -> 4 | Z63: 20
D64: 2 | E64: 4 | F64: 8 | G64: 34 | H64: 35 | J64: 2 | K64: 4 | L64: 8 | M64: 34 | N64: 35 | P64: 1 | Q64: 1 | R64: 1 | S64: 1 | T64: 1 | V64: 5 | Z64: 29
D65: 3 | E65: 1 | F65: 9 | G65: 31 | H65: 36 | J65: 3 | K65: 1 | L65: 9 | M65: 31 | P65: 1 | Q65: 1 | R65: 1 | S65: 1 | T65: 0 | V65: 4 | Z65: 31
D66: 4 | E66: 2 | F66: 10 | G66: 32 | H66: 35 | J66: 4 | K66: 2 | L66: 10 | M66: 32 | N66: 35 | P66: 1 | Q66: 1 | R66: 1 | S66: 1 | T66: 1 | V66: 5 | Z66: 34
D67: 5 | E67: 29 | F67: 32 | G67: 34 | H67: 35 | J67: 5 | K67: 29 | L67: 32 | M67: 34 | N67: 35 | P67: 1 | Q67: 1 | R67: 1 | S67: 1 | T67: 1 | V67: 5 | Z67: 36
D68: 6 | E68: 30 | F68: 31 | G68: 33 | H68: 36 | J68: 6 | K68: 30 | L68: 31 | M68: 33 | P68: 1 | Q68: 1 | R68: 1 | S68: 1 | T68: 0 | V68: 4
D74: =IF(OR($A$1=D98,$A$2=D98,$A$3=D98,$A$4=D98,$A$5=D98,$A$6=D98,$A$7=D98,$A$8=D98,$A$9=D98,$A$10=D98,$A$11=D98,$A$12=D98,$A$13=D98,$A$14=D98,$A$15=D98,$A$16=D98),1,0) -> 0 | E74: 0 | F74: 0 | G74: 0 | H74: 0
D75: 0 | E75: 0 | F75: 0 | G75: 0 | H75: 0
D76: 0 | E76: 0 | F76: 0 | G76: 0 | H76: 0
D77: 0 | E77: 0 | F77: 0 | G77: 0 | H77: 0
D78: 0 | E78: 0 | F78: 0 | G78: 0 | H78: 0
D79: 0 | E79: 0 | F79: 0 | G79: 0 | H79: 0
D81: =IF(OR($A$17=D98,$A$18=D98,$A$19=D98,$A$20=D98,$A$21=D98,$A$22=D98,$A$23=D98,$A$24=D98,$A$25=D98,$A$26=D98,$A$27=D98,$A$28=D98,$A$29=D98,$A$30=D98,$A$31=D98,$A$32=D98),1,0) -> 0 | E81: 0 | F81: 0 | G81: 0 | H81: 0
D82: 0 | E82: 0 | F82: 0 | G82: 0 | H82: 0
D83: 0 | E83: 0 | F83: 0 | G83: 0 | H83: 0
D84: 0 | E84: 0 | F84: 0 | G84: 0 | H84: 0
D85: 0 | E85: 0 | F85: 0 | G85: 0 | H85: 0
D86: 0 | E86: 0 | F86: 0 | G86: 0 | H86: 0
D89: =IF(D81=1,1,IF(D74=1,1,0)) -> 0 | E89: 0 | F89: 0 | G89: 0 | H89: 0 | I89: =SUM(D89:H89) -> 0
D90: 0 | E90: 0 | F90: 0 | G90: 0 | H90: 0 | I90: 0
D91: 0 | E91: 0 | F91: 0 | G91: 0 | H91: 0 | I91: 0
D92: 0 | E92: 0 | F92: 0 | G92: 0 | H92: 0 | I92: 0
D93: 0 | E93: 0 | F93: 0 | G93: 0 | H93: 0 | I93: 0 | Q93: =IF(ISERROR(SEARCH(1,AP114,1)-1),"",SEARCH(1,AP114,1)-1) -> 
D94: 0 | E94: 0 | F94: 0 | G94: 0 | H94: 0 | I94: 0
C98: Grille 3 | D98: 17 | E98: 20 | F98: 22 | G98: 23 | H98: 25 | J98: =IF(AND(I89>=$E$2,D89=0),D98,"") -> 17 | K98: =IF(AND(I89>=$E$2,E89=0),E98,"") -> 20 | L98: =IF(AND(I89>=$E$2,F89=0),F98,"") -> 22 | M98: =IF(AND(I89>=$E$2,G89=0),G98,"") -> 23 | N98: =IF(AND(I89>=$E$2,H89=0),H98,"") -> 25 | P98: =IF(J98<>"",1,0) -> 1 | Q98: 1 | R98: 1 | S98: 1 | T98: 1 | V98: =SUM(P98:U98) -> 5
D99: 18 | E99: 19 | F99: 21 | G99: 24 | H99: 26 | J99: 18 | K99: 19 | L99: 21 | M99: 24 | N99: 26 | P99: 1 | Q99: 1 | R99: 1 | S99: 1 | T99: 1 | V99: 5
D100: 19 | E100: 15 | F100: 18 | G100: 21 | H100: 28 | J100: 19 | K100: 15 | L100: 18 | M100: 21 | N100: 28 | P100: 1 | Q100: 1 | R100: 1 | S100: 1 | T100: 1 | V100: 5
D101: 20 | E101: 16 | F101: 17 | G101: 22 | H101: 27 | J101: 20 | K101: 16 | L101: 17 | M101: 22 | N101: 27 | P101: 1 | Q101: 1 | R101: 1 | S101: 1 | T101: 1 | V101: 5
D102: 21 | E102: 11 | F102: 13 | G102: 18 | H102: 19 | J102: 21 | K102: 11 | L102: 13 | M102: 18 | N102: 19 | P102: 1 | Q102: 1 | R102: 1 | S102: 1 | T102: 1 | V102: 5
D103: 22 | E103: 12 | F103: 14 | G103: 17 | H103: 20 | J103: 22 | K103: 12 | L103: 14 | M103: 17 | N103: 20 | P103: 1 | Q103: 1 | R103: 1 | S103: 1 | T103: 1 | V103: 5
D111: =IF(OR($A$1=D135,$A$2=D135,$A$3=D135,$A$4=D135,$A$5=D135,$A$6=D135,$A$7=D135,$A$8=D135,$A$9=D135,$A$10=D135,$A$11=D135,$A$12=D135,$A$13=D135,$A$14=D135,$A$15=D135,$A$16=D135),1,0) -> 0 | E111: 0 | F111: 0 | G111: 0 | H111: 0
D112: 0 | E112: 0 | F112: 0 | G112: 0 | H112: 0
D113: 0 | E113: 0 | F113: 0 | G113: 0 | H113: 0
D114: 0 | E114: 0 | F114: 0 | G114: 0 | H114: 0
D115: 0 | E115: 0 | F115: 0 | G115: 0 | H115: 0
D116: 0 | E116: 0 | F116: 0 | G116: 0 | H116: 1
D118: =IF(OR($A$17=D135,$A$18=D135,$A$19=D135,$A$20=D135,$A$21=D135,$A$22=D135,$A$23=D135,$A$24=D135,$A$25=D135,$A$26=D135,$A$27=D135,$A$28=D135,$A$29=D135,$A$30=D135,$A$31=D135,$A$32=D135),1,0) -> 0 | E118: 0 | F118: 0 | G118: 0 | H118: 0
D119: 0 | E119: 0 | F119: 0 | G119: 0 | H119: 0
D120: 0 | E120: 0 | F120: 0 | G120: 0 | H120: 0
D121: 0 | E121: 0 | F121: 0 | G121: 0 | H121: 0
D122: 0 | E122: 0 | F122: 0 | G122: 0 | H122: 0
D123: 0 | E123: 0 | F123: 0 | G123: 0 | H123: 0
D126: =IF(D118=1,1,IF(D111=1,1,0)) -> 0 | E126: 0 | F126: 0 | G126: 0 | H126: 0 | I126: =SUM(D126:H126) -> 0
D127: 0 | E127: 0 | F127: 0 | G127: 0 | H127: 0 | I127: 0
D128: 0 | E128: 0 | F128: 0 | G128: 0 | H128: 0 | I128: 0
D129: 0 | E129: 0 | F129: 0 | G129: 0 | H129: 0 | I129: 0
D130: 0 | E130: 0 | F130: 0 | G130: 0 | H130: 0 | I130: 0 | Q130: =IF(ISERROR(SEARCH(1,AP151,1)-1),"",SEARCH(1,AP151,1)-1) -> 
D131: 0 | E131: 0 | F131: 0 | G131: 0 | H131: 1 | I131: 1
C135: Grille 4 | D135: 7 | E135: 1 | F135: 9 | G135: 30 | H135: 33 | J135: =IF(AND(I126>=$E$2,D126=0),D135,"") -> 7 | K135: =IF(AND(I126>=$E$2,E126=0),E135,"") -> 1 | L135: =IF(AND(I126>=$E$2,F126=0),F135,"") -> 9 | M135: =IF(AND(I126>=$E$2,G126=0),G135,"") -> 30 | N135: =IF(AND(I126>=$E$2,H126=0),H135,"") -> 33 | P135: =IF(J135<>"",1,0) -> 1 | Q135: 1 | R135: 1 | S135: 1 | T135: 1 | V135: =SUM(P135:U135) -> 5
D136: 8 | E136: 2 | F136: 10 | G136: 29 | H136: 34 | J136: 8 | K136: 2 | L136: 10 | M136: 29 | N136: 34 | P136: 1 | Q136: 1 | R136: 1 | S136: 1 | T136: 1 | V136: 5
D137: 9 | E137: 3 | F137: 7 | G137: 30 | H137: 31 | J137: 9 | K137: 3 | L137: 7 | M137: 30 | N137: 31 | P137: 1 | Q137: 1 | R137: 1 | S137: 1 | T137: 1 | V137: 5
D138: 10 | E138: 4 | F138: 8 | G138: 29 | H138: 32 | J138: 10 | K138: 4 | L138: 8 | M138: 29 | N138: 32 | P138: 1 | Q138: 1 | R138: 1 | S138: 1 | T138: 1 | V138: 5
D139: 29 | E139: 5 | F139: 8 | G139: 10 | H139: 35 | J139: 29 | K139: 5 | L139: 8 | M139: 10 | N139: 35 | P139: 1 | Q139: 1 | R139: 1 | S139: 1 | T139: 1 | V139: 5
D140: 30 | E140: 6 | F140: 7 | G140: 9 | H140: 36 | J140: 30 | K140: 6 | L140: 7 | M140: 9 | P140: 1 | Q140: 1 | R140: 1 | S140: 1 | T140: 0 | V140: 4
D143: =IF(OR($A$1=D167,$A$2=D167,$A$3=D167,$A$4=D167,$A$5=D167,$A$6=D167,$A$7=D167,$A$8=D167,$A$9=D167,$A$10=D167,$A$11=D167,$A$12=D167,$A$13=D167,$A$14=D167,$A$15=D167,$A$16=D167),1,0) -> 0 | E143: 0 | F143: 0 | G143: 0 | H143: 0
D144: 0 | E144: 0 | F144: 0 | G144: 0 | H144: 0
D145: 0 | E145: 0 | F145: 0 | G145: 0 | H145: 0
D146: 0 | E146: 0 | F146: 0 | G146: 0 | H146: 0
D147: 0 | E147: 0 | F147: 0 | G147: 0 | H147: 0
D148: 0 | E148: 0 | F148: 0 | G148: 0 | H148: 0
D150: =IF(OR($A$17=D167,$A$18=D167,$A$19=D167,$A$20=D167,$A$21=D167,$A$22=D167,$A$23=D167,$A$24=D167,$A$25=D167,$A$26=D167,$A$27=D167,$A$28=D167,$A$29=D167,$A$30=D167,$A$31=D167,$A$32=D167),1,0) -> 0 | E150: 0 | F150: 0 | G150: 0 | H150: 0
D151: 0 | E151: 0 | F151: 0 | G151: 0 | H151: 0
D152: 0 | E152: 0 | F152: 0 | G152: 0 | H152: 0
D153: 0 | E153: 0 | F153: 0 | G153: 0 | H153: 0
D154: 0 | E154: 0 | F154: 0 | G154: 0 | H154: 0
D155: 0 | E155: 0 | F155: 0 | G155: 0 | H155: 0
D158: =IF(D150=1,1,IF(D143=1,1,0)) -> 0 | E158: 0 | F158: 0 | G158: 0 | H158: 0 | I158: =SUM(D158:H158) -> 0
D159: 0 | E159: 0 | F159: 0 | G159: 0 | H159: 0 | I159: 0
D160: 0 | E160: 0 | F160: 0 | G160: 0 | H160: 0 | I160: 0
D161: 0 | E161: 0 | F161: 0 | G161: 0 | H161: 0 | I161: 0
D162: 0 | E162: 0 | F162: 0 | G162: 0 | H162: 0 | I162: 0 | Q162: =IF(ISERROR(SEARCH(1,AP183,1)-1),"",SEARCH(1,AP183,1)-1) -> 
D163: 0 | E163: 0 | F163: 0 | G163: 0 | H163: 0 | I163: 0
C167: Grille 5 | D167: 23 | E167: 14 | F167: 16 | G167: 17 | H167: 25 | J167: =IF(AND(I158>=$E$2,D158=0),D167,"") -> 23 | K167: =IF(AND(I158>=$E$2,E158=0),E167,"") -> 14 | L167: =IF(AND(I158>=$E$2,F158=0),F167,"") -> 16 | M167: =IF(AND(I158>=$E$2,G158=0),G167,"") -> 17 | N167: =IF(AND(I158>=$E$2,H158=0),H167,"") -> 25 | P167: =IF(J167<>"",1,0) -> 1 | Q167: 1 | R167: 1 | S167: 1 | T167: 1 | V167: =SUM(P167:U167) -> 5
D168: 24 | E168: 13 | F168: 15 | G168: 18 | H168: 26 | J168: 24 | K168: 13 | L168: 15 | M168: 18 | N168: 26 | P168: 1 | Q168: 1 | R168: 1 | S168: 1 | T168: 1 | V168: 5
D169: 25 | E169: 12 | F169: 17 | G169: 23 | H169: 27 | J169: 25 | K169: 12 | L169: 17 | M169: 23 | N169: 27 | P169: 1 | Q169: 1 | R169: 1 | S169: 1 | T169: 1 | V169: 5
D170: 26 | E170: 11 | F170: 18 | G170: 24 | H170: 28 | J170: 26 | K170: 11 | L170: 18 | M170: 24 | N170: 28 | P170: 1 | Q170: 1 | R170: 1 | S170: 1 | T170: 1 | V170: 5
D171: 27 | E171: 12 | F171: 16 | G171: 20 | H171: 25 | J171: 27 | K171: 12 | L171: 16 | M171: 20 | N171: 25 | P171: 1 | Q171: 1 | R171: 1 | S171: 1 | T171: 1 | V171: 5
D172: 28 | E172: 11 | F172: 15 | G172: 19 | H172: 26 | J172: 28 | K172: 11 | L172: 15 | M172: 19 | N172: 26 | P172: 1 | Q172: 1 | R172: 1 | S172: 1 | T172: 1 | V172: 5
D175: =IF(OR($A$1=D199,$A$2=D199,$A$3=D199,$A$4=D199,$A$5=D199,$A$6=D199,$A$7=D199,$A$8=D199,$A$9=D199,$A$10=D199,$A$11=D199,$A$12=D199,$A$13=D199,$A$14=D199,$A$15=D199,$A$16=D199),1,0) -> 0 | E175: 0 | F175: 0 | G175: 0 | H175: 0
D176: 0 | E176: 0 | F176: 0 | G176: 0 | H176: 0
D177: 0 | E177: 0 | F177: 0 | G177: 0 | H177: 0
D178: 0 | E178: 0 | F178: 0 | G178: 0 | H178: 0
D179: 0 | E179: 0 | F179: 0 | G179: 0 | H179: 0
D180: 1 | E180: 0 | F180: 0 | G180: 0 | H180: 0
D182: =IF(OR($A$17=D199,$A$18=D199,$A$19=D199,$A$20=D199,$A$21=D199,$A$22=D199,$A$23=D199,$A$24=D199,$A$25=D199,$A$26=D199,$A$27=D199,$A$28=D199,$A$29=D199,$A$30=D199,$A$31=D199,$A$32=D199),1,0) -> 0 | E182: 0 | F182: 0 | G182: 0 | H182: 0
D183: 0 | E183: 0 | F183: 0 | G183: 0 | H183: 0
D184: 0 | E184: 0 | F184: 0 | G184: 0 | H184: 0
D185: 0 | E185: 0 | F185: 0 | G185: 0 | H185: 0
D186: 0 | E186: 0 | F186: 0 | G186: 0 | H186: 0
D187: 0 | E187: 0 | F187: 0 | G187: 0 | H187: 0
D190: =IF(D182=1,1,IF(D175=1,1,0)) -> 0 | E190: 0 | F190: 0 | G190: 0 | H190: 0 | I190: =SUM(D190:H190) -> 0
D191: 0 | E191: 0 | F191: 0 | G191: 0 | H191: 0 | I191: 0
D192: 0 | E192: 0 | F192: 0 | G192: 0 | H192: 0 | I192: 0
D193: 0 | E193: 0 | F193: 0 | G193: 0 | H193: 0 | I193: 0
D194: 0 | E194: 0 | F194: 0 | G194: 0 | H194: 0 | I194: 0 | Q194: =IF(ISERROR(SEARCH(1,AP215,1)-1),"",SEARCH(1,AP215,1)-1) -> 
D195: 1 | E195: 0 | F195: 0 | G195: 0 | H195: 0 | I195: 1
C199: Grille 6 | D199: 31 | E199: 3 | F199: 6 | G199: 9 | H199: 33 | J199: =IF(AND(I190>=$E$2,D190=0),D199,"") -> 31 | K199: =IF(AND(I190>=$E$2,E190=0),E199,"") -> 3 | L199: =IF(AND(I190>=$E$2,F190=0),F199,"") -> 6 | M199: =IF(AND(I190>=$E$2,G190=0),G199,"") -> 9 | N199: =IF(AND(I190>=$E$2,H190=0),H199,"") -> 33 | P199: =IF(J199<>"",1,0) -> 1 | Q199: 1 | R199: 1 | S199: 1 | T199: 1 | V199: =SUM(P199:U199) -> 5
D200: 32 | E200: 4 | F200: 5 | G200: 10 | H200: 34 | J200: 32 | K200: 4 | L200: 5 | M200: 10 | N200: 34 | P200: 1 | Q200: 1 | R200: 1 | S200: 1 | T200: 1 | V200: 5
D201: 33 | E201: 1 | F201: 6 | G201: 7 | H201: 31 | J201: 33 | K201: 1 | L201: 6 | M201: 7 | N201: 31 | P201: 1 | Q201: 1 | R201: 1 | S201: 1 | T201: 1 | V201: 5
D202: 34 | E202: 2 | F202: 5 | G202: 8 | H202: 32 | J202: 34 | K202: 2 | L202: 5 | M202: 8 | N202: 32 | P202: 1 | Q202: 1 | R202: 1 | S202: 1 | T202: 1 | V202: 5
D203: 35 | E203: 2 | F203: 4 | G203: 5 | H203: 29 | J203: 35 | K203: 2 | L203: 4 | M203: 5 | N203: 29 | P203: 1 | Q203: 1 | R203: 1 | S203: 1 | T203: 1 | V203: 5
D204: 36 | E204: 1 | F204: 3 | G204: 6 | H204: 30 | K204: 1 | L204: 3 | M204: 6 | N204: 30 | P204: 0 | Q204: 1 | R204: 1 | S204: 1 | T204: 1 | V204: 4
D207: =IF(OR($A$1=D231,$A$2=D231,$A$3=D231,$A$4=D231,$A$5=D231,$A$6=D231,$A$7=D231,$A$8=D231,$A$9=D231,$A$10=D231,$A$11=D231,$A$12=D231,$A$13=D231,$A$14=D231,$A$15=D231,$A$16=D231),1,0) -> 0 | E207: 0 | F207: 0 | G207: 0 | H207: 0
D208: 0 | E208: 0 | F208: 0 | G208: 0 | H208: 0
D209: 0 | E209: 0 | F209: 0 | G209: 0 | H209: 0
D210: 0 | E210: 0 | F210: 0 | G210: 0 | H210: 0
D211: 0 | E211: 0 | F211: 0 | G211: 0 | H211: 0
D212: 1 | E212: 0 | F212: 0 | G212: 0 | H212: 0
D214: =IF(OR($A$17=D231,$A$18=D231,$A$19=D231,$A$20=D231,$A$21=D231,$A$22=D231,$A$23=D231,$A$24=D231,$A$25=D231,$A$26=D231,$A$27=D231,$A$28=D231,$A$29=D231,$A$30=D231,$A$31=D231,$A$32=D231),1,0) -> 0 | E214: 0 | F214: 0 | G214: 0 | H214: 0
D215: 0 | E215: 0 | F215: 0 | G215: 0 | H215: 0
D216: 0 | E216: 0 | F216: 0 | G216: 0 | H216: 0
D217: 0 | E217: 0 | F217: 0 | G217: 0 | H217: 0
D218: 0 | E218: 0 | F218: 0 | G218: 0 | H218: 0
D219: 0 | E219: 0 | F219: 0 | G219: 0 | H219: 0
D222: =IF(D214=1,1,IF(D207=1,1,0)) -> 0 | E222: 0 | F222: 0 | G222: 0 | H222: 0 | I222: =SUM(D222:H222) -> 0
D223: 0 | E223: 0 | F223: 0 | G223: 0 | H223: 0 | I223: 0
D224: 0 | E224: 0 | F224: 0 | G224: 0 | H224: 0 | I224: 0
D225: 0 | E225: 0 | F225: 0 | G225: 0 | H225: 0 | I225: 0
D226: 0 | E226: 0 | F226: 0 | G226: 0 | H226: 0 | I226: 0 | Q226: =IF(ISERROR(SEARCH(1,AP247,1)-1),"",SEARCH(1,AP247,1)-1) -> 
D227: 1 | E227: 0 | F227: 0 | G227: 0 | H227: 0 | I227: 1
C231: Grille 7 | D231: 31 | E231: 3 | F231: 6 | G231: 9 | H231: 33 | J231: =IF(AND(I222>=$E$2,D222=0),D231,"") -> 31 | K231: =IF(AND(I222>=$E$2,E222=0),E231,"") -> 3 | L231: =IF(AND(I222>=$E$2,F222=0),F231,"") -> 6 | M231: =IF(AND(I222>=$E$2,G222=0),G231,"") -> 9 | N231: =IF(AND(I222>=$E$2,H222=0),H231,"") -> 33 | P231: =IF(J231<>"",1,0) -> 1 | Q231: 1 | R231: 1 | S231: 1 | T231: 1 | V231: =SUM(P231:U231) -> 5
D232: 32 | E232: 4 | F232: 5 | G232: 10 | H232: 34 | J232: 32 | K232: 4 | L232: 5 | M232: 10 | N232: 34 | P232: 1 | Q232: 1 | R232: 1 | S232: 1 | T232: 1 | V232: 5
D233: 33 | E233: 1 | F233: 6 | G233: 7 | H233: 31 | J233: 33 | K233: 1 | L233: 6 | M233: 7 | N233: 31 | P233: 1 | Q233: 1 | R233: 1 | S233: 1 | T233: 1 | V233: 5
D234: 34 | E234: 2 | F234: 5 | G234: 8 | H234: 32 | J234: 34 | K234: 2 | L234: 5 | M234: 8 | N234: 32 | P234: 1 | Q234: 1 | R234: 1 | S234: 1 | T234: 1 | V234: 5
D235: 35 | E235: 2 | F235: 4 | G235: 5 | H235: 29 | J235: 35 | K235: 2 | L235: 4 | M235: 5 | N235: 29 | P235: 1 | Q235: 1 | R235: 1 | S235: 1 | T235: 1 | V235: 5
D236: 36 | E236: 1 | F236: 3 | G236: 6 | H236: 30 | K236: 1 | L236: 3 | M236: 6 | N236: 30 | P236: 0 | Q236: 1 | R236: 1 | S236: 1 | T236: 1 | V236: 4
D240: =IF(OR($A$1=D264,$A$2=D264,$A$3=D264,$A$4=D264,$A$5=D264,$A$6=D264,$A$7=D264,$A$8=D264,$A$9=D264,$A$10=D264,$A$11=D264,$A$12=D264,$A$13=D264,$A$14=D264,$A$15=D264,$A$16=D264),1,0) -> 0 | E240: 0 | F240: 0 | G240: 0 | H240: 0
D241: 0 | E241: 0 | F241: 0 | G241: 0 | H241: 0
D242: 0 | E242: 0 | F242: 0 | G242: 0 | H242: 0
D243: 0 | E243: 0 | F243: 0 | G243: 0 | H243: 0
D244: 0 | E244: 0 | F244: 0 | G244: 0 | H244: 0
D245: 1 | E245: 0 | F245: 0 | G245: 0 | H245: 0
D247: =IF(OR($A$17=D264,$A$18=D264,$A$19=D264,$A$20=D264,$A$21=D264,$A$22=D264,$A$23=D264,$A$24=D264,$A$25=D264,$A$26=D264,$A$27=D264,$A$28=D264,$A$29=D264,$A$30=D264,$A$31=D264,$A$32=D264),1,0) -> 0 | E247: 0 | F247: 0 | G247: 0 | H247: 0
D248: 0 | E248: 0 | F248: 0 | G248: 0 | H248: 0
D249: 0 | E249: 0 | F249: 0 | G249: 0 | H249: 0
D250: 0 | E250: 0 | F250: 0 | G250: 0 | H250: 0
D251: 0 | E251: 0 | F251: 0 | G251: 0 | H251: 0
D252: 0 | E252: 0 | F252: 0 | G252: 0 | H252: 0
D255: =IF(D247=1,1,IF(D240=1,1,0)) -> 0 | E255: 0 | F255: 0 | G255: 0 | H255: 0 | I255: =SUM(D255:H255) -> 0
D256: 0 | E256: 0 | F256: 0 | G256: 0 | H256: 0 | I256: 0
D257: 0 | E257: 0 | F257: 0 | G257: 0 | H257: 0 | I257: 0
D258: 0 | E258: 0 | F258: 0 | G258: 0 | H258: 0 | I258: 0
D259: 0 | E259: 0 | F259: 0 | G259: 0 | H259: 0 | I259: 0 | Q259: =IF(ISERROR(SEARCH(1,AP280,1)-1),"",SEARCH(1,AP280,1)-1) -> 
... 103 more rows

Sheet >>Calculs_AS_4
F1: N° | I1: N°
B2: ='>>BD_AS_4'!$J$31 -> 11 | F2: 1 | G2: =SUMIF($B$2:$B$361,F2,$B$2:$B$361)/F2 -> 17 | H2: =IF(G2<>0,1,0) -> 1 | I2: =IF(H2=1,F2,0) -> 1
B3: ='>>BD_AS_4'!$J$32 -> 12 | F3: 2 | G3: 17 | H3: 1 | I3: 2
B4: ='>>BD_AS_4'!$J$33 -> 13 | F4: 3 | G4: 17 | H4: 1 | I4: 3
B5: ='>>BD_AS_4'!$J$34 -> 14 | F5: 4 | G5: 17 | H5: 1 | I5: 4
B6: ='>>BD_AS_4'!$J$35 -> 15 | F6: 5 | G6: 23 | H6: 1 | I6: 5
B7: ='>>BD_AS_4'!$J$36 -> 16 | F7: 6 | G7: 23 | H7: 1 | I7: 6
B8: ='>>BD_AS_4'!$K$31 -> 13 | F8: 7 | G8: 11 | H8: 1 | I8: 7
B9: ='>>BD_AS_4'!$K$32 -> 14 | F9: 8 | G9: 11 | H9: 1 | I9: 8
B10: ='>>BD_AS_4'!$K$33 -> 11 | F10: 9 | G10: 11 | H10: 1 | I10: 9
B11: ='>>BD_AS_4'!$K$34 -> 12 | F11: 10 | G11: 11 | H11: 1 | I11: 10
B12: ='>>BD_AS_4'!$K$35 -> 13 | F12: 11 | G12: 5 | H12: 1 | I12: 11
B13: ='>>BD_AS_4'!$K$36 -> 14 | F13: 12 | G13: 5 | H13: 1 | I13: 12
B14: ='>>BD_AS_4'!$L$31 -> 21 | F14: 13 | G14: 5 | H14: 1 | I14: 13
B15: ='>>BD_AS_4'!$L$32 -> 22 | F15: 14 | G15: 5 | H15: 1 | I15: 14
B16: ='>>BD_AS_4'!$L$33 -> 15 | F16: 15 | G16: 5 | H16: 1 | I16: 15
B17: ='>>BD_AS_4'!$L$34 -> 16 | F17: 16 | G17: 5 | H17: 1 | I17: 16
B18: ='>>BD_AS_4'!$L$35 -> 19 | F18: 17 | G18: 5 | H18: 1 | I18: 17
B19: ='>>BD_AS_4'!$L$36 -> 20 | F19: 18 | G19: 5 | H19: 1 | I19: 18
B20: ='>>BD_AS_4'!$M$31 -> 26 | F20: 19 | G20: 5 | H20: 1 | I20: 19
B21: ='>>BD_AS_4'!$M$32 -> 25 | F21: 20 | G21: 5 | H21: 1 | I21: 20
B22: ='>>BD_AS_4'!$M$33 -> 21 | F22: 21 | G22: 5 | H22: 1 | I22: 21
B23: ='>>BD_AS_4'!$M$34 -> 22 | F23: 22 | G23: 5 | H23: 1 | I23: 22
B24: ='>>BD_AS_4'!$M$35 -> 24 | F24: 23 | G24: 5 | H24: 1 | I24: 23
B25: ='>>BD_AS_4'!$M$36 -> 23 | F25: 24 | G25: 5 | H25: 1 | I25: 24
B26: ='>>BD_AS_4'!$N$31 -> 28 | F26: 25 | G26: 5 | H26: 1 | I26: 25
B27: ='>>BD_AS_4'!$N$32 -> 27 | F27: 26 | G27: 5 | H27: 1 | I27: 26
B28: ='>>BD_AS_4'!N33 -> 24 | F28: 27 | G28: 5 | H28: 1 | I28: 27
B29: ='>>BD_AS_4'!N34 -> 23 | F29: 28 | G29: 5 | H29: 1 | I29: 28
B30: ='>>BD_AS_4'!N35 -> 28 | F30: 29 | G30: 11 | H30: 1 | I30: 29
B31: ='>>BD_AS_4'!N36 -> 27 | F31: 30 | G31: 11 | H31: 1 | I31: 30
B32: ='>>BD_AS_4'!J63 -> 1 | F32: 31 | G32: 17 | H32: 1 | I32: 31
B33: ='>>BD_AS_4'!J64 -> 2 | F33: 32 | G33: 17 | H33: 1 | I33: 32
B34: ='>>BD_AS_4'!J65 -> 3 | F34: 33 | G34: 17 | H34: 1 | I34: 33
B35: ='>>BD_AS_4'!J66 -> 4 | F35: 34 | G35: 17 | H35: 1 | I35: 34
B36: ='>>BD_AS_4'!J67 -> 5 | F36: 35 | G36: 11 | H36: 1 | I36: 35
B37: ='>>BD_AS_4'!J68 -> 6 | F37: 36 | G37: 0 | H37: 0 | I37: 0
B38: ='>>BD_AS_4'!K63 -> 3
B39: ='>>BD_AS_4'!K64 -> 4 | E39: N° sortant | F39: ='>>Input'!$Y$2 -> 36 | H39: =SUM(H2:H38) -> 35
B40: ='>>BD_AS_4'!K65 -> 1 | E40: Résultats | F40: =SUMIF(I2:I37,F39,I2:I37) -> 0
B41: ='>>BD_AS_4'!K66 -> 2 | F41: 0 | H41: 0 | I41: =IF(AND(F41<>0,H41<4),1,0) -> 0
B42: ='>>BD_AS_4'!K67 -> 29
B43: ='>>BD_AS_4'!K68 -> 30
B44: ='>>BD_AS_4'!L63 -> 7
B45: ='>>BD_AS_4'!L64 -> 8
B46: ='>>BD_AS_4'!L65 -> 9
B47: ='>>BD_AS_4'!L66 -> 10
B48: ='>>BD_AS_4'!L67 -> 32
B49: ='>>BD_AS_4'!L68 -> 31
B50: ='>>BD_AS_4'!M63 -> 33
B51: ='>>BD_AS_4'!M64 -> 34
B52: ='>>BD_AS_4'!M65 -> 31
B53: ='>>BD_AS_4'!M66 -> 32
B54: ='>>BD_AS_4'!M67 -> 34
B55: ='>>BD_AS_4'!M68 -> 33
B56: ='>>BD_AS_4'!N63 -> 
B57: ='>>BD_AS_4'!N64 -> 35
B58: ='>>BD_AS_4'!N65 -> 
B59: ='>>BD_AS_4'!N66 -> 35
B60: ='>>BD_AS_4'!N67 -> 35
B61: ='>>BD_AS_4'!N68 -> 
B62: ='>>BD_AS_4'!J98 -> 17
B63: ='>>BD_AS_4'!J99 -> 18
B64: ='>>BD_AS_4'!J100 -> 19
B65: ='>>BD_AS_4'!J101 -> 20
B66: ='>>BD_AS_4'!J102 -> 21
B67: ='>>BD_AS_4'!J103 -> 22
B68: ='>>BD_AS_4'!K98 -> 20
B69: ='>>BD_AS_4'!K99 -> 19
B70: ='>>BD_AS_4'!K100 -> 15
B71: ='>>BD_AS_4'!K101 -> 16
B72: ='>>BD_AS_4'!K102 -> 11
B73: ='>>BD_AS_4'!K103 -> 12
B74: ='>>BD_AS_4'!L98 -> 22
B75: ='>>BD_AS_4'!L99 -> 21
B76: ='>>BD_AS_4'!L100 -> 18
B77: ='>>BD_AS_4'!L101 -> 17
B78: ='>>BD_AS_4'!L102 -> 13
B79: ='>>BD_AS_4'!L103 -> 14
B80: ='>>BD_AS_4'!M98 -> 23
B81: ='>>BD_AS_4'!M99 -> 24
B82: ='>>BD_AS_4'!M100 -> 21
B83: ='>>BD_AS_4'!M101 -> 22
B84: ='>>BD_AS_4'!M102 -> 18
B85: ='>>BD_AS_4'!M103 -> 17
B86: ='>>BD_AS_4'!N98 -> 25
B87: ='>>BD_AS_4'!N99 -> 26
B88: ='>>BD_AS_4'!N100 -> 28
B89: ='>>BD_AS_4'!N101 -> 27
B90: ='>>BD_AS_4'!N102 -> 19
B91: ='>>BD_AS_4'!N103 -> 20
B92: ='>>BD_AS_4'!J135 -> 7
B93: ='>>BD_AS_4'!J136 -> 8
B94: ='>>BD_AS_4'!J137 -> 9
B95: ='>>BD_AS_4'!J138 -> 10
B96: ='>>BD_AS_4'!J139 -> 29
B97: ='>>BD_AS_4'!J140 -> 30
B98: ='>>BD_AS_4'!K135 -> 1
B99: ='>>BD_AS_4'!K136 -> 2
B100: ='>>BD_AS_4'!K137 -> 3
B101: ='>>BD_AS_4'!K138 -> 4
B102: ='>>BD_AS_4'!K139 -> 5
B103: ='>>BD_AS_4'!K140 -> 6
B104: ='>>BD_AS_4'!L135 -> 9
B105: ='>>BD_AS_4'!L136 -> 10
B106: ='>>BD_AS_4'!L137 -> 7
B107: ='>>BD_AS_4'!L138 -> 8
B108: ='>>BD_AS_4'!L139 -> 8
B109: ='>>BD_AS_4'!L140 -> 7
B110: ='>>BD_AS_4'!M135 -> 30
B111: ='>>BD_AS_4'!M136 -> 29
B112: ='>>BD_AS_4'!M137 -> 30
B113: ='>>BD_AS_4'!M138 -> 29
B114: ='>>BD_AS_4'!M139 -> 10
B115: ='>>BD_AS_4'!M140 -> 9
B116: ='>>BD_AS_4'!N135 -> 33
B117: ='>>BD_AS_4'!N136 -> 34
B118: ='>>BD_AS_4'!N137 -> 31
B119: ='>>BD_AS_4'!N138 -> 32
B120: ='>>BD_AS_4'!N139 -> 35
B121: ='>>BD_AS_4'!N140 -> 
B122: ='>>BD_AS_4'!J167 -> 23
B123: ='>>BD_AS_4'!J168 -> 24
B124: ='>>BD_AS_4'!J169 -> 25
B125: ='>>BD_AS_4'!J170 -> 26
B126: ='>>BD_AS_4'!J171 -> 27
B127: ='>>BD_AS_4'!J172 -> 28
B128: ='>>BD_AS_4'!K167 -> 14
B129: ='>>BD_AS_4'!K168 -> 13
B130: ='>>BD_AS_4'!K169 -> 12
B131: ='>>BD_AS_4'!K170 -> 11
B132: ='>>BD_AS_4'!K171 -> 12
B133: ='>>BD_AS_4'!K172 -> 11
B134: ='>>BD_AS_4'!L167 -> 16
B135: ='>>BD_AS_4'!L168 -> 15
B136: ='>>BD_AS_4'!L169 -> 17
B137: ='>>BD_AS_4'!L170 -> 18
B138: ='>>BD_AS_4'!L171 -> 16
B139: ='>>BD_AS_4'!L172 -> 15
B140: ='>>BD_AS_4'!M167 -> 17
B141: ='>>BD_AS_4'!M168 -> 18
B142: ='>>BD_AS_4'!M169 -> 23
B143: ='>>BD_AS_4'!M170 -> 24
B144: ='>>BD_AS_4'!M171 -> 20
B145: ='>>BD_AS_4'!M172 -> 19
B146: ='>>BD_AS_4'!N167 -> 25
B147: ='>>BD_AS_4'!N168 -> 26
B148: ='>>BD_AS_4'!N169 -> 27
B149: ='>>BD_AS_4'!N170 -> 28
B150: ='>>BD_AS_4'!N171 -> 25
B151: ='>>BD_AS_4'!N172 -> 26
B152: ='>>BD_AS_4'!J199 -> 31
B153: ='>>BD_AS_4'!J200 -> 32
B154: ='>>BD_AS_4'!J201 -> 33
B155: ='>>BD_AS_4'!J202 -> 34
B156: ='>>BD_AS_4'!J203 -> 35
B157: ='>>BD_AS_4'!J204 -> 
B158: ='>>BD_AS_4'!K199 -> 3
B159: ='>>BD_AS_4'!K200 -> 4
B160: ='>>BD_AS_4'!K201 -> 1
B161: ='>>BD_AS_4'!K202 -> 2
B162: ='>>BD_AS_4'!K203 -> 2
B163: ='>>BD_AS_4'!K204 -> 1
B164: ='>>BD_AS_4'!L199 -> 6
B165: ='>>BD_AS_4'!L200 -> 5
B166: ='>>BD_AS_4'!L201 -> 6
B167: ='>>BD_AS_4'!L202 -> 5
B168: ='>>BD_AS_4'!L203 -> 4
B169: ='>>BD_AS_4'!L204 -> 3
B170: ='>>BD_AS_4'!M199 -> 9
B171: ='>>BD_AS_4'!M200 -> 10
B172: ='>>BD_AS_4'!M201 -> 7
B173: ='>>BD_AS_4'!M202 -> 8
B174: ='>>BD_AS_4'!M203 -> 5
B175: ='>>BD_AS_4'!M204 -> 6
B176: ='>>BD_AS_4'!N199 -> 33
B177: ='>>BD_AS_4'!N200 -> 34
B178: ='>>BD_AS_4'!N201 -> 31
B179: ='>>BD_AS_4'!N202 -> 32
B180: ='>>BD_AS_4'!N203 -> 29
B181: ='>>BD_AS_4'!N204 -> 30
B182: ='>>BD_AS_4'!J231 -> 31
B183: ='>>BD_AS_4'!J232 -> 32
B184: ='>>BD_AS_4'!J233 -> 33
B185: ='>>BD_AS_4'!J234 -> 34
B186: ='>>BD_AS_4'!J235 -> 35
B187: ='>>BD_AS_4'!J236 -> 
B188: ='>>BD_AS_4'!K231 -> 3
B189: ='>>BD_AS_4'!K232 -> 4
B190: ='>>BD_AS_4'!K233 -> 1
B191: ='>>BD_AS_4'!K234 -> 2
B192: ='>>BD_AS_4'!K235 -> 2
B193: ='>>BD_AS_4'!K236 -> 1
B194: ='>>BD_AS_4'!L231 -> 6
B195: ='>>BD_AS_4'!L232 -> 5
B196: ='>>BD_AS_4'!L233 -> 6
B197: ='>>BD_AS_4'!L234 -> 5
B198: ='>>BD_AS_4'!L235 -> 4
B199: ='>>BD_AS_4'!L236 -> 3
B200: ='>>BD_AS_4'!M231 -> 9
... 161 more rows

Sheet >>BD_AS_3
A1: =IF($L$2>=C1,B1,"") -> 36 | B1: ='>>Convertisseur'!A15 -> 36 | C1: 1
B2: ='>>Convertisseur'!A16 -> 2 | C2: 2 | D2: Nbre ligne | E2: ='>>Input'!AH39 -> 0 | G2: Nombre N° | H2: ='>>Calculs_AS_3'!H39 -> 35 | K2: Compteur | L2: ='>>Input'!AJ42 -> 1
B3: ='>>Convertisseur'!A17 -> 0 | C3: 3
B4: ='>>Convertisseur'!A18 -> 0 | C4: 4
B5: ='>>Convertisseur'!A19 -> 0 | C5: 5
B6: ='>>Convertisseur'!A20 -> 0 | C6: 6
B7: ='>>Convertisseur'!A21 -> 0 | C7: 7 | D7: =IF(OR($A$1=D31,$A$2=D31,$A$3=D31,$A$4=D31,$A$5=D31,$A$6=D31,$A$7=D31,$A$8=D31,$A$9=D31,$A$10=D31,$A$11=D31,$A$12=D31,$A$13=D31,$A$14=D31,$A$15=D31,$A$16=D31),1,0) -> 0 | E7: 0 | F7: 0 | G7: 0 | H7: 0
B8: ='>>Convertisseur'!A22 -> 0 | C8: 8 | D8: 0 | E8: 0 | F8: 0 | G8: 0 | H8: 0
B9: ='>>Convertisseur'!A23 -> 0 | C9: 9 | D9: 0 | E9: 0 | F9: 0 | G9: 0 | H9: 0
B10: ='>>Convertisseur'!A24 -> 0 | C10: 10 | D10: 0 | E10: 0 | F10: 0 | G10: 0 | H10: 0
B11: ='>>Convertisseur'!A25 -> 0 | C11: 11 | D11: 0 | E11: 0 | F11: 0 | G11: 0 | H11: 0
B12: ='>>Convertisseur'!A26 -> 0 | C12: 12 | D12: 0 | E12: 0 | F12: 0 | G12: 0 | H12: 0
B13: ='>>Convertisseur'!A27 -> 0 | C13: 13
B14: ='>>Convertisseur'!A28 -> 0 | C14: 14 | D14: =IF(OR($A$17=D31,$A$18=D31,$A$19=D31,$A$20=D31,$A$21=D31,$A$22=D31,$A$23=D31,$A$24=D31,$A$25=D31,$A$26=D31,$A$27=D31,$A$28=D31,$A$29=D31,$A$30=D31,$A$31=D31,$A$32=D31),1,0) -> 0 | E14: 0 | F14: 0 | G14: 0 | H14: 0
B15: ='>>Convertisseur'!A29 -> 0 | C15: 15 | D15: 0 | E15: 0 | F15: 0 | G15: 0 | H15: 0
B16: ='>>Convertisseur'!A30 -> 0 | C16: 16 | D16: 0 | E16: 0 | F16: 0 | G16: 0 | H16: 0
B17: ='>>Convertisseur'!A31 -> 0 | C17: 17 | D17: 0 | E17: 0 | F17: 0 | G17: 0 | H17: 0
B18: ='>>Convertisseur'!A32 -> 0 | C18: 18 | D18: 0 | E18: 0 | F18: 0 | G18: 0 | H18: 0
B19: ='>>Convertisseur'!A33 -> 0 | C19: 19 | D19: 0 | E19: 0 | F19: 0 | G19: 0 | H19: 0
B20: ='>>Convertisseur'!A34 -> 0 | C20: 20
B21: ='>>Convertisseur'!A35 -> 0 | C21: 21
B22: ='>>Convertisseur'!A36 -> 0 | C22: 22 | D22: =IF(D14=1,1,IF(D7=1,1,0)) -> 0 | E22: 0 | F22: 0 | G22: 0 | H22: 0 | I22: =SUM(D22:H22) -> 0
B23: ='>>Convertisseur'!A37 -> 0 | C23: 23 | D23: 0 | E23: 0 | F23: 0 | G23: 0 | H23: 0 | I23: 0
B24: ='>>Convertisseur'!A38 -> 0 | C24: 24 | D24: 0 | E24: 0 | F24: 0 | G24: 0 | H24: 0 | I24: 0
B25: ='>>Convertisseur'!A39 -> 0 | C25: 25 | D25: 0 | E25: 0 | F25: 0 | G25: 0 | H25: 0 | I25: 0
B26: ='>>Convertisseur'!A40 -> 0 | C26: 26 | D26: 0 | E26: 0 | F26: 0 | G26: 0 | H26: 0 | I26: 0 | Q26: =IF(ISERROR(SEARCH(1,AP47,1)-1),"",SEARCH(1,AP47,1)-1) -> 
B27: ='>>Convertisseur'!A41 -> 0 | C27: 27 | D27: 0 | E27: 0 | F27: 0 | G27: 0 | H27: 0 | I27: 0
B28: ='>>Convertisseur'!A42 -> 0 | C28: 28
B29: ='>>Convertisseur'!A43 -> 0 | C29: 29
B30: ='>>Convertisseur'!A44 -> 0 | C30: 30
C31: Grille 1 | D31: 11 | E31: 13 | F31: 21 | G31: 26 | H31: 28 | J31: =IF(AND(I22>=$E$2,D22=0),D31,"") -> 11 | K31: =IF(AND(I22>=$E$2,E22=0),E31,"") -> 13 | L31: =IF(AND(I22>=$E$2,F22=0),F31,"") -> 21 | M31: =IF(AND(I22>=$E$2,G22=0),G31,"") -> 26 | N31: =IF(AND(I22>=$E$2,H22=0),H31,"") -> 28 | P31: =IF(J31<>"",1,0) -> 1 | Q31: 1 | R31: 1 | S31: 1 | T31: 1 | V31: =SUM(P31:U31) -> 5
D32: 12 | E32: 14 | F32: 22 | G32: 25 | H32: 27 | J32: 12 | K32: 14 | L32: 22 | M32: 25 | N32: 27 | P32: 1 | Q32: 1 | R32: 1 | S32: 1 | T32: 1 | V32: 5
D33: 13 | E33: 11 | F33: 15 | G33: 21 | H33: 24 | J33: 13 | K33: 11 | L33: 15 | M33: 21 | N33: 24 | P33: 1 | Q33: 1 | R33: 1 | S33: 1 | T33: 1 | V33: 5
D34: 14 | E34: 12 | F34: 16 | G34: 22 | H34: 23 | J34: 14 | K34: 12 | L34: 16 | M34: 22 | N34: 23 | P34: 1 | Q34: 1 | R34: 1 | S34: 1 | T34: 1 | V34: 5
D35: 15 | E35: 13 | F35: 19 | G35: 24 | H35: 28 | J35: 15 | K35: 13 | L35: 19 | M35: 24 | N35: 28 | P35: 1 | Q35: 1 | R35: 1 | S35: 1 | T35: 1 | V35: 5
D36: 16 | E36: 14 | F36: 20 | G36: 23 | H36: 27 | J36: 16 | K36: 14 | L36: 20 | M36: 23 | N36: 27 | P36: 1 | Q36: 1 | R36: 1 | S36: 1 | T36: 1 | V36: 5
D39: =IF(OR($A$1=D63,$A$2=D63,$A$3=D63,$A$4=D63,$A$5=D63,$A$6=D63,$A$7=D63,$A$8=D63,$A$9=D63,$A$10=D63,$A$11=D63,$A$12=D63,$A$13=D63,$A$14=D63,$A$15=D63,$A$16=D63),1,0) -> 0 | E39: 0 | F39: 0 | G39: 0 | H39: 1
D40: 0 | E40: 0 | F40: 0 | G40: 0 | H40: 0
D41: 0 | E41: 0 | F41: 0 | G41: 0 | H41: 1
D42: 0 | E42: 0 | F42: 0 | G42: 0 | H42: 0
D43: 0 | E43: 0 | F43: 0 | G43: 0 | H43: 0
D44: 0 | E44: 0 | F44: 0 | G44: 0 | H44: 1
D46: =IF(OR($A$17=D63,$A$18=D63,$A$19=D63,$A$20=D63,$A$21=D63,$A$22=D63,$A$23=D63,$A$24=D63,$A$25=D63,$A$26=D63,$A$27=D63,$A$28=D63,$A$29=D63,$A$30=D63,$A$31=D63,$A$32=D63),1,0) -> 0 | E46: 0 | F46: 0 | G46: 0 | H46: 0
D47: 0 | E47: 0 | F47: 0 | G47: 0 | H47: 0
D48: 0 | E48: 0 | F48: 0 | G48: 0 | H48: 0
D49: 0 | E49: 0 | F49: 0 | G49: 0 | H49: 0
D50: 0 | E50: 0 | F50: 0 | G50: 0 | H50: 0
D51: 0 | E51: 0 | F51: 0 | G51: 0 | H51: 0
D54: =IF(D46=1,1,IF(D39=1,1,0)) -> 0 | E54: 0 | F54: 0 | G54: 0 | H54: 1 | I54: =SUM(D54:H54) -> 1
D55: 0 | E55: 0 | F55: 0 | G55: 0 | H55: 0 | I55: 0 | Z55: 1
D56: 0 | E56: 0 | F56: 0 | G56: 0 | H56: 1 | I56: 1 | Z56: 4
D57: 0 | E57: 0 | F57: 0 | G57: 0 | H57: 0 | I57: 0 | Z57: 5
D58: 0 | E58: 0 | F58: 0 | G58: 0 | H58: 0 | I58: 0 | Q58: =IF(ISERROR(SEARCH(1,AP79,1)-1),"",SEARCH(1,AP79,1)-1) ->  | Z58: 9
D59: 0 | E59: 0 | F59: 0 | G59: 0 | H59: 1 | I59: 1 | Z59: 11
Z60: 12
Z61: 14
Z62: 17
C63: Grille 2 | D63: 1 | E63: 3 | F63: 7 | G63: 33 | H63: 36 | J63: =IF(AND(I54>=$E$2,D54=0),D63,"") -> 1 | K63: =IF(AND(I54>=$E$2,E54=0),E63,"") -> 3 | L63: =IF(AND(I54>=$E$2,F54=0),F63,"") -> 7 | M63: =IF(AND(I54>=$E$2,G54=0),G63,"") -> 33 | N63: =IF(AND(I54>=$E$2,H54=0),H63,"") ->  | P63: =IF(J63<>"",1,0) -> 1 | Q63: 1 | R63: 1 | S63: 1 | T63: 0 | V63: =SUM(P63:U63) -> 4 | Z63: 20
D64: 2 | E64: 4 | F64: 8 | G64: 34 | H64: 35 | J64: 2 | K64: 4 | L64: 8 | M64: 34 | N64: 35 | P64: 1 | Q64: 1 | R64: 1 | S64: 1 | T64: 1 | V64: 5 | Z64: 29
D65: 3 | E65: 1 | F65: 9 | G65: 31 | H65: 36 | J65: 3 | K65: 1 | L65: 9 | M65: 31 | P65: 1 | Q65: 1 | R65: 1 | S65: 1 | T65: 0 | V65: 4 | Z65: 31
D66: 4 | E66: 2 | F66: 10 | G66: 32 | H66: 35 | J66: 4 | K66: 2 | L66: 10 | M66: 32 | N66: 35 | P66: 1 | Q66: 1 | R66: 1 | S66: 1 | T66: 1 | V66: 5 | Z66: 34
D67: 5 | E67: 29 | F67: 32 | G67: 34 | H67: 35 | J67: 5 | K67: 29 | L67: 32 | M67: 34 | N67: 35 | P67: 1 | Q67: 1 | R67: 1 | S67: 1 | T67: 1 | V67: 5 | Z67: 36
D68: 6 | E68: 30 | F68: 31 | G68: 33 | H68: 36 | J68: 6 | K68: 30 | L68: 31 | M68: 33 | P68: 1 | Q68: 1 | R68: 1 | S68: 1 | T68: 0 | V68: 4
D74: =IF(OR($A$1=D98,$A$2=D98,$A$3=D98,$A$4=D98,$A$5=D98,$A$6=D98,$A$7=D98,$A$8=D98,$A$9=D98,$A$10=D98,$A$11=D98,$A$12=D98,$A$13=D98,$A$14=D98,$A$15=D98,$A$16=D98),1,0) -> 0 | E74: 0 | F74: 0 | G74: 0 | H74: 0
D75: 0 | E75: 0 | F75: 0 | G75: 0 | H75: 0
D76: 0 | E76: 0 | F76: 0 | G76: 0 | H76: 0
D77: 0 | E77: 0 | F77: 0 | G77: 0 | H77: 0
D78: 0 | E78: 0 | F78: 0 | G78: 0 | H78: 0
D79: 0 | E79: 0 | F79: 0 | G79: 0 | H79: 0
D81: =IF(OR($A$17=D98,$A$18=D98,$A$19=D98,$A$20=D98,$A$21=D98,$A$22=D98,$A$23=D98,$A$24=D98,$A$25=D98,$A$26=D98,$A$27=D98,$A$28=D98,$A$29=D98,$A$30=D98,$A$31=D98,$A$32=D98),1,0) -> 0 | E81: 0 | F81: 0 | G81: 0 | H81: 0
D82: 0 | E82: 0 | F82: 0 | G82: 0 | H82: 0
D83: 0 | E83: 0 | F83: 0 | G83: 0 | H83: 0
D84: 0 | E84: 0 | F84: 0 | G84: 0 | H84: 0
D85: 0 | E85: 0 | F85: 0 | G85: 0 | H85: 0
D86: 0 | E86: 0 | F86: 0 | G86: 0 | H86: 0
D89: =IF(D81=1,1,IF(D74=1,1,0)) -> 0 | E89: 0 | F89: 0 | G89: 0 | H89: 0 | I89: =SUM(D89:H89) -> 0
D90: 0 | E90: 0 | F90: 0 | G90: 0 | H90: 0 | I90: 0
D91: 0 | E91: 0 | F91: 0 | G91: 0 | H91: 0 | I91: 0
D92: 0 | E92: 0 | F92: 0 | G92: 0 | H92: 0 | I92: 0
D93: 0 | E93: 0 | F93: 0 | G93: 0 | H93: 0 | I93: 0 | Q93: =IF(ISERROR(SEARCH(1,AP114,1)-1),"",SEARCH(1,AP114,1)-1) -> 
D94: 0 | E94: 0 | F94: 0 | G94: 0 | H94: 0 | I94: 0
C98: Grille 3 | D98: 17 | E98: 20 | F98: 22 | G98: 23 | H98: 25 | J98: =IF(AND(I89>=$E$2,D89=0),D98,"") -> 17 | K98: =IF(AND(I89>=$E$2,E89=0),E98,"") -> 20 | L98: =IF(AND(I89>=$E$2,F89=0),F98,"") -> 22 | M98: =IF(AND(I89>=$E$2,G89=0),G98,"") -> 23 | N98: =IF(AND(I89>=$E$2,H89=0),H98,"") -> 25 | P98: =IF(J98<>"",1,0) -> 1 | Q98: 1 | R98: 1 | S98: 1 | T98: 1 | V98: =SUM(P98:U98) -> 5
D99: 18 | E99: 19 | F99: 21 | G99: 24 | H99: 26 | J99: 18 | K99: 19 | L99: 21 | M99: 24 | N99: 26 | P99: 1 | Q99: 1 | R99: 1 | S99: 1 | T99: 1 | V99: 5
D100: 19 | E100: 15 | F100: 18 | G100: 21 | H100: 28 | J100: 19 | K100: 15 | L100: 18 | M100: 21 | N100: 28 | P100: 1 | Q100: 1 | R100: 1 | S100: 1 | T100: 1 | V100: 5
D101: 20 | E101: 16 | F101: 17 | G101: 22 | H101: 27 | J101: 20 | K101: 16 | L101: 17 | M101: 22 | N101: 27 | P101: 1 | Q101: 1 | R101: 1 | S101: 1 | T101: 1 | V101: 5
D102: 21 | E102: 11 | F102: 13 | G102: 18 | H102: 19 | J102: 21 | K102: 11 | L102: 13 | M102: 18 | N102: 19 | P102: 1 | Q102: 1 | R102: 1 | S102: 1 | T102: 1 | V102: 5
D103: 22 | E103: 12 | F103: 14 | G103: 17 | H103: 20 | J103: 22 | K103: 12 | L103: 14 | M103: 17 | N103: 20 | P103: 1 | Q103: 1 | R103: 1 | S103: 1 | T103: 1 | V103: 5
D111: =IF(OR($A$1=D135,$A$2=D135,$A$3=D135,$A$4=D135,$A$5=D135,$A$6=D135,$A$7=D135,$A$8=D135,$A$9=D135,$A$10=D135,$A$11=D135,$A$12=D135,$A$13=D135,$A$14=D135,$A$15=D135,$A$16=D135),1,0) -> 0 | E111: 0 | F111: 0 | G111: 0 | H111: 0
D112: 0 | E112: 0 | F112: 0 | G112: 0 | H112: 0
D113: 0 | E113: 0 | F113: 0 | G113: 0 | H113: 0
D114: 0 | E114: 0 | F114: 0 | G114: 0 | H114: 0
D115: 0 | E115: 0 | F115: 0 | G115: 0 | H115: 0
D116: 0 | E116: 0 | F116: 0 | G116: 0 | H116: 1
D118: =IF(OR($A$17=D135,$A$18=D135,$A$19=D135,$A$20=D135,$A$21=D135,$A$22=D135,$A$23=D135,$A$24=D135,$A$25=D135,$A$26=D135,$A$27=D135,$A$28=D135,$A$29=D135,$A$30=D135,$A$31=D135,$A$32=D135),1,0) -> 0 | E118: 0 | F118: 0 | G118: 0 | H118: 0
D119: 0 | E119: 0 | F119: 0 | G119: 0 | H119: 0
D120: 0 | E120: 0 | F120: 0 | G120: 0 | H120: 0
D121: 0 | E121: 0 | F121: 0 | G121: 0 | H121: 0
D122: 0 | E122: 0 | F122: 0 | G122: 0 | H122: 0
D123: 0 | E123: 0 | F123: 0 | G123: 0 | H123: 0
D126: =IF(D118=1,1,IF(D111=1,1,0)) -> 0 | E126: 0 | F126: 0 | G126: 0 | H126: 0 | I126: =SUM(D126:H126) -> 0
D127: 0 | E127: 0 | F127: 0 | G127: 0 | H127: 0 | I127: 0
D128: 0 | E128: 0 | F128: 0 | G128: 0 | H128: 0 | I128: 0
D129: 0 | E129: 0 | F129: 0 | G129: 0 | H129: 0 | I129: 0
D130: 0 | E130: 0 | F130: 0 | G130: 0 | H130: 0 | I130: 0 | Q130: =IF(ISERROR(SEARCH(1,AP151,1)-1),"",SEARCH(1,AP151,1)-1) -> 
D131: 0 | E131: 0 | F131: 0 | G131: 0 | H131: 1 | I131: 1
C135: Grille 4 | D135: 7 | E135: 1 | F135: 9 | G135: 30 | H135: 33 | J135: =IF(AND(I126>=$E$2,D126=0),D135,"") -> 7 | K135: =IF(AND(I126>=$E$2,E126=0),E135,"") -> 1 | L135: =IF(AND(I126>=$E$2,F126=0),F135,"") -> 9 | M135: =IF(AND(I126>=$E$2,G126=0),G135,"") -> 30 | N135: =IF(AND(I126>=$E$2,H126=0),H135,"") -> 33 | P135: =IF(J135<>"",1,0) -> 1 | Q135: 1 | R135: 1 | S135: 1 | T135: 1 | V135: =SUM(P135:U135) -> 5
D136: 8 | E136: 2 | F136: 10 | G136: 29 | H136: 34 | J136: 8 | K136: 2 | L136: 10 | M136: 29 | N136: 34 | P136: 1 | Q136: 1 | R136: 1 | S136: 1 | T136: 1 | V136: 5
D137: 9 | E137: 3 | F137: 7 | G137: 30 | H137: 31 | J137: 9 | K137: 3 | L137: 7 | M137: 30 | N137: 31 | P137: 1 | Q137: 1 | R137: 1 | S137: 1 | T137: 1 | V137: 5
D138: 10 | E138: 4 | F138: 8 | G138: 29 | H138: 32 | J138: 10 | K138: 4 | L138: 8 | M138: 29 | N138: 32 | P138: 1 | Q138: 1 | R138: 1 | S138: 1 | T138: 1 | V138: 5
D139: 29 | E139: 5 | F139: 8 | G139: 10 | H139: 35 | J139: 29 | K139: 5 | L139: 8 | M139: 10 | N139: 35 | P139: 1 | Q139: 1 | R139: 1 | S139: 1 | T139: 1 | V139: 5
D140: 30 | E140: 6 | F140: 7 | G140: 9 | H140: 36 | J140: 30 | K140: 6 | L140: 7 | M140: 9 | P140: 1 | Q140: 1 | R140: 1 | S140: 1 | T140: 0 | V140: 4
D143: =IF(OR($A$1=D167,$A$2=D167,$A$3=D167,$A$4=D167,$A$5=D167,$A$6=D167,$A$7=D167,$A$8=D167,$A$9=D167,$A$10=D167,$A$11=D167,$A$12=D167,$A$13=D167,$A$14=D167,$A$15=D167,$A$16=D167),1,0) -> 0 | E143: 0 | F143: 0 | G143: 0 | H143: 0
D144: 0 | E144: 0 | F144: 0 | G144: 0 | H144: 0
D145: 0 | E145: 0 | F145: 0 | G145: 0 | H145: 0
D146: 0 | E146: 0 | F146: 0 | G146: 0 | H146: 0
D147: 0 | E147: 0 | F147: 0 | G147: 0 | H147: 0
D148: 0 | E148: 0 | F148: 0 | G148: 0 | H148: 0
D150: =IF(OR($A$17=D167,$A$18=D167,$A$19=D167,$A$20=D167,$A$21=D167,$A$22=D167,$A$23=D167,$A$24=D167,$A$25=D167,$A$26=D167,$A$27=D167,$A$28=D167,$A$29=D167,$A$30=D167,$A$31=D167,$A$32=D167),1,0) -> 0 | E150: 0 | F150: 0 | G150: 0 | H150: 0
D151: 0 | E151: 0 | F151: 0 | G151: 0 | H151: 0
D152: 0 | E152: 0 | F152: 0 | G152: 0 | H152: 0
D153: 0 | E153: 0 | F153: 0 | G153: 0 | H153: 0
D154: 0 | E154: 0 | F154: 0 | G154: 0 | H154: 0
D155: 0 | E155: 0 | F155: 0 | G155: 0 | H155: 0
D158: =IF(D150=1,1,IF(D143=1,1,0)) -> 0 | E158: 0 | F158: 0 | G158: 0 | H158: 0 | I158: =SUM(D158:H158) -> 0
D159: 0 | E159: 0 | F159: 0 | G159: 0 | H159: 0 | I159: 0
D160: 0 | E160: 0 | F160: 0 | G160: 0 | H160: 0 | I160: 0
D161: 0 | E161: 0 | F161: 0 | G161: 0 | H161: 0 | I161: 0
D162: 0 | E162: 0 | F162: 0 | G162: 0 | H162: 0 | I162: 0 | Q162: =IF(ISERROR(SEARCH(1,AP183,1)-1),"",SEARCH(1,AP183,1)-1) -> 
D163: 0 | E163: 0 | F163: 0 | G163: 0 | H163: 0 | I163: 0
C167: Grille 5 | D167: 23 | E167: 14 | F167: 16 | G167: 17 | H167: 25 | J167: =IF(AND(I158>=$E$2,D158=0),D167,"") -> 23 | K167: =IF(AND(I158>=$E$2,E158=0),E167,"") -> 14 | L167: =IF(AND(I158>=$E$2,F158=0),F167,"") -> 16 | M167: =IF(AND(I158>=$E$2,G158=0),G167,"") -> 17 | N167: =IF(AND(I158>=$E$2,H158=0),H167,"") -> 25 | P167: =IF(J167<>"",1,0) -> 1 | Q167: 1 | R167: 1 | S167: 1 | T167: 1 | V167: =SUM(P167:U167) -> 5
D168: 24 | E168: 13 | F168: 15 | G168: 18 | H168: 26 | J168: 24 | K168: 13 | L168: 15 | M168: 18 | N168: 26 | P168: 1 | Q168: 1 | R168: 1 | S168: 1 | T168: 1 | V168: 5
D169: 25 | E169: 12 | F169: 17 | G169: 23 | H169: 27 | J169: 25 | K169: 12 | L169: 17 | M169: 23 | N169: 27 | P169: 1 | Q169: 1 | R169: 1 | S169: 1 | T169: 1 | V169: 5
D170: 26 | E170: 11 | F170: 18 | G170: 24 | H170: 28 | J170: 26 | K170: 11 | L170: 18 | M170: 24 | N170: 28 | P170: 1 | Q170: 1 | R170: 1 | S170: 1 | T170: 1 | V170: 5
D171: 27 | E171: 12 | F171: 16 | G171: 20 | H171: 25 | J171: 27 | K171: 12 | L171: 16 | M171: 20 | N171: 25 | P171: 1 | Q171: 1 | R171: 1 | S171: 1 | T171: 1 | V171: 5
D172: 28 | E172: 11 | F172: 15 | G172: 19 | H172: 26 | J172: 28 | K172: 11 | L172: 15 | M172: 19 | N172: 26 | P172: 1 | Q172: 1 | R172: 1 | S172: 1 | T172: 1 | V172: 5
D175: =IF(OR($A$1=D199,$A$2=D199,$A$3=D199,$A$4=D199,$A$5=D199,$A$6=D199,$A$7=D199,$A$8=D199,$A$9=D199,$A$10=D199,$A$11=D199,$A$12=D199,$A$13=D199,$A$14=D199,$A$15=D199,$A$16=D199),1,0) -> 0 | E175: 0 | F175: 0 | G175: 0 | H175: 0
D176: 0 | E176: 0 | F176: 0 | G176: 0 | H176: 0
D177: 0 | E177: 0 | F177: 0 | G177: 0 | H177: 0
D178: 0 | E178: 0 | F178: 0 | G178: 0 | H178: 0
D179: 0 | E179: 0 | F179: 0 | G179: 0 | H179: 0
D180: 1 | E180: 0 | F180: 0 | G180: 0 | H180: 0
D182: =IF(OR($A$17=D199,$A$18=D199,$A$19=D199,$A$20=D199,$A$21=D199,$A$22=D199,$A$23=D199,$A$24=D199,$A$25=D199,$A$26=D199,$A$27=D199,$A$28=D199,$A$29=D199,$A$30=D199,$A$31=D199,$A$32=D199),1,0) -> 0 | E182: 0 | F182: 0 | G182: 0 | H182: 0
D183: 0 | E183: 0 | F183: 0 | G183: 0 | H183: 0
D184: 0 | E184: 0 | F184: 0 | G184: 0 | H184: 0
D185: 0 | E185: 0 | F185: 0 | G185: 0 | H185: 0
D186: 0 | E186: 0 | F186: 0 | G186: 0 | H186: 0
D187: 0 | E187: 0 | F187: 0 | G187: 0 | H187: 0
D190: =IF(D182=1,1,IF(D175=1,1,0)) -> 0 | E190: 0 | F190: 0 | G190: 0 | H190: 0 | I190: =SUM(D190:H190) -> 0
D191: 0 | E191: 0 | F191: 0 | G191: 0 | H191: 0 | I191: 0
D192: 0 | E192: 0 | F192: 0 | G192: 0 | H192: 0 | I192: 0
D193: 0 | E193: 0 | F193: 0 | G193: 0 | H193: 0 | I193: 0
D194: 0 | E194: 0 | F194: 0 | G194: 0 | H194: 0 | I194: 0 | Q194: =IF(ISERROR(SEARCH(1,AP215,1)-1),"",SEARCH(1,AP215,1)-1) -> 
D195: 1 | E195: 0 | F195: 0 | G195: 0 | H195: 0 | I195: 1
C199: Grille 6 | D199: 31 | E199: 3 | F199: 6 | G199: 9 | H199: 33 | J199: =IF(AND(I190>=$E$2,D190=0),D199,"") -> 31 | K199: =IF(AND(I190>=$E$2,E190=0),E199,"") -> 3 | L199: =IF(AND(I190>=$E$2,F190=0),F199,"") -> 6 | M199: =IF(AND(I190>=$E$2,G190=0),G199,"") -> 9 | N199: =IF(AND(I190>=$E$2,H190=0),H199,"") -> 33 | P199: =IF(J199<>"",1,0) -> 1 | Q199: 1 | R199: 1 | S199: 1 | T199: 1 | V199: =SUM(P199:U199) -> 5
D200: 32 | E200: 4 | F200: 5 | G200: 10 | H200: 34 | J200: 32 | K200: 4 | L200: 5 | M200: 10 | N200: 34 | P200: 1 | Q200: 1 | R200: 1 | S200: 1 | T200: 1 | V200: 5
D201: 33 | E201: 1 | F201: 6 | G201: 7 | H201: 31 | J201: 33 | K201: 1 | L201: 6 | M201: 7 | N201: 31 | P201: 1 | Q201: 1 | R201: 1 | S201: 1 | T201: 1 | V201: 5
D202: 34 | E202: 2 | F202: 5 | G202: 8 | H202: 32 | J202: 34 | K202: 2 | L202: 5 | M202: 8 | N202: 32 | P202: 1 | Q202: 1 | R202: 1 | S202: 1 | T202: 1 | V202: 5
D203: 35 | E203: 2 | F203: 4 | G203: 5 | H203: 29 | J203: 35 | K203: 2 | L203: 4 | M203: 5 | N203: 29 | P203: 1 | Q203: 1 | R203: 1 | S203: 1 | T203: 1 | V203: 5
D204: 36 | E204: 1 | F204: 3 | G204: 6 | H204: 30 | K204: 1 | L204: 3 | M204: 6 | N204: 30 | P204: 0 | Q204: 1 | R204: 1 | S204: 1 | T204: 1 | V204: 4
D207: =IF(OR($A$1=D231,$A$2=D231,$A$3=D231,$A$4=D231,$A$5=D231,$A$6=D231,$A$7=D231,$A$8=D231,$A$9=D231,$A$10=D231,$A$11=D231,$A$12=D231,$A$13=D231,$A$14=D231,$A$15=D231,$A$16=D231),1,0) -> 0 | E207: 0 | F207: 0 | G207: 0 | H207: 0
D208: 0 | E208: 0 | F208: 0 | G208: 0 | H208: 0
D209: 0 | E209: 0 | F209: 0 | G209: 0 | H209: 0
D210: 0 | E210: 0 | F210: 0 | G210: 0 | H210: 0
D211: 0 | E211: 0 | F211: 0 | G211: 0 | H211: 0
D212: 1 | E212: 0 | F212: 0 | G212: 0 | H212: 0
D214: =IF(OR($A$17=D231,$A$18=D231,$A$19=D231,$A$20=D231,$A$21=D231,$A$22=D231,$A$23=D231,$A$24=D231,$A$25=D231,$A$26=D231,$A$27=D231,$A$28=D231,$A$29=D231,$A$30=D231,$A$31=D231,$A$32=D231),1,0) -> 0 | E214: 0 | F214: 0 | G214: 0 | H214: 0
D215: 0 | E215: 0 | F215: 0 | G215: 0 | H215: 0
D216: 0 | E216: 0 | F216: 0 | G216: 0 | H216: 0
D217: 0 | E217: 0 | F217: 0 | G217: 0 | H217: 0
D218: 0 | E218: 0 | F218: 0 | G218: 0 | H218: 0
D219: 0 | E219: 0 | F219: 0 | G219: 0 | H219: 0
D222: =IF(D214=1,1,IF(D207=1,1,0)) -> 0 | E222: 0 | F222: 0 | G222: 0 | H222: 0 | I222: =SUM(D222:H222) -> 0
D223: 0 | E223: 0 | F223: 0 | G223: 0 | H223: 0 | I223: 0
D224: 0 | E224: 0 | F224: 0 | G224: 0 | H224: 0 | I224: 0
D225: 0 | E225: 0 | F225: 0 | G225: 0 | H225: 0 | I225: 0
D226: 0 | E226: 0 | F226: 0 | G226: 0 | H226: 0 | I226: 0 | Q226: =IF(ISERROR(SEARCH(1,AP247,1)-1),"",SEARCH(1,AP247,1)-1) -> 
D227: 1 | E227: 0 | F227: 0 | G227: 0 | H227: 0 | I227: 1
C231: Grille 7 | D231: 31 | E231: 3 | F231: 6 | G231: 9 | H231: 33 | J231: =IF(AND(I222>=$E$2,D222=0),D231,"") -> 31 | K231: =IF(AND(I222>=$E$2,E222=0),E231,"") -> 3 | L231: =IF(AND(I222>=$E$2,F222=0),F231,"") -> 6 | M231: =IF(AND(I222>=$E$2,G222=0),G231,"") -> 9 | N231: =IF(AND(I222>=$E$2,H222=0),H231,"") -> 33 | P231: =IF(J231<>"",1,0) -> 1 | Q231: 1 | R231: 1 | S231: 1 | T231: 1 | V231: =SUM(P231:U231) -> 5
D232: 32 | E232: 4 | F232: 5 | G232: 10 | H232: 34 | J232: 32 | K232: 4 | L232: 5 | M232: 10 | N232: 34 | P232: 1 | Q232: 1 | R232: 1 | S232: 1 | T232: 1 | V232: 5
D233: 33 | E233: 1 | F233: 6 | G233: 7 | H233: 31 | J233: 33 | K233: 1 | L233: 6 | M233: 7 | N233: 31 | P233: 1 | Q233: 1 | R233: 1 | S233: 1 | T233: 1 | V233: 5
D234: 34 | E234: 2 | F234: 5 | G234: 8 | H234: 32 | J234: 34 | K234: 2 | L234: 5 | M234: 8 | N234: 32 | P234: 1 | Q234: 1 | R234: 1 | S234: 1 | T234: 1 | V234: 5
D235: 35 | E235: 2 | F235: 4 | G235: 5 | H235: 29 | J235: 35 | K235: 2 | L235: 4 | M235: 5 | N235: 29 | P235: 1 | Q235: 1 | R235: 1 | S235: 1 | T235: 1 | V235: 5
D236: 36 | E236: 1 | F236: 3 | G236: 6 | H236: 30 | K236: 1 | L236: 3 | M236: 6 | N236: 30 | P236: 0 | Q236: 1 | R236: 1 | S236: 1 | T236: 1 | V236: 4
D240: =IF(OR($A$1=D264,$A$2=D264,$A$3=D264,$A$4=D264,$A$5=D264,$A$6=D264,$A$7=D264,$A$8=D264,$A$9=D264,$A$10=D264,$A$11=D264,$A$12=D264,$A$13=D264,$A$14=D264,$A$15=D264,$A$16=D264),1,0) -> 0 | E240: 0 | F240: 0 | G240: 0 | H240: 0
D241: 0 | E241: 0 | F241: 0 | G241: 0 | H241: 0
D242: 0 | E242: 0 | F242: 0 | G242: 0 | H242: 0
D243: 0 | E243: 0 | F243: 0 | G243: 0 | H243: 0
D244: 0 | E244: 0 | F244: 0 | G244: 0 | H244: 0
D245: 1 | E245: 0 | F245: 0 | G245: 0 | H245: 0
D247: =IF(OR($A$17=D264,$A$18=D264,$A$19=D264,$A$20=D264,$A$21=D264,$A$22=D264,$A$23=D264,$A$24=D264,$A$25=D264,$A$26=D264,$A$27=D264,$A$28=D264,$A$29=D264,$A$30=D264,$A$31=D264,$A$32=D264),1,0) -> 0 | E247: 0 | F247: 0 | G247: 0 | H247: 0
D248: 0 | E248: 0 | F248: 0 | G248: 0 | H248: 0
D249: 0 | E249: 0 | F249: 0 | G249: 0 | H249: 0
D250: 0 | E250: 0 | F250: 0 | G250: 0 | H250: 0
D251: 0 | E251: 0 | F251: 0 | G251: 0 | H251: 0
D252: 0 | E252: 0 | F252: 0 | G252: 0 | H252: 0
D255: =IF(D247=1,1,IF(D240=1,1,0)) -> 0 | E255: 0 | F255: 0 | G255: 0 | H255: 0 | I255: =SUM(D255:H255) -> 0
D256: 0 | E256: 0 | F256: 0 | G256: 0 | H256: 0 | I256: 0
D257: 0 | E257: 0 | F257: 0 | G257: 0 | H257: 0 | I257: 0
D258: 0 | E258: 0 | F258: 0 | G258: 0 | H258: 0 | I258: 0
D259: 0 | E259: 0 | F259: 0 | G259: 0 | H259: 0 | I259: 0 | Q259: =IF(ISERROR(SEARCH(1,AP280,1)-1),"",SEARCH(1,AP280,1)-1) -> 
... 103 more rows

Sheet >>Calculs_AS_3
F1: N° | I1: N°
B2: ='>>BD_AS_3'!$J$31 -> 11 | F2: 1 | G2: =SUMIF($B$2:$B$361,F2,$B$2:$B$361)/F2 -> 17 | H2: =IF(G2<>0,1,0) -> 1 | I2: =IF(H2=1,F2,0) -> 1
B3: ='>>BD_AS_3'!$J$32 -> 12 | F3: 2 | G3: 17 | H3: 1 | I3: 2
B4: ='>>BD_AS_3'!$J$33 -> 13 | F4: 3 | G4: 17 | H4: 1 | I4: 3
B5: ='>>BD_AS_3'!$J$34 -> 14 | F5: 4 | G5: 17 | H5: 1 | I5: 4
B6: ='>>BD_AS_3'!$J$35 -> 15 | F6: 5 | G6: 23 | H6: 1 | I6: 5
B7: ='>>BD_AS_3'!$J$36 -> 16 | F7: 6 | G7: 23 | H7: 1 | I7: 6
B8: ='>>BD_AS_3'!$K$31 -> 13 | F8: 7 | G8: 11 | H8: 1 | I8: 7
B9: ='>>BD_AS_3'!$K$32 -> 14 | F9: 8 | G9: 11 | H9: 1 | I9: 8
B10: ='>>BD_AS_3'!$K$33 -> 11 | F10: 9 | G10: 11 | H10: 1 | I10: 9
B11: ='>>BD_AS_3'!$K$34 -> 12 | F11: 10 | G11: 11 | H11: 1 | I11: 10
B12: ='>>BD_AS_3'!$K$35 -> 13 | F12: 11 | G12: 5 | H12: 1 | I12: 11
B13: ='>>BD_AS_3'!$K$36 -> 14 | F13: 12 | G13: 5 | H13: 1 | I13: 12
B14: ='>>BD_AS_3'!$L$31 -> 21 | F14: 13 | G14: 5 | H14: 1 | I14: 13
B15: ='>>BD_AS_3'!$L$32 -> 22 | F15: 14 | G15: 5 | H15: 1 | I15: 14
B16: ='>>BD_AS_3'!$L$33 -> 15 | F16: 15 | G16: 5 | H16: 1 | I16: 15
B17: ='>>BD_AS_3'!$L$34 -> 16 | F17: 16 | G17: 5 | H17: 1 | I17: 16
B18: ='>>BD_AS_3'!$L$35 -> 19 | F18: 17 | G18: 5 | H18: 1 | I18: 17
B19: ='>>BD_AS_3'!$L$36 -> 20 | F19: 18 | G19: 5 | H19: 1 | I19: 18
B20: ='>>BD_AS_3'!$M$31 -> 26 | F20: 19 | G20: 5 | H20: 1 | I20: 19
B21: ='>>BD_AS_3'!$M$32 -> 25 | F21: 20 | G21: 5 | H21: 1 | I21: 20
B22: ='>>BD_AS_3'!$M$33 -> 21 | F22: 21 | G22: 5 | H22: 1 | I22: 21
B23: ='>>BD_AS_3'!$M$34 -> 22 | F23: 22 | G23: 5 | H23: 1 | I23: 22
B24: ='>>BD_AS_3'!$M$35 -> 24 | F24: 23 | G24: 5 | H24: 1 | I24: 23
B25: ='>>BD_AS_3'!$M$36 -> 23 | F25: 24 | G25: 5 | H25: 1 | I25: 24
B26: ='>>BD_AS_3'!$N$31 -> 28 | F26: 25 | G26: 5 | H26: 1 | I26: 25
B27: ='>>BD_AS_3'!$N$32 -> 27 | F27: 26 | G27: 5 | H27: 1 | I27: 26
B28: ='>>BD_AS_3'!N33 -> 24 | F28: 27 | G28: 5 | H28: 1 | I28: 27
B29: ='>>BD_AS_3'!N34 -> 23 | F29: 28 | G29: 5 | H29: 1 | I29: 28
B30: ='>>BD_AS_3'!N35 -> 28 | F30: 29 | G30: 11 | H30: 1 | I30: 29
B31: ='>>BD_AS_3'!N36 -> 27 | F31: 30 | G31: 11 | H31: 1 | I31: 30
B32: ='>>BD_AS_3'!J63 -> 1 | F32: 31 | G32: 17 | H32: 1 | I32: 31
B33: ='>>BD_AS_3'!J64 -> 2 | F33: 32 | G33: 17 | H33: 1 | I33: 32
B34: ='>>BD_AS_3'!J65 -> 3 | F34: 33 | G34: 17 | H34: 1 | I34: 33
B35: ='>>BD_AS_3'!J66 -> 4 | F35: 34 | G35: 17 | H35: 1 | I35: 34
B36: ='>>BD_AS_3'!J67 -> 5 | F36: 35 | G36: 11 | H36: 1 | I36: 35
B37: ='>>BD_AS_3'!J68 -> 6 | F37: 36 | G37: 0 | H37: 0 | I37: 0
B38: ='>>BD_AS_3'!K63 -> 3
B39: ='>>BD_AS_3'!K64 -> 4 | E39: N° sortant | F39: ='>>Input'!$Y$2 -> 36 | H39: =SUM(H2:H38) -> 35
B40: ='>>BD_AS_3'!K65 -> 1 | E40: Résultats | F40: =SUMIF(I2:I37,F39,I2:I37) -> 0
B41: ='>>BD_AS_3'!K66 -> 2 | F41: 0 | H41: 0 | I41: =IF(AND(F41<>0,H41<4),1,0) -> 0
B42: ='>>BD_AS_3'!K67 -> 29
B43: ='>>BD_AS_3'!K68 -> 30
B44: ='>>BD_AS_3'!L63 -> 7
B45: ='>>BD_AS_3'!L64 -> 8
B46: ='>>BD_AS_3'!L65 -> 9
B47: ='>>BD_AS_3'!L66 -> 10
B48: ='>>BD_AS_3'!L67 -> 32
B49: ='>>BD_AS_3'!L68 -> 31
B50: ='>>BD_AS_3'!M63 -> 33
B51: ='>>BD_AS_3'!M64 -> 34
B52: ='>>BD_AS_3'!M65 -> 31
B53: ='>>BD_AS_3'!M66 -> 32
B54: ='>>BD_AS_3'!M67 -> 34
B55: ='>>BD_AS_3'!M68 -> 33
B56: ='>>BD_AS_3'!N63 -> 
B57: ='>>BD_AS_3'!N64 -> 35
B58: ='>>BD_AS_3'!N65 -> 
B59: ='>>BD_AS_3'!N66 -> 35
B60: ='>>BD_AS_3'!N67 -> 35
B61: ='>>BD_AS_3'!N68 -> 
B62: ='>>BD_AS_3'!J98 -> 17
B63: ='>>BD_AS_3'!J99 -> 18
B64: ='>>BD_AS_3'!J100 -> 19
B65: ='>>BD_AS_3'!J101 -> 20
B66: ='>>BD_AS_3'!J102 -> 21
B67: ='>>BD_AS_3'!J103 -> 22
B68: ='>>BD_AS_3'!K98 -> 20
B69: ='>>BD_AS_3'!K99 -> 19
B70: ='>>BD_AS_3'!K100 -> 15
B71: ='>>BD_AS_3'!K101 -> 16
B72: ='>>BD_AS_3'!K102 -> 11
B73: ='>>BD_AS_3'!K103 -> 12
B74: ='>>BD_AS_3'!L98 -> 22
B75: ='>>BD_AS_3'!L99 -> 21
B76: ='>>BD_AS_3'!L100 -> 18
B77: ='>>BD_AS_3'!L101 -> 17
B78: ='>>BD_AS_3'!L102 -> 13
B79: ='>>BD_AS_3'!L103 -> 14
B80: ='>>BD_AS_3'!M98 -> 23
B81: ='>>BD_AS_3'!M99 -> 24
B82: ='>>BD_AS_3'!M100 -> 21
B83: ='>>BD_AS_3'!M101 -> 22
B84: ='>>BD_AS_3'!M102 -> 18
B85: ='>>BD_AS_3'!M103 -> 17
B86: ='>>BD_AS_3'!N98 -> 25
B87: ='>>BD_AS_3'!N99 -> 26
B88: ='>>BD_AS_3'!N100 -> 28
B89: ='>>BD_AS_3'!N101 -> 27
B90: ='>>BD_AS_3'!N102 -> 19
B91: ='>>BD_AS_3'!N103 -> 20
B92: ='>>BD_AS_3'!J135 -> 7
B93: ='>>BD_AS_3'!J136 -> 8
B94: ='>>BD_AS_3'!J137 -> 9
B95: ='>>BD_AS_3'!J138 -> 10
B96: ='>>BD_AS_3'!J139 -> 29
B97: ='>>BD_AS_3'!J140 -> 30
B98: ='>>BD_AS_3'!K135 -> 1
B99: ='>>BD_AS_3'!K136 -> 2
B100: ='>>BD_AS_3'!K137 -> 3
B101: ='>>BD_AS_3'!K138 -> 4
B102: ='>>BD_AS_3'!K139 -> 5
B103: ='>>BD_AS_3'!K140 -> 6
B104: ='>>BD_AS_3'!L135 -> 9
B105: ='>>BD_AS_3'!L136 -> 10
B106: ='>>BD_AS_3'!L137 -> 7
B107: ='>>BD_AS_3'!L138 -> 8
B108: ='>>BD_AS_3'!L139 -> 8
B109: ='>>BD_AS_3'!L140 -> 7
B110: ='>>BD_AS_3'!M135 -> 30
B111: ='>>BD_AS_3'!M136 -> 29
B112: ='>>BD_AS_3'!M137 -> 30
B113: ='>>BD_AS_3'!M138 -> 29
B114: ='>>BD_AS_3'!M139 -> 10
B115: ='>>BD_AS_3'!M140 -> 9
B116: ='>>BD_AS_3'!N135 -> 33
B117: ='>>BD_AS_3'!N136 -> 34
B118: ='>>BD_AS_3'!N137 -> 31
B119: ='>>BD_AS_3'!N138 -> 32
B120: ='>>BD_AS_3'!N139 -> 35
B121: ='>>BD_AS_3'!N140 -> 
B122: ='>>BD_AS_3'!J167 -> 23
B123: ='>>BD_AS_3'!J168 -> 24
B124: ='>>BD_AS_3'!J169 -> 25
B125: ='>>BD_AS_3'!J170 -> 26
B126: ='>>BD_AS_3'!J171 -> 27
B127: ='>>BD_AS_3'!J172 -> 28
B128: ='>>BD_AS_3'!K167 -> 14
B129: ='>>BD_AS_3'!K168 -> 13
B130: ='>>BD_AS_3'!K169 -> 12
B131: ='>>BD_AS_3'!K170 -> 11
B132: ='>>BD_AS_3'!K171 -> 12
B133: ='>>BD_AS_3'!K172 -> 11
B134: ='>>BD_AS_3'!L167 -> 16
B135: ='>>BD_AS_3'!L168 -> 15
B136: ='>>BD_AS_3'!L169 -> 17
B137: ='>>BD_AS_3'!L170 -> 18
B138: ='>>BD_AS_3'!L171 -> 16
B139: ='>>BD_AS_3'!L172 -> 15
B140: ='>>BD_AS_3'!M167 -> 17
B141: ='>>BD_AS_3'!M168 -> 18
B142: ='>>BD_AS_3'!M169 -> 23
B143: ='>>BD_AS_3'!M170 -> 24
B144: ='>>BD_AS_3'!M171 -> 20
B145: ='>>BD_AS_3'!M172 -> 19
B146: ='>>BD_AS_3'!N167 -> 25
B147: ='>>BD_AS_3'!N168 -> 26
B148: ='>>BD_AS_3'!N169 -> 27
B149: ='>>BD_AS_3'!N170 -> 28
B150: ='>>BD_AS_3'!N171 -> 25
B151: ='>>BD_AS_3'!N172 -> 26
B152: ='>>BD_AS_3'!J199 -> 31
B153: ='>>BD_AS_3'!J200 -> 32
B154: ='>>BD_AS_3'!J201 -> 33
B155: ='>>BD_AS_3'!J202 -> 34
B156: ='>>BD_AS_3'!J203 -> 35
B157: ='>>BD_AS_3'!J204 -> 
B158: ='>>BD_AS_3'!K199 -> 3
B159: ='>>BD_AS_3'!K200 -> 4
B160: ='>>BD_AS_3'!K201 -> 1
B161: ='>>BD_AS_3'!K202 -> 2
B162: ='>>BD_AS_3'!K203 -> 2
B163: ='>>BD_AS_3'!K204 -> 1
B164: ='>>BD_AS_3'!L199 -> 6
B165: ='>>BD_AS_3'!L200 -> 5
B166: ='>>BD_AS_3'!L201 -> 6
B167: ='>>BD_AS_3'!L202 -> 5
B168: ='>>BD_AS_3'!L203 -> 4
B169: ='>>BD_AS_3'!L204 -> 3
B170: ='>>BD_AS_3'!M199 -> 9
B171: ='>>BD_AS_3'!M200 -> 10
B172: ='>>BD_AS_3'!M201 -> 7
B173: ='>>BD_AS_3'!M202 -> 8
B174: ='>>BD_AS_3'!M203 -> 5
B175: ='>>BD_AS_3'!M204 -> 6
B176: ='>>BD_AS_3'!N199 -> 33
B177: ='>>BD_AS_3'!N200 -> 34
B178: ='>>BD_AS_3'!N201 -> 31
B179: ='>>BD_AS_3'!N202 -> 32
B180: ='>>BD_AS_3'!N203 -> 29
B181: ='>>BD_AS_3'!N204 -> 30
B182: ='>>BD_AS_3'!J231 -> 31
B183: ='>>BD_AS_3'!J232 -> 32
B184: ='>>BD_AS_3'!J233 -> 33
B185: ='>>BD_AS_3'!J234 -> 34
B186: ='>>BD_AS_3'!J235 -> 35
B187: ='>>BD_AS_3'!J236 -> 
B188: ='>>BD_AS_3'!K231 -> 3
B189: ='>>BD_AS_3'!K232 -> 4
B190: ='>>BD_AS_3'!K233 -> 1
B191: ='>>BD_AS_3'!K234 -> 2
B192: ='>>BD_AS_3'!K235 -> 2
B193: ='>>BD_AS_3'!K236 -> 1
B194: ='>>BD_AS_3'!L231 -> 6
B195: ='>>BD_AS_3'!L232 -> 5
B196: ='>>BD_AS_3'!L233 -> 6
B197: ='>>BD_AS_3'!L234 -> 5
B198: ='>>BD_AS_3'!L235 -> 4
B199: ='>>BD_AS_3'!L236 -> 3
B200: ='>>BD_AS_3'!M231 -> 9
... 161 more rows

Sheet >>Calculs_AS_2
F1: N° | I1: N°
B2: ='>>BD_AS_2'!$J$31 -> 32 | F2: 1 | G2: =SUMIF($B$2:$B$361,F2,$B$2:$B$361)/F2 -> 10 | H2: =IF(G2<>0,1,0) -> 1 | I2: =IF(H2=1,F2,0) -> 1
B3: ='>>BD_AS_2'!$J$32 -> 6 | F3: 2 | G3: 10 | H3: 1 | I3: =IF(H3=1,F3,0) -> 2
B4: ='>>BD_AS_2'!$J$33 -> 9 | F4: 3 | G4: 10 | H4: 1 | I4: 3
B5: ='>>BD_AS_2'!$J$34 -> 13 | F5: 4 | G5: 10 | H5: 1 | I5: 4
B6: ='>>BD_AS_2'!$J$35 -> 14 | F6: 5 | G6: 10 | H6: 1 | I6: 5
B7: ='>>BD_AS_2'!$J$36 -> 17 | F7: 6 | G7: 10 | H7: 1 | I7: 6
B8: ='>>BD_AS_2'!$K$31 -> 14 | F8: 7 | G8: 10 | H8: 1 | I8: 7
B9: ='>>BD_AS_2'!$K$32 -> 13 | F9: 8 | G9: 10 | H9: 1 | I9: 8
B10: ='>>BD_AS_2'!$K$33 -> 14 | F10: 9 | G10: 10 | H10: 1 | I10: 9
B11: ='>>BD_AS_2'!$K$34 -> 6 | F11: 10 | G11: 10 | H11: 1 | I11: 10
B12: ='>>BD_AS_2'!$K$35 -> 9 | F12: 11 | G12: 10 | H12: 1 | I12: 11
B13: ='>>BD_AS_2'!$K$36 -> 6 | F13: 12 | G13: 10 | H13: 1 | I13: 12
B14: ='>>BD_AS_2'!$L$31 -> 19 | F14: 13 | G14: 10 | H14: 1 | I14: 13
B15: ='>>BD_AS_2'!$L$32 -> 17 | F15: 14 | G15: 10 | H15: 1 | I15: 14
B16: ='>>BD_AS_2'!$L$33 -> 18 | F16: 15 | G16: 10 | H16: 1 | I16: 15
B17: ='>>BD_AS_2'!$L$34 -> 17 | F17: 16 | G17: 10 | H17: 1 | I17: 16
B18: ='>>BD_AS_2'!$L$35 -> 18 | F18: 17 | G18: 10 | H18: 1 | I18: 17
B19: ='>>BD_AS_2'!$L$36 -> 13 | F19: 18 | G19: 10 | H19: 1 | I19: 18
B20: ='>>BD_AS_2'!$M$31 -> 21 | F20: 19 | G20: 10 | H20: 1 | I20: 19
B21: ='>>BD_AS_2'!$M$32 -> 20 | F21: 20 | G21: 11 | H21: 1 | I21: 20
B22: ='>>BD_AS_2'!$M$33 -> 19 | F22: 21 | G22: 10 | H22: 1 | I22: 21
B23: ='>>BD_AS_2'!$M$34 -> 20 | F23: 22 | G23: 10 | H23: 1 | I23: 22
B24: ='>>BD_AS_2'!$M$35 -> 32 | F24: 23 | G24: 10 | H24: 1 | I24: =IF(H24=1,F24,0) -> 23
B25: ='>>BD_AS_2'!$M$36 -> 24 | F25: 24 | G25: 10 | H25: 1 | I25: =IF(H25=1,F25,0) -> 24
B26: ='>>BD_AS_2'!$N$31 ->  | F26: 25 | G26: 10 | H26: 1 | I26: 25
B27: ='>>BD_AS_2'!$N$32 -> 26 | F27: 26 | G27: 11 | H27: 1 | I27: 26
B28: ='>>BD_AS_2'!N33 -> 30 | F28: 27 | G28: 10 | H28: 1 | I28: 27
B29: ='>>BD_AS_2'!N34 -> 26 | F29: 28 | G29: 10 | H29: 1 | I29: 28
B30: ='>>BD_AS_2'!N35 ->  | F30: 29 | G30: 10 | H30: 1 | I30: 29
B31: ='>>BD_AS_2'!N36 -> 28 | F31: 30 | G31: 10 | H31: 1 | I31: 30
B32: ='>>BD_AS_2'!J63 -> 18 | F32: 31 | G32: 10 | H32: 1 | I32: 31
B33: ='>>BD_AS_2'!J64 -> 19 | F33: 32 | G33: 10 | H33: 1 | I33: 32
B34: ='>>BD_AS_2'!J65 -> 20 | F34: 33 | G34: 9 | H34: 1 | I34: 33
B35: ='>>BD_AS_2'!J66 -> 21 | F35: 34 | G35: 10 | H35: 1 | I35: 34
B36: ='>>BD_AS_2'!J67 -> 23 | F36: 35 | G36: 9 | H36: 1 | I36: 35
B37: ='>>BD_AS_2'!J68 -> 24 | F37: 36 | G37: 0 | H37: 0 | I37: 0
B38: ='>>BD_AS_2'!K63 -> 9
B39: ='>>BD_AS_2'!K64 -> 9 | E39: N° sortant | F39: ='>>Input'!$Y$2 -> 36 | H39: =SUM(H2:H38) -> 35
B40: ='>>BD_AS_2'!K65 -> 13 | E40: Résultats | F40: =SUMIF(I2:I37,F39,I2:I37) -> 0
B41: ='>>BD_AS_2'!K66 -> 18 | F41: 0 | H41: 0 | I41: =IF(AND(F41<>0,H41<4),1,0) -> 0
B42: ='>>BD_AS_2'!K67 -> 18
B43: ='>>BD_AS_2'!K68 -> 17
B44: ='>>BD_AS_2'!L63 -> 14
B45: ='>>BD_AS_2'!L64 -> 21
B46: ='>>BD_AS_2'!L65 -> 24
B47: ='>>BD_AS_2'!L66 -> 19
B48: ='>>BD_AS_2'!L67 -> 21
B49: ='>>BD_AS_2'!L68 -> 20
B50: ='>>BD_AS_2'!M63 -> 21
B51: ='>>BD_AS_2'!M64 -> 30
B52: ='>>BD_AS_2'!M65 -> 26
B53: ='>>BD_AS_2'!M66 -> 23
B54: ='>>BD_AS_2'!M67 -> 30
B55: ='>>BD_AS_2'!M68 -> 28
B56: ='>>BD_AS_2'!N63 -> 23
B57: ='>>BD_AS_2'!N64 -> 32
B58: ='>>BD_AS_2'!N65 -> 33
B59: ='>>BD_AS_2'!N66 -> 32
B60: ='>>BD_AS_2'!N67 -> 
B61: ='>>BD_AS_2'!N68 -> 33
B62: ='>>BD_AS_2'!J98 -> 26
B63: ='>>BD_AS_2'!J99 -> 28
B64: ='>>BD_AS_2'!J100 -> 30
B65: ='>>BD_AS_2'!J101 -> 33
B66: ='>>BD_AS_2'!J102 -> 35
B67: ='>>BD_AS_2'!J103 -> 
B68: ='>>BD_AS_2'!K98 -> 13
B69: ='>>BD_AS_2'!K99 -> 17
B70: ='>>BD_AS_2'!K100 -> 9
B71: ='>>BD_AS_2'!K101 -> 6
B72: ='>>BD_AS_2'!K102 -> 6
B73: ='>>BD_AS_2'!K103 -> 14
B74: ='>>BD_AS_2'!L98 -> 20
B75: ='>>BD_AS_2'!L99 -> 24
B76: ='>>BD_AS_2'!L100 -> 19
B77: ='>>BD_AS_2'!L101 -> 20
B78: ='>>BD_AS_2'!L102 -> 26
B79: ='>>BD_AS_2'!L103 -> 23
B80: ='>>BD_AS_2'!M98 -> 28
B81: ='>>BD_AS_2'!M99 -> 26
B82: ='>>BD_AS_2'!M100 -> 23
B83: ='>>BD_AS_2'!M101 -> 24
B84: ='>>BD_AS_2'!M102 -> 28
B85: ='>>BD_AS_2'!M103 -> 30
B86: ='>>BD_AS_2'!N98 -> 35
B87: ='>>BD_AS_2'!N99 -> 35
B88: ='>>BD_AS_2'!N100 -> 
B89: ='>>BD_AS_2'!N101 -> 35
B90: ='>>BD_AS_2'!N102 -> 33
B91: ='>>BD_AS_2'!N103 -> 32
B92: ='>>BD_AS_2'!J135 -> 1
B93: ='>>BD_AS_2'!J136 -> 2
B94: ='>>BD_AS_2'!J137 -> 3
B95: ='>>BD_AS_2'!J138 -> 4
B96: ='>>BD_AS_2'!J139 -> 5
B97: ='>>BD_AS_2'!J140 -> 7
B98: ='>>BD_AS_2'!K135 -> 3
B99: ='>>BD_AS_2'!K136 -> 4
B100: ='>>BD_AS_2'!K137 -> 1
B101: ='>>BD_AS_2'!K138 -> 2
B102: ='>>BD_AS_2'!K139 -> 1
B103: ='>>BD_AS_2'!K140 -> 3
B104: ='>>BD_AS_2'!L135 -> 5
B105: ='>>BD_AS_2'!L136 -> 10
B106: ='>>BD_AS_2'!L137 -> 7
B107: ='>>BD_AS_2'!L138 -> 8
B108: ='>>BD_AS_2'!L139 -> 7
B109: ='>>BD_AS_2'!L140 -> 5
B110: ='>>BD_AS_2'!M135 -> 16
B111: ='>>BD_AS_2'!M136 -> 15
B112: ='>>BD_AS_2'!M137 -> 12
B113: ='>>BD_AS_2'!M138 -> 15
B114: ='>>BD_AS_2'!M139 -> 16
B115: ='>>BD_AS_2'!M140 -> 12
B116: ='>>BD_AS_2'!N135 -> 27
B117: ='>>BD_AS_2'!N136 -> 29
B118: ='>>BD_AS_2'!N137 -> 27
B119: ='>>BD_AS_2'!N138 -> 22
B120: ='>>BD_AS_2'!N139 -> 25
B121: ='>>BD_AS_2'!N140 -> 25
B122: ='>>BD_AS_2'!J167 -> 8
B123: ='>>BD_AS_2'!J168 -> 10
B124: ='>>BD_AS_2'!J169 -> 11
B125: ='>>BD_AS_2'!J170 -> 12
B126: ='>>BD_AS_2'!J171 -> 15
B127: ='>>BD_AS_2'!J172 -> 16
B128: ='>>BD_AS_2'!K167 -> 4
B129: ='>>BD_AS_2'!K168 -> 2
B130: ='>>BD_AS_2'!K169 -> 8
B131: ='>>BD_AS_2'!K170 -> 3
B132: ='>>BD_AS_2'!K171 -> 2
B133: ='>>BD_AS_2'!K172 -> 1
B134: ='>>BD_AS_2'!L167 -> 10
B135: ='>>BD_AS_2'!L168 -> 8
B136: ='>>BD_AS_2'!L169 -> 10
B137: ='>>BD_AS_2'!L170 -> 7
B138: ='>>BD_AS_2'!L171 -> 4
B139: ='>>BD_AS_2'!L172 -> 5
B140: ='>>BD_AS_2'!M167 -> 11
B141: ='>>BD_AS_2'!M168 -> 11
B142: ='>>BD_AS_2'!M169 -> 15
B143: ='>>BD_AS_2'!M170 -> 16
B144: ='>>BD_AS_2'!M171 -> 11
B145: ='>>BD_AS_2'!M172 -> 12
B146: ='>>BD_AS_2'!N167 -> 22
B147: ='>>BD_AS_2'!N168 -> 29
B148: ='>>BD_AS_2'!N169 -> 31
B149: ='>>BD_AS_2'!N170 -> 34
B150: ='>>BD_AS_2'!N171 -> 31
B151: ='>>BD_AS_2'!N172 -> 34
B152: ='>>BD_AS_2'!J199 -> 22
B153: ='>>BD_AS_2'!J200 -> 25
B154: ='>>BD_AS_2'!J201 -> 27
B155: ='>>BD_AS_2'!J202 -> 29
B156: ='>>BD_AS_2'!J203 -> 31
B157: ='>>BD_AS_2'!J204 -> 34
B158: ='>>BD_AS_2'!K199 -> 4
B159: ='>>BD_AS_2'!K200 -> 5
B160: ='>>BD_AS_2'!K201 -> 1
B161: ='>>BD_AS_2'!K202 -> 2
B162: ='>>BD_AS_2'!K203 -> 11
B163: ='>>BD_AS_2'!K204 -> 12
B164: ='>>BD_AS_2'!L199 -> 8
B165: ='>>BD_AS_2'!L200 -> 7
B166: ='>>BD_AS_2'!L201 -> 3
B167: ='>>BD_AS_2'!L202 -> 10
B168: ='>>BD_AS_2'!L203 -> 15
B169: ='>>BD_AS_2'!L204 -> 16
B170: ='>>BD_AS_2'!M199 -> 29
B171: ='>>BD_AS_2'!M200 -> 27
B172: ='>>BD_AS_2'!M201 -> 25
B173: ='>>BD_AS_2'!M202 -> 22
B174: ='>>BD_AS_2'!M203 -> 22
B175: ='>>BD_AS_2'!M204 -> 25
B176: ='>>BD_AS_2'!N199 -> 31
B177: ='>>BD_AS_2'!N200 -> 34
B178: ='>>BD_AS_2'!N201 -> 34
B179: ='>>BD_AS_2'!N202 -> 31
B180: ='>>BD_AS_2'!N203 -> 29
B181: ='>>BD_AS_2'!N204 -> 27
B182: ='>>BD_AS_2'!J231 -> 11
B183: ='>>BD_AS_2'!J232 -> 12
B184: ='>>BD_AS_2'!J233 -> 13
B185: ='>>BD_AS_2'!J234 -> 14
B186: ='>>BD_AS_2'!J235 -> 15
B187: ='>>BD_AS_2'!J236 -> 16
B188: ='>>BD_AS_2'!K231 -> 13
B189: ='>>BD_AS_2'!K232 -> 14
B190: ='>>BD_AS_2'!K233 -> 11
B191: ='>>BD_AS_2'!K234 -> 12
B192: ='>>BD_AS_2'!K235 -> 13
B193: ='>>BD_AS_2'!K236 -> 14
B194: ='>>BD_AS_2'!L231 -> 21
B195: ='>>BD_AS_2'!L232 -> 22
B196: ='>>BD_AS_2'!L233 -> 15
B197: ='>>BD_AS_2'!L234 -> 16
B198: ='>>BD_AS_2'!L235 -> 19
B199: ='>>BD_AS_2'!L236 -> 20
B200: ='>>BD_AS_2'!M231 -> 26
... 161 more rows

Sheet >>BD_AS_2
A1: =IF($L$2>=C1,B1,"") -> 36 | B1: ='>>Convertisseur'!A15 -> 36 | C1: 1
B2: ='>>Convertisseur'!A16 -> 2 | C2: 2 | D2: Nbre ligne | E2: ='>>Input'!AG39 -> 0 | G2: Nombre N° | H2: ='>>Calculs_AS_2'!H39 -> 35 | K2: Compteur | L2: ='>>Input'!AG42 -> 1
B3: ='>>Convertisseur'!A17 -> 0 | C3: 3
B4: ='>>Convertisseur'!A18 -> 0 | C4: 4
A5: =IF($L$2>=C5,B5,"") ->  | B5: ='>>Convertisseur'!A19 -> 0 | C5: 5
B6: ='>>Convertisseur'!A20 -> 0 | C6: 6
B7: ='>>Convertisseur'!A21 -> 0 | C7: 7 | D7: =IF(OR($A$1=D31,$A$2=D31,$A$3=D31,$A$4=D31,$A$5=D31,$A$6=D31,$A$7=D31,$A$8=D31,$A$9=D31,$A$10=D31,$A$11=D31,$A$12=D31,$A$13=D31,$A$14=D31,$A$15=D31,$A$16=D31),1,0) -> 0 | E7: 0 | F7: 0 | G7: 0 | H7: 1
B8: ='>>Convertisseur'!A22 -> 0 | C8: 8 | D8: 0 | E8: 0 | F8: 0 | G8: 0 | H8: 0
B9: ='>>Convertisseur'!A23 -> 0 | C9: 9 | D9: 0 | E9: 0 | F9: 0 | G9: 0 | H9: 0
A10: =IF($L$2>=C10,B10,"") ->  | B10: ='>>Convertisseur'!A24 -> 0 | C10: 10 | D10: 0 | E10: 0 | F10: 0 | G10: 0 | H10: 0
A11: =IF($L$2>=C11,B11,"") ->  | B11: ='>>Convertisseur'!A25 -> 0 | C11: 11 | D11: 0 | E11: 0 | F11: 0 | G11: 0 | H11: 1
B12: ='>>Convertisseur'!A26 -> 0 | C12: 12 | D12: 0 | E12: 0 | F12: 0 | G12: 0 | H12: 0
B13: ='>>Convertisseur'!A27 -> 0 | C13: 13
B14: ='>>Convertisseur'!A28 -> 0 | C14: 14 | D14: =IF(OR($A$17=D31,$A$18=D31,$A$19=D31,$A$20=D31,$A$21=D31,$A$22=D31,$A$23=D31,$A$24=D31,$A$25=D31,$A$26=D31,$A$27=D31,$A$28=D31,$A$29=D31,$A$30=D31,$A$31=D31,$A$32=D31),1,0) -> 0 | E14: 0 | F14: 0 | G14: 0 | H14: 0
B15: ='>>Convertisseur'!A29 -> 0 | C15: 15 | D15: 0 | E15: 0 | F15: 0 | G15: 0 | H15: 0
B16: ='>>Convertisseur'!A30 -> 0 | C16: 16 | D16: 0 | E16: 0 | F16: 0 | G16: 0 | H16: 0
B17: ='>>Convertisseur'!A31 -> 0 | C17: 17 | D17: 0 | E17: 0 | F17: 0 | G17: 0 | H17: 0
B18: ='>>Convertisseur'!A32 -> 0 | C18: 18 | D18: 0 | E18: 0 | F18: 0 | G18: 0 | H18: 0
B19: ='>>Convertisseur'!A33 -> 0 | C19: 19 | D19: 0 | E19: 0 | F19: 0 | G19: 0 | H19: 0
B20: ='>>Convertisseur'!A34 -> 0 | C20: 20
B21: ='>>Convertisseur'!A35 -> 0 | C21: 21
B22: ='>>Convertisseur'!A36 -> 0 | C22: 22 | D22: =IF(D14=1,1,IF(D7=1,1,0)) -> 0 | E22: 0 | F22: 0 | G22: 0 | H22: 1 | I22: =SUM(D22:H22) -> 1
B23: ='>>Convertisseur'!A37 -> 0 | C23: 23 | D23: 0 | E23: 0 | F23: 0 | G23: 0 | H23: 0 | I23: 0
B24: ='>>Convertisseur'!A38 -> 0 | C24: 24 | D24: 0 | E24: 0 | F24: 0 | G24: 0 | H24: 0 | I24: 0
B25: ='>>Convertisseur'!A39 -> 0 | C25: 25 | D25: 0 | E25: 0 | F25: 0 | G25: 0 | H25: 0 | I25: 0
B26: ='>>Convertisseur'!A40 -> 0 | C26: 26 | D26: 0 | E26: 0 | F26: 0 | G26: 0 | H26: 1 | I26: 1 | Q26: =IF(ISERROR(SEARCH(1,AP47,1)-1),"",SEARCH(1,AP47,1)-1) -> 
B27: ='>>Convertisseur'!A41 -> 0 | C27: 27 | D27: 0 | E27: 0 | F27: 0 | G27: 0 | H27: 0 | I27: 0
B28: ='>>Convertisseur'!A42 -> 0 | C28: 28
B29: ='>>Convertisseur'!A43 -> 0 | C29: 29
B30: ='>>Convertisseur'!A44 -> 0 | C30: 30
C31: Grille 1 | D31: 32 | E31: 14 | F31: 19 | G31: 21 | H31: 36 | J31: =IF(AND(I22>=$E$2,D22=0),D31,"") -> 32 | K31: =IF(AND(I22>=$E$2,E22=0),E31,"") -> 14 | L31: =IF(AND(I22>=$E$2,F22=0),F31,"") -> 19 | M31: =IF(AND(I22>=$E$2,G22=0),G31,"") -> 21 | N31: =IF(AND(I22>=$E$2,H22=0),H31,"") ->  | P31: =IF(J31<>"",1,0) -> 1 | Q31: 1 | R31: 1 | S31: 1 | T31: 0 | V31: =SUM(P31:U31) -> 4
D32: 6 | E32: 13 | F32: 17 | G32: 20 | H32: 26 | J32: 6 | K32: 13 | L32: 17 | M32: 20 | N32: 26 | P32: 1 | Q32: 1 | R32: 1 | S32: 1 | T32: 1 | V32: 5
D33: 9 | E33: 14 | F33: 18 | G33: 19 | H33: 30 | J33: 9 | K33: 14 | L33: 18 | M33: 19 | N33: 30 | P33: 1 | Q33: 1 | R33: 1 | S33: 1 | T33: 1 | V33: 5
D34: 13 | E34: 6 | F34: 17 | G34: 20 | H34: 26 | J34: 13 | K34: 6 | L34: 17 | M34: 20 | N34: 26 | P34: 1 | Q34: 1 | R34: 1 | S34: 1 | T34: 1 | V34: 5
D35: 14 | E35: 9 | F35: 18 | G35: 32 | H35: 36 | J35: 14 | K35: 9 | L35: 18 | M35: 32 | P35: 1 | Q35: 1 | R35: 1 | S35: 1 | T35: 0 | V35: 4
D36: 17 | E36: 6 | F36: 13 | G36: 24 | H36: 28 | J36: 17 | K36: 6 | L36: 13 | M36: 24 | N36: 28 | P36: 1 | Q36: 1 | R36: 1 | S36: 1 | T36: 1 | V36: 5
D39: =IF(OR($A$1=D63,$A$2=D63,$A$3=D63,$A$4=D63,$A$5=D63,$A$6=D63,$A$7=D63,$A$8=D63,$A$9=D63,$A$10=D63,$A$11=D63,$A$12=D63,$A$13=D63,$A$14=D63,$A$15=D63,$A$16=D63),1,0) -> 0 | E39: 0 | F39: 0 | G39: 0 | H39: 0
D40: 0 | E40: 0 | F40: 0 | G40: 0 | H40: 0
D41: 0 | E41: 0 | F41: 0 | G41: 0 | H41: 0
D42: 0 | E42: 0 | F42: 0 | G42: 0 | H42: 0
D43: 0 | E43: 0 | F43: 0 | G43: 0 | H43: 1
D44: 0 | E44: 0 | F44: 0 | G44: 0 | H44: 0
D46: =IF(OR($A$17=D63,$A$18=D63,$A$19=D63,$A$20=D63,$A$21=D63,$A$22=D63,$A$23=D63,$A$24=D63,$A$25=D63,$A$26=D63,$A$27=D63,$A$28=D63,$A$29=D63,$A$30=D63,$A$31=D63,$A$32=D63),1,0) -> 0 | E46: 0 | F46: 0 | G46: 0 | H46: 0
D47: 0 | E47: 0 | F47: 0 | G47: 0 | H47: 0
D48: 0 | E48: 0 | F48: 0 | G48: 0 | H48: 0
D49: 0 | E49: 0 | F49: 0 | G49: 0 | H49: 0
D50: 0 | E50: 0 | F50: 0 | G50: 0 | H50: 0
D51: 0 | E51: 0 | F51: 0 | G51: 0 | H51: 0
D54: =IF(D46=1,1,IF(D39=1,1,0)) -> 0 | E54: 0 | F54: 0 | G54: 0 | H54: 0 | I54: =SUM(D54:H54) -> 0
D55: 0 | E55: 0 | F55: 0 | G55: 0 | H55: 0 | I55: 0 | Z55: 1
D56: 0 | E56: 0 | F56: 0 | G56: 0 | H56: 0 | I56: 0 | Z56: 4
D57: 0 | E57: 0 | F57: 0 | G57: 0 | H57: 0 | I57: 0 | Z57: 5
D58: 0 | E58: 0 | F58: 0 | G58: 0 | H58: 1 | I58: 1 | Q58: =IF(ISERROR(SEARCH(1,AP79,1)-1),"",SEARCH(1,AP79,1)-1) ->  | Z58: 9
D59: 0 | E59: 0 | F59: 0 | G59: 0 | H59: 0 | I59: 0 | Z59: 11
Z60: 12
Z61: 14
Z62: 17
C63: Grille 2 | D63: 18 | E63: 9 | F63: 14 | G63: 21 | H63: 23 | J63: =IF(AND(I54>=$E$2,D54=0),D63,"") -> 18 | K63: =IF(AND(I54>=$E$2,E54=0),E63,"") -> 9 | L63: =IF(AND(I54>=$E$2,F54=0),F63,"") -> 14 | M63: =IF(AND(I54>=$E$2,G54=0),G63,"") -> 21 | N63: =IF(AND(I54>=$E$2,H54=0),H63,"") -> 23 | P63: =IF(J63<>"",1,0) -> 1 | Q63: 1 | R63: 1 | S63: 1 | T63: 1 | V63: =SUM(P63:U63) -> 5 | Z63: 20
D64: 19 | E64: 9 | F64: 21 | G64: 30 | H64: 32 | J64: 19 | K64: 9 | L64: 21 | M64: 30 | N64: 32 | P64: 1 | Q64: 1 | R64: 1 | S64: 1 | T64: 1 | V64: 5 | Z64: 29
D65: 20 | E65: 13 | F65: 24 | G65: 26 | H65: 33 | J65: 20 | K65: 13 | L65: 24 | M65: 26 | N65: 33 | P65: 1 | Q65: 1 | R65: 1 | S65: 1 | T65: 1 | V65: 5 | Z65: 31
D66: 21 | E66: 18 | F66: 19 | G66: 23 | H66: 32 | J66: 21 | K66: 18 | L66: 19 | M66: 23 | N66: 32 | P66: 1 | Q66: 1 | R66: 1 | S66: 1 | T66: 1 | V66: 5 | Z66: 34
D67: 23 | E67: 18 | F67: 21 | G67: 30 | H67: 36 | J67: 23 | K67: 18 | L67: 21 | M67: 30 | P67: 1 | Q67: 1 | R67: 1 | S67: 1 | T67: 0 | V67: 4 | Z67: 36
D68: 24 | E68: 17 | F68: 20 | G68: 28 | H68: 33 | J68: 24 | K68: 17 | L68: 20 | M68: 28 | N68: 33 | P68: 1 | Q68: 1 | R68: 1 | S68: 1 | T68: 1 | V68: 5
D74: =IF(OR($A$1=D98,$A$2=D98,$A$3=D98,$A$4=D98,$A$5=D98,$A$6=D98,$A$7=D98,$A$8=D98,$A$9=D98,$A$10=D98,$A$11=D98,$A$12=D98,$A$13=D98,$A$14=D98,$A$15=D98,$A$16=D98),1,0) -> 0 | E74: 0 | F74: 0 | G74: 0 | H74: 0
D75: 0 | E75: 0 | F75: 0 | G75: 0 | H75: 0
D76: 0 | E76: 0 | F76: 0 | G76: 0 | H76: 1
D77: 0 | E77: 0 | F77: 0 | G77: 0 | H77: 0
D78: 0 | E78: 0 | F78: 0 | G78: 0 | H78: 0
D79: 1 | E79: 0 | F79: 0 | G79: 0 | H79: 0
D81: =IF(OR($A$17=D98,$A$18=D98,$A$19=D98,$A$20=D98,$A$21=D98,$A$22=D98,$A$23=D98,$A$24=D98,$A$25=D98,$A$26=D98,$A$27=D98,$A$28=D98,$A$29=D98,$A$30=D98,$A$31=D98,$A$32=D98),1,0) -> 0 | E81: 0 | F81: 0 | G81: 0 | H81: 0
D82: 0 | E82: 0 | F82: 0 | G82: 0 | H82: 0
D83: 0 | E83: 0 | F83: 0 | G83: 0 | H83: 0
D84: 0 | E84: 0 | F84: 0 | G84: 0 | H84: 0
D85: 0 | E85: 0 | F85: 0 | G85: 0 | H85: 0
D86: 0 | E86: 0 | F86: 0 | G86: 0 | H86: 0
D89: =IF(D81=1,1,IF(D74=1,1,0)) -> 0 | E89: 0 | F89: 0 | G89: 0 | H89: 0 | I89: =SUM(D89:H89) -> 0
D90: 0 | E90: 0 | F90: 0 | G90: 0 | H90: 0 | I90: 0
D91: 0 | E91: 0 | F91: 0 | G91: 0 | H91: 1 | I91: 1
D92: 0 | E92: 0 | F92: 0 | G92: 0 | H92: 0 | I92: 0
D93: 0 | E93: 0 | F93: 0 | G93: 0 | H93: 0 | I93: 0 | Q93: =IF(ISERROR(SEARCH(1,AP114,1)-1),"",SEARCH(1,AP114,1)-1) -> 
D94: 1 | E94: 0 | F94: 0 | G94: 0 | H94: 0 | I94: 1
C98: Grille 3 | D98: 26 | E98: 13 | F98: 20 | G98: 28 | H98: 35 | J98: =IF(AND(I89>=$E$2,D89=0),D98,"") -> 26 | K98: =IF(AND(I89>=$E$2,E89=0),E98,"") -> 13 | L98: =IF(AND(I89>=$E$2,F89=0),F98,"") -> 20 | M98: =IF(AND(I89>=$E$2,G89=0),G98,"") -> 28 | N98: =IF(AND(I89>=$E$2,H89=0),H98,"") -> 35 | P98: =IF(J98<>"",1,0) -> 1 | Q98: 1 | R98: 1 | S98: 1 | T98: 1 | V98: =SUM(P98:U98) -> 5
D99: 28 | E99: 17 | F99: 24 | G99: 26 | H99: 35 | J99: 28 | K99: 17 | L99: 24 | M99: 26 | N99: 35 | P99: 1 | Q99: 1 | R99: 1 | S99: 1 | T99: 1 | V99: 5
D100: 30 | E100: 9 | F100: 19 | G100: 23 | H100: 36 | J100: 30 | K100: 9 | L100: 19 | M100: 23 | P100: 1 | Q100: 1 | R100: 1 | S100: 1 | T100: 0 | V100: 4
D101: 33 | E101: 6 | F101: 20 | G101: 24 | H101: 35 | J101: 33 | K101: 6 | L101: 20 | M101: 24 | N101: 35 | P101: 1 | Q101: 1 | R101: 1 | S101: 1 | T101: 1 | V101: 5
D102: 35 | E102: 6 | F102: 26 | G102: 28 | H102: 33 | J102: 35 | K102: 6 | L102: 26 | M102: 28 | N102: 33 | P102: 1 | Q102: 1 | R102: 1 | S102: 1 | T102: 1 | V102: 5
D103: 36 | E103: 14 | F103: 23 | G103: 30 | H103: 32 | K103: 14 | L103: 23 | M103: 30 | N103: 32 | P103: 0 | Q103: 1 | R103: 1 | S103: 1 | T103: 1 | V103: 4
D111: =IF(OR($A$1=D135,$A$2=D135,$A$3=D135,$A$4=D135,$A$5=D135,$A$6=D135,$A$7=D135,$A$8=D135,$A$9=D135,$A$10=D135,$A$11=D135,$A$12=D135,$A$13=D135,$A$14=D135,$A$15=D135,$A$16=D135),1,0) -> 0 | E111: =IF(OR($A$1=E135,$A$2=E135,$A$3=E135,$A$4=E135,$A$5=E135,$A$6=E135,$A$7=E135,$A$8=E135,$A$9=E135,$A$10=E135,$A$11=E135,$A$12=E135,$A$13=E135,$A$14=E135,$A$15=E135,$A$16=E135),1,0) -> 0 | F111: =IF(OR($A$1=F135,$A$2=F135,$A$3=F135,$A$4=F135,$A$5=F135,$A$6=F135,$A$7=F135,$A$8=F135,$A$9=F135,$A$10=F135,$A$11=F135,$A$12=F135,$A$13=F135,$A$14=F135,$A$15=F135,$A$16=F135),1,0) -> 0 | G111: =IF(OR($A$1=G135,$A$2=G135,$A$3=G135,$A$4=G135,$A$5=G135,$A$6=G135,$A$7=G135,$A$8=G135,$A$9=G135,$A$10=G135,$A$11=G135,$A$12=G135,$A$13=G135,$A$14=G135,$A$15=G135,$A$16=G135),1,0) -> 0 | H111: 0
D112: =IF(OR($A$1=D136,$A$2=D136,$A$3=D136,$A$4=D136,$A$5=D136,$A$6=D136,$A$7=D136,$A$8=D136,$A$9=D136,$A$10=D136,$A$11=D136,$A$12=D136,$A$13=D136,$A$14=D136,$A$15=D136,$A$16=D136),1,0) -> 0 | E112: 0 | F112: 0 | G112: 0 | H112: 0
D113: 0 | E113: 0 | F113: 0 | G113: 0 | H113: 0
D114: 0 | E114: 0 | F114: 0 | G114: 0 | H114: 0
D115: 0 | E115: 0 | F115: 0 | G115: 0 | H115: 0
D116: 0 | E116: 0 | F116: 0 | G116: 0 | H116: 0
D118: =IF(OR($A$17=D135,$A$18=D135,$A$19=D135,$A$20=D135,$A$21=D135,$A$22=D135,$A$23=D135,$A$24=D135,$A$25=D135,$A$26=D135,$A$27=D135,$A$28=D135,$A$29=D135,$A$30=D135,$A$31=D135,$A$32=D135),1,0) -> 0 | E118: 0 | F118: 0 | G118: 0 | H118: 0
D119: 0 | E119: 0 | F119: 0 | G119: 0 | H119: 0
D120: 0 | E120: 0 | F120: 0 | G120: 0 | H120: 0
D121: 0 | E121: 0 | F121: 0 | G121: 0 | H121: 0
D122: 0 | E122: 0 | F122: 0 | G122: 0 | H122: 0
D123: 0 | E123: 0 | F123: 0 | G123: 0 | H123: 0
D126: =IF(D118=1,1,IF(D111=1,1,0)) -> 0 | E126: 0 | F126: 0 | G126: 0 | H126: 0 | I126: =SUM(D126:H126) -> 0
D127: 0 | E127: 0 | F127: 0 | G127: 0 | H127: 0 | I127: 0
D128: 0 | E128: 0 | F128: 0 | G128: 0 | H128: 0 | I128: 0
D129: 0 | E129: 0 | F129: 0 | G129: 0 | H129: 0 | I129: 0
D130: 0 | E130: 0 | F130: 0 | G130: 0 | H130: 0 | I130: 0 | Q130: =IF(ISERROR(SEARCH(1,AP151,1)-1),"",SEARCH(1,AP151,1)-1) -> 
D131: 0 | E131: 0 | F131: 0 | G131: 0 | H131: 0 | I131: 0
C135: Grille 4 | D135: 1 | E135: 3 | F135: 5 | G135: 16 | H135: 27 | J135: =IF(AND(I126>=$E$2,D126=0),D135,"") -> 1 | K135: =IF(AND(I126>=$E$2,E126=0),E135,"") -> 3 | L135: =IF(AND(I126>=$E$2,F126=0),F135,"") -> 5 | M135: =IF(AND(I126>=$E$2,G126=0),G135,"") -> 16 | N135: =IF(AND(I126>=$E$2,H126=0),H135,"") -> 27 | P135: =IF(J135<>"",1,0) -> 1 | Q135: 1 | R135: 1 | S135: 1 | T135: 1 | V135: =SUM(P135:U135) -> 5
D136: 2 | E136: 4 | F136: 10 | G136: 15 | H136: 29 | J136: 2 | K136: 4 | L136: 10 | M136: 15 | N136: 29 | P136: 1 | Q136: 1 | R136: 1 | S136: 1 | T136: 1 | V136: 5
D137: 3 | E137: 1 | F137: 7 | G137: 12 | H137: 27 | J137: 3 | K137: 1 | L137: 7 | M137: 12 | N137: 27 | P137: 1 | Q137: 1 | R137: 1 | S137: 1 | T137: 1 | V137: 5
D138: 4 | E138: 2 | F138: 8 | G138: 15 | H138: 22 | J138: 4 | K138: 2 | L138: 8 | M138: 15 | N138: 22 | P138: 1 | Q138: 1 | R138: 1 | S138: 1 | T138: 1 | V138: 5
D139: 5 | E139: 1 | F139: 7 | G139: 16 | H139: 25 | J139: 5 | K139: 1 | L139: 7 | M139: 16 | N139: 25 | P139: 1 | Q139: 1 | R139: 1 | S139: 1 | T139: 1 | V139: 5
D140: 7 | E140: 3 | F140: 5 | G140: 12 | H140: 25 | J140: 7 | K140: 3 | L140: 5 | M140: 12 | N140: 25 | P140: 1 | Q140: 1 | R140: 1 | S140: 1 | T140: 1 | V140: 5
D143: =IF(OR($A$1=D167,$A$2=D167,$A$3=D167,$A$4=D167,$A$5=D167,$A$6=D167,$A$7=D167,$A$8=D167,$A$9=D167,$A$10=D167,$A$11=D167,$A$12=D167,$A$13=D167,$A$14=D167,$A$15=D167,$A$16=D167),1,0) -> 0 | E143: 0 | F143: 0 | G143: 0 | H143: 0
D144: 0 | E144: 0 | F144: 0 | G144: 0 | H144: 0
D145: 0 | E145: 0 | F145: 0 | G145: 0 | H145: 0
D146: 0 | E146: 0 | F146: 0 | G146: 0 | H146: 0
D147: 0 | E147: 0 | F147: 0 | G147: 0 | H147: 0
D148: 0 | E148: 0 | F148: 0 | G148: 0 | H148: 0
D150: =IF(OR($A$17=D167,$A$18=D167,$A$19=D167,$A$20=D167,$A$21=D167,$A$22=D167,$A$23=D167,$A$24=D167,$A$25=D167,$A$26=D167,$A$27=D167,$A$28=D167,$A$29=D167,$A$30=D167,$A$31=D167,$A$32=D167),1,0) -> 0 | E150: 0 | F150: 0 | G150: 0 | H150: 0
D151: 0 | E151: 0 | F151: 0 | G151: 0 | H151: 0
D152: 0 | E152: 0 | F152: 0 | G152: 0 | H152: 0
D153: 0 | E153: 0 | F153: 0 | G153: 0 | H153: 0
D154: 0 | E154: 0 | F154: 0 | G154: 0 | H154: 0
D155: 0 | E155: 0 | F155: 0 | G155: 0 | H155: 0
D158: =IF(D150=1,1,IF(D143=1,1,0)) -> 0 | E158: 0 | F158: 0 | G158: 0 | H158: 0 | I158: =SUM(D158:H158) -> 0
D159: 0 | E159: 0 | F159: 0 | G159: 0 | H159: 0 | I159: 0
D160: 0 | E160: 0 | F160: 0 | G160: 0 | H160: 0 | I160: 0
D161: 0 | E161: 0 | F161: 0 | G161: 0 | H161: 0 | I161: 0
D162: 0 | E162: 0 | F162: 0 | G162: 0 | H162: 0 | I162: 0 | Q162: =IF(ISERROR(SEARCH(1,AP183,1)-1),"",SEARCH(1,AP183,1)-1) -> 
D163: 0 | E163: 0 | F163: 0 | G163: 0 | H163: 0 | I163: 0
C167: Grille 5 | D167: 8 | E167: 4 | F167: 10 | G167: 11 | H167: 22 | J167: =IF(AND(I158>=$E$2,D158=0),D167,"") -> 8 | K167: =IF(AND(I158>=$E$2,E158=0),E167,"") -> 4 | L167: =IF(AND(I158>=$E$2,F158=0),F167,"") -> 10 | M167: =IF(AND(I158>=$E$2,G158=0),G167,"") -> 11 | N167: =IF(AND(I158>=$E$2,H158=0),H167,"") -> 22 | P167: =IF(J167<>"",1,0) -> 1 | Q167: 1 | R167: 1 | S167: 1 | T167: 1 | V167: =SUM(P167:U167) -> 5
D168: 10 | E168: 2 | F168: 8 | G168: 11 | H168: 29 | J168: 10 | K168: 2 | L168: 8 | M168: 11 | N168: 29 | P168: 1 | Q168: 1 | R168: 1 | S168: 1 | T168: 1 | V168: 5
D169: 11 | E169: 8 | F169: 10 | G169: 15 | H169: 31 | J169: 11 | K169: 8 | L169: 10 | M169: 15 | N169: 31 | P169: 1 | Q169: 1 | R169: 1 | S169: 1 | T169: 1 | V169: 5
D170: 12 | E170: 3 | F170: 7 | G170: 16 | H170: 34 | J170: 12 | K170: 3 | L170: 7 | M170: 16 | N170: 34 | P170: 1 | Q170: 1 | R170: 1 | S170: 1 | T170: 1 | V170: 5
D171: 15 | E171: 2 | F171: 4 | G171: 11 | H171: 31 | J171: 15 | K171: 2 | L171: 4 | M171: 11 | N171: 31 | P171: 1 | Q171: 1 | R171: 1 | S171: 1 | T171: 1 | V171: 5
D172: 16 | E172: 1 | F172: 5 | G172: 12 | H172: 34 | J172: 16 | K172: 1 | L172: 5 | M172: 12 | N172: 34 | P172: 1 | Q172: 1 | R172: 1 | S172: 1 | T172: 1 | V172: 5
D175: =IF(OR($A$1=D199,$A$2=D199,$A$3=D199,$A$4=D199,$A$5=D199,$A$6=D199,$A$7=D199,$A$8=D199,$A$9=D199,$A$10=D199,$A$11=D199,$A$12=D199,$A$13=D199,$A$14=D199,$A$15=D199,$A$16=D199),1,0) -> 0 | E175: 0 | F175: 0 | G175: 0 | H175: 0
D176: 0 | E176: 0 | F176: 0 | G176: 0 | H176: 0
D177: 0 | E177: 0 | F177: 0 | G177: 0 | H177: 0
D178: 0 | E178: 0 | F178: 0 | G178: 0 | H178: 0
D179: 0 | E179: 0 | F179: 0 | G179: 0 | H179: 0
D180: 0 | E180: 0 | F180: 0 | G180: 0 | H180: 0
D182: =IF(OR($A$17=D199,$A$18=D199,$A$19=D199,$A$20=D199,$A$21=D199,$A$22=D199,$A$23=D199,$A$24=D199,$A$25=D199,$A$26=D199,$A$27=D199,$A$28=D199,$A$29=D199,$A$30=D199,$A$31=D199,$A$32=D199),1,0) -> 0 | E182: 0 | F182: 0 | G182: 0 | H182: 0
D183: 0 | E183: 0 | F183: 0 | G183: 0 | H183: 0
D184: 0 | E184: 0 | F184: 0 | G184: 0 | H184: 0
D185: 0 | E185: 0 | F185: 0 | G185: 0 | H185: 0
D186: 0 | E186: 0 | F186: 0 | G186: 0 | H186: 0
D187: 0 | E187: 0 | F187: 0 | G187: 0 | H187: 0
D190: =IF(D182=1,1,IF(D175=1,1,0)) -> 0 | E190: 0 | F190: 0 | G190: 0 | H190: 0 | I190: =SUM(D190:H190) -> 0
D191: 0 | E191: 0 | F191: 0 | G191: 0 | H191: 0 | I191: 0
D192: 0 | E192: 0 | F192: 0 | G192: 0 | H192: 0 | I192: 0
D193: 0 | E193: 0 | F193: 0 | G193: 0 | H193: 0 | I193: 0
D194: 0 | E194: 0 | F194: 0 | G194: 0 | H194: 0 | I194: 0 | Q194: =IF(ISERROR(SEARCH(1,AP215,1)-1),"",SEARCH(1,AP215,1)-1) -> 
D195: 0 | E195: 0 | F195: 0 | G195: 0 | H195: 0 | I195: 0
C199: Grille 6 | D199: 22 | E199: 4 | F199: 8 | G199: 29 | H199: 31 | J199: =IF(AND(I190>=$E$2,D190=0),D199,"") -> 22 | K199: =IF(AND(I190>=$E$2,E190=0),E199,"") -> 4 | L199: =IF(AND(I190>=$E$2,F190=0),F199,"") -> 8 | M199: =IF(AND(I190>=$E$2,G190=0),G199,"") -> 29 | N199: =IF(AND(I190>=$E$2,H190=0),H199,"") -> 31 | P199: =IF(J199<>"",1,0) -> 1 | Q199: 1 | R199: 1 | S199: 1 | T199: 1 | V199: =SUM(P199:U199) -> 5
D200: 25 | E200: 5 | F200: 7 | G200: 27 | H200: 34 | J200: 25 | K200: 5 | L200: 7 | M200: 27 | N200: 34 | P200: 1 | Q200: 1 | R200: 1 | S200: 1 | T200: 1 | V200: 5
D201: 27 | E201: 1 | F201: 3 | G201: 25 | H201: 34 | J201: 27 | K201: 1 | L201: 3 | M201: 25 | N201: 34 | P201: 1 | Q201: 1 | R201: 1 | S201: 1 | T201: 1 | V201: 5
D202: 29 | E202: 2 | F202: 10 | G202: 22 | H202: 31 | J202: 29 | K202: 2 | L202: 10 | M202: 22 | N202: 31 | P202: 1 | Q202: 1 | R202: 1 | S202: 1 | T202: 1 | V202: 5
D203: 31 | E203: 11 | F203: 15 | G203: 22 | H203: 29 | J203: 31 | K203: 11 | L203: 15 | M203: 22 | N203: 29 | P203: 1 | Q203: 1 | R203: 1 | S203: 1 | T203: 1 | V203: 5
D204: 34 | E204: 12 | F204: 16 | G204: 25 | H204: 27 | J204: 34 | K204: 12 | L204: 16 | M204: 25 | N204: 27 | P204: 1 | Q204: 1 | R204: 1 | S204: 1 | T204: 1 | V204: 5
D207: =IF(OR($A$1=D231,$A$2=D231,$A$3=D231,$A$4=D231,$A$5=D231,$A$6=D231,$A$7=D231,$A$8=D231,$A$9=D231,$A$10=D231,$A$11=D231,$A$12=D231,$A$13=D231,$A$14=D231,$A$15=D231,$A$16=D231),1,0) -> 0 | E207: 0 | F207: 0 | G207: 0 | H207: 0
D208: 0 | E208: 0 | F208: 0 | G208: 0 | H208: 0
D209: 0 | E209: 0 | F209: 0 | G209: 0 | H209: 0
D210: 0 | E210: 0 | F210: 0 | G210: 0 | H210: 0
D211: 0 | E211: 0 | F211: 0 | G211: 0 | H211: 0
D212: 0 | E212: 0 | F212: 0 | G212: 0 | H212: 0
D214: =IF(OR($A$17=D231,$A$18=D231,$A$19=D231,$A$20=D231,$A$21=D231,$A$22=D231,$A$23=D231,$A$24=D231,$A$25=D231,$A$26=D231,$A$27=D231,$A$28=D231,$A$29=D231,$A$30=D231,$A$31=D231,$A$32=D231),1,0) -> 0 | E214: 0 | F214: 0 | G214: 0 | H214: 0
D215: 0 | E215: 0 | F215: 0 | G215: 0 | H215: 0
D216: 0 | E216: 0 | F216: 0 | G216: 0 | H216: 0
D217: 0 | E217: 0 | F217: 0 | G217: 0 | H217: 0
D218: 0 | E218: 0 | F218: 0 | G218: 0 | H218: 0
D219: 0 | E219: 0 | F219: 0 | G219: 0 | H219: 0
D222: =IF(D214=1,1,IF(D207=1,1,0)) -> 0 | E222: 0 | F222: 0 | G222: 0 | H222: 0 | I222: =SUM(D222:H222) -> 0
D223: 0 | E223: 0 | F223: 0 | G223: 0 | H223: 0 | I223: 0
D224: 0 | E224: 0 | F224: 0 | G224: 0 | H224: 0 | I224: 0
D225: 0 | E225: 0 | F225: 0 | G225: 0 | H225: 0 | I225: 0
D226: 0 | E226: 0 | F226: 0 | G226: 0 | H226: 0 | I226: 0 | Q226: =IF(ISERROR(SEARCH(1,AP247,1)-1),"",SEARCH(1,AP247,1)-1) -> 
D227: 0 | E227: 0 | F227: 0 | G227: 0 | H227: 0 | I227: 0
C231: Grille 7 | D231: 11 | E231: 13 | F231: 21 | G231: 26 | H231: 28 | J231: =IF(AND(I222>=$E$2,D222=0),D231,"") -> 11 | K231: =IF(AND(I222>=$E$2,E222=0),E231,"") -> 13 | L231: =IF(AND(I222>=$E$2,F222=0),F231,"") -> 21 | M231: =IF(AND(I222>=$E$2,G222=0),G231,"") -> 26 | N231: =IF(AND(I222>=$E$2,H222=0),H231,"") -> 28 | P231: =IF(J231<>"",1,0) -> 1 | Q231: 1 | R231: 1 | S231: 1 | T231: 1 | V231: =SUM(P231:U231) -> 5
D232: 12 | E232: 14 | F232: 22 | G232: 25 | H232: 27 | J232: 12 | K232: 14 | L232: 22 | M232: 25 | N232: 27 | P232: 1 | Q232: 1 | R232: 1 | S232: 1 | T232: 1 | V232: 5
D233: 13 | E233: 11 | F233: 15 | G233: 21 | H233: 24 | J233: 13 | K233: 11 | L233: 15 | M233: 21 | N233: 24 | P233: 1 | Q233: 1 | R233: 1 | S233: 1 | T233: 1 | V233: 5
D234: 14 | E234: 12 | F234: 16 | G234: 22 | H234: 23 | J234: 14 | K234: 12 | L234: 16 | M234: 22 | N234: 23 | P234: 1 | Q234: 1 | R234: 1 | S234: 1 | T234: 1 | V234: 5
D235: 15 | E235: 13 | F235: 19 | G235: 24 | H235: 28 | J235: 15 | K235: 13 | L235: 19 | M235: 24 | N235: 28 | P235: 1 | Q235: 1 | R235: 1 | S235: 1 | T235: 1 | V235: 5
D236: 16 | E236: 14 | F236: 20 | G236: 23 | H236: 27 | J236: 16 | K236: 14 | L236: 20 | M236: 23 | N236: 27 | P236: 1 | Q236: 1 | R236: 1 | S236: 1 | T236: 1 | V236: 5
D240: =IF(OR($A$1=D264,$A$2=D264,$A$3=D264,$A$4=D264,$A$5=D264,$A$6=D264,$A$7=D264,$A$8=D264,$A$9=D264,$A$10=D264,$A$11=D264,$A$12=D264,$A$13=D264,$A$14=D264,$A$15=D264,$A$16=D264),1,0) -> 0 | E240: 0 | F240: 0 | G240: 0 | H240: 0
D241: 0 | E241: 0 | F241: 0 | G241: 0 | H241: 0
D242: 0 | E242: 0 | F242: 0 | G242: 0 | H242: 0
D243: 0 | E243: 0 | F243: 0 | G243: 0 | H243: 0
D244: 0 | E244: 0 | F244: 0 | G244: 0 | H244: 0
D245: 0 | E245: 0 | F245: 0 | G245: 0 | H245: 0
D247: =IF(OR($A$17=D264,$A$18=D264,$A$19=D264,$A$20=D264,$A$21=D264,$A$22=D264,$A$23=D264,$A$24=D264,$A$25=D264,$A$26=D264,$A$27=D264,$A$28=D264,$A$29=D264,$A$30=D264,$A$31=D264,$A$32=D264),1,0) -> 0 | E247: 0 | F247: 0 | G247: 0 | H247: 0
D248: 0 | E248: 0 | F248: 0 | G248: 0 | H248: 0
D249: 0 | E249: 0 | F249: 0 | G249: 0 | H249: 0
D250: 0 | E250: 0 | F250: 0 | G250: 0 | H250: 0
D251: 0 | E251: 0 | F251: 0 | G251: 0 | H251: 0
D252: 0 | E252: 0 | F252: 0 | G252: 0 | H252: 0
D255: =IF(D247=1,1,IF(D240=1,1,0)) -> 0 | E255: 0 | F255: 0 | G255: 0 | H255: 0 | I255: =SUM(D255:H255) -> 0
D256: 0 | E256: 0 | F256: 0 | G256: 0 | H256: 0 | I256: 0
D257: 0 | E257: 0 | F257: 0 | G257: 0 | H257: 0 | I257: 0
D258: 0 | E258: 0 | F258: 0 | G258: 0 | H258: 0 | I258: 0
D259: 0 | E259: 0 | F259: 0 | G259: 0 | H259: 0 | I259: 0 | Q259: =IF(ISERROR(SEARCH(1,AP280,1)-1),"",SEARCH(1,AP280,1)-1) -> 
... 103 more rows

Sheet >>Trier
A1: N° | B1: Trier | D1: Master | F1: Premium
A2: 0 | D2: 0 | F2: 0
A3: 0 | B3: =IF(A3=0,1,IF(A3=A2,1,0)) -> 1 | D3: 0 | E3: =IF(D3=D2,1,0) -> 1 | F3: 0 | G3: =IF(F3=F2,1,0) -> 1
A4: 0 | B4: =IF(A4=0,1,IF(A4=A3,1,0)) -> 1 | D4: 0 | E4: =IF(D4=D3,1,0) -> 1 | F4: 0 | G4: =IF(F4=F3,1,0) -> 1
A5: 0 | B5: 1 | D5: 0 | E5: 1 | F5: 0 | G5: 1
A6: 0 | B6: 1 | D6: 0 | E6: 1 | F6: 0 | G6: 1
A7: 0 | B7: 1 | D7: 0 | E7: 1 | F7: 0 | G7: 1
A8: 0 | B8: 1 | D8: 0 | E8: 1 | F8: 0 | G8: 1
A9: 0 | B9: 1 | D9: 0 | E9: 1 | F9: 0 | G9: 1
A10: 0 | B10: 1 | D10: 0 | E10: 1 | F10: 0 | G10: 1
A11: 0 | B11: 1 | D11: 0 | E11: 1 | F11: 0 | G11: 1
A12: 0 | B12: 1 | D12: 0 | E12: 1 | F12: 0 | G12: 1
A13: 0 | B13: 1 | D13: 0 | E13: 1 | F13: 0 | G13: 1
A14: 0 | B14: 1 | D14: 0 | E14: 1 | F14: 0 | G14: 1
A15: 0 | B15: 1 | D15: 0 | E15: 1 | F15: 0 | G15: 1
A16: 0 | B16: 1 | D16: 3 | E16: 0 | F16: 0 | G16: 1
A17: 0 | B17: 1 | D17: 3 | E17: 1 | F17: 0 | G17: 1
A18: 0 | B18: 1 | D18: 31 | E18: 0 | F18: 0 | G18: 1
A19: 0 | B19: 1 | D19: 31 | E19: 1 | F19: 0 | G19: 1
A20: 0 | B20: 1
A21: 0 | B21: 1
A22: 0 | B22: 1
A23: 0 | B23: 1
A24: 0 | B24: 1
A25: 0 | B25: 1
A26: 0 | B26: 1
A27: 0 | B27: 1
A28: 0 | B28: 1
A29: 0 | B29: 1
A30: 0 | B30: 1
A31: 0 | B31: 1
A32: 0 | B32: 1
A33: 0 | B33: 1
A34: 3 | B34: 0
A35: 3 | B35: 1
A36: 31 | B36: 0
A37: 31 | B37: 1

Sheet >>Prog
A1: N | B1: 1 | C1: =IF($J$1>=E1,D1,"") ->  | D1: ='>>Convertisseur'!A15 -> 36 | E1: 1 | I1: Compteur | J1: ='>>Input'!M45 -> 0
A2: N | B2: 2 | D2: ='>>Convertisseur'!A16 -> 2 | E2: 2 | P2: =SUM(R2:W2) -> 0 | R2: =R11*R3 -> 0 | S2: 0 | T2: 0 | U2: 0 | V2: 0 | W2: 0
A3: N | B3: 3 | D3: ='>>Convertisseur'!A17 -> 0 | E3: 3 | R3: =E17 -> 0 | S3: =E21 -> 0 | T3: =E25 -> 0 | U3: =F29 -> 0 | V3: =G29 -> 0 | W3: =H29 -> 0
A4: N | B4: 4 | D4: ='>>Convertisseur'!A18 -> 0 | E4: 4 | Z4: Niveau
A5: N | B5: 5 | D5: ='>>Convertisseur'!A19 -> 0 | E5: 5 | P5: N | Q5: 6 | R5: =IF(R12<>0,1,0) -> 0 | S5: 0 | T5: 0 | U5: 0 | V5: 0 | W5: 0 | X5: =SUM(R5:W5) -> 0 | Y5: =IF(X5<>0,1,0) -> 0 | Z5: =Y5 -> 0
A6: N | B6: 6 | D6: ='>>Convertisseur'!A20 -> 0 | E6: 6 | P6: N | Q6: 5 | R6: 0 | S6: 0 | T6: 0 | U6: 0 | V6: 0 | W6: 0 | X6: 0 | Y6: 0 | Z6: =Y6+Y5 -> 0
P7: N | Q7: 4 | R7: 0 | S7: 0 | T7: 0 | U7: 0 | V7: 0 | W7: 0 | X7: 0 | Y7: 0 | Z7: =SUM(Y5:Y7) -> 0
P8: N | Q8: 3 | R8: 0 | S8: 0 | T8: 0 | U8: 0 | V8: 0 | W8: 0 | X8: 0 | Y8: 0 | Z8: =SUM(Y5:Y8) -> 0
P9: N | Q9: 2 | R9: 0 | S9: 0 | T9: 0 | U9: 0 | V9: 0 | W9: 0 | X9: 0 | Y9: 0 | Z9: =SUM(Y5:Y9) -> 0
N10: 2 | P10: N | Q10: 1 | R10: 0 | S10: 0 | T10: 0 | U10: 0 | V10: 0 | W10: 0 | X10: 0 | Y10: 0 | Z10: =SUM(Y5:Y10) -> 0
N11: =SUMIF(R11:W11,2,R11:W11)/2 -> 0 | R11: =SUM(R5:R10) -> 0 | S11: 0 | T11: 0 | U11: 0 | V11: 0 | W11: 0
P12: N | Q12: 6 | R12: =SUMIF(R19:R30,$C$6,R19:R30) -> 0 | S12: 0 | T12: 0 | U12: 0 | V12: 0 | W12: 0
P13: N | Q13: 5 | R13: =SUMIF(R19:R30,$C$5,R19:R30) -> 0 | S13: 0 | T13: 0 | U13: 0 | V13: 0 | W13: 0
P14: N | Q14: 4 | R14: =SUMIF(R19:R30,$C$4,R19:R30) -> 0 | S14: 0 | T14: 0 | U14: 0 | V14: 0 | W14: 0
P15: N | Q15: 3 | R15: =SUMIF(R19:R30,$C$3,R19:R30) -> 0 | S15: 0 | T15: 0 | U15: 0 | V15: 0 | W15: 0
D16: Niveau | P16: N | Q16: 2 | R16: =SUMIF(R19:R30,$C$2,R19:R30) -> 0 | S16: 0 | T16: 0 | U16: 0 | V16: 0 | W16: 0
A17: 1 | B17: =IF(AND(R6=1,$Z$6=1),3,IF(AND(R6=1,$Z$6=2),2,IF(AND(R6=1,$Z$6=3),1,IF(AND(R5=1,$Z$5=1),3,IF(AND(R5=1,$Z$5=2),2,IF(AND(R5=1,$Z$5=3),1,0)))))) -> 0 | C17: =IF(AND(R8=1,$Z$8=1),3,IF(AND(R8=1,$Z$8=2),2,IF(AND(R8=1,$Z$8=3),1,IF(AND(R7=1,$Z$7=1),3,IF(AND(R7=1,$Z$7=2),2,IF(AND(R7=1,$Z$7=3),1,0)))))) -> 0 | D17: =IF(AND(R10=1,$Z$10=1),3,IF(AND(R10=1,$Z$10=2),2,IF(AND(R10=1,$Z$10=3),1,IF(AND(R9=1,$Z$9=1),3,IF(AND(R9=1,$Z$9=2),2,IF(AND(R9=1,$Z$9=3),1,0)))))) -> 0 | E17: =C17+D17+B17 -> 0 | P17: N | Q17: 1 | R17: =SUMIF(R19:R30,$C$1,R19:R30) -> 0 | S17: 0 | T17: 0 | U17: 0 | V17: 0 | W17: 0
A18: 4 | R18: 1 | S18: 2 | T18: 3 | U18: 4 | V18: 5 | W18: 6
A19: 7 | R19: 1 | S19: 13 | T19: 25 | U19: 1 | V19: =U19+1 -> 2 | W19: 3
A20: 10 | R20: 2 | S20: 14 | T20: 26 | U20: 4 | V20: 5 | W20: 6
A21: 13 | B21: =IF(AND(S6=1,$Z$6=1),3,IF(AND(S6=1,$Z$6=2),2,IF(AND(S6=1,$Z$6=3),1,IF(AND(S5=1,$Z$5=1),3,IF(AND(S5=1,$Z$5=2),2,IF(AND(S5=1,$Z$5=3),1,0)))))) -> 0 | C21: =IF(AND(S8=1,$Z$8=1),3,IF(AND(S8=1,$Z$8=2),2,IF(AND(S8=1,$Z$8=3),1,IF(AND(S7=1,$Z$7=1),3,IF(AND(S7=1,$Z$7=2),2,IF(AND(S7=1,$Z$7=3),1,0)))))) -> 0 | D21: =IF(AND(S10=1,$Z$10=1),3,IF(AND(S10=1,$Z$10=2),2,IF(AND(S10=1,$Z$10=3),1,IF(AND(S9=1,$Z$9=1),3,IF(AND(S9=1,$Z$9=2),2,IF(AND(S9=1,$Z$9=3),1,0)))))) -> 0 | E21: =C21+D21+B21 -> 0 | R21: 3 | S21: 15 | T21: 27 | U21: 7 | V21: 8 | W21: 9
A22: 16 | R22: 4 | S22: 16 | T22: 28 | U22: 10 | V22: 11 | W22: 12
A23: 19 | R23: 5 | S23: 17 | T23: 29 | U23: 13 | V23: 14 | W23: 15
A24: 22 | R24: 6 | S24: 18 | T24: 30 | U24: 16 | V24: 17 | W24: 18
A25: 25 | B25: =IF(AND(T6=1,$Z$6=1),3,IF(AND(T6=1,$Z$6=2),2,IF(AND(T6=1,$Z$6=3),1,IF(AND(T5=1,$Z$5=1),3,IF(AND(T5=1,$Z$5=2),2,IF(AND(T5=1,$Z$5=3),1,0)))))) -> 0 | C25: =IF(AND(T8=1,$Z$8=1),3,IF(AND(T8=1,$Z$8=2),2,IF(AND(T8=1,$Z$8=3),1,IF(AND(T7=1,$Z$7=1),3,IF(AND(T7=1,$Z$7=2),2,IF(AND(T7=1,$Z$7=3),1,0)))))) -> 0 | D25: =IF(AND(T10=1,$Z$10=1),3,IF(AND(T10=1,$Z$10=2),2,IF(AND(T10=1,$Z$10=3),1,IF(AND(T9=1,$Z$9=1),3,IF(AND(T9=1,$Z$9=2),2,IF(AND(T9=1,$Z$9=3),1,0)))))) -> 0 | E25: =C25+D25+B25 -> 0 | R25: 7 | S25: 19 | T25: 31 | U25: 19 | V25: 20 | W25: 21
A26: 28 | R26: 8 | S26: 20 | T26: 32 | U26: 22 | V26: 23 | W26: 24
A27: 31 | R27: 9 | S27: 21 | T27: 33 | U27: 25 | V27: 26 | W27: 27
A28: 34 | R28: 10 | S28: 22 | T28: 34 | U28: 28 | V28: 29 | W28: 30
F29: =F30+F31+F32 -> 0 | G29: =G30+G31+G32 -> 0 | H29: =H30+H31+H32 -> 0 | R29: 11 | S29: 23 | T29: 35 | U29: 31 | V29: 32 | W29: 33
F30: =IF(AND(U10=1,$Z$10=1),3,IF(AND(U10=1,$Z$10=2),2,IF(AND(U10=1,$Z$10=3),1,IF(AND(U9=1,$Z$9=1),3,IF(AND(U9=1,$Z$9=2),2,IF(AND(U9=1,$Z$9=3),1,0)))))) -> 0 | G30: =IF(AND(V10=1,$Z$10=1),3,IF(AND(V10=1,$Z$10=2),2,IF(AND(V10=1,$Z$10=3),1,IF(AND(V9=1,$Z$9=1),3,IF(AND(V9=1,$Z$9=2),2,IF(AND(V9=1,$Z$9=3),1,0)))))) -> 0 | H30: =IF(AND(W10=1,$Z$10=1),3,IF(AND(W10=1,$Z$10=2),2,IF(AND(W10=1,$Z$10=3),1,IF(AND(W9=1,$Z$9=1),3,IF(AND(W9=1,$Z$9=2),2,IF(AND(W9=1,$Z$9=3),1,0)))))) -> 0 | R30: 12 | S30: 24 | T30: 36 | U30: 34 | V30: 35 | W30: 36
F31: =IF(AND(U8=1,$Z$8=1),3,IF(AND(U8=1,$Z$8=2),2,IF(AND(U8=1,$Z$8=3),1,IF(AND(U7=1,$Z$7=1),3,IF(AND(U7=1,$Z$7=2),2,IF(AND(U7=1,$Z$7=3),1,0)))))) -> 0 | G31: =IF(AND(V8=1,$Z$8=1),3,IF(AND(V8=1,$Z$8=2),2,IF(AND(V8=1,$Z$8=3),1,IF(AND(V7=1,$Z$7=1),3,IF(AND(V7=1,$Z$7=2),2,IF(AND(V7=1,$Z$7=3),1,0)))))) -> 0 | H31: =IF(AND(W8=1,$Z$8=1),3,IF(AND(W8=1,$Z$8=2),2,IF(AND(W8=1,$Z$8=3),1,IF(AND(W7=1,$Z$7=1),3,IF(AND(W7=1,$Z$7=2),2,IF(AND(W7=1,$Z$7=3),1,0)))))) -> 0
F32: =IF(AND(U6=1,$Z$6=1),3,IF(AND(U6=1,$Z$6=2),2,IF(AND(U6=1,$Z$6=3),1,IF(AND(U5=1,$Z$5=1),3,IF(AND(U5=1,$Z$5=2),2,IF(AND(U5=1,$Z$5=3),1,0)))))) -> 0 | G32: =IF(AND(V6=1,$Z$6=1),3,IF(AND(V6=1,$Z$6=2),2,IF(AND(V6=1,$Z$6=3),1,IF(AND(V5=1,$Z$5=1),3,IF(AND(V5=1,$Z$5=2),2,IF(AND(V5=1,$Z$5=3),1,0)))))) -> 0 | H32: =IF(AND(W6=1,$Z$6=1),3,IF(AND(W6=1,$Z$6=2),2,IF(AND(W6=1,$Z$6=3),1,IF(AND(W5=1,$Z$5=1),3,IF(AND(W5=1,$Z$5=2),2,IF(AND(W5=1,$Z$5=3),1,0)))))) -> 0
F34: =IF(F29=0,"",F29) ->  | G34: =IF(G29=0,"",G29) ->  | H34: =IF(H29=0,"",H29) -> 
F35: =IF(F29<>0,1,0) -> 0 | G35: =IF(G29<>0,1,0) -> 0 | H35: =IF(H29<>0,1,0) -> 0 | I35: =SUM(F35:H35) -> 0

Sheet >>Conv
A1: 1 | B1: =IF(C1<>"",A1,"") -> 1 | C1: 14
A2: 2 | B2: 2 | C2: 1
A3: 3
A4: 4
A5: 5
A6: 6
A7: 7
A8: 8
A9: 9
A10: 10
A11: 11
A12: 12
A13: 13
A14: 14
A15: 15
A16: 16
A17: 17
A18: 18
A19: 19
A20: 20

Sheet >>Prog_2
O1: 0
AM4: 0 | AN4: 0
AB5: 1 | AC5: 2 | AD5: 3 | AM5: 1 | AN5: 25 | AQ5: =LOOKUP(AQ34,AM4:AM40,AN4:AN40) -> 0
E6: A | F6: =AP6 -> 0 | G6: 1 | H6: 4 | I6: 7 | J6: 10 | K6: 13 | L6: 16 | M6: 19 | N6: 22 | O6: 25 | P6: 28 | Q6: 31 | R6: 34 | T6: =IF(OR(G6=$R$33,H6=$R$33,I6=$R$33,J6=$R$33,K6=$R$33,L6=$R$33,M6=$R$33,N6=$R$33,O6=$R$33,P6=$R$33,Q6=$R$33,R6=$R$33,F6=$R$33),1,0) -> 1 | U6: A | V6: =IF(OR(G9=$R$33,H9=$R$33,I9=$R$33,J9=$R$33,K9=$R$33,L9=$R$33,M9=$R$33,N9=$R$33,O9=$R$33,P9=$R$33,Q9=$R$33,R9=$R$33,F9=$R$33),1,0) -> 1 | W6: 1 | X6: =IF(OR(G6=$R$32,H6=$R$32,I6=$R$32,J6=$R$32,K6=$R$32,L6=$R$32,M6=$R$32,N6=$R$32,O6=$R$32,P6=$R$32,Q6=$R$32,R6=$R$32),1,0) -> 0 | AB6: 4 | AC6: 5 | AD6: 6 | AM6: 2 | AN6: 36 | AP6: =IF(AQ6=1,40,0) -> 0 | AQ6: =IF(OR(G6=$AQ$34,H6=$AQ$34,I6=$AQ$34,J6=$AQ$34,K6=$AQ$34,L6=$AQ$34,M6=$AQ$34,N6=$AQ$34,O6=$AQ$34,P6=$AQ$34,Q6=$AQ$34,R6=$AQ$34),1,0) -> 0
E7: B | F7: 40 | G7: 2 | H7: 5 | I7: 8 | J7: 11 | K7: 14 | L7: 17 | M7: 20 | N7: 23 | O7: 26 | P7: 29 | Q7: 32 | R7: 35 | T7: =IF(OR(G7=$R$33,H7=$R$33,I7=$R$33,J7=$R$33,K7=$R$33,L7=$R$33,M7=$R$33,N7=$R$33,O7=$R$33,P7=$R$33,Q7=$R$33,R7=$R$33,F7=$R$33),1,0) -> 0 | U7: B | V7: =IF(OR(G10=$R$33,H10=$R$33,I10=$R$33,J10=$R$33,K10=$R$33,L10=$R$33,M10=$R$33,N10=$R$33,O10=$R$33,P10=$R$33,Q10=$R$33,R10=$R$33,F10=$R$33),1,0) -> 0 | W7: 2 | X7: 0 | AB7: 7 | AC7: 8 | AD7: 9 | AM7: 3 | AN7: 25 | AP7: =IF(AND(AQ7=0,AQ6=1),0,40) -> 40 | AQ7: 0
E8: C | F8: 40 | G8: 3 | H8: 6 | I8: 9 | J8: 12 | K8: 15 | L8: 18 | M8: 21 | N8: 24 | O8: 27 | P8: 30 | Q8: 33 | R8: 36 | T8: =IF(OR(G8=$R$33,H8=$R$33,I8=$R$33,J8=$R$33,K8=$R$33,L8=$R$33,M8=$R$33,N8=$R$33,O8=$R$33,P8=$R$33,Q8=$R$33,R8=$R$33,F8=$R$33),1,0) -> 0 | U8: C | V8: =IF(OR(G11=$R$33,H11=$R$33,I11=$R$33,J11=$R$33,K11=$R$33,L11=$R$33,M11=$R$33,N11=$R$33,O11=$R$33,P11=$R$33,Q11=$R$33,R11=$R$33,F11=$R$33),1,0) -> 0 | W8: 3 | X8: 0 | AB8: 10 | AC8: 11 | AD8: 12 | AM8: 4 | AN8: 25 | AP8: =IF(AND(AQ8=0,AQ7=1),0,40) -> 40 | AQ8: 0
E9: 1 | F9: 0 | G9: 1 | H9: 4 | I9: 7 | J9: 10 | K9: 2 | L9: 5 | M9: 8 | N9: 11 | O9: 3 | P9: 6 | Q9: 9 | R9: 12 | T9: =V6 -> 1 | X9: 0 | AB9: 13 | AC9: 14 | AD9: 15 | AM9: 5 | AN9: 36 | AP9: =IF(AQ9=1,40,0) -> 0 | AQ9: 0
E10: 2 | F10: 40 | G10: 13 | H10: 16 | I10: 19 | J10: 22 | K10: 14 | L10: 17 | M10: 20 | N10: 23 | O10: 15 | P10: 18 | Q10: 21 | R10: 24 | T10: =V7 -> 0 | X10: 0 | AB10: 16 | AC10: 17 | AD10: 18 | AM10: 6 | AN10: 25 | AP10: =IF(AND(AQ10=0,AQ9=1),0,40) -> 40 | AQ10: 0
E11: 3 | F11: 40 | G11: 25 | H11: 28 | I11: 31 | J11: 34 | K11: 26 | L11: 29 | M11: 32 | N11: 35 | O11: 27 | P11: 30 | Q11: 33 | R11: 36 | T11: =V8 -> 0 | X11: 0 | AB11: 19 | AC11: 20 | AD11: 21 | AM11: 7 | AN11: 25 | AP11: =IF(AND(AQ11=0,AQ10=1),0,40) -> 40 | AQ11: 0
T12: =IF(T6=1,U6,IF(T7=1,U7,IF(T8=1,U8,""))) -> A | V12: =IF(V6=1,W6,IF(V7=1,W7,IF(V8=1,W8,""))) -> 1 | AB12: 22 | AC12: 23 | AD12: 24 | AM12: 8 | AN12: 36
AB13: 25 | AC13: 26 | AD13: 27 | AM13: 9 | AN13: 25
T14: =CONCATENATE(V12,T12) -> 1A | AB14: 28 | AC14: 29 | AD14: 30 | AM14: 10 | AN14: 25
AB15: 31 | AC15: 32 | AD15: 33 | AM15: 11 | AN15: 36
AB16: 34 | AC16: 35 | AD16: 36 | AM16: 12 | AN16: 25
D17: 1 | E17: 1 | F17: 0 | G17: =IF(OR($R$33=AT35,),1,0) -> 0 | H17: =IF(OR($R$33=AT36,),1,0) -> 0 | I17: =IF(OR($R$33=AT37,),1,0) -> 0 | AM17: 13 | AN17: 36
D18: 4 | G18: =IF(OR($R$33=AT38,),1,0) -> 0 | H18: =IF(OR($R$33=AT39,),1,0) -> 0 | I18: =IF(OR($R$33=AT40,),1,0) -> 0 | AM18: 14 | AN18: 36
D19: 7 | G19: =IF(OR($R$33=AT41,),1,0) -> 0 | H19: =IF(OR($R$33=AT42,),1,0) -> 0 | I19: =IF(OR($R$33=AT43,),1,0) -> 0 | AM19: 15 | AN19: 25
D20: 10 | G20: =IF(OR($R$33=AT44,),1,0) -> 0 | H20: =IF(OR($R$33=AT45,),1,0) -> 0 | I20: =IF(OR($R$33=AT46,),1,0) -> 0 | V20: A | W20: B | X20: C | Y20: 1 | Z20: 2 | AA20: 3 | AM20: 16 | AN20: 36
D21: 13 | E21: 2 | F21: 0 | G21: =IF(OR($R$33=AT47,),1,0) -> 0 | H21: =IF(OR($R$33=AT48,),1,0) -> 0 | I21: =IF(OR($R$33=AT49,),1,0) -> 0 | V21: =T6 -> 1 | W21: =T7 -> 0 | X21: =T8 -> 0 | Y21: =V6 -> 1 | Z21: =V7 -> 0 | AA21: =V8 -> 0 | AM21: 17 | AN21: 36
D22: 16 | G22: =IF(OR($R$33=AT50,),1,0) -> 0 | H22: =IF(OR($R$33=AT51,),1,0) -> 0 | I22: =IF(OR($R$33=AT52,),1,0) -> 0 | V22: =G29 -> 0 | W22: =H29 -> 0 | X22: =I29 -> 0 | Y22: =F17 -> 0 | Z22: =F21 -> 0 | AA22: =F25 -> 0 | AM22: 18 | AN22: 25
D23: 19 | G23: =IF(OR($R$33=AT53,),1,0) -> 0 | H23: =IF(OR($R$33=AT54,),1,0) -> 0 | I23: =IF(OR($R$33=AT55,),1,0) -> 0 | AM23: 19 | AN23: 36
D24: 22 | G24: =IF(OR($R$33=AT56,),1,0) -> 0 | H24: =IF(OR($R$33=AT57,),1,0) -> 0 | I24: =IF(OR($R$33=AT58,),1,0) -> 0 | AM24: 20 | AN24: 36
D25: 25 | E25: 3 | F25: 0 | G25: =IF(OR($R$33=AT59,),1,0) -> 0 | H25: =IF(OR($R$33=AT60,),1,0) -> 0 | I25: =IF(OR($R$33=AT61,),1,0) -> 0 | AM25: 21 | AN25: 25
D26: 28 | G26: =IF(OR($R$33=AT62,),1,0) -> 0 | H26: =IF(OR($R$33=AT63,),1,0) -> 0 | I26: =IF(OR($R$33=AT64,),1,0) -> 0 | AM26: 22 | AN26: 36
D27: 31 | G27: =IF(OR($R$33=AT65,),1,0) -> 0 | H27: =IF(OR($R$33=AT66,),1,0) -> 0 | I27: =IF(OR($R$33=AT67,),1,0) -> 0 | AM27: 23 | AN27: 36
D28: 34 | G28: =IF(OR($R$33=AT68,),1,0) -> 0 | H28: =IF(OR($R$33=AT69,),1,0) -> 0 | I28: =IF(OR($R$33=AT70,),1,0) -> 0 | AM28: 24 | AN28: 25
G29: 0 | H29: 0 | I29: 0 | AM29: 25 | AN29: 3
G30: A | H30: B | I30: C | AM30: 26 | AN30: 3
AM31: 27 | AN31: 1
O32: ='>>Input'!Y2 -> 36 | Q32: Préc | R32: =SUM(W28:W54) -> 0 | AM32: 28 | AN32: 3
Q33: Actu | R33: =SUM(S35:S54) -> 0 | AM33: 29 | AN33: 3
F34: Calcul | K34: Compteur_2 | N34: ='>>Input'!M45 -> 0 | O34: Compteur | R34: =SUM(T35:T54) -> 0 | V34: A | W34: B | X34: C | Y34: 1 | Z34: 2 | AA34: 3 | AF34: A | AG34: B | AH34: C | AI34: 1 | AJ34: 2 | AK34: 3 | AL34: Total | AM34: 30 | AN34: 2 | AQ34: =SUM(AQ35:AQ54) -> 0
M35: =IF($N$34>=N35,O35,"") ->  | N35: 1 | O35: ='>>Convertisseur'!A15 -> 36 | P35: N | Q35: 1 | R35: =IF($N$34-(Q35-1)<=0,"",LOOKUP($N$34-(Q35-1),$N$35:$N$54,$O$35:$O$54)) ->  | S35: =IF(AP35=1,R35,"") ->  | T35: =IF(R35<>"",1,0) -> 0 | AL35: =SUM(AL37:AL74) -> 0 | AM35: 31 | AN35: 3 | AO35: =IF(AP36=1,1,0) -> 0 | AP35: =IF(AND(R35<>"",R36=""),1,0) -> 0 | AQ35: =IF(AP36=1,R35,"") ->  | AR35: 1 | AT35: 1
E36: Préc | F36: 18 | M36: =IF($N$34>=N36,O36,"") ->  | N36: 2 | O36: ='>>Convertisseur'!A16 -> 2 | P36: N | Q36: 2 | R36: =IF($N$34-(Q36-1)<=0,"",LOOKUP($N$34-(Q36-1),$N$35:$N$54,$O$35:$O$54)) ->  | T36: 0 | AM36: 32 | AN36: 3 | AO36: 0 | AP36: 0 | AQ36: =IF(AP37=1,R36,"") ->  | AR36: 2 | AT36: 2
N37: 3 | O37: ='>>Convertisseur'!A17 -> 0 | P37: N | Q37: 3 | R37: =IF($N$34-(Q37-1)<=0,"",LOOKUP($N$34-(Q37-1),$N$35:$N$54,$O$35:$O$54)) ->  | S37: =IF(AP37=1,R37,"") ->  | T37: 0 | AM37: 33 | AN37: 2 | AO37: 0 | AP37: 0 | AQ37: =IF(AP38=1,R37,"") ->  | AR37: 3 | AT37: 3
N38: 4 | O38: ='>>Convertisseur'!A18 -> 0 | P38: N | Q38: 4 | R38: =IF($N$34-(Q38-1)<=0,"",LOOKUP($N$34-(Q38-1),$N$35:$N$54,$O$35:$O$54)) ->  | T38: 0 | AF38: =IF(V38="","",IF(V38=0,0,IF(V37=0,-V38,V38*2))) ->  | AG38: =IF(W38="","",IF(W38=0,0,IF(W37=0,-W38,W38*2))) ->  | AL38: =SUM(AF38:AK38) -> 0 | AM38: 34 | AN38: 3 | AO38: 0 | AP38: 0 | AR38: 4 | AT38: 4
N39: 5 | O39: ='>>Convertisseur'!A19 -> 0 | P39: N | Q39: 5 | T39: 0 | AM39: 35 | AN39: 3 | AO39: 0 | AP39: 0 | AR39: 5 | AT39: 5
N40: 6 | O40: ='>>Convertisseur'!A20 -> 0 | P40: N | Q40: 6 | T40: 0 | AF40: =IF(V40="","",IF(V40=0,0,IF(V39=0,-V40,V40*2))) ->  | AL40: =SUM(AF40:AK40) -> 0 | AM40: 36 | AN40: 1 | AO40: 0 | AP40: 0 | AR40: 6 | AT40: 6
N41: 7 | O41: ='>>Convertisseur'!A21 -> 0 | P41: N | Q41: 7 | T41: 0 | AO41: 0 | AP41: 0 | AR41: 7 | AT41: 7
N42: 8 | O42: ='>>Convertisseur'!A22 -> 0 | P42: N | Q42: 8 | T42: 0 | AF42: =IF(V42="","",IF(V42=0,0,IF(V41=0,-V42,V42*2))) ->  | AL42: =SUM(AF42:AK42) -> 0 | AO42: 0 | AP42: 0 | AR42: 8 | AT42: 8
N43: 9 | O43: ='>>Convertisseur'!A23 -> 0 | P43: N | Q43: 9 | T43: 0 | AO43: 0 | AP43: 0 | AR43: 9 | AT43: 9
N44: 10 | O44: ='>>Convertisseur'!A24 -> 0 | P44: N | Q44: 10 | T44: 0 | AF44: =IF(V44="","",IF(V44=0,0,IF(V43=0,-V44,V44*2))) ->  | AL44: =SUM(AF44:AK44) -> 0 | AO44: 0 | AP44: 0 | AR44: 10 | AT44: 10
N45: 11 | O45: ='>>Convertisseur'!A25 -> 0 | P45: N | Q45: 11 | T45: 0 | AO45: 0 | AP45: 0 | AR45: 11 | AT45: 11
N46: 12 | O46: ='>>Convertisseur'!A26 -> 0 | P46: N | Q46: 12 | T46: 0 | AF46: =IF(V46="","",IF(V46=0,0,IF(V45=0,-V46,V46*2))) ->  | AL46: =SUM(AF46:AK46) -> 0 | AO46: 0 | AP46: 0 | AR46: 12 | AT46: 12
N47: 13 | O47: ='>>Convertisseur'!A27 -> 0 | P47: N | Q47: 13 | T47: 0 | AO47: 0 | AP47: 0 | AR47: 13 | AT47: 13
N48: 14 | O48: ='>>Convertisseur'!A28 -> 0 | P48: N | Q48: 14 | T48: 0 | AF48: =IF(V48="","",IF(V48=0,0,IF(V47=0,-V48,V48*2))) ->  | AL48: =SUM(AF48:AK48) -> 0 | AO48: 0 | AP48: 0 | AR48: 14 | AT48: 14
N49: 15 | O49: ='>>Convertisseur'!A29 -> 0 | P49: N | Q49: 15 | T49: 0 | AO49: 0 | AP49: 0 | AR49: 15 | AT49: 15
N50: 16 | O50: ='>>Convertisseur'!A30 -> 0 | P50: N | Q50: 16 | T50: 0 | AF50: =IF(V50="","",IF(V50=0,0,IF(V49=0,-V50,V50*2))) ->  | AL50: =SUM(AF50:AK50) -> 0 | AO50: 0 | AP50: 0 | AR50: 16 | AT50: 16
N51: 17 | O51: ='>>Convertisseur'!A31 -> 0 | P51: N | Q51: 17 | T51: 0 | AO51: 0 | AP51: 0 | AR51: 17 | AT51: 17
N52: 18 | O52: ='>>Convertisseur'!A32 -> 0 | P52: N | Q52: 18 | T52: 0 | AF52: =IF(V52="","",IF(V52=0,0,IF(V51=0,-V52,V52*2))) ->  | AL52: =SUM(AF52:AK52) -> 0 | AO52: 0 | AP52: 0 | AR52: 18 | AT52: 18
N53: 19 | O53: ='>>Convertisseur'!A33 -> 0 | P53: N | Q53: 19 | T53: 0 | AO53: 0 | AP53: 0 | AR53: 19 | AT53: 19
N54: 20 | O54: ='>>Convertisseur'!A34 -> 0 | P54: N | Q54: 20 | R54: =IF($N$34-(Q54-1)<=0,"",LOOKUP($N$34-(Q54-1),$N$35:$N$54,$O$35:$O$54)) ->  | T54: 0 | AF54: =IF(V54="","",IF(V54=0,0,IF(V53=0,-V54,V54*2))) ->  | AL54: =SUM(AF54:AK54) -> 0 | AO54: 0 | AP54: 0 | AR54: 20 | AT54: 20
AT55: 21
AF56: =IF(V56="","",IF(V56=0,0,IF(V55=0,-V56,V56*2))) ->  | AL56: =SUM(AF56:AK56) -> 0 | AT56: 22
AT57: 23
AF58: =IF(V58="","",IF(V58=0,0,IF(V57=0,-V58,V58*2))) ->  | AL58: =SUM(AF58:AK58) -> 0 | AT58: 24
AT59: 25
AF60: =IF(V60="","",IF(V60=0,0,IF(V59=0,-V60,V60*2))) ->  | AL60: =SUM(AF60:AK60) -> 0 | AT60: 26
AT61: 27
AF62: =IF(V62="","",IF(V62=0,0,IF(V61=0,-V62,V62*2))) ->  | AL62: =SUM(AF62:AK62) -> 0 | AT62: 28
AT63: 29
AF64: =IF(V64="","",IF(V64=0,0,IF(V63=0,-V64,V64*2))) ->  | AL64: =SUM(AF64:AK64) -> 0 | AT64: 30
AT65: 31
AF66: =IF(V66="","",IF(V66=0,0,IF(V65=0,-V66,V66*2))) ->  | AL66: =SUM(AF66:AK66) -> 0 | AT66: 32
AT67: 33
AF68: =IF(V68="","",IF(V68=0,0,IF(V67=0,-V68,V68*2))) ->  | AL68: =SUM(AF68:AK68) -> 0 | AT68: 34
AT69: 35
AF70: =IF(V70="","",IF(V70=0,0,IF(V69=0,-V70,V70*2))) ->  | AL70: =SUM(AF70:AK70) -> 0 | AT70: 36
AF72: =IF(V72="","",IF(V72=0,0,IF(V71=0,-V72,V72*2))) ->  | AL72: =SUM(AF72:AK72) -> 0
AF74: =IF(V74="","",IF(V74=0,0,IF(V73=0,-V74,V74*2))) ->  | AL74: =SUM(AF74:AK74) -> 0

Sheet >>123
G2: ='>>Convertisseur_2'!AG2 -> R | H2: ='>>Convertisseur_2'!AI2 ->  | J2: =IF(G2<>"",G2,IF(H2<>"",H2,0)) -> R | N2: ='>>Convertisseur_2'!AG2 -> R | O2: ='>>Convertisseur_2'!AI2 ->  | Q2: =IF(N2<>"",N2,IF(O2<>"",O2,0)) -> R
B4: R | C4: N | F4: Compteur | G4: R | H4: N | J4: Dernière couleur | M4: Compteur | N4: R | O4: N | Q4: Dernière couleur
B5: =IF(AND(B4=F12,M12=B4),F13+M13,IF(F12=B4,F13,IF(M12=B4,M13,0))) -> 1 | C5: =IF(AND(C4=F12,M12=C4),F13+M13,IF(F12=C4,F13,IF(M12=C4,M13,0))) -> 2 | E5: 1 | F5: 1 | G5: =IF(F5=1,1,IF(F5=7,64,0)) -> 1 | I5: =IF(AND(F5=1,G2<>""),1,IF(AND(F5=7,G2<>""),1,0)) -> 1 | J5: R | L5: 1 | M5: 2 | O5: =IF(M5=1,1,IF(M5=7,64,0)) -> 0 | P5: =IF(AND(M5=1,O2<>""),1,IF(AND(M5=7,O2<>""),1,0)) -> 0 | Q5: N
E6: 2 | H6: =IF(F5=2,2,IF(F5=8,128,0)) -> 0 | I6: =IF(AND(F5=2,H2<>""),1,IF(AND(F5=8,H2<>""),1,0)) -> 0 | L6: 2 | O6: =IF(M5=2,2,IF(M5=8,128,0)) -> 2 | P6: =IF(AND(M5=2,O2<>""),1,IF(AND(M5=8,O2<>""),1,0)) -> 0
E7: 3 | H7: =IF(F5=3,4,IF(F5=9,256,0)) -> 0 | I7: =IF(AND(F5=3,H2<>""),1,IF(AND(F5=9,H2<>""),1,0)) -> 0 | L7: 3 | O7: =IF(M5=3,4,IF(M5=9,256,0)) -> 0 | P7: =IF(AND(M5=3,O2<>""),1,IF(AND(M5=9,O2<>""),1,0)) -> 0
E8: 4 | G8: =IF(F5=4,8,IF(F5=10,526,0)) -> 0 | I8: =IF(AND(F5=4,G2<>""),1,IF(AND(F5=10,G2<>""),1,0)) -> 0 | L8: 4 | N8: =IF(M5=4,8,IF(M5=10,526,0)) -> 0 | P8: =IF(AND(M5=4,N2<>""),1,IF(AND(M5=10,N2<>""),1,0)) -> 0
E9: 5 | G9: =IF(F5=5,16,0) -> 0 | I9: =IF(AND(F5=5,G2<>""),1,0) -> 0 | L9: 5 | N9: =IF(M5=5,16,0) -> 0 | P9: =IF(AND(M5=5,N2<>""),1,0) -> 0
E10: 6 | G10: =IF(F5=6,32,0) -> 0 | I10: =IF(AND(F5=6,G2<>""),1,0) -> 0 | L10: 6 | O10: =IF(M5=6,32,0) -> 0 | P10: =IF(AND(M5=6,O2<>""),1,0) -> 0
G11: =SUM(G5:G10) -> 1 | H11: =SUM(H5:H10) -> 0 | I11: =SUM(I5:I10) -> 1 | J11: 1 | N11: =SUM(N5:N10) -> 0 | O11: =SUM(O5:O10) -> 2 | P11: =SUM(P5:P10) -> 0 | Q11: 0
F12: =IF(F5=1,G4,IF(F5=2,H4,IF(F5=3,H4,IF(F5=3,H4,IF(F5=4,G4,IF(F5=5,G4,IF(F5=6,G4,IF(F5=7,G4,G12)))))))) -> R | G12: =IF(F5=8,H4,IF(F5=9,G4,IF(F510,G4,0))) -> 0 | M12: =IF(M5=1,O4,IF(M5=2,O4,IF(M5=3,O4,IF(M5=4,N4,IF(M5=5,N4,IF(M5=6,O4,IF(M5=7,O4,N12))))))) -> N | N12: =IF(M5=8,O4,IF(M5=9,N4,IF(M5=10,N4,0))) -> 0
F13: =IF(G11<>0,G11,IF(H11<>0,H11,0)) -> 1 | M13: =IF(O11<>0,O11,IF(N11<>0,N11,0)) -> 2
G15: ='>>Convertisseur_2'!AK2 -> P | H15: ='>>Convertisseur_2'!AM2 ->  | J15: =IF(G15<>"",G15,IF(H15<>"",H15,0)) -> P | N15: ='>>Convertisseur_2'!AK2 -> P | O15: ='>>Convertisseur_2'!AM2 ->  | Q15: =IF(N15<>"",N15,IF(O15<>"",O15,0)) -> P
B17: P | C17: I | F17: Compteur | G17: P | H17: I | J17: Dernière couleur | M17: Compteur | N17: P | O17: I | Q17: Dernière couleur
B18: =IF(AND(B17=F25,M25=B17),F26+M26,IF(F25=B17,F26,IF(M25=B17,M26,0))) -> 1 | C18: =IF(AND(C17=F25,M25=C17),F26+M26,IF(F25=C17,F26,IF(M25=C17,M26,0))) -> 2 | E18: 1 | F18: 1 | G18: =IF(F18=1,1,IF(F18=7,64,0)) -> 1 | I18: =IF(AND(F18=1,G15<>""),1,IF(AND(F18=7,G15<>""),1,0)) -> 1 | J18: P | L18: 1 | M18: 2 | O18: =IF(M18=1,1,IF(M18=7,64,0)) -> 0 | P18: =IF(AND(M18=1,O15<>""),1,IF(AND(M18=7,O15<>""),1,0)) -> 0 | Q18: I
E19: 2 | H19: =IF(F18=2,2,IF(F18=8,128,0)) -> 0 | I19: =IF(AND(F18=2,H15<>""),1,IF(AND(F18=8,H15<>""),1,0)) -> 0 | L19: 2 | O19: =IF(M18=2,2,IF(M18=8,128,0)) -> 2 | P19: =IF(AND(M18=2,O15<>""),1,IF(AND(M18=8,O15<>""),1,0)) -> 0
E20: 3 | H20: =IF(F18=3,4,IF(F18=9,256,0)) -> 0 | I20: =IF(AND(F18=3,H15<>""),1,IF(AND(F18=9,H15<>""),1,0)) -> 0 | L20: 3 | O20: =IF(M18=3,4,IF(M18=9,256,0)) -> 0 | P20: =IF(AND(M18=3,O15<>""),1,IF(AND(M18=9,O15<>""),1,0)) -> 0
E21: 4 | G21: =IF(F18=4,8,IF(F18=10,526,0)) -> 0 | I21: =IF(AND(F18=4,G15<>""),1,IF(AND(F18=10,G15<>""),1,0)) -> 0 | L21: 4 | N21: =IF(M18=4,8,IF(M18=10,526,0)) -> 0 | P21: =IF(AND(M18=4,N15<>""),1,IF(AND(M18=10,N15<>""),1,0)) -> 0
E22: 5 | G22: =IF(F18=5,16,0) -> 0 | I22: =IF(AND(F18=5,G15<>""),1,0) -> 0 | L22: 5 | N22: =IF(M18=5,16,0) -> 0 | P22: =IF(AND(M18=5,N15<>""),1,0) -> 0
E23: 6 | G23: =IF(F18=6,32,0) -> 0 | I23: =IF(AND(F18=6,G15<>""),1,0) -> 0 | L23: 6 | O23: =IF(M18=6,32,0) -> 0 | P23: =IF(AND(M18=6,O15<>""),1,0) -> 0
G24: =SUM(G18:G23) -> 1 | H24: =SUM(H18:H23) -> 0 | I24: =SUM(I18:I23) -> 1 | J24: 1 | N24: =SUM(N18:N23) -> 0 | O24: =SUM(O18:O23) -> 2 | P24: =SUM(P18:P23) -> 0 | Q24: 0
F25: =IF(F18=1,G17,IF(F18=2,H17,IF(F18=3,H17,IF(F18=3,H17,IF(F18=4,G17,IF(F18=5,G17,IF(F18=6,G17,IF(F18=7,G17,G25)))))))) -> P | G25: =IF(F18=8,H17,IF(F18=9,G17,IF(F523,G17,0))) -> 0 | M25: =IF(M18=1,O17,IF(M18=2,O17,IF(M18=3,O17,IF(M18=4,N17,IF(M18=5,N17,IF(M18=6,O17,IF(M18=7,O17,N25))))))) -> I | N25: =IF(M18=8,O17,IF(M18=9,N17,IF(M18=10,N17,0))) -> 0
F26: =IF(G24<>0,G24,IF(H24<>0,H24,0)) -> 1 | M26: =IF(O24<>0,O24,IF(N24<>0,N24,0)) -> 2
G28: ='>>Convertisseur_2'!AW2 ->  | H28: ='>>Convertisseur_2'!AY2 -> 2 | J28: =IF(G28<>"",G28,IF(H28<>"",H28,0)) -> 2 | N28: ='>>Convertisseur_2'!AW2 ->  | O28: ='>>Convertisseur_2'!AY2 -> 2 | Q28: =IF(N28<>"",N28,IF(O28<>"",O28,0)) -> 2
B30: 1 | C30: 2 | F30: Compteur | G30: 1 | H30: 2 | J30: Dernière couleur | M30: Compteur | N30: 1 | O30: 2 | Q30: Dernière couleur
B31: =IF(AND(B30=F38,M38=B30),F39+M39,IF(F38=B30,F39,IF(M38=B30,M39,0))) -> 0 | C31: =IF(AND(C30=F38,M38=C30),F39+M39,IF(F38=C30,F39,IF(M38=C30,M39,0))) -> 3 | E31: 1 | F31: 2 | G31: =IF(F31=1,1,IF(F31=7,64,0)) -> 0 | I31: =IF(AND(F31=1,G28<>""),1,IF(AND(F31=7,G28<>""),1,0)) -> 0 | J31: 1 | L31: 1 | M31: 1 | O31: =IF(M31=1,1,IF(M31=7,64,0)) -> 1 | P31: =IF(AND(M31=1,O28<>""),1,IF(AND(M31=7,O28<>""),1,0)) -> 1 | Q31: 2
E32: 2 | H32: =IF(F31=2,2,IF(F31=8,128,0)) -> 2 | I32: =IF(AND(F31=2,H28<>""),1,IF(AND(F31=8,H28<>""),1,0)) -> 1 | L32: 2 | O32: =IF(M31=2,2,IF(M31=8,128,0)) -> 0 | P32: =IF(AND(M31=2,O28<>""),1,IF(AND(M31=8,O28<>""),1,0)) -> 0
E33: 3 | H33: =IF(F31=3,4,IF(F31=9,256,0)) -> 0 | I33: =IF(AND(F31=3,H28<>""),1,IF(AND(F31=9,H28<>""),1,0)) -> 0 | L33: 3 | O33: =IF(M31=3,4,IF(M31=9,256,0)) -> 0 | P33: =IF(AND(M31=3,O28<>""),1,IF(AND(M31=9,O28<>""),1,0)) -> 0
E34: 4 | G34: =IF(F31=4,8,IF(F31=10,526,0)) -> 0 | I34: =IF(AND(F31=4,G28<>""),1,IF(AND(F31=10,G28<>""),1,0)) -> 0 | L34: 4 | N34: =IF(M31=4,8,IF(M31=10,526,0)) -> 0 | P34: =IF(AND(M31=4,N28<>""),1,IF(AND(M31=10,N28<>""),1,0)) -> 0
E35: 5 | G35: =IF(F31=5,16,0) -> 0 | I35: =IF(AND(F31=5,G28<>""),1,0) -> 0 | L35: 5 | N35: =IF(M31=5,16,0) -> 0 | P35: =IF(AND(M31=5,N28<>""),1,0) -> 0
E36: 6 | G36: =IF(F31=6,32,0) -> 0 | I36: =IF(AND(F31=6,G28<>""),1,0) -> 0 | L36: 6 | O36: =IF(M31=6,32,0) -> 0 | P36: =IF(AND(M31=6,O28<>""),1,0) -> 0
G37: =SUM(G31:G36) -> 0 | H37: =SUM(H31:H36) -> 2 | I37: =SUM(I31:I36) -> 1 | J37: 0 | N37: =SUM(N31:N36) -> 0 | O37: =SUM(O31:O36) -> 1 | P37: =SUM(P31:P36) -> 1 | Q37: 1
F38: =IF(F31=1,G30,IF(F31=2,H30,IF(F31=3,H30,IF(F31=3,H30,IF(F31=4,G30,IF(F31=5,G30,IF(F31=6,G30,IF(F31=7,G30,G38)))))))) -> 2 | G38: =IF(F31=8,H30,IF(F31=9,G30,IF(F536,G30,0))) -> 0 | M38: =IF(M31=1,O30,IF(M31=2,O30,IF(M31=3,O30,IF(M31=4,N30,IF(M31=5,N30,IF(M31=6,O30,IF(M31=7,O30,N38))))))) -> 2 | N38: =IF(M31=8,O30,IF(M31=9,N30,IF(M31=10,N30,0))) -> 0
F39: =IF(G37<>0,G37,IF(H37<>0,H37,0)) -> 2 | M39: =IF(O37<>0,O37,IF(N37<>0,N37,0)) -> 1

Sheet >>Six
I1: ='>>Input'!R43 -> 1 | J1: 0 | L1: X5
C2: =MIN(C4:C14) -> 1 | J2: 6
I3: 1 | J3: =MAX(J4:J14) -> 2 | S3: =IF(V4=0,1,0) -> 0
C4: =IF(OR(J4=0,J4=-1),"",J4) -> 1 | D4: Max 6 | E4: 1 | I4: =IF(J4=-1,0,J4) -> 1 | J4: 1 | K4: 0 | L4: =S4 -> 0 | M4: 1 | N4: 2 | O4: 3 | P4: 4 | Q4: 5 | R4: 6 | S4: =IF(OR(M4=$V$4,N4=$V$4,O4=$V$4,P4=$V$4,Q4=$V$4,R4=$V$4),1,0) -> 0 | V4: ='>>Convertisseur_2'!J2 -> 36 | Y4: N° Sortant
E5: 4 | M5: 7 | N5: 8 | O5: 9 | P5: 10 | Q5: 11 | R5: 12 | S5: 0 | V5: =IF(W5=1,Y5,"") ->  | W5: =IF(AND(Y5<>"",Y6=""),1,0) -> 0 | X5: 1 | Y5: 27
E6: =E5+3 -> 7 | I6: =IF(J6=-1,0,J6) -> 0 | J6: 0 | K6: 0 | L6: =S5 -> 0 | M6: 13 | N6: 14 | O6: 15 | P6: 16 | Q6: 17 | R6: 18 | S6: 0 | W6: 0 | X6: 2 | Y6: 30
E7: 10 | M7: 19 | N7: 20 | O7: 21 | P7: 22 | Q7: 23 | R7: 24 | S7: 0 | W7: 0 | X7: 3 | Y7: 29
E8: 13 | I8: =IF(J8=-1,0,J8) -> 0 | J8: 0 | K8: 0 | L8: =S6 -> 0 | M8: 25 | N8: 26 | O8: 27 | P8: 28 | Q8: 29 | R8: 30 | S8: 0 | W8: 0 | X8: 4 | Y8: 24
E9: 16 | M9: 31 | N9: 32 | O9: 33 | P9: 34 | Q9: 35 | R9: 36 | S9: 1 | W9: 0 | X9: 5 | Y9: 22
E10: 19 | I10: =IF(J10=-1,0,J10) -> 0 | J10: 0 | K10: 0 | L10: =S7 -> 0 | W10: 0 | X10: 6 | Y10: 3
E11: 22 | W11: 0 | X11: 7 | Y11: 24
E12: 25 | I12: =IF(J12=-1,0,J12) -> 0 | J12: 0 | K12: 0 | L12: =S8 -> 0 | W12: 0 | X12: 8 | Y12: 24
E13: 28 | W13: 0 | X13: 9 | Y13: 34
C14: 2 | E14: 31 | I14: =IF(J14=-1,0,J14) -> 2 | J14: 2 | K14: 0 | L14: =S9 -> 1 | W14: 0 | X14: 10 | Y14: 33
E15: 34 | W15: 0 | X15: 11 | Y15: 23
I16: =SUM(I4:I15)+1 -> 4 | W16: 0 | X16: 12 | Y16: 17
C17: =IF(I4<>0,1,0) -> 1 | I17: 7 | K17: =SUM(K4:K15) -> 0 | O17: 49 | P17: 25 | Q17: =O17-P17 -> 24 | W17: 0 | X17: 13 | Y17: 13
C18: =IF(I6<>0,1,0) -> 0 | I18: -3 | J18: =IF(I17<=30,1,IF(I17<=60,2,IF(I17<=90,3,IF(I17<=120,4,0)))) -> 1 | W18: 0 | X18: 14 | Y18: 8
C19: =IF(I8<>0,1,0) -> 0 | I19: =I18*-1 -> 3 | W19: 0 | X19: 15 | Y19: 29
C20: =IF(I10<>0,1,0) -> 0 | W20: 0 | X20: 16 | Y20: 2
C21: =IF(I12<>0,1,0) -> 0 | W21: 0 | X21: 17 | Y21: 10
C22: =IF(I14<>0,1,0) -> 1 | W22: 0 | X22: 18 | Y22: 17
C23: =SUM(C17:C22) -> 2 | W23: 0 | X23: 19 | Y23: 10
W24: 0 | X24: 20 | Y24: 15
W25: 0 | X25: 21 | Y25: 4
W26: 0 | X26: 22 | Y26: 28
W27: 0 | X27: 23 | Y27: 36
W28: 0 | X28: 24 | Y28: 5
W29: 0 | X29: 25 | Y29: 12
W30: 0 | X30: 26 | Y30: 1
J31: =IF(OR(J34=-1,J35=-1,J36=-1,J37=-1,J38=-1,J39=-1,J40=-1,J41=-1,J42=-1,J43=-1,J44=-1,J45=-1),1,0) -> 1 | L31: X10 | W31: 0 | X31: 27 | Y31: 15
W32: 0 | X32: 28 | Y32: 4
I33: 1 | J33: =IF(T34<=3,0,IF(T34<=4,1,IF(T34<=6,2,IF(T34<=7,3,IF(T34<=8,4,IF(T34<=9,5,0)))))) -> 0 | W33: 0 | X33: 29 | Y33: 3
E34: 1 | I34: =IF(J34=-1,0,J34) -> 0 | J34: 0 | K34: 0 | L34: =S34 -> 0 | M34: 1 | N34: 2 | O34: 3 | S34: =IF(OR(M34=$V$4,N34=$V$4,O34=$V$4),1,0) -> 0 | T34: 13 | W34: 0 | X34: 30 | Y34: 30
E35: 4 | I35: 0 | J35: 0 | K35: 0 | L35: 0 | M35: 4 | N35: 5 | O35: 6 | S35: 0 | W35: 0 | X35: 31 | Y35: 19
E36: =E35+3 -> 7 | I36: 0 | J36: 0 | K36: 0 | L36: 0 | M36: 7 | N36: 8 | O36: 9 | S36: 0 | W36: 0 | X36: 32 | Y36: 30
E37: 10 | I37: 1 | J37: 1 | K37: 0 | L37: 0 | M37: 10 | N37: 11 | O37: 12 | S37: 0 | V37: =IF(W37=1,Y37,"") ->  | W37: =IF(AND(Y37<>"",Y38=""),1,0) -> 0 | X37: 33 | Y37: 19
E38: 13 | I38: 0 | J38: -1 | K38: 11 | L38: 0 | M38: 13 | N38: 14 | O38: 15 | S38: 0 | W38: 0 | X38: 34 | Y38: 16
E39: 16 | I39: 1 | J39: 1 | K39: 0 | L39: 0 | M39: 16 | N39: 17 | O39: 18 | S39: 0 | V39: 3 | W39: 1 | X39: 35 | Y39: 3
E40: 19 | I40: 1 | J40: 1 | K40: 0 | L40: 0 | M40: 19 | N40: 20 | O40: 21 | S40: 0 | W40: 0 | X40: 36
E41: 22 | I41: 1 | J41: 1 | K41: 0 | L41: 0 | M41: 22 | N41: 23 | O41: 24 | S41: 0 | W41: 0 | X41: 37
E42: 25 | I42: 1 | J42: 1 | K42: 0 | L42: 0 | M42: 25 | N42: 26 | O42: 27 | S42: 0 | W42: 0 | X42: 38
E43: 28 | I43: 0 | J43: 0 | K43: 0 | L43: 0 | M43: 28 | N43: 29 | O43: 30 | S43: 0 | W43: 0 | X43: 39
E44: 31 | I44: 0 | J44: 0 | K44: 0 | L44: 0 | M44: 31 | N44: 32 | O44: 33 | S44: 0 | W44: 0 | X44: 40
E45: 34 | I45: 0 | J45: 0 | K45: 0 | L45: 1 | M45: 34 | N45: 35 | O45: 36 | S45: 1 | W45: 0 | X45: 41
I46: =SUM(I34:I45)+1 -> 6 | W46: 0 | X46: 42
I47: 1328 | K47: =SUM(K34:K45) -> 11 | W47: 0 | X47: 43
I48: -1322 | J48: =IF(I47<=30,1,IF(I47<=60,2,IF(I47<=90,3,IF(I47<=120,4,0)))) -> 0 | W48: 0 | X48: 44
I49: =I48*-1 -> 1322 | W49: 0 | X49: 45
W50: 0 | X50: 46
N51: 1 | W51: 0 | X51: 47
W52: 0 | X52: 48
W53: 0 | X53: 49
W54: 0 | X54: 50

Sheet >>Six_old
J1: 0 | L1: X5
I3: 1 | J3: =MAX(J4:J14) -> 4 | S3: =IF(V4=0,1,0) -> 0
D4: Max 6 | E4: 1 | I4: =IF(J4=-1,0,J4) -> 1 | J4: 1 | K4: 0 | L4: =S4 -> 0 | M4: 1 | N4: 2 | O4: 3 | P4: 4 | Q4: 5 | R4: 6 | S4: =IF(OR(M4=$V$4,N4=$V$4,O4=$V$4,P4=$V$4,Q4=$V$4,R4=$V$4),1,0) -> 0 | V4: ='>>Convertisseur_2'!J2 -> 36 | Y4: N° Sortant
E5: 4 | M5: 7 | N5: 8 | O5: 9 | P5: 10 | Q5: 11 | R5: 12 | S5: 0 | V5: =IF(W5=1,Y5,"") ->  | W5: =IF(AND(Y5<>"",Y6=""),1,0) -> 0 | X5: 1 | Y5: 27
E6: =E5+3 -> 7 | I6: =IF(J6=-1,0,J6) -> 3 | J6: 3 | K6: 0 | L6: =S5 -> 0 | M6: 13 | N6: 14 | O6: 15 | P6: 16 | Q6: 17 | R6: 18 | S6: 0 | W6: 0 | X6: 2 | Y6: 30
E7: =E6+3 -> 10 | M7: 19 | N7: 20 | O7: 21 | P7: 22 | Q7: 23 | R7: 24 | S7: 0 | W7: 0 | X7: 3 | Y7: 29
E8: 13 | I8: =IF(J8=-1,0,J8) -> 0 | J8: 0 | K8: 0 | L8: =S6 -> 0 | M8: 25 | N8: 26 | O8: 27 | P8: 28 | Q8: 29 | R8: 30 | S8: 0 | W8: 0 | X8: 4 | Y8: 24
E9: 16 | M9: 31 | N9: 32 | O9: 33 | P9: 34 | Q9: 35 | R9: 36 | S9: 1 | W9: 0 | X9: 5 | Y9: 22
E10: 19 | I10: =IF(J10=-1,0,J10) -> 2 | J10: 2 | K10: 0 | L10: =S7 -> 0 | W10: 0 | X10: 6 | Y10: 3
E11: 22 | W11: 0 | X11: 7 | Y11: 24
E12: 25 | I12: =IF(J12=-1,0,J12) -> 0 | J12: 0 | K12: 0 | L12: =S8 -> 0 | W12: 0 | X12: 8 | Y12: 24
E13: 28 | W13: 0 | X13: 9 | Y13: 34
E14: 31 | I14: =IF(J14=-1,0,J14) -> 4 | J14: 4 | K14: 0 | L14: =S9 -> 1 | W14: 0 | X14: 10 | Y14: 33
E15: 34 | W15: 0 | X15: 11 | Y15: 23
I16: =SUM(I4:I15)+1 -> 11 | W16: 0 | X16: 12 | Y16: 17
I17: 24 | K17: =SUM(K4:K15) -> 0 | O17: 49 | P17: 25 | Q17: =O17-P17 -> 24 | W17: 0 | X17: 13 | Y17: 13
I18: -13 | J18: =IF(I17<=30,1,IF(I17<=60,2,IF(I17<=90,3,IF(I17<=120,4,0)))) -> 1 | W18: 0 | X18: 14 | Y18: 8
I19: =I18*-1 -> 13 | W19: 0 | X19: 15 | Y19: 29
W20: 0 | X20: 16 | Y20: 2
W21: 0 | X21: 17 | Y21: 10
W22: 0 | X22: 18 | Y22: 17
W23: 0 | X23: 19 | Y23: 10
W24: 0 | X24: 20 | Y24: 15
W25: 0 | X25: 21 | Y25: 4
W26: 0 | X26: 22 | Y26: 28
W27: 0 | X27: 23 | Y27: 36
W28: 0 | X28: 24 | Y28: 5
W29: 0 | X29: 25 | Y29: 12
W30: 0 | X30: 26 | Y30: 1
J31: =IF(OR(J34=-1,J35=-1,J36=-1,J37=-1,J38=-1,J39=-1,J40=-1,J41=-1,J42=-1,J43=-1,J44=-1,J45=-1),1,0) -> 1 | L31: X10 | W31: 0 | X31: 27 | Y31: 15
W32: 0 | X32: 28 | Y32: 4
I33: 1 | J33: =IF(T34<=3,0,IF(T34<=6,1,IF(T34<=9,2,IF(T34<=12,3,IF(T34<=15,4,IF(T34<=18,5,0)))))) -> 1 | W33: 0 | X33: 29 | Y33: 3
E34: 1 | I34: =IF(J34=-1,0,J34) -> 2 | J34: 2 | K34: 0 | L34: =S34 -> 0 | M34: 1 | N34: 2 | O34: 3 | S34: =IF(OR(M34=$V$4,N34=$V$4,O34=$V$4),1,0) -> 0 | T34: 5 | W34: 0 | X34: 30 | Y34: 30
E35: 4 | I35: =IF(J35=-1,0,J35) -> 0 | J35: 0 | K35: 0 | L35: 0 | M35: 4 | N35: 5 | O35: 6 | S35: 0 | W35: 0 | X35: 31 | Y35: 19
E36: =E35+3 -> 7 | I36: 0 | J36: 0 | K36: 0 | L36: 0 | M36: 7 | N36: 8 | O36: 9 | S36: 0 | W36: 0 | X36: 32 | Y36: 30
E37: =E36+3 -> 10 | I37: =IF(J37=-1,0,J37) -> 0 | J37: 0 | K37: 0 | L37: 0 | M37: 10 | N37: 11 | O37: 12 | S37: 0 | V37: =IF(W37=1,Y37,"") ->  | W37: =IF(AND(Y37<>"",Y38=""),1,0) -> 0 | X37: 33 | Y37: 19
E38: 13 | I38: 1 | J38: 1 | K38: 0 | L38: 0 | M38: 13 | N38: 14 | O38: 15 | S38: 0 | W38: 0 | X38: 34 | Y38: 16
E39: 16 | I39: 0 | J39: 0 | K39: 0 | L39: 0 | M39: 16 | N39: 17 | O39: 18 | S39: 0 | V39: 3 | W39: 1 | X39: 35 | Y39: 3
E40: 19 | I40: 0 | J40: 0 | K40: 0 | L40: 0 | M40: 19 | N40: 20 | O40: 21 | S40: 0 | W40: 0 | X40: 36
E41: 22 | I41: 2 | J41: 2 | K41: 0 | L41: 0 | M41: 22 | N41: 23 | O41: 24 | S41: 0 | W41: 0 | X41: 37
E42: 25 | I42: 0 | J42: 0 | K42: 0 | L42: 0 | M42: 25 | N42: 26 | O42: 27 | S42: 0 | W42: 0 | X42: 38
E43: 28 | I43: 0 | J43: 0 | K43: 0 | L43: 0 | M43: 28 | N43: 29 | O43: 30 | S43: 0 | W43: 0 | X43: 39
E44: 31 | I44: 0 | J44: 0 | K44: 0 | L44: 0 | M44: 31 | N44: 32 | O44: 33 | S44: 0 | W44: 0 | X44: 40
E45: 34 | I45: 0 | J45: -1 | K45: 11 | L45: 1 | M45: 34 | N45: 35 | O45: 36 | S45: 1 | W45: 0 | X45: 41
I46: =SUM(I34:I45)+1 -> 6 | W46: 0 | X46: 42
I47: 23 | K47: =SUM(K34:K45) -> 11 | W47: 0 | X47: 43
I48: -17 | J48: =IF(I47<=30,1,IF(I47<=60,2,IF(I47<=90,3,IF(I47<=120,4,0)))) -> 1 | W48: 0 | X48: 44
I49: =I48*-1 -> 17 | W49: 0 | X49: 45
W50: 0 | X50: 46
W51: 0 | X51: 47
W52: 0 | X52: 48
W53: 0 | X53: 49
W54: 0 | X54: 50

Sheet >>>>Test
A1: 6
A2: 1
A3: 25
A4: 11
A5: 10
A6: 3
A7: 30
A8: 28 | B8: pas de numéros

Sheet >>Sel_Group
A1: 11 | B1: 12 | C1: 25 | D1: 27

Sheet >>Group
D1: N°
A2: ='>>Input'!Y2 -> 36 | C2: =SUM(F2:F5) -> 0 | D2: =IF(AND(C2=3,F2=0),E2,"") ->  | E2: 1 | G2: =IF($A$2=E2,1,0) -> 0
D3: =IF(AND(C2=3,F3=0),E3,"") ->  | E3: 10 | G3: 0
D4: =IF(AND(C2=3,F4=0),E4,"") ->  | E4: 19 | G4: 0
D5: =IF(AND(C2=3,F5=0),E5,"") ->  | E5: 28 | G5: 0
C6: =SUM(F6:F9) -> 0 | D6: =IF(AND(C6=3,F6=0),E6,"") ->  | E6: 2 | G6: 0
D7: =IF(AND(C6=3,F7=0),E7,"") ->  | E7: 11 | G7: 0
D8: =IF(AND(C6=3,F8=0),E8,"") ->  | E8: 20 | G8: 0
D9: =IF(AND(C6=3,F9=0),E9,"") ->  | E9: 29 | G9: 0
C10: =SUM(F10:F13) -> 0 | D10: =IF(AND(C10=3,F10=0),E10,"") ->  | E10: 3 | G10: 0
D11: =IF(AND(C10=3,F11=0),E11,"") ->  | E11: 12 | G11: 0
D12: =IF(AND(C10=3,F12=0),E12,"") ->  | E12: 21 | G12: 0
D13: =IF(AND(C10=3,F13=0),E13,"") ->  | E13: 30 | G13: 0
C14: =SUM(F14:F17) -> 0 | D14: =IF(AND(C14=3,F14=0),E14,"") ->  | E14: 4 | G14: 0
D15: =IF(AND(C14=3,F15=0),E15,"") ->  | E15: 13 | G15: 0
D16: =IF(AND(C14=3,F16=0),E16,"") ->  | E16: 22 | G16: 0
D17: =IF(AND(C14=3,F17=0),E17,"") ->  | E17: 31 | G17: 0
C18: =SUM(F18:F21) -> 0 | D18: =IF(AND(C18=3,F18=0),E18,"") ->  | E18: 5 | G18: 0
D19: =IF(AND(C18=3,F19=0),E19,"") ->  | E19: 14 | G19: 0
D20: =IF(AND(C18=3,F20=0),E20,"") ->  | E20: 23 | G20: 0
D21: =IF(AND(C18=3,F21=0),E21,"") ->  | E21: 32 | G21: 0
C22: =SUM(F22:F25) -> 0 | D22: =IF(AND(C22=3,F22=0),E22,"") ->  | E22: 6 | G22: 0
D23: =IF(AND(C22=3,F23=0),E23,"") ->  | E23: 15 | G23: 0
D24: =IF(AND(C22=3,F24=0),E24,"") ->  | E24: 24 | G24: 0
D25: =IF(AND(C22=3,F25=0),E25,"") ->  | E25: 33 | G25: 0
C26: =SUM(F26:F29) -> 0 | D26: =IF(AND(C26=3,F26=0),E26,"") ->  | E26: 7 | G26: 0
D27: =IF(AND(C26=3,F27=0),E27,"") ->  | E27: 16 | G27: 0
D28: =IF(AND(C26=3,F28=0),E28,"") ->  | E28: 25 | G28: 0
D29: =IF(AND(C26=3,F29=0),E29,"") ->  | E29: 34 | G29: 0
C30: =SUM(F30:F33) -> 0 | D30: =IF(AND(C30=3,F30=0),E30,"") ->  | E30: 8 | G30: 0
D31: =IF(AND(C30=3,F31=0),E31,"") ->  | E31: 17 | G31: 0
D32: =IF(AND(C30=3,F32=0),E32,"") ->  | E32: 26 | G32: 0
D33: =IF(AND(C30=3,F33=0),E33,"") ->  | E33: 35 | G33: 0
C34: =SUM(F34:F37) -> 0 | D34: =IF(AND(C34=3,F34=0),E34,"") ->  | E34: 9 | G34: 0
D35: =IF(AND(C34=3,F35=0),E35,"") ->  | E35: 18 | G35: 0
D36: =IF(AND(C34=3,F36=0),E36,"") ->  | E36: 27 | G36: 0
D37: =IF(AND(C34=3,F37=0),E37,"") ->  | E37: 36 | G37: 1
C38: =IF(OR(C2=3,C6=3,C10=3,C14=3,C18=3,C22=3,C26=3,C30=3,C34=3),1,0) -> 0
C39: =IF(OR(C2=4,C6=4,C10=4,C14=4,C18=4,C22=4,C26=4,C30=4,C34=4),1,0) -> 0

Sheet >>Group_2
D1: N°
A2: ='>>Input'!Y2 -> 36 | C2: =SUM(F2:F5) -> 0 | D2: =IF(AND(C2>=2,F2=0),E2,"") ->  | E2: 1 | G2: =IF($A$2=E2,1,0) -> 0
D3: =IF(AND(C2>=2,F3=0),E3,"") ->  | E3: 10 | G3: 0
D4: =IF(AND(C2>=2,F4=0),E4,"") ->  | E4: 19 | G4: 0
D5: =IF(AND(C2>=2,F5=0),E5,"") ->  | E5: 28 | G5: =IF($A$2=E5,1,0) -> 0
C6: =SUM(F6:F9) -> 0 | D6: =IF(AND(C6>=2,F6=0),E6,"") ->  | E6: 2 | G6: 0
D7: =IF(AND(C6>=2,F7=0),E7,"") ->  | E7: 11 | G7: 0
D8: =IF(AND(C6>=2,F8=0),E8,"") ->  | E8: 20 | G8: 0
D9: =IF(AND(C6>=2,F9=0),E9,"") ->  | E9: 29 | G9: 0
C10: =SUM(F10:F13) -> 0 | D10: =IF(AND(C10>=2,F10=0),E10,"") ->  | E10: 3 | G10: 0
D11: =IF(AND(C10>=2,F11=0),E11,"") ->  | E11: 12 | G11: 0
D12: =IF(AND(C10>=2,F12=0),E12,"") ->  | E12: 21 | G12: 0
D13: =IF(AND(C10>=2,F13=0),E13,"") ->  | E13: 30 | G13: 0
C14: =SUM(F14:F17) -> 0 | D14: =IF(AND(C14>=2,F14=0),E14,"") ->  | E14: 4 | G14: 0
D15: =IF(AND(C14>=2,F15=0),E15,"") ->  | E15: 13 | G15: 0
D16: =IF(AND(C14>=2,F16=0),E16,"") ->  | E16: 22 | G16: 0
D17: =IF(AND(C14>=2,F17=0),E17,"") ->  | E17: 31 | G17: 0
C18: =SUM(F18:F21) -> 0 | D18: =IF(AND(C18>=2,F18=0),E18,"") ->  | E18: 5 | G18: 0
D19: =IF(AND(C18>=2,F19=0),E19,"") ->  | E19: 14 | G19: 0
D20: =IF(AND(C18>=2,F20=0),E20,"") ->  | E20: 23 | G20: 0
D21: =IF(AND(C18>=2,F21=0),E21,"") ->  | E21: 32 | G21: 0
C22: =SUM(F22:F25) -> 0 | D22: =IF(AND(C22>=2,F22=0),E22,"") ->  | E22: 6 | G22: 0
D23: =IF(AND(C22>=2,F23=0),E23,"") ->  | E23: 15 | G23: 0
D24: =IF(AND(C22>=2,F24=0),E24,"") ->  | E24: 24 | G24: 0
D25: =IF(AND(C22>=2,F25=0),E25,"") ->  | E25: 33 | G25: 0
C26: =SUM(F26:F29) -> 0 | D26: =IF(AND(C26>=2,F26=0),E26,"") ->  | E26: 7 | G26: 0
D27: =IF(AND(C26>=2,F27=0),E27,"") ->  | E27: 16 | G27: 0
D28: =IF(AND(C26>=2,F28=0),E28,"") ->  | E28: 25 | G28: 0
D29: =IF(AND(C26>=2,F29=0),E29,"") ->  | E29: 34 | G29: 0
C30: =SUM(F30:F33) -> 0 | D30: =IF(AND(C30>=2,F30=0),E30,"") ->  | E30: 8 | G30: 0
D31: =IF(AND(C30>=2,F31=0),E31,"") ->  | E31: 17 | G31: 0
D32: =IF(AND(C30>=2,F32=0),E32,"") ->  | E32: 26 | G32: 0
D33: =IF(AND(C30>=2,F33=0),E33,"") ->  | E33: 35 | G33: 0
C34: =SUM(F34:F37) -> 0 | D34: =IF(AND(C34>=2,F34=0),E34,"") ->  | E34: 9 | G34: 0
D35: =IF(AND(C34>=2,F35=0),E35,"") ->  | E35: 18 | G35: 0
D36: =IF(AND(C34>=2,F36=0),E36,"") ->  | E36: 27 | G36: 0
D37: =IF(AND(C34>=2,F37=0),E37,"") ->  | E37: 36 | G37: 1
C38: =IF(OR(C2=3,C6=3,C10=3,C14=3,C18=3,C22=3,C26=3,C30=3,C34=3),1,0) -> 0
C39: =IF(OR(C2=4,C6=4,C10=4,C14=4,C18=4,C22=4,C26=4,C30=4,C34=4),1,0) -> 0

Sheet >>Sel_Group_2
A1: 19 | B1: 28 | C1: 11 | D1: 12 | E1: 25 | F1: 27
A2: 1 | B2: 2 | C2: 3 | D2: 4 | E2: 5 | F2: 6

Sheet >>Trier_group
A1: Classement | B1: N° | C1: Classement 2
A2: 1 | B2: 5 | C2: 5
A3: 2 | B3: 5
A4: 3 | B4: 60 | C4: 1
A5: 4 | B5: 21 | C5: 4
A6: 5 | B6: 33 | C6: 3
A7: 6 | B7: 55 | C7: 2
A8: 7 | B8: 0
A9: 8 | B9: 0
A10: 9 | B10: 0
A11: 10 | B11: 0
A12: 11 | B12: 0
A13: 12 | B13: 0
A14: 13 | B14: 0
A15: 14 | B15: 0
A16: 15 | B16: 0
A17: 16 | B17: 0
A18: 17 | B18: 0
A19: 18 | B19: 0

Sheet >>Trie_Jo3
A2: 4 | B2: 23 | C2: 4
A3: 5 | B3: 22
A4: 1 | B4: 20 | C4: 1
A5: 2 | B5: 20 | C5: 2
A6: 6 | B6: 0 | C6: 5
A7: 7 | B7: 0
A8: 8 | B8: 0
A9: 9 | B9: 0
A10: 10 | B10: 0
A11: 11 | B11: 0
A12: 12 | B12: 0
A13: 13 | B13: 0
A14: 14 | B14: 0
A15: 15 | B15: 0
A16: 16 | B16: 0
A17: 17 | B17: 0
A18: 18 | B18: 0

Sheet >>Jo_3
D1: N°
A2: ='>>Input'!Y2 -> 36 | C2: =IF(OR($A$2=H2,$A$2=H3),1,0) -> 0 | E2: =IF($A$2=F2,1,0) -> 0 | F2: 1 | G2: 8 | H2: =IF(G2="","",IF(AND(D2=1,D3=1),G2,"")) ->  | I2: =IF(OR($A$2=H2,$A$2=H3),1,0) -> 0
E3: =IF($A$2=F3,1,0) -> 0 | F3: 3 | H3: =IF(G3="","",IF(AND(D2=1,D3=1),G3,"")) -> 
C4: =IF(OR($A$2=H4,$A$2=H5),1,0) -> 0 | E4: 0 | F4: 4 | G4: 11 | H4: =IF(G4="","",IF(AND(D4=1,D5=1),G4,"")) ->  | I4: =IF(OR($A$2=H4,$A$2=H5),1,0) -> 0
E5: 0 | F5: 6 | H5: =IF(G5="","",IF(AND(D4=1,D5=1),G5,"")) -> 
C6: =IF(OR($A$2=H6,$A$2=H7),1,0) -> 0 | E6: 0 | F6: 7 | G6: 2 | H6: =IF(G6="","",IF(AND(D6=1,D7=1),G6,"")) ->  | I6: =IF(OR($A$2=H6,$A$2=H7),1,0) -> 0
E7: 0 | F7: 9 | G7: 14 | H7: =IF(G7="","",IF(AND(D6=1,D7=1),G7,"")) -> 
C8: =IF(OR($A$2=H8,$A$2=H9),1,0) -> 0 | E8: 0 | F8: 10 | G8: 5 | H8: =IF(G8="","",IF(AND(D8=1,D9=1),G8,"")) ->  | I8: =IF(OR($A$2=H8,$A$2=H9),1,0) -> 0
E9: 0 | F9: 12 | G9: 17 | H9: =IF(G9="","",IF(AND(D8=1,D9=1),G9,"")) -> 
C10: =IF(OR($A$2=H10,$A$2=H11),1,0) -> 0 | E10: 0 | F10: 13 | G10: 8 | H10: =IF(G10="","",IF(AND(D10=1,D11=1),G10,"")) ->  | I10: =IF(OR($A$2=H10,$A$2=H11),1,0) -> 0
E11: 0 | F11: 15 | G11: 20 | H11: =IF(G11="","",IF(AND(D10=1,D11=1),G11,"")) -> 
C12: =IF(OR($A$2=H12,$A$2=H13),1,0) -> 0 | E12: 0 | F12: 16 | G12: 23 | H12: =IF(G12="","",IF(AND(D12=1,D13=1),G12,"")) ->  | I12: =IF(OR($A$2=H12,$A$2=H13),1,0) -> 0
E13: 0 | F13: 18 | G13: 11 | H13: =IF(G13="","",IF(AND(D12=1,D13=1),G13,"")) -> 
C14: =IF(OR($A$2=H14,$A$2=H15),1,0) -> 0 | E14: =IF($A$2=F14,1,0) -> 0 | F14: 19 | G14: 26 | H14: =IF(G14="","",IF(AND(D14=1,D15=1),G14,"")) ->  | I14: =IF(OR($A$2=H14,$A$2=H15),1,0) -> 0
E15: 0 | F15: 21 | G15: 14 | H15: =IF(G15="","",IF(AND(D14=1,D15=1),G15,"")) -> 
C16: =IF(OR($A$2=H16,$A$2=H17),1,0) -> 0 | E16: 0 | F16: 22 | G16: 17 | H16: =IF(G16="","",IF(AND(D16=1,D17=1),G16,"")) ->  | I16: =IF(OR($A$2=H16,$A$2=H17),1,0) -> 0
E17: 0 | F17: 24 | G17: 29 | H17: =IF(G17="","",IF(AND(D16=1,D17=1),G17,"")) -> 
C18: =IF(OR($A$2=H18,$A$2=H19),1,0) -> 0 | E18: 0 | F18: 25 | G18: 32 | H18: =IF(G18="","",IF(AND(D18=1,D19=1),G18,"")) ->  | I18: =IF(OR($A$2=H18,$A$2=H19),1,0) -> 0
E19: 0 | F19: 27 | G19: 20 | H19: =IF(G19="","",IF(AND(D18=1,D19=1),G19,"")) -> 
C20: =IF(OR($A$2=H20,$A$2=H21),1,0) -> 0 | E20: 0 | F20: 28 | G20: 23 | H20: =IF(G20="","",IF(AND(D20=1,D21=1),G20,"")) ->  | I20: =IF(OR($A$2=H20,$A$2=H21),1,0) -> 0
E21: 0 | F21: 30 | G21: 35 | H21: =IF(G21="","",IF(AND(D20=1,D21=1),G21,"")) -> 
C22: =IF(OR($A$2=H22,$A$2=H23),1,0) -> 0 | E22: 0 | F22: 31 | G22: 26 | H22: =IF(G22="","",IF(AND(D22=1,D23=1),G22,"")) ->  | I22: =IF(OR($A$2=H22,$A$2=H23),1,0) -> 0
E23: 0 | F23: 33 | H23: =IF(G23="","",IF(AND(D22=1,D23=1),G23,"")) -> 
C24: =IF(OR($A$2=H24,$A$2=H25),1,0) -> 0 | E24: 0 | F24: 34 | G24: 29 | H24: =IF(G24="","",IF(AND(D24=1,D25=1),G24,"")) ->  | I24: =IF(OR($A$2=H24,$A$2=H25),1,0) -> 0
E25: 1 | F25: 36 | H25: =IF(G25="","",IF(AND(D24=1,D25=1),G25,"")) -> 
AA57: 0
AA63: 1

Sheet >>Trie_Jo3_2
A1: Classement | B1: N° | C1: Classement 2
A2: 1 | B2: 0 | C2: 1
A3: 2 | B3: 0 | C3: 2
A4: 3 | B4: 0 | C4: 3
A5: 4 | B5: 0 | C5: 4
A6: 5 | B6: 0 | C6: 5
A7: 6 | B7: 0
A8: 7 | B8: 0
A9: 8 | B9: 0
A10: 9 | B10: 0
A11: 10 | B11: 0
A12: 11 | B12: 0
A13: 12 | B13: 0
A14: 13 | B14: 0
A15: 14 | B15: 0
A16: 15 | B16: 0
A17: 16 | B17: 0
A18: 17 | B18: 0
A19: 18 | B19: 0

Sheet >>Jonathan
A1: 0 | B1: 10 | D1: 7 | E1: 7 | G1: 3 | H1: 15 | J1: 26 | K1: 32
A2: 1 | B2: 19 | D2: 11 | E2: 11 | G2: 16 | H2: 14 | J2: 20 | K2: 33
A3: 2 | B3: 20 | D3: 9 | E3: 9 | G3: 4 | H3: 17 | J3: 21 | K3: 25
A4: 3 | B4: 30 | D4: 15 | E4: 15 | G4: 0 | H4: 12 | J4: 35 | K4: 26
A5: 4 | B5: 16 | D5: 5 | E5: 5 | G5: 15 | H5: 2 | J5: 19 | K5: 21
A6: 5 | B6: 26 | D6: 2 | E6: 2 | G6: 16 | H6: 23 | J6: 10 | K6: 24
A7: 6 | B7: 22 | D7: 28 | E7: 28 | G7: 17 | H7: 13 | J7: 34 | K7: 27
A8: 7 | B8: 27 | D8: 6 | E8: 6 | G8: 18 | H8: 12 | J8: 29 | K8: 28
A9: 8 | B9: 12 | D9: 13 | E9: 13 | G9: 11 | H9: 10 | J9: 30 | K9: 23
A10: 9 | B10: 25 | D10: 18 | E10: 18 | G10: 18 | H10: 14 | J10: 31 | K10: 22
A11: 10 | B11: 3 | D11: 8 | E11: 8 | G11: 8 | H11: 24 | J11: 23 | K11: 5
A12: 11 | B12: 7 | D12: 14 | E12: 14 | G12: 8 | H12: 13 | J12: 36 | K12: 30
A13: 12 | B13: 36 | D13: 0 | E13: 0 | G13: 7 | H13: 3 | J13: 28 | K13: 35
A14: 13 | B14: 18 | D14: 35 | E14: 35 | G14: 6 | H14: 11 | J14: 27 | K14: 36
A15: 14 | B15: 21 | D15: 17 | E15: 17 | G15: 1 | H15: 9 | J15: 20 | K15: 31
A16: 15 | B16: 24 | D16: 1 | E16: 1 | G16: 0 | H16: 4 | J16: 32 | K16: 19
A17: 16 | B17: 32 | D17: 4 | E17: 4 | G17: 1 | H17: 5 | J17: 24 | K17: 33
A18: 17 | B18: 31 | D18: 16 | E18: 16 | G18: 2 | H18: 6 | J18: 34 | K18: 25
A19: 18 | B19: 34 | D19: 34 | E19: 34 | G19: 7 | H19: 9 | J19: 22 | K19: 29
A20: 19 | B20: 16 | D20: 31 | E20: 31 | G20: 32 | H20: 21 | J20: 15 | K20: 4
A21: 20 | B21: 4 | D21: 32 | E21: 32 | G21: 33 | H21: 31 | J21: 1 | K21: 14
A22: 21 | B22: 1 | D22: 24 | E22: 24 | G22: 19 | H22: 25 | J22: 4 | K22: 2
A23: 22 | B23: 17 | D23: 21 | E23: 21 | G23: 31 | H23: 29 | J23: 9 | K23: 18
A24: 23 | B24: 35 | D24: 18 | E24: 18 | G24: 30 | H24: 5 | J24: 8 | K24: 10
A25: 24 | B25: 0 | D25: 36 | E25: 36 | G25: 33 | H25: 10 | J25: 5 | K25: 16
A26: 25 | B26: 14 | D26: 7 | E26: 7 | G26: 21 | H26: 34 | J26: 2 | K26: 17
A27: 26 | B27: 8 | D27: 3 | E27: 3 | G27: 32 | H27: 35 | J27: 0 | K27: 3
A28: 27 | B28: 18 | D28: 25 | E28: 25 | G28: 34 | H28: 36 | J28: 6 | K28: 13
A29: 28 | B29: 13 | D29: 12 | E29: 12 | G29: 29 | H29: 35 | J29: 7 | K29: 12
A30: 29 | B30: 6 | D30: 27 | E30: 27 | G30: 22 | H30: 28 | J30: 18 | K30: 7
A31: 30 | B31: 28 | D31: 22 | E31: 22 | G31: 36 | H31: 23 | J31: 11 | K31: 8
A32: 31 | B32: 2 | D32: 26 | E32: 26 | G32: 20 | H32: 22 | J32: 14 | K32: 9
A33: 32 | B33: 5 | D33: 16 | E33: 16 | G33: 26 | H33: 19 | J33: 0 | K33: 15
A34: 33 | B34: 15 | D34: 30 | E34: 30 | G34: 24 | H34: 20 | J34: 1 | K34: 16
A35: 34 | B35: 9 | D35: 20 | E35: 20 | G35: 25 | H35: 27 | J35: 17 | K35: 6
A36: 35 | B36: 11 | D36: 19 | E36: 19 | G36: 28 | H36: 26 | J36: 12 | K36: 3
A37: 36 | B37: 7 | D37: 10 | E37: 10 | G37: 27 | H37: 30 | J37: 11 | K37: 13

Sheet >>Input
A1: =NOW() -> 2024-12-01T16:40:28.480 | B1: 3 | D1: 1 | E1: 2 | F1: Jeux | I1: =AR19 -> 0 | K1: =AR32 -> 0 | Q1: 60 | FI1: =ABS(FI8-FJ8) -> 0.5 | FJ1: =ABS(FJ8-FI8) -> 0.5 | FK1: =ABS(FK8-FI8) -> 0 | FR1: =ABS(FR8-FS8) -> 0.5 | FS1: =ABS(FS8-FR8) -> 0.5 | FT1: =ABS(FT8-FR8) -> 0.5
A2: =ROUND(A1,0) -> 45628 | E2: 1900-01-02 | I2: 1 | K2: 1 | M2: 1 | O2: 1 | S2: 4 | V2: N° Sortant | Y2: ='>>Convertisseur_2'!F2 -> 36 | AB2: 46 | AG2: 46 | BO2: =IF(AT2<>AT1,1,BO1+1) -> 1 | FI2: =ABS(FI8-FK8) -> 0 | FJ2: =ABS(FJ8-FK8) -> 0.5 | FK2: =ABS(FK8-FJ8) -> 0.5 | FR2: =ABS(FR8-FT8) -> 0.5 | FS2: =ABS(FS8-FT8) -> 0 | FT2: =ABS(FT8-FS8) -> 0
A3: =A2+B1 -> 45631 | F3: 227539 | I3: 1 | K3: 1 | M3: 1 | O3: 1 | BL3: =IF(OR(BP3=1,CB3=1,DR3=1),1,0) -> 0 | BP3: =IF(AND(BQ3="0101",BR3=4),1,IF(AND(BS3="0101",BR3=4),1,0)) -> 0 | BQ3: =CONCATENATE(BQ10,BQ11,BQ12,BQ13) -> 1000 | BR3: =SUM(BR10:BR13) -> 4 | BS3: =CONCATENATE(BS10,BS11,BS12,BS13) -> 0100 | CB3: =IF(AND(CC3="0101",CD3=4),1,IF(AND(CE3="0101",CD3=4),1,0)) -> 0 | CC3: =CONCATENATE(CC10,CC11,CC12,CC13) -> 1100 | CD3: =SUM(CD10:CD13) -> 4 | CE3: =CONCATENATE(CE10,CE11,CE12,CE13) -> 0000 | DR3: =IF(AND(DS3="0101",DT3=0),1,IF(AND(DU3="0101",DT3=0),1,0)) -> 0 | DS3: =CONCATENATE(DS10,DS11,DS12,DS13) -> 0100 | DT3: =SUM(DT10:DT13) -> 2 | DU3: =CONCATENATE(DU10,DU11,DU12,DU13) -> 1000
C4: =CONCATENATE(B4,A4) ->  | D4: N° Entrant | E4: =C4 ->  | F4: Mode normal | O4: =IF(AND(I47="",O3=1),"",IF(N4<0.5,"",IF(O5<>"",O5,IF(Z49="","",IF(Z49>AA49,"I",""))))) ->  | Q4: =GE11 -> 2 | T4: =Q4 -> 2 | U4: =GE11 -> 2 | X4: =IF(Y4="","",AVERAGE(Y4:AF4)) -> 1.5 | Y4: 2 | Z4: 1 | AR4: R | AS4: N | BQ4: =AVERAGE(AF4:BP4) ->  | FI4: =IF(FI8=FL8,FL7,IF(FI8=FM8,FM7,IF(FI8=FO8,FO7,0))) -> 3 | FJ4: =IF(FJ8=FL8,FL7,IF(FJ8=FM8,FM7,IF(FJ8=FO8,FO7,0))) -> 1 | FK4: =IF(FK8=FL8,FL7,IF(FK8=FM8,FM7,IF(FK8=FO8,FO7,0))) -> 3 | FR4: =IF(FR8=FU8,FU7,IF(FR8=FV8,FV7,IF(FR8=FX8,FX7,0))) -> 1 | FS4: =IF(FS8=FU8,FU7,IF(FS8=FV8,FV7,IF(FS8=FX8,FX7,0))) -> 3 | FT4: =IF(FT8=FU8,FU7,IF(FT8=FV8,FV7,IF(FT8=FX8,FX7,0))) -> 3
F5: Mise $ | J5: ='>>Show'!W3 -> 6 | N5: ='>>Show'!AA3 -> 5 | Y5: 1 | Z5: 2 | AA5: 3 | AB5: 4 | AC5: 5 | AD5: 6 | AE5: 7 | AF5: 8 | AH5: =IF(AH15="R",1,IF(AH15="N",2,0)) -> 1 | AI5: =IF(AI15="R",1,IF(AI15="N",2,0)) -> 2 | AJ5: 0 | AK5: 0 | AL5: 0 | AM5: 0 | AN5: 0 | AO5: 0 | AP5: 0 | AQ5: =LOOKUP(AQ21,'>>BD_R_N'!$D$1:$D$37,'>>BD_R_N'!$B$1:$B$37) -> 0 | AR5: =SUMIF(AH5:AP5,1,AH5:AP5)/1 -> 1 | AS5: =SUMIF(AH5:AP5,2,AH5:AP5)/2 -> 1 | AT5: =SUM(AR5:AS5) -> 2 | BQ5: =SUM(BQ10:BQ12) -> 1 | BS5: =SUM(BS10:BS12) -> 1
E6: 1 | I6: =BQ8 -> 0.08333333333 | K6: =BS8 -> 0.08333333333 | P6: =IF(AND(S6=1,R6=1,Q6=1),1,0) -> 0 | T6: =SUM(Q6:S6) -> 0 | X6: =SUM(U6:W6) -> 0 | AH6: =IF(AH16="R",1,IF(AH16="N",2,0)) -> 1 | AI6: =IF(AI16="R",1,IF(AI16="N",2,0)) -> 2 | AJ6: 0 | AK6: 0 | AL6: 0 | AM6: 0 | AN6: 0 | AO6: 0 | AP6: 0 | AR6: =SUMIF(AH6:AP6,1,AH6:AP6)/1 -> 1 | AS6: =SUMIF(AH6:AP6,2,AH6:AP6)/2 -> 1 | AT6: =SUM(AR6:AS6) -> 2 | AV6: 1 | BQ6: =SUM(BQ10:BQ10) -> 1 | BS6: =SUM(BS10:BS10) -> 0 | CO6: =SUM(CO10:CO17) -> 1 | CP6: =SUM(CP10:CP14) -> 0 | CQ6: =SUM(CQ10:CQ17) -> 1 | CR6: =IF(CO6=0,0,IF(CP6=0,0,IF(CQ6=0,0,1))) -> 0 | DE6: =SUMIF(DE10:DE15,0,DE10:DE15) -> 0
E7: 1 | F7: 1 | H7: 0 | I7: 1 | J7: ='>>Show'!Y3 -> 1 | K7: 2 | M7: 1 | N7: ='>>Show'!AC3 -> 1 | O7: 2 | P7: 0 | Q7: =FI7 -> 0 | R7: 1 | S7: 0 | U7: =FR7 -> 1 | V7: 0 | W7: 0 | Y7: 1 | AA7: 3 | AS7: 1 | AV7: 2 | BQ7: =SUM(BQ10:BQ15) -> 1 | BS7: =SUM(BS10:BS15) -> 1 | BV7: =IF(BV10=0,"Normal","Inverse") -> Normal | CC7: =SUM(CC10:CC15) -> 2 | CE7: =SUM(CE10:CE15) -> 0 | CG7: =IF(CH10=0,"Normal","Inverse") -> Normal | CO7: =SUM(CO10:CO12) -> 1 | CP7: =SUM(CP10:CP12) -> 0 | CQ7: =SUM(CQ10:CQ12) -> 1 | CR7: =IF(T6<>6,0,IF(AND(CO7<>0,CP7<>0,CQ7<>0),1,0)) -> 0 | DD7: =SUM(DD10:DD12) -> 0 | DE7: =SUM(DE10:DE12) -> 1 | DF7: =SUM(DF10:DF12) -> 1 | DG7: =IF(X6<>6,0,IF(AND(DD7<>0,DE7<>0,DF7<>0),1,0)) -> 0 | DS7: =SUM(DS10:DS15) -> 1 | DU7: =SUM(DU10:DU15) -> 1 | DW7: =IF(DX10=0,"Normal","Inverse") -> Normal | FI7: =IF(AND(FJ8>=FI8,FK8>=FI8,FP8>0.09),1,IF(AND(FJ8>=FI8,FK8>=FI8,FP8<0.09),1,0)) -> 0 | FJ7: =IF(AND(FJ8<=FI8,FJ8<=FK8,FP8>0.09),2,IF(AND(FJ8<=FI8,FJ8<=FK8,FP8<0.09),1,0)) -> 1 | FK7: =IF(AND(FK8<=FJ8,FK8<=FI8,FP8>0.09),2,IF(AND(FK8<=FJ8,FK8<=FI8,FP8<0.09),1,0)) -> 0 | FL7: 1 | FM7: 3 | FO7: 2 | FR7: =IF(AND(FS8>=FR8,FT8>=FR8,FY8>0.09),1,IF(AND(FS8>=FR8,FT8>=FR8,FY8<0.09),1,0)) -> 1 | FS7: =IF(AND(FS8<=FR8,FS8<=FT8,FY8>0.09),2,IF(AND(FS8<=FR8,FS8<=FT8,FY8<0.09),1,0)) -> 0 | FT7: =IF(AND(FT8<=FS8,FT8<=FR8,FY8>0.09),2,IF(AND(FT8<=FS8,FT8<=FR8,FY8<0.09),1,0)) -> 0 | FU7: 1 | FV7: 3 | FX7: 2
C8: N | E8: 1 | F8: 1 | H8: 0 | I8: ='>>123'!B5 -> 1 | J8: SIZ | K8: ='>>123'!C5 -> 2 | M8: ='>>123'!B18 -> 1 | N8: TRA | O8: ='>>123'!C18 -> 2 | P8: =IF(AND(Q6<>R6,Q6<>S6,R6<>S6),1,0) -> 0 | Q8: =FI8 -> 0.5 | R8: 0 | S8: 0.5 | T8: =IF(AND(U6<>V6,U6<>W6,V6<>W6),1,0) -> 0 | U8: =FR8 -> 0 | V8: 0.5 | W8: 0.5 | Y8: ='>>123'!B31 -> 0 | Z8: =IF(OR(Z10=0,Z11=0,Z12=0,Z13=0,Z14=0,Z15=0,Z16=0,Z17=0,Z18=0),1,0) -> 1 | AA8: ='>>123'!C31 -> 3 | AD8: =I8+K8+M8+O8+Y8+AA8 -> 9 | AF8: =IF(AD8<36,1,IF(AD8<72,2,IF(AD8<108,3,IF(AD8<144,4,5)))) -> 1 | AV8: 3 | BQ8: =(BQ9*100/12)/100 -> 0.08333333333 | BR8: =SUM(BR10:BR19) -> 10 | BS8: =(BS9*100/12)/100 -> 0.08333333333 | CL8: Douze | DA8: Coll | DE8: =SUM(DE10:DE14) -> 1 | DQ8: 1_18 | EK8: Identifiant | EL8: Compteur | FG8: =IF(FH8<=37,FH8,37) -> 2 | FH8: =E1 -> 2 | FI8: =(FI9*100/FG8)/100 -> 0.5 | FJ8: =(FJ9*100/FG8)/100 -> 0 | FK8: =(FK9*100/FG8)/100 -> 0.5 | FL8: =MIN(FI8:FK8) -> 0 | FM8: =MAX(FI8:FK8) -> 0.5 | FN8: =ABS(FL8-FM8) -> 0.5 | FO8: =IF(AND(FI8<>FL8,FI8<>FM8),FI8,IF(AND(FJ8<>FL8,FJ8<>FM8),FJ8,IF(AND(FK8<>FL8,FK8<>FM8),FK8,0))) -> 0 | FP8: =IF(FO8=0,0,ABS(FL8-FO8)) -> 0 | FR8: =(FR9*100/FG8)/100 -> 0 | FS8: =(FS9*100/FG8)/100 -> 0.5 | FT8: =(FT9*100/FG8)/100 -> 0.5 | FU8: =MIN(FR8:FT8) -> 0 | FV8: =MAX(FR8:FT8) -> 0.5 | FW8: =ABS(FU8-FV8) -> 0.5 | FX8: =IF(AND(FR8<>FU8,FR8<>FV8),FR8,IF(AND(FS8<>FU8,FS8<>FV8),FS8,IF(AND(FT8<>FU8,FT8<>FV8),FT8,0))) -> 0 | FY8: =IF(FX8=0,0,ABS(FU8-FX8)) -> 0
A9: 0 | B9: 0 | C9: 0 | D9: =IF(E2=14,1,IF(AND(#REF!=1,#REF!=0),1,IF(#REF!=1,E9,IF(#REF!="STOP",1,IF($J$10=0,E9*2,IF(AND(A9="R",$I$10="R"),1,IF(AND(C9="N",$K$10="N"),1,E9*2))))))) ->  | I9: R&N | M9: P&I | P9: =IF(OR(P8=1,T8=1),1,0) -> 0 | Q9: Douze | U9: Coll | Y9: 1_18_36 | AB9: =IF(R12=0,0,IF(V12=0,0,IF(AND(V12<>"",W11<>"",V44<5,W10="",V10=""),1,IF(AND(V12<>"",U11<>"",V44<5,U10="",V10=""),1,IF(AND(R12<>"",S11<>"",R44<5,S10="",R10=""),1,IF(AND(R12<>"",Q11<>"",R44<5,Q10="",R10=""),1,0)))))) -> 0 | AN9: 1340 | AO9: 1 | AV9: 4 | BO9: =SUM(BO10:BO22) -> 13 | BP9: =SUM(BP10:BP22) -> 13 | BQ9: =SUM(BQ10:BQ22) -> 1 | BR9: =SUM(BR10:BR22) -> 13 | BS9: =SUM(BS10:BS22) -> 1 | BU9: =ABS(BQ9-BS9) -> 0 | CA9: =SUM(CA10:CA22) -> 13 | CB9: =SUM(CB10:CB22) -> 13 | CC9: =SUM(CC10:CC22) -> 2 | CD9: =SUM(CD10:CD22) -> 13 | CE9: =SUM(CE10:CE22) -> 0 | CG9: =ABS(CC9-CE9) -> 2 | CN9: =SUM(CN10:CN31) -> 2 | CO9: =SUM(CO10:CO22) -> 1 | CP9: =SUM(CP10:CP22) -> 0 | CQ9: =SUM(CQ10:CQ22) -> 1 | CR9: =MIN(CO9:CQ9) -> 0 | CS9: =MAX(CO9:CQ9) -> 1 | CT9: =ABS(CR9-CS9) -> 1 | CV9: =SUM(CV10:CV13) -> 0 | CW9: =SUM(CW10:CW13) -> 0 | CX9: =SUM(CX10:CX13) -> 0 | CY9: =SUM(CV9:CX9) -> 0 | DC9: =SUM(DC10:DC22) -> 2 | DD9: =SUM(DD10:DD22) -> 0 | DE9: =SUM(DE10:DE22) -> 1 | DF9: =SUM(DF10:DF22) -> 1 | DG9: =MIN(DD9:DF9) -> 0 | DH9: =MAX(DD9:DF9) -> 1 | DI9: =ABS(DG9-DH9) -> 1 | DK9: =SUM(DK10:DK13) -> 0 | DL9: =SUM(DL10:DL13) -> 0 | DM9: =SUM(DM10:DM13) -> 0 | DN9: =SUM(DK9:DM9) -> 0 | DQ9: =SUM(DQ10:DQ22) -> 13 | DR9: =SUM(DR10:DR22) -> 11 | DS9: =SUM(DS10:DS22) -> 1 | DT9: =SUM(DT10:DT22) -> 11 | DU9: =SUM(DU10:DU22) -> 1 | DW9: =ABS(DS9-DU9) -> 0 | FH9: 1 | FI9: =SUM(FI10:FI45) -> 1 | FJ9: =SUM(FJ10:FJ45) -> 0 | FK9: =SUM(FK10:FK45) -> 1 | FR9: =SUM(FR10:FR45) -> 0 | FS9: =SUM(FS10:FS45) -> 1 | FT9: =SUM(FT10:FT45) -> 1 | GC9: Start
B10: 0 | D10: =IF(E2=14,1,IF(AND(#REF!=1,#REF!=0),1,IF(#REF!=1,E10,IF(#REF!="STOP",1,IF($N$10=0,E10*2,IF(AND(A10="P",$M$10="P"),1,IF(AND(C10="I",$O$10="I"),1,E10*2))))))) ->  | H10: 1 | I10: R | J10: 2 | L10: 1 | M10: P | N10: 2 | P10: 1 | S10: 3 | T10: 1 | W10: 3 | X10: 1 | AA10: 2 | AC10: ACD | AV10: 5 | BO10: =IF(BR10=1,1,BS10) -> 1 | BP10: =IF(BR10=1,1,BQ10) -> 1 | BQ10: =IF(I10<>"",1,0) -> 1 | BR10: =IF(J10<>"",1,0) -> 1 | BS10: =IF(K10<>"",1,0) -> 0 | BU10: =IF(AND($AC$35="Mode 2",BQ10=1,BQ11=1,BQ12=1,BR10=0,BR11=0,BR12=0),1,IF(AND($AC$35="Mode 1",BQ11=1,BQ12=0,BR11=0,BR12=0),1,IF(AND($AC$35="Mode 1",BQ11=0,BQ12=1,BR11=0,BR12=0),1,0))) -> 0 | BV10: =IF(AND(BQ10=1,BQ11=0,BQ12=1,BR10=0,BR11=0,BR12=0),1,IF(AND(BQ10=0,BQ11=1,BQ12=0,BR10=0,BR11=0,BR12=0),1,0)) -> 0 | CA10: =IF(CD10=1,1,CE10) -> 1 | CB10: =IF(CD10=1,1,CC10) -> 1 | CC10: =IF(M10<>"",1,0) -> 1 | CD10: =IF(N10<>"",1,0) -> 1 | CE10: =IF(O10<>"",1,0) -> 0 | CF10: 1 | CG10: =IF(AND($AC$35="Mode 2",CC10=1,CC11=1,CC12=1,CD10=0,CD11=0,CD12=0),1,IF(AND($AC$35="Mode 1",CC11=1,CC12=0,CD11=0,CD12=0),1,IF(AND($AC$35="Mode 1",CC11=0,CC12=1,CD11=0,CD12=0),1,0))) -> 0 | CH10: =IF(AND(CC10=1,CC11=0,CC12=1,CD10=0,CD11=0,CD12=0),1,IF(AND(CC10=0,CC11=1,CC12=0,CD10=0,CD11=0,CD12=0),1,0)) -> 0 | CI10: =Q10 ->  | CJ10: =R10 ->  | CK10: =S10 -> 3 | CN10: =IF(R10=0,0,1) -> 1 | CO10: =IF(R10=0,0,IF(Q10<>"",1,0)) -> 0 | CP10: =IF(R10=0,0,IF(R10<>"",1,0)) -> 0 | CQ10: =IF(R10=0,0,IF(S10<>"",1,0)) -> 1 | CS10: =IF(CO10=CO9,IF(CS9=0,2+CS9,1+CS9),0) -> 0 | CT10: 2 | CU10: 2 | CV10: =IF(CO10=0,0,IF(CO11=CO10,1,0)) -> 0 | CW10: 0 | CX10: 0 | DC10: =IF(V10=0,0,1) -> 1 | DD10: =IF(V10=0,0,IF(U10<>"",1,0)) -> 0 | DE10: =IF(V10=0,1,IF(V10<>"",1,0)) -> 0 | DF10: =IF(V10=0,0,IF(W10<>"",1,0)) -> 1 | DH10: =IF(DD10=DD9,IF(DH9=0,2+DH9,1+DH9),0) -> 2 | DI10: 0 | DJ10: 2 | DK10: =IF(DD10=0,0,IF(DD11=DD10,1,0)) -> 0 | DL10: 0 | DM10: 0 | DQ10: =IF(DT10=1,1,DU10) -> 1 | DR10: =IF(DT10=1,1,DS10) -> 0 | DS10: =IF(Y10<>"",1,0) -> 0 | DT10: =IF(Z10<>"",1,0) -> 0 | DU10: =IF(AA10<>"",1,0) -> 1 | DW10: =IF(AND($AC$35="Mode 2",DS10=1,DS11=1,DS12=1,DT10=0,DT11=0,DT12=0),1,IF(AND($AC$35="Mode 1",DS11=1,DS12=0,DT11=0,DT12=0),1,IF(AND($AC$35="Mode 1",DS11=0,DS12=1,DT11=0,DT12=0),1,0))) -> 0 | DX10: =IF(AND(DS10=1,DS11=0,DS12=1,DT10=0,DT11=0,DT12=0),1,IF(AND(DS10=0,DS11=1,DS12=0,DT10=0,DT11=0,DT12=0),1,0)) -> 0 | EI10: 1 | EK10: =IF(OR(EI10=$I$62,EI10=$J$62,EI10=$K$62,EI10=$L$62,EI10=$M$62,EI10=$N$62,EI10=$O$62,EI10=$P$62,EI10=$Q$62),1,0) -> 0 | EL10: 0 | ER10: 1 | ET10: =IF(OR(ER10=$I$65,ER10=$J$65,ER10=$K$65,ER10=$L$65,ER10=$M$65,ER10=$N$65,ER10=$O$65,ER10=$P$65,ER10=$Q$65,ER10=$R$65,ER10=$S$65,ER10=$T$65,ER10=$U$65,ER10=$V$65,ER10=$W$65,EV10=1),1,0) -> 0 | EU10: 0 | EV10: =IF(AND(ER10=$X$65,ER10=$Y$65,ER10=$Z$65),1,0) -> 0 | EY10: 1 | FA10: =IF(OR(EY10=$I$54,EY10=$J$54,EY10=$K$54,EY10=$L$54,EY10=$M$54,EY10=$N$54,EY10=$O$54,EY10=$P$54,EY10=$Q$54,EY10=$R$54,EY10=$S$54,EY10=$T$54,EY10=$U$54,EY10=$V$54,EY10=$W$54,FC10=1),1,0) -> 0 | FB10: 0 | FC10: =IF(AND(EY10=$X$54,EY10=$Y$54,EY10=$Z$54),1,0) -> 0 | FH10: 2 | FI10: =IF(R10=0,0,IF(Q10<>"",1,0)) -> 0 | FJ10: =IF(R10=0,0,IF(R10<>"",1,0)) -> 0 | FK10: =IF(R10=0,0,IF(S10<>"",1,0)) -> 1 | FR10: =IF(V10=0,0,IF(U10<>"",1,0)) -> 0 | FS10: =IF(V10=0,0,IF(V10<>"",1,0)) -> 0 | FT10: =IF(V10=0,0,IF(W10<>"",1,0)) -> 1 | GC10: 1 | GD10: 2 | GG10: 1 | GH10: 2 | GI10: 3 | GL10: 1 | GM10: 2 | GN10: 3
A11: 1 | D11: =IF(R10=0,E11*3,IF(AND(A11=1,Q10=1),1,IF(AND(B11=2,R10=2),1,IF(AND(C11=3,S10=3),1,E11*3)))) -> 729 | E11: 243 | F11: 243 | H11: 2 | J11: 1 | K11: N | L11: 2 | M11: P | N11: 1 | P11: 2 | Q11: 1 | T11: 3 | V11: 2 | X11: 2 | Y11: 1 | AB11: =IF(R13=0,0,IF(V13=0,0,IF(AND(V13<>"",W12<>"",U11<>"",V44<5,U10="",V10=""),1,IF(AND(V13<>"",U12<>"",W11<>"",V44<5,V10="",W10=""),1,IF(AND(R13<>"",S12<>"",Q11<>"",R44<5,Q10="",R10=""),1,IF(AND(R13<>"",Q12<>"",S11<>"",R44<5,R10="",S10=""),1,0)))))) -> 0 | AE11: DCZ | AV11: 6 | BO11: =IF(BR11=1,1,BQ11) -> 1 | BP11: =IF(BR11=1,1,BS11) -> 1 | BQ11: =IF(I11<>"",1,0) -> 0 | BR11: =IF(J11<>"",1,0) -> 1 | BS11: 1 | BU11: =IF(AND($AC$35="Mode 2",BS10=1,BS11=1,BS12=1,BR10=0,BR11=0,BR12=0),1,IF(AND($AC$35="Mode 1",BS11=1,BS12=0,BR11=0,BR12=0),1,IF(AND($AC$35="Mode 1",BS11=0,BS12=1,BR11=0,BR12=0),1,0))) -> 0 | CA11: =IF(CD11=1,1,CC11) -> 1 | CB11: =IF(CD11=1,1,CE11) -> 1 | CC11: =IF(M11<>"",1,0) -> 1 | CD11: 1 | CE11: =IF(O11<>"",1,0) -> 0 | CF11: 2 | CG11: =IF(AND($AC$35="Mode 2",CE10=1,CE11=1,CE12=1,CD10=0,CD11=0,CD12=0),1,IF(AND($AC$35="Mode 1",CE11=1,CE12=0,CD11=0,CD12=0),1,IF(AND($AC$35="Mode 1",CE11=0,CE12=1,CD11=0,CD12=0),1,0))) -> 0 | CI11: =Q11 -> 1 | CN11: =IF(R11=0,0,IF(AND(CQ11=1,CQ10=1),0,IF(AND(CP11=1,CP10=1),0,IF(AND(CO11=1,CO10=1),0,1)))) -> 1 | CO11: =IF(R11=0,0,IF(Q11<>"",1,0)) -> 1 | CP11: =IF(R10=0,0,IF(R11=0,0,IF(R11<>"",1,0))) -> 0 | CQ11: =IF(R11=0,0,IF(S11<>"",1,0)) -> 0 | CS11: 0 | CT11: 3 | CU11: 0 | CV11: 0 | CW11: 0 | CX11: 0 | DC11: =IF(V11=0,0,IF(AND(DF11=1,DF10=1),0,IF(AND(DE11=1,DE10=1),0,IF(AND(DD11=1,DD10=1),0,1)))) -> 1 | DD11: =IF(V11=0,0,IF(U11<>"",1,0)) -> 0 | DE11: =IF(V10=0,0,IF(V11=0,0,IF(V11<>"",1,0))) -> 1 | DF11: =IF(V11=0,0,IF(W11<>"",1,0)) -> 0 | DH11: 3 | DI11: 0 | DJ11: 0 | DK11: 0 | DL11: 0 | DM11: 0 | DQ11: =IF(DT11=1,1,DS11) -> 1 | DR11: =IF(DT11=1,1,DU11) -> 0 | DS11: =IF(Y11<>"",1,0) -> 1 | DT11: 0 | DU11: 0 | DW11: =IF(AND($AC$35="Mode 2",DU10=1,DU11=1,DU12=1,DT10=0,DT11=0,DT12=0),1,IF(AND($AC$35="Mode 1",DU11=1,DU12=0,DT11=0,DT12=0),1,IF(AND($AC$35="Mode 1",DU11=0,DU12=1,DT11=0,DT12=0),1,0))) -> 0 | EI11: 2 | EK11: =IF(OR(EI11=$I$62,EI11=$J$62,EI11=$K$62,EI11=$L$62,EI11=$M$62,EI11=$N$62,EI11=$O$62,EI11=$P$62,EI11=$Q$62),1,0) -> 0 | EL11: 0 | ER11: 2 | ET11: =IF(OR(ER11=$I$65,ER11=$J$65,ER11=$K$65,ER11=$L$65,ER11=$M$65,ER11=$N$65,ER11=$O$65,ER11=$P$65,ER11=$Q$65,ER11=$R$65,ER11=$S$65,ER11=$T$65,ER11=$U$65,ER11=$V$65,ER11=$W$65,EV11=1),1,0) -> 0 | EU11: 0 | EV11: =IF(AND(ER11=$X$65,ER11=$Y$65,ER11=$Z$65),1,0) -> 0 | EY11: 2 | FA11: =IF(OR(EY11=$I$54,EY11=$J$54,EY11=$K$54,EY11=$L$54,EY11=$M$54,EY11=$N$54,EY11=$O$54,EY11=$P$54,EY11=$Q$54,EY11=$R$54,EY11=$S$54,EY11=$T$54,EY11=$U$54,EY11=$V$54,EY11=$W$54,FC11=1),1,0) -> 0 | FB11: 0 | FC11: =IF(AND(EY11=$X$54,EY11=$Y$54,EY11=$Z$54),1,0) -> 0 | FH11: 3 | FI11: =IF(R11=0,0,IF(Q11<>"",1,0)) -> 1 | FJ11: =IF(R11=0,0,IF(R11<>"",1,0)) -> 0 | FK11: =IF(R11=0,0,IF(S11<>"",1,0)) -> 0 | FR11: =IF(V11=0,0,IF(U11<>"",1,0)) -> 0 | FS11: =IF(V11=0,0,IF(V11<>"",1,0)) -> 1 | FT11: =IF(V11=0,0,IF(W11<>"",1,0)) -> 0 | GC11: =IF(GC10=1,GG33,IF(GC10=2,GH33,IF(GC10=3,GI33,0))) -> 1 | GD11: =IF(GD10=1,GL33,IF(GD10=2,GM33,IF(GD10=3,GN33,0))) -> 1 | GE11: =IF(GC11=GD11,GD11+1,1) -> 2
C12: 3 | D12: =IF(V10=0,E12*3,IF(AND(A12=1,U10=1),1,IF(AND(B12=2,V10=2),1,IF(AND(C12=3,W10=3),1,E12*3)))) -> 1 | E12: 1 | F12: 1 | H12: 4 | J12: 0 | L12: 4 | N12: 0 | P12: 3 | R12: 0 | T12: 9 | V12: 0 | X12: 4 | Z12: 0 | AN12: ='>>Convertisseur'!A50 -> 0 | AV12: 7 | BO12: =IF(BR12=1,1,BS12) -> 1 | BP12: =IF(BR12=1,1,BQ12) -> 1 | BQ12: 0 | BR12: 1 | BS12: 0 | BU12: =IF(AND($AC$35="Mode 3",$AC$34="Prudent",BV7="Inverse"),1,IF(AND($AC$34="Agressif",$AC$35="Mode 3"),1,IF(BU10=1,1,IF(BU11=1,1,0)))) -> 0 | CA12: =IF(CD12=1,1,CE12) -> 1 | CB12: =IF(CD12=1,1,CC12) -> 1 | CC12: 0 | CD12: 1 | CE12: =IF(O12<>"",1,0) -> 0 | CF12: 3 | CG12: =IF(AND($AC$35="Mode 3",$AC$34="Prudent",CG7="Inverse"),1,IF(AND($AC$34="Agressif",$AC$35="Mode 3"),1,IF(CG10=1,1,IF(CG11=1,1,0)))) -> 0 | CJ12: 0 | CN12: =IF(R12=0,0,IF(AND(CQ12=1,CQ11=1),0,IF(AND(CP12=1,CP11=1),0,IF(AND(CO12=1,CO11=1),0,1)))) -> 0 | CO12: 0 | CP12: =IF(R11=0,0,IF(R12=0,0,IF(R12<>"",1,0))) -> 0 | CQ12: =IF(R12=0,0,IF(S12<>"",1,0)) -> 0 | CS12: 0 | CT12: 4 | CU12: 2 | CV12: 0 | CW12: 0 | CX12: 0 | DC12: =IF(V12=0,0,IF(AND(DF12=1,DF11=1),0,IF(AND(DE12=1,DE11=1),0,IF(AND(DD12=1,DD11=1),0,1)))) -> 0 | DD12: 0 | DE12: =IF(V11=0,0,IF(V12=0,0,IF(V12<>"",1,0))) -> 0 | DF12: 0 | DH12: 4 | DI12: 0 | DJ12: 2 | DK12: 0 | DL12: 0 | DM12: 0 | DQ12: =IF(DT12=1,1,DU12) -> 1 | DR12: =IF(DT12=1,1,DS12) -> 1 | DS12: 0 | DT12: 1 | DU12: 0 | DW12: =IF(AND($AC$35="Mode 3",$AC$34="Prudent",DW7="Inverse"),1,IF(AND($AC$34="Agressif",$AC$35="Mode 3"),1,IF(DW10=1,1,IF(DW11=1,1,0)))) -> 0 | EI12: 3 | EK12: 0 | EL12: 0 | ER12: 3 | ET12: 0 | EU12: 0 | EV12: 0 | EY12: 3 | FA12: =IF(OR(EY12=$I$54,EY12=$J$54,EY12=$K$54,EY12=$L$54,EY12=$M$54,EY12=$N$54,EY12=$O$54,EY12=$P$54,EY12=$Q$54,EY12=$R$54,EY12=$S$54,EY12=$T$54,EY12=$U$54,EY12=$V$54,EY12=$W$54,FC12=1),1,0) -> 0 | FB12: 0 | FC12: 0 | FH12: 4 | FI12: 0 | FJ12: 0 | FK12: 0 | FR12: 0 | FS12: 0 | FT12: 0 | GG12: =IF(GG14=0,1,0) -> 0 | GH12: =IF(GH14=0,2,0) -> 0 | GI12: =IF(GI14=0,3,0) -> 3 | GJ12: =SUM(GG12:GI12) -> 3 | GL12: =IF(GL14=0,1,0) -> 0 | GM12: =IF(GM14=0,2,0) -> 0 | GN12: =IF(GN14=0,3,0) -> 3 | GO12: =SUM(GL12:GN12) -> 3
D13: =IF(E2=14,1,IF(AND(X34=1,X35=0),1,IF(Z36=1,E13,IF(Y34="STOP",1,IF($Z$10=0,E13*2,IF(AND(A13=1,$Y$10=1),1,IF(AND(C13=2,$AA$10=2),1,E13*2))))))) -> 64 | E13: 32 | F13: 32 | H13: 8 | J13: 0 | L13: 8 | N13: 0 | P13: 4 | R13: 0 | T13: 27 | V13: 0 | X13: 8 | Z13: 0 | AI13: =IF(AND(AK14=1,AO14=1),1,IF(AND(AK14=1,AO14=2),0.8,IF(AND(AK14=1,AO14=3),0.6,IF(AND(AK14=1,AO14>3),0.4,"")))) ->  | AJ13: =IF(AND(AK14=2,AO14=1),1,IF(AND(AK14=2,AO14=2),0.8,IF(AND(AK14=2,AO14=3),0.6,IF(AND(AK14=2,AO14>3),0.4,"")))) ->  | AL13: 0 | AM13: 1 | AV13: 8 | BE13: =IF(OR(AH20<>"",AH21<>"",AH33<>"",AH34<>""),1,0) -> 1 | BO13: =IF(BR13=1,1,BQ13) -> 1 | BP13: =IF(BR13=1,1,BS13) -> 1 | BQ13: 0 | BR13: 1 | BS13: 0 | CA13: =IF(CD13=1,1,CC13) -> 1 | CB13: =IF(CD13=1,1,CE13) -> 1 | CC13: 0 | CD13: 1 | CE13: =IF(O13<>"",1,0) -> 0 | CF13: 4 | CJ13: 0 | CN13: 0 | CO13: 0 | CP13: 0 | CQ13: 0 | CS13: 2 | CT13: 5 | CU13: 3 | CV13: 0 | CW13: 0 | CX13: 0 | DC13: 0 | DD13: 0 | DE13: =IF(V12=0,0,IF(V13=0,0,IF(V13<>"",1,0))) -> 0 | DF13: 0 | DH13: 5 | DI13: 2 | DJ13: 3 | DK13: 0 | DL13: 0 | DM13: 0 | DQ13: =IF(DT13=1,1,DS13) -> 1 | DR13: =IF(DT13=1,1,DU13) -> 1 | DS13: 0 | DT13: 1 | DU13: 0 | EI13: 4 | EK13: 0 | EL13: 0 | ER13: 4 | ET13: 0 | EU13: 0 | EV13: 0 | EY13: 4 | FA13: 0 | FB13: 0 | FC13: 0 | FH13: 5 | FI13: 0 | FJ13: 0 | FK13: 0 | FR13: 0 | FS13: 0 | FT13: 0
A14: 2 | B14: 0 | C14: 0 | D14: =IF(E2=14,1,IF(AND(H45=1,H46=0),1,IF($J$10=0,E14*2,IF(AND(A14="R",$I$10="R"),1,IF(AND(C14="N",$K$10="N"),1,E14*2))))) -> 64 | E14: 32 | F14: 32 | H14: 16 | J14: 0 | L14: 16 | N14: 0 | P14: 6 | R14: 0 | T14: 81 | V14: 0 | X14: 16 | Z14: 0 | AB14: ='>>Convertisseur'!F36 -> 0 | AC14: Le 18_12 | AG14: =IF(P6=1,0,IF(AND(R6=1,R10="",CR6<>0),1,IF(AND(R6=2,R10="",CR6<>0),2,IF(AND(R6=1,AB14=1,CR6<>0),1,IF(AND(R6=2,AB14=1,CR6<>0),2,0))))) -> 0 | AI14: 18 | AJ14: 36 | AK14: ='>>Convertisseur'!K37 -> 0 | AL14: 0 | AN14: =(AB29+AH30)/2 -> 0.5 | AO14: =ROUNDUP(AN14,0) -> 1 | AP14: 1 | AQ14: 1 | AV14: 9 | BD14: 1 | BE14: =AH20 -> 3 | BG14: =BE14 -> 3 | BO14: =IF(BR14=1,1,BS14) -> 1 | BP14: =IF(BR14=1,1,BQ14) -> 1 | BQ14: =IF(I14<>"",1,0) -> 0 | BR14: 1 | BS14: 0 | BU14: =IF(AND(BQ15=0,BQ16=1,BQ17=0,BR14=0,BR15=0,BR16=0,BR17=0),1,IF(AND(BQ15=1,BQ16=0,BQ17=1,BR14=0,BR15=0,BR16=0,BR17=0),1,0)) -> 0 | CA14: =IF(CD14=1,1,CE14) -> 1 | CB14: =IF(CD14=1,1,CC14) -> 1 | CC14: 0 | CD14: 1 | CE14: =IF(O14<>"",1,0) -> 0 | CF14: 5 | CG14: =IF(AND(CC15=0,CC16=1,CC17=0,CD14=0,CD15=0,CD16=0,CD17=0),1,IF(AND(CC15=1,CC16=0,CC17=1,CD14=0,CD15=0,CD16=0,CD17=0),1,0)) -> 0 | CJ14: 0 | CN14: 0 | CO14: 0 | CP14: 0 | CQ14: 0 | CS14: 3 | CT14: 6 | CU14: 4 | DC14: 0 | DD14: 0 | DE14: =IF(V13=0,0,IF(V14=0,0,IF(V14<>"",1,0))) -> 0 | DF14: 0 | DH14: 6 | DI14: 3 | DJ14: 4 | DQ14: =IF(DT14=1,1,DU14) -> 1 | DR14: =IF(DT14=1,1,DS14) -> 1 | DS14: 0 | DT14: 1 | DU14: 0 | DW14: =IF(AND(DS16=1,DS17=0,DT15=0,DT16=0,DT17=0),1,IF(AND(DS16=0,DS17=1,DT15=0,DT16=0,DT17=0),1,0)) -> 0 | EI14: 5 | EK14: 0 | EL14: 0 | ER14: 5 | ET14: 0 | EU14: 0 | EV14: 0 | EY14: 5 | FA14: 0 | FB14: 0 | FC14: 0 | FH14: 6 | FI14: 0 | FJ14: 0 | FK14: 0 | FR14: 0 | FS14: 0 | FT14: 0 | GG14: =IF(Q10<>"",0,1) -> 1 | GH14: =IF(R10=0,1,IF(R10<>"",0,1)) -> 1 | GI14: =IF(S10<>"",0,1) -> 0 | GL14: =IF(U10<>"",0,1) -> 1 | GM14: =IF(V10=0,1,IF(V10<>"",0,1)) -> 1 | GN14: =IF(W10<>"",0,1) -> 0
D15: =IF(E2=14,1,IF(AND(L45=1,L46=0),1,IF($N$10=0,E15*2,IF(AND(A15="P",$M$10="P"),1,IF(AND(C15="I",$O$10="I"),1,E15*2))))) -> 64 | E15: 32 | F15: 32 | H15: 32 | J15: 0 | L15: 32 | N15: 0 | P15: 9 | R15: 0 | V15: 0 | X15: 32 | Z15: 0 | AH15: =LOOKUP(AH20,'>>BD_R_N'!$D$1:$D$37,'>>BD_R_N'!$B$1:$B$37) -> R | AI15: =LOOKUP(AI20,'>>BD_R_N'!$D$1:$D$37,'>>BD_R_N'!$B$1:$B$37) -> N | AJ15: =LOOKUP(AJ20,'>>BD_R_N'!$D$1:$D$37,'>>BD_R_N'!$B$1:$B$37) -> 0 | AK15: =LOOKUP(AK20,'>>BD_R_N'!$D$1:$D$37,'>>BD_R_N'!$B$1:$B$37) -> 0 | AL15: =LOOKUP(AL20,'>>BD_R_N'!$D$1:$D$37,'>>BD_R_N'!$B$1:$B$37) -> 0 | AM15: =LOOKUP(AM20,'>>BD_R_N'!$D$1:$D$37,'>>BD_R_N'!$B$1:$B$37) -> 0 | AN15: =LOOKUP(AN20,'>>BD_R_N'!$D$1:$D$37,'>>BD_R_N'!$B$1:$B$37) -> 0 | AO15: =LOOKUP(AO20,'>>BD_R_N'!$D$1:$D$37,'>>BD_R_N'!$B$1:$B$37) -> 0 | AP15: =LOOKUP(AP20,'>>BD_R_N'!$D$1:$D$37,'>>BD_R_N'!$B$1:$B$37) -> 0 | AV15: 10 | BD15: 2 | BE15: =AI20 -> 31 | BG15: =BE15 -> 31 | BO15: =IF(BR15=1,1,BQ15) -> 1 | BP15: =IF(BR15=1,1,BS15) -> 1 | BQ15: 0 | BR15: 1 | BS15: 0 | BU15: =IF(AND(BQ15=1,BQ16=0,BQ17=1,BR14=0,BR15=0,BR16=0,BR17=0),1,IF(AND(BQ15=0,BQ16=1,BQ17=0,BR14=0,BR15=0,BR16=0,BR17=0),1,0)) -> 0 | CA15: =IF(CD15=1,1,CC15) -> 1 | CB15: =IF(CD15=1,1,CE15) -> 1 | CC15: 0 | CD15: =IF(N15<>"",1,0) -> 1 | CE15: 0 | CF15: 6 | CG15: =IF(AND(CC15=1,CC16=0,CC17=1,CD14=0,CD15=0,CD16=0,CD17=0),1,IF(AND(CC15=0,CC16=1,CC17=0,CD14=0,CD15=0,CD16=0,CD17=0),1,0)) -> 0 | CJ15: 0 | CN15: 0 | CO15: =IF(R15=0,0,IF(Q15<>"",1,0)) -> 0 | CP15: 0 | CQ15: =IF(R15=0,0,IF(S15<>"",1,0)) -> 0 | CS15: =IF(CO15=CO14,IF(CS14=0,2+CS14,1+CS14),0) -> 4 | CT15: 7 | CU15: 5 | DC15: 0 | DD15: 0 | DE15: =IF(V14=0,0,IF(V15=0,0,IF(V15<>"",1,0))) -> 0 | DF15: 0 | DH15: 7 | DI15: 4 | DJ15: 5 | DQ15: =IF(DT15=1,1,DS15) -> 1 | DR15: =IF(DT15=1,1,DU15) -> 1 | DS15: =IF(Y15<>"",1,0) -> 0 | DT15: 1 | DU15: =IF(AA15<>"",1,0) -> 0 | DW15: =IF(AND(DS16=0,DS17=1,DT15=0,DT16=0,DT17=0),1,IF(AND(DS16=1,DS17=0,DT15=0,DT16=0,DT17=0),1,0)) -> 0 | EI15: 6 | EK15: 0 | EL15: 0 | ER15: 6 | ET15: 0 | EU15: 0 | EV15: 0 | EY15: 6 | FA15: 0 | FB15: 0 | FC15: 0 | FH15: 7 | FI15: 0 | FJ15: 0 | FK15: 0 | FR15: 0 | FS15: 0 | FT15: 0 | GG15: =IF(Q11<>"",0,1) -> 0 | GH15: =IF(R11=0,1,IF(R11<>"",0,1)) -> 1 | GI15: =IF(S11<>"",0,1) -> 1 | GL15: =IF(U11<>"",0,1) -> 1 | GM15: =IF(V11=0,1,IF(V11<>"",0,1)) -> 0 | GN15: =IF(W11<>"",0,1) -> 1
B16: 1 | D16: =IF(E2=14,1,IF(AND(P45=1,P46=0),1,IF(R10=0,E16*3,IF(S10=C16,1,IF(R10=B16,1,IF(Q10=A16,1,E16*3)))))) -> 1 | E16: 243 | F16: 243 | H16: 64 | J16: 0 | L16: 64 | N16: 0 | P16: 13 | R16: 0 | V16: 0 | X16: 64 | Z16: 0 | AH16: =LOOKUP(AH21,'>>BD_R_N'!$D$1:$D$37,'>>BD_R_N'!$B$1:$B$37) -> R | AI16: =LOOKUP(AI21,'>>BD_R_N'!$D$1:$D$37,'>>BD_R_N'!$B$1:$B$37) -> N | AJ16: =LOOKUP(AJ21,'>>BD_R_N'!$D$1:$D$37,'>>BD_R_N'!$B$1:$B$37) -> 0 | AK16: =LOOKUP(AK21,'>>BD_R_N'!$D$1:$D$37,'>>BD_R_N'!$B$1:$B$37) -> 0 | AL16: =LOOKUP(AL21,'>>BD_R_N'!$D$1:$D$37,'>>BD_R_N'!$B$1:$B$37) -> 0 | AM16: =LOOKUP(AM21,'>>BD_R_N'!$D$1:$D$37,'>>BD_R_N'!$B$1:$B$37) -> 0 | AN16: =LOOKUP(AN21,'>>BD_R_N'!$D$1:$D$37,'>>BD_R_N'!$B$1:$B$37) -> 0 | AO16: =LOOKUP(AO21,'>>BD_R_N'!$D$1:$D$37,'>>BD_R_N'!$B$1:$B$37) -> 0 | AP16: =LOOKUP(AP21,'>>BD_R_N'!$D$1:$D$37,'>>BD_R_N'!$B$1:$B$37) -> 0 | AV16: 11 | BD16: 3 | BE16: =AJ20 -> 0 | BG16: 0 | BO16: =IF(BR16=1,1,BS16) -> 1 | BP16: =IF(BR16=1,1,BQ16) -> 1 | BQ16: 0 | BR16: 1 | BS16: 0 | BU16: =IF(BU9<3,1,0) -> 1 | CA16: =IF(CD16=1,1,CE16) -> 1 | CB16: =IF(CD16=1,1,CC16) -> 1 | CC16: 0 | CD16: 1 | CE16: 0 | CF16: 7 | CG16: =IF(CG9<3,1,0) -> 1 | CJ16: 0 | CN16: 0 | CO16: 0 | CP16: 0 | CQ16: 0 | CS16: 5 | CT16: 8 | CU16: 6 | DC16: 0 | DD16: 0 | DE16: =IF(V15=0,0,IF(V16=0,0,IF(V16<>"",1,0))) -> 0 | DF16: 0 | DH16: 8 | DI16: 5 | DJ16: 6 | DQ16: =IF(DT16=1,1,DU16) -> 1 | DR16: =IF(DT16=1,1,DS16) -> 1 | DS16: 0 | DT16: 1 | DU16: 0 | DW16: =IF(DW9<3,1,0) -> 1 | EI16: 7 | EK16: 0 | EL16: 0 | ER16: 7 | ET16: 0 | EU16: 0 | EV16: 0 | EY16: 7 | FA16: 0 | FB16: 0 | FC16: 0 | FH16: 8 | FI16: 0 | FJ16: 0 | FK16: 0 | FR16: 0 | FS16: 0 | FT16: 0 | GG16: 1 | GH16: 1 | GI16: 1 | GL16: 1 | GM16: 1 | GN16: 1
D17: =IF(E2=14,1,IF(AND(T45=1,T46=0),1,IF(V10=0,E17*3,IF(W10=C17,1,IF(V10=B17,1,IF(U10=A17,1,E17*3)))))) -> 1 | E17: 9 | F17: 9 | H17: 128 | J17: 0 | L17: 128 | N17: 0 | P17: 20 | R17: 0 | V17: 0 | X17: 128 | Z17: 0 | AC17: 1_2_3 | AG17: 0 | AR17: =IF(OR(AR18=1,AR19=1),1,0) -> 0 | AV17: 12 | BD17: 4 | BE17: =AK20 -> 0 | BG17: 0 | BO17: =IF(BR17=1,1,BQ17) -> 1 | BP17: =IF(BR17=1,1,BS17) -> 1 | BQ17: 0 | BR17: 1 | BS17: 0 | CA17: =IF(CD17=1,1,CC17) -> 1 | CB17: =IF(CD17=1,1,CE17) -> 1 | CC17: 0 | CD17: 1 | CE17: =IF(O17<>"",1,0) -> 0 | CF17: 8 | CJ17: 0 | CN17: 0 | CO17: 0 | CP17: 0 | CQ17: 0 | CS17: 6 | CT17: 9 | CU17: 7 | DC17: 0 | DD17: 0 | DE17: 0 | DF17: 0 | DH17: 9 | DI17: 6 | DJ17: 7 | DQ17: =IF(DT17=1,1,DS17) -> 1 | DR17: =IF(DT17=1,1,DU17) -> 1 | DS17: 0 | DT17: 1 | DU17: 0 | EI17: 8 | EK17: 0 | EL17: 0 | ER17: 8 | ET17: 0 | EU17: 0 | EV17: 0 | EY17: 8 | FA17: 0 | FB17: 0 | FC17: 0 | FH17: 9 | FI17: 0 | FJ17: 0 | FK17: 0 | FR17: 0 | FS17: 0 | FT17: 0 | GG17: 1 | GH17: 1 | GI17: 1 | GL17: 1 | GM17: 1 | GN17: 1
D18: =IF(E2=14,1,IF(AND(X45=1,X46=0),1,IF($Z$10=0,E18*2,IF(AND(A18=1,$Y$10=1),1,IF(AND(C18=2,$AA$10=2),1,E18*2))))) -> 64 | E18: 32 | F18: 32 | J18: 0 | N18: 0 | P18: 30 | R18: 0 | V18: 0 | Z18: 0 | AC18: 7 | AG18: =IF(OR($Y$2=AH16,$Y$2=AI16,$Y$2=AJ16,$Y$2=AK16,$Y$2=AL16,$Y$2=AM16,$Y$2=AN16,$Y$2=AO16,$Y$2=AP16,$Y$2=AQ5),1,0) -> 0 | AR18: =IF(AJ63<>"N",0,IF(AND(AJ63="N",K10<>""),0,1)) -> 0 | BD18: 5 | BE18: =AL20 -> 0 | BG18: 0 | BO18: =IF(BR18=1,1,BS18) -> 1 | BP18: =IF(BR18=1,1,BQ18) -> 1 | BQ18: 0 | BR18: 1 | BS18: 0 | BU18: =IF(AND(BQ19=0,BQ20=1,BQ21=0,BR18=0,BR19=0,BR20=0,BR21=0),1,IF(AND(BQ19=1,BQ20=0,BQ21=1,BR18=0,BR19=0,BR20=0,BR21=0),1,0)) -> 0 | CA18: =IF(CD18=1,1,CE18) -> 1 | CB18: =IF(CD18=1,1,CC18) -> 1 | CC18: 0 | CD18: 1 | CE18: 0 | CF18: 9 | CG18: =IF(AND(CC19=0,CC20=1,CC21=0,CD18=0,CD19=0,CD20=0,CD21=0),1,IF(AND(CC19=1,CC20=0,CC21=1,CD18=0,CD19=0,CD20=0,CD21=0),1,0)) -> 0 | CJ18: 0 | CN18: 0 | CO18: 0 | CP18: 0 | CQ18: 0 | CS18: 7 | CT18: 10 | CU18: 8 | DC18: 0 | DD18: 0 | DE18: 0 | DF18: 0 | DH18: 10 | DI18: 7 | DJ18: 8 | DQ18: =IF(DT18=1,1,DU18) -> 1 | DR18: =IF(DT18=1,1,DS18) -> 1 | DS18: 0 | DT18: 1 | DU18: 0 | DW18: =IF(AND(DS20=1,DS21=0,DT19=0,DT20=0,DT21=0),1,IF(AND(DS20=0,DS21=1,DT19=0,DT20=0,DT21=0),1,0)) -> 0 | EI18: 9 | EK18: 0 | EL18: 0 | ER18: 9 | ET18: 0 | EU18: 0 | EV18: 0 | EY18: 9 | FA18: 0 | FB18: 0 | FC18: 0 | FH18: 10 | FI18: 0 | FJ18: 0 | FK18: 0 | FR18: 0 | FS18: 0 | FT18: 0 | GG18: 1 | GH18: 1 | GI18: 1 | GL18: 1 | GM18: 1 | GN18: 1
A19: R | D19: =IF($J$10=0,E19*2,IF(AND(A19="R",$I$10="R"),1,IF(AND(C19="N",$K$10="N"),1,E19*2))) -> 1 | E19: 4 | F19: 4 | J19: 0 | N19: 0 | P19: 45 | R19: 0 | V19: 0 | Z19: 0 | AC19: 7 | AG19: =IF(OR($Y$2=AH6,$Y$2=AI6,$Y$2=AJ6,$Y$2=AK6,$Y$2=AL6,$Y$2=AM6,$Y$2=AN6,$Y$2=AO6,$Y$2=AP6,$Y$2=AQ6),1,0) -> 0 | AH19: 1 | AI19: 2 | AJ19: 3 | AK19: 4 | AL19: 5 | AM19: 6 | AN19: 7 | AO19: 8 | AP19: 9 | AR19: =IF(AJ63<>"R",0,IF(AND(AJ63="R",I10<>""),0,1)) -> 0 | AS19: 0 | AV19: 14 | BD19: 6 | BE19: =AM20 -> 0 | BG19: 0 | BO19: =IF(BR19=1,1,BQ19) -> 1 | BP19: =IF(BR19=1,1,BS19) -> 1 | BQ19: 0 | BR19: 1 | BS19: 0 | BU19: =IF(AND(BQ19=1,BQ20=0,BQ21=1,BR18=0,BR19=0,BR20=0,BR21=0),1,IF(AND(BQ19=0,BQ20=1,BQ21=0,BR18=0,BR19=0,BR20=0,BR21=0),1,0)) -> 0 | CA19: =IF(CD19=1,1,CC19) -> 1 | CB19: =IF(CD19=1,1,CE19) -> 1 | CC19: 0 | CD19: 1 | CE19: 0 | CF19: 10 | CG19: =IF(AND(CC19=1,CC20=0,CC21=1,CD18=0,CD19=0,CD20=0,CD21=0),1,IF(AND(CC19=0,CC20=1,CC21=0,CD18=0,CD19=0,CD20=0,CD21=0),1,0)) -> 0 | CJ19: 0 | CN19: 0 | CO19: 0 | CP19: 0 | CQ19: 0 | CS19: 8 | CT19: 11 | CU19: 9 | DC19: 0 | DD19: 0 | DE19: 0 | DF19: 0 | DH19: 11 | DI19: 8 | DJ19: 9 | DQ19: =IF(DT19=1,1,DS19) -> 1 | DR19: =IF(DT19=1,1,DU19) -> 1 | DS19: 0 | DT19: 1 | DU19: 0 | DW19: =IF(AND(DS20=0,DS21=1,DT19=0,DT20=0,DT21=0),1,IF(AND(DS20=1,DS21=0,DT19=0,DT20=0,DT21=0),1,0)) -> 0 | EI19: 10 | EK19: 0 | EL19: 0 | ER19: 10 | ET19: 0 | EU19: 0 | EV19: 0 | EY19: 10 | FA19: 0 | FB19: 0 | FC19: 0 | FH19: 11 | FI19: 0 | FJ19: 0 | FK19: 0 | FR19: 0 | FS19: 0 | FT19: 0 | GG19: 1 | GH19: 1 | GI19: 1 | GL19: 1 | GM19: 1 | GN19: 1
A20: P | D20: =IF($N$10=0,E20*2,IF(AND(A20="P",$M$10="P"),1,IF(AND(C20="I",$O$10="I"),1,E20*2))) -> 1 | E20: 1 | F20: 1 | J20: 0 | N20: 0 | R20: 0 | V20: 0 | Z20: 0 | AG20: =SUM(AG18:AG19) -> 0 | AH20: 3 | AI20: 31 | AR20: =IF(AI63>=AI64,AI63,AI64) -> 0.5 | AV20: 15 | BD20: 7 | BE20: =AN20 -> 0 | BG20: 0 | BO20: =IF(BR20=1,1,BS20) -> 1 | BP20: =IF(BR20=1,1,BQ20) -> 1 | BQ20: 0 | BR20: 1 | BS20: 0 | BU20: =IF(BU9<3,1,0) -> 1 | CA20: =IF(CD20=1,1,CE20) -> 1 | CB20: =IF(CD20=1,1,CC20) -> 1 | CC20: 0 | CD20: 1 | CE20: 0 | CF20: 11 | CG20: =IF(CG9<3,1,0) -> 1 | CJ20: 0 | CN20: 0 | CO20: 0 | CP20: 0 | CQ20: 0 | CS20: 9 | CT20: 12 | CU20: 10 | DC20: 0 | DD20: 0 | DE20: 0 | DF20: 0 | DH20: 12 | DI20: 9 | DJ20: 10 | DQ20: =IF(DT20=1,1,DU20) -> 1 | DR20: =IF(DT20=1,1,DS20) -> 1 | DS20: 0 | DT20: 1 | DU20: 0 | DW20: =IF(DW9<3,1,0) -> 1 | EI20: 11 | EK20: 1 | EL20: 3255 | ER20: 11 | ET20: 1 | EU20: 60 | EV20: 0 | EY20: 11 | FA20: 0 | FB20: 0 | FC20: 0 | FH20: 12 | FI20: 0 | FJ20: 0 | FK20: 0 | FR20: 0 | FS20: 0 | FT20: 0 | GG20: 1 | GH20: 1 | GI20: 1 | GL20: 1 | GM20: 1 | GN20: 1
C21: 3 | D21: =IF(#REF!=R47,1,IF(R10=0,E21*1.61,IF(AND(A21=1,Q10=1),1,IF(AND(B21=2,R10=2),1,IF(AND(C21=3,S10=3),1,E21*1.61))))) ->  | J21: 0 | N21: 0 | R21: 0 | V21: 0 | Z21: 0 | AB21: ='>>Convertisseur'!N17 -> 0 | AG21: =IF($Y$2=0,0,IF(OR($Y$2=AH20,$Y$2=AI20,$Y$2=AJ20,$Y$2=AK20,$Y$2=AL20,$Y$2=AM20,$Y$2=AN20,$Y$2=AO20,$Y$2=AP20),1,0)) -> 0 | AH21: 3 | AI21: 31 | AR21: =IF(AI65>=AI66,AI65,AI66) -> 0.5 | AV21: 16 | BD21: 8 | BE21: =AO20 -> 0 | BG21: 0 | BO21: =IF(BR21=1,1,BQ21) -> 1 | BP21: =IF(BR21=1,1,BS21) -> 1 | BQ21: 0 | BR21: 1 | BS21: 0 | CA21: =IF(CD21=1,1,CC21) -> 1 | CB21: =IF(CD21=1,1,CE21) -> 1 | CC21: 0 | CD21: 1 | CE21: 0 | CF21: 12 | CJ21: 0 | CN21: 0 | CO21: 0 | CP21: 0 | CQ21: 0 | CS21: 10 | CT21: 13 | CU21: 11 | DC21: 0 | DD21: 0 | DE21: 0 | DF21: 0 | DH21: 13 | DI21: 10 | DJ21: 11 | DQ21: =IF(DT21=1,1,DS21) -> 1 | DR21: =IF(DT21=1,1,DU21) -> 1 | DS21: 0 | DT21: 1 | DU21: 0 | EI21: 12 | EK21: 1 | EL21: 3214 | ER21: 12 | ET21: 1 | EU21: 21 | EV21: 0 | EY21: 12 | FA21: 0 | FB21: 0 | FC21: 0 | FH21: 13 | FI21: 0 | FJ21: 0 | FK21: 0 | FR21: 0 | FS21: 0 | FT21: 0 | GG21: 1 | GH21: 1 | GI21: 1 | GL21: 1 | GM21: 1 | GN21: 1
C22: 3 | D22: =IF(#REF!=V47,1,IF(V10=0,E22*1.61,IF(AND(A22=1,U10=1),1,IF(AND(B22=2,V10=2),1,IF(AND(C22=3,W10=3),1,E22*1.61))))) ->  | J22: 0 | N22: 0 | R22: 0 | V22: 0 | Z22: 0 | AB22: 5 | AG22: =IF($Y$2=0,0,IF(OR($Y$2=AH21,$Y$2=AI21,$Y$2=AJ21,$Y$2=AK21,$Y$2=AL21,$Y$2=AM21,$Y$2=AN21,$Y$2=AO21,$Y$2=AP21),1,0)) -> 0 | AH22: 1 | AI22: 2 | AJ22: 3 | AK22: 4 | AL22: 5 | AM22: 6 | AN22: 7 | AO22: 8 | AP22: 9 | AR22: =IF(AJ65<>"R",0,IF(AND(AJ65="R",I10<>""),0,1)) -> 0 | AS22: 0 | AV22: 17 | BD22: 9 | BE22: =AP20 -> 0 | BG22: 0 | BO22: =IF(BR22=1,1,BS22) -> 1 | BP22: =IF(BR22=1,1,BQ22) -> 1 | BQ22: =IF(I22<>"",1,0) -> 0 | BR22: 1 | BS22: 0 | CA22: =IF(CD22=1,1,CE22) -> 1 | CB22: =IF(CD22=1,1,CC22) -> 1 | CC22: 0 | CD22: 1 | CE22: 0 | CF22: 13 | CJ22: 0 | CN22: 0 | CO22: 0 | CP22: 0 | CQ22: 0 | CS22: 11 | CT22: 14 | CU22: 12 | DC22: 0 | DD22: 0 | DE22: 0 | DF22: 0 | DH22: 14 | DI22: 11 | DJ22: 12 | DQ22: =IF(DT22=1,1,DU22) -> 1 | DR22: =IF(DT22=1,1,DS22) -> 1 | DS22: 0 | DT22: 1 | DU22: 0 | EI22: 13 | EK22: 0 | EL22: 0 | ER22: 13 | ET22: 0 | EU22: 0 | EV22: 0 | EY22: 13 | FA22: 0 | FB22: 0 | FC22: 0 | FH22: 14 | FI22: 0 | FJ22: 0 | FK22: 0 | FR22: 0 | FS22: 0 | FT22: 0
A23: 1 | F23: 16 | J23: 0 | N23: 0 | R23: 0 | V23: 0 | Z23: 0 | AG23: 1 | AH23: 1 | AI23: 2 | AJ23: 3 | AK23: 4 | AL23: 5 | AM23: 6 | AN23: 7 | AO23: 8 | AR23: =IF(AJ65<>"N",0,IF(AND(AJ65="N",K10<>""),0,1)) -> 0 | AV23: 18 | BD23: 10 | BE23: =AH21 -> 3 | BG23: 3 | BO23: =CONCATENATE(BO10,BO11,BO12,BO13,BO14,BO15,BO16,BO17,BO18,BO19,BO20,BO21,BO22) -> 1111111111111 | BP23: =CONCATENATE(BP10,BP11,BP12,BP13,BP14,BP15,BP16,BP17,BP18,BP19,BP20,BP21,BP22) -> 1111111111111 | BQ23: =CONCATENATE(BQ10,BQ11,BQ12,BQ13,BQ14,BQ15,BQ16,BQ17,BQ18,BQ19,BQ20,BQ21,BQ22) -> 1000000000000 | BR23: =CONCATENATE(BR10,BR11,BR12,BR13,BR14,BR15,BR16,BR17,BR18,BR19,BR20,BR21,BR22) -> 1111111111111 | BS23: =CONCATENATE(BS10,BS11,BS12,BS13,BS14,BS15,BS16,BS17,BS18,BS19,BS20,BS21,BS22) -> 0100000000000 | CA23: =CONCATENATE(CA10,CA11,CA12,CA13,CA14,CA15,CA16,CA17,CA18,CA19,CA20,CA21,CA22) -> 1111111111111 | CB23: =CONCATENATE(CB10,CB11,CB12,CB13,CB14,CB15,CB16,CB17,CB18,CB19,CB20,CB21,CB22) -> 1111111111111 | CC23: =CONCATENATE(CC10,CC11,CC12,CC13,CC14,CC15,CC16,CC17,CC18,CC19,CC20,CC21,CC22) -> 1100000000000 | CD23: =CONCATENATE(CD10,CD11,CD12,CD13,CD14,CD15,CD16,CD17,CD18,CD19,CD20,CD21,CD22) -> 1111111111111 | CE23: =CONCATENATE(CE10,CE11,CE12,CE13,CE14,CE15,CE16,CE17,CE18,CE19,CE20,CE21,CE22) -> 0000000000000 | CJ23: 0 | CL23: =CONCATENATE(CL10,CL11,CL12,CL13,CL14,CL15,CL16,CL17,CL18,CL19,CL20,CL21,CL22) ->  | CM23: =CONCATENATE(CM10,CM11,CM12,CM13,CM14,CM15,CM16,CM17,CM18,CM19,CM20,CM21,CM22) ->  | CN23: 0 | CO23: 0 | CP23: 0 | CQ23: 0 | CS23: 12 | CT23: 15 | CU23: 13 | DA23: =CONCATENATE(DA10,DA11,DA12,DA13,DA14,DA15,DA16,DA17,DA18,DA19,DA20,DA21,DA22) ->  | DC23: 1100000000000 | DD23: 0000000000000 | DE23: 0100000000000 | DF23: 1000000000000 | DH23: =MAX(DH10:DH22) -> 14 | DI23: =MAX(DI10:DI22) -> 11 | DJ23: =MAX(DJ10:DJ22) -> 12 | DK23: =MAX(DH23:DJ23) -> 14 | DQ23: =CONCATENATE(DQ10,DQ11,DQ12,DQ13,DQ14,DQ15,DQ16,DQ17,DQ18,DQ19,DQ20,DQ21,DQ22) -> 1111111111111 | DR23: =CONCATENATE(DR10,DR11,DR12,DR13,DR14,DR15,DR16,DR17,DR18,DR19,DR20,DR21,DR22) -> 0011111111111 | DS23: =CONCATENATE(DS10,DS11,DS12,DS13,DS14,DS15,DS16,DS17,DS18,DS19,DS20,DS21,DS22) -> 0100000000000 | DT23: =CONCATENATE(DT10,DT11,DT12,DT13,DT14,DT15,DT16,DT17,DT18,DT19,DT20,DT21,DT22) -> 0011111111111 | DU23: =CONCATENATE(DU10,DU11,DU12,DU13,DU14,DU15,DU16,DU17,DU18,DU19,DU20,DU21,DU22) -> 1000000000000 | EI23: 14 | EK23: 0 | EL23: 0 | ER23: 14 | ET23: 0 | EU23: 0 | EV23: 0 | EY23: 14 | FA23: 0 | FB23: 0 | FC23: 0 | FH23: 15 | FI23: 0 | FJ23: 0 | FK23: 0 | FR23: 0 | FS23: 0 | FT23: 0
J24: 0 | N24: 0 | R24: 0 | V24: 0 | Z24: 0 | AG24: =AP24 -> 2 | AP24: ='>>Convertisseur'!C45 -> 2 | AR24: =IF(OR(AR22=1,AR23=1),1,0) -> 0 | AV24: 19 | BD24: 11 | BE24: =AI21 -> 31 | BG24: 31 | BO24: =IF(BP9=13,13,IF(BO9=13,13,SEARCH(0,BP23,1)-1)) -> 13 | BP24: =MAX(BQ24:BS24) -> 13 | BQ24: =IF(BQ9=13,13,SEARCH(0,BQ23,1)-1) -> 1 | BR24: =IF(BR9=13,13,SEARCH(0,BR23,1)-1) -> 13 | BS24: =IF(BS9=13,13,SEARCH(0,BS23,1)-1) -> 0 | BY24: =MAX(BZ24:CA24) -> 13 | BZ24: =IF(CB9=13,13,IF(CA9=13,13,SEARCH(0,CA23,1)-1)) -> 13 | CA24: =IF(CB9=13,13,IF(CA9=13,13,SEARCH(0,CB23,1)-1)) -> 13 | CB24: =MAX(CC24:CE24) -> 13 | CC24: =IF(CC9=13,13,SEARCH(0,CC23,1)-1) -> 2 | CD24: =IF(CD9=13,13,SEARCH(0,CD23,1)-1) -> 13 | CE24: =IF(CE9=13,13,SEARCH(0,CE23,1)-1) -> 0 | CJ24: 0 | CN24: 0 | CO24: 0 | CP24: 0 | CQ24: 0 | CS24: 13 | CT24: 16 | CU24: 14 | CY24: =MAX(CZ24:DB24) -> 2 | DB24: =IF(DC9=13,13,SEARCH(0,DC23,1)-1) -> 2 | DC24: =MAX(DD24:DF24) -> 1 | DD24: =IF(DD9=13,13,SEARCH(0,DD23,1)-1) -> 0 | DE24: =IF(DE9=13,13,SEARCH(0,DE23,1)-1) -> 0 | DF24: =IF(DF9=13,13,SEARCH(0,DF23,1)-1) -> 1 | DO24: =MAX(DP24:DQ24) -> 13 | DP24: =IF(DR9=13,13,IF(DQ9=13,13,SEARCH(0,DQ23,1)-1)) -> 13 | DQ24: =IF(DR9=13,13,IF(DQ9=13,13,SEARCH(0,DR23,1)-1)) -> 13 | DR24: =MAX(DS24:DU24) -> 1 | DS24: =IF(DS9=13,13,SEARCH(0,DS23,1)-1) -> 0 | DT24: =IF(DT9=13,13,SEARCH(0,DT23,1)-1) -> 0 | DU24: =IF(DU9=13,13,SEARCH(0,DU23,1)-1) -> 1 | EI24: 15 | EK24: 0 | EL24: 0 | ER24: 15 | ET24: 0 | EU24: 0 | EV24: 0 | EY24: 15 | FA24: 0 | FB24: 0 | FC24: 0 | FH24: 16 | FI24: 0 | FJ24: 0 | FK24: 0 | FR24: 0 | FS24: 0 | FT24: 0 | GG24: =IF(GG14=1,1,0) -> 1 | GH24: =IF(GH14=1,1,0) -> 1 | GI24: =IF(GI14=1,1,0) -> 0 | GL24: =IF(GL14=1,1,0) -> 1 | GM24: =IF(GM14=1,1,0) -> 1 | GN24: =IF(GN14=1,1,0) -> 0
J25: 0 | N25: 0 | R25: 0 | V25: 0 | Z25: 0 | AB25: 1 | AG25: =IF(OR($Y$2=AH24,$Y$2=AI24,$Y$2=AJ24,$Y$2=AK24,$Y$2=AL24,$Y$2=AM24,$Y$2=AN24,$Y$2=AO24),1,0) -> 0 | AV25: 20 | BD25: 12 | BE25: =AJ21 -> 0 | BG25: 0 | BO25: =IF(BS10=1,1,0) -> 0 | BP25: =IF(ISERROR(BR25),"",BR25) ->  | BQ25: 2 | BR25: =IF(BR24="","",IF(BR24=13,"",SEARCH(0,BS23,BR24+1))) ->  | BS25: =SEARCH(1,BS23,BS24+1) -> 2 | BT25: 1 | BZ25: =IF(CC10=1,1,0) -> 1 | CA25: =IF(CE10=1,1,0) -> 0 | CB25: =IF(ISERROR(CD25),"",CD25) ->  | CD25: =IF(CD24="","",IF(CD24=13,"",SEARCH(0,CE23,CD24+1))) ->  | CE25: =SEARCH(1,CE23,CE24+1) ->  | CF25: 1 | CJ25: 0 | CN25: 0 | CO25: 0 | CP25: 0 | CQ25: 0 | CS25: 14 | CT25: 17 | CU25: 15 | DD25: =SUM(DD10:DD22) -> 0 | DE25: =SUM(DE10:DE22) -> 1 | DF25: =SUM(DF10:DF22) -> 1 | DP25: =IF(DS10=1,1,0) -> 0 | DQ25: =IF(DU10=1,1,0) -> 1 | DR25: =IF(ISERROR(DT25),"",DT25) -> 2 | DT25: =IF(DT24="","",IF(DT24=13,"",SEARCH(0,DU23,DT24+1))) -> 2 | DU25: =SEARCH(1,DU23,DU24+1) ->  | DV25: 1 | EI25: 16 | EK25: 0 | EL25: 0 | ER25: 16 | ET25: 0 | EU25: 0 | EV25: 0 | EY25: 16 | FA25: 0 | FB25: 0 | FC25: 0 | FH25: 17 | FI25: 0 | FJ25: 0 | FK25: 0 | FR25: 0 | FS25: 0 | FT25: 0 | GG25: =IF(AND(GG14=1,GG15=1),1,0) -> 0 | GH25: =IF(AND(GH14=1,GH15=1),1,0) -> 1 | GI25: =IF(AND(GI14=1,GI15=1),1,0) -> 0 | GL25: =IF(AND(GL14=1,GL15=1),1,0) -> 1 | GM25: =IF(AND(GM14=1,GM15=1),1,0) -> 0 | GN25: =IF(AND(GN14=1,GN15=1),1,0) -> 0
F26: P | H26: 1 | J26: 0 | N26: 0 | R26: 0 | V26: 0 | Z26: 0 | AG26: =IF(AC27=9,AD28,IF(AC27=10,AD29,IF(AC27=11,AD30,IF(AC27=12,AD31,IF(AC27=13,AD32,IF(AC27=14,AD33,IF(AC27=15,AD34,IF(AC27=16,AD35,"")))))))) -> 0 | AH26: 9 | AI26: 10 | AJ26: 11 | AK26: 12 | AL26: 13 | AM26: 14 | AN26: 15 | AO26: 16 | AV26: 21 | BD26: 13 | BE26: =AK21 -> 0 | BG26: 0 | BO26: =IF(BS11=1,BO25+1,0) -> 1 | BR26: =IF(BR25="","",IF(BR25=13,"",SEARCH(0,BS23,BR25+1))) ->  | BS26: =SEARCH(1,BS23,BS25+1) ->  | BT26: 2 | BX26: =IF(ISERROR(BZ26),"",BZ26) -> 2 | BY26: =IF(ISERROR(CA26),"",CA26) -> 0 | BZ26: =IF(CC11=1,BZ25+1,0) -> 2 | CA26: =IF(CE11=1,CA25+1,0) -> 0 | CD26: =IF(CD25="","",IF(CD25=13,"",SEARCH(0,CE23,CD25+1))) ->  | CE26: =SEARCH(1,CE23,CE25+1) ->  | CF26: 2 | CJ26: 0 | CN26: 0 | CO26: 0 | CP26: 0 | CQ26: 0 | CS26: =IF(CO26=CO25,IF(CS25=0,2+CS25,1+CS25),0) -> 15 | CT26: 18 | CU26: 16 | DC26: =IF(AND(DF26=1,DE26=1,DD26=1,CY60>=U51),1,0) -> 1 | DD26: =IF(DD25>=U53,1,0) -> 1 | DE26: =IF(DE25>=U53,1,0) -> 1 | DF26: =IF(DF25>=U53,1,0) -> 1 | DN26: =IF(ISERROR(DP26),"",DP26) -> 1 | DO26: 0 | DP26: =IF(DS11=1,DP25+1,0) -> 1 | DQ26: =IF(DU11=1,DQ25+1,0) -> 0 | DR26: 3 | DT26: =IF(DT25="","",IF(DT25=13,"",SEARCH(0,DU23,DT25+1))) -> 3 | DU26: =SEARCH(1,DU23,DU25+1) ->  | DV26: 2 | EI26: 17 | EK26: 0 | EL26: 0 | ER26: 17 | ET26: 0 | EU26: 0 | EV26: 0 | EY26: 17 | FA26: 0 | FB26: 0 | FC26: 0 | FH26: 18 | FI26: 0 | FJ26: 0 | FK26: 0 | FR26: 0 | FS26: 0 | FT26: 0 | GG26: =IF(AND(GG14=1,GG15=1,GG16=1),1,0) -> 0 | GH26: =IF(AND(GH14=1,GH15=1,GH16=1),1,0) -> 1 | GI26: =IF(AND(GI14=1,GI15=1,GI16=1),1,0) -> 0 | GL26: =IF(AND(GL14=1,GL15=1,GL16=1),1,0) -> 1 | GM26: =IF(AND(GM14=1,GM15=1,GM16=1),1,0) -> 0 | GN26: =IF(AND(GN14=1,GN15=1,GN16=1),1,0) -> 0
F27: 1 | H27: 2 | J27: 0 | N27: 0 | R27: 0 | V27: 0 | Z27: 0 | AC27: 9 | AG27: =IF(OR(AG25<>0,AG26<>0),1,0) -> 0 | AV27: 22 | BD27: 14 | BE27: =AL21 -> 0 | BG27: 0 | BO27: 0 | BR27: =IF(BR26="","",IF(BR26=13,"",SEARCH(0,BS23,BR26+1))) ->  | BS27: =SEARCH(1,BS23,BS26+1) ->  | BT27: 3 | BX27: =IF(ISERROR(BZ27),"",BZ27) -> 0 | BY27: 0 | BZ27: =IF(CC12=1,BZ26+1,0) -> 0 | CA27: 0 | CD27: =IF(CD26="","",IF(CD26=13,"",SEARCH(0,CE23,CD26+1))) ->  | CE27: =SEARCH(1,CE23,CE26+1) ->  | CF27: 3 | CI27: =Q27 ->  | CJ27: 0 | CN27: 0 | CO27: 0 | CP27: 0 | CQ27: 0 | CS27: 16 | CT27: 19 | CU27: 17 | CZ27: =IF(DD10=1,1,0) -> 0 | DA27: =IF(DE10=1,1,0) -> 0 | DB27: =IF(DF10=1,1,0) -> 1 | DN27: 0 | DO27: 0 | DP27: 0 | DQ27: 0 | DR27: 4 | DT27: =IF(DT26="","",IF(DT26=13,"",SEARCH(0,DU23,DT26+1))) -> 4 | DU27: =SEARCH(1,DU23,DU26+1) ->  | DV27: 3 | EI27: 18 | EK27: 0 | EL27: 0 | ER27: 18 | ET27: 0 | EU27: 0 | EV27: 0 | EY27: 18 | FA27: 0 | FB27: 0 | FC27: 0 | FH27: 19 | FI27: 0 | FJ27: 0 | FK27: 0 | FR27: 0 | FS27: 0 | FT27: 0 | GG27: =IF(AND(GG14=1,GG15=1,GG16=1,GG17=1),1,0) -> 0 | GH27: =IF(AND(GH14=1,GH15=1,GH16=1,GH17=1),1,0) -> 1 | GI27: =IF(AND(GI14=1,GI15=1,GI16=1,GI17=1),1,0) -> 0 | GL27: =IF(AND(GL14=1,GL15=1,GL16=1,GL17=1),1,0) -> 1 | GM27: =IF(AND(GM14=1,GM15=1,GM16=1,GM17=1),1,0) -> 0 | GN27: =IF(AND(GN14=1,GN15=1,GN16=1,GN17=1),1,0) -> 0
F28: 0 | H28: 2 | J28: 0 | N28: 0 | R28: 0 | V28: 0 | Z28: 0 | AD28: =IF(OR(Y2=AH25),1,0) -> 0 | AE28: 9 | AH28: ='>>Convertisseur'!J258 -> 2 | AI28: ='>>Convertisseur'!K258 ->  | AJ28: ='>>Convertisseur'!L258 ->  | AK28: ='>>Convertisseur'!M258 ->  | AL28: ='>>Convertisseur'!N258 ->  | AM28: ='>>Convertisseur'!O258 ->  | AR28: 1 | AV28: 23 | BD28: 15 | BE28: =AM21 -> 0 | BG28: 0 | BO28: 0 | BR28: =IF(BR27="","",IF(BR27=13,"",SEARCH(0,BS23,BR27+1))) ->  | BS28: =SEARCH(1,BS23,BS27+1) ->  | BT28: 4 | BX28: 0 | BY28: 0 | BZ28: 0 | CA28: 0 | CD28: =IF(CD27="","",IF(CD27=13,"",SEARCH(0,CE23,CD27+1))) ->  | CE28: =SEARCH(1,CE23,CE27+1) ->  | CF28: 4 | CJ28: 0 | CN28: 0 | CO28: 0 | CP28: 0 | CQ28: 0 | CS28: 17 | CT28: 20 | CU28: 18 | CZ28: =IF(CZ27=0,0,IF(DD11=1,CZ27+1,0)) -> 0 | DA28: =IF(DA27=0,0,IF(DE11=1,DA27+1,0)) -> 0 | DB28: 0 | DN28: 0 | DO28: 0 | DP28: 0 | DQ28: 0 | DR28: 5 | DT28: =IF(DT27="","",IF(DT27=13,"",SEARCH(0,DU23,DT27+1))) -> 5 | DU28: =SEARCH(1,DU23,DU27+1) ->  | DV28: 4 | EI28: 19 | EK28: 0 | EL28: 0 | ER28: 19 | ET28: 1 | EU28: 5 | EV28: 0 | EY28: 19 | FA28: 0 | FB28: 0 | FC28: 0 | FH28: 20 | FI28: 0 | FJ28: 0 | FK28: 0 | FR28: 0 | FS28: 0 | FT28: 0 | GG28: =IF(AND(GG14=1,GG15=1,GG16=1,GG17=1,GG18=1),1,0) -> 0 | GH28: =IF(AND(GH14=1,GH15=1,GH16=1,GH17=1,GH18=1),1,0) -> 1 | GI28: =IF(AND(GI14=1,GI15=1,GI16=1,GI17=1,GI18=1),1,0) -> 0 | GL28: =IF(AND(GL14=1,GL15=1,GL16=1,GL17=1,GL18=1),1,0) -> 1 | GM28: =IF(AND(GM14=1,GM15=1,GM16=1,GM17=1,GM18=1),1,0) -> 0 | GN28: =IF(AND(GN14=1,GN15=1,GN16=1,GN17=1,GN18=1),1,0) -> 0
H29: 3 | J29: 0 | N29: 0 | R29: 0 | V29: 0 | Z29: 0 | AB29: ='>>Convertisseur'!R225 -> 1 | AD29: =IF(OR(Y2=AH25,Y2=AI25),1,0) -> 0 | AE29: 10 | AG29: ='>>Convertisseur'!N212-1 -> 1 | AH29: ='>>Convertisseur'!$J$257 -> 6 | AI29: ='>>Convertisseur'!$K$257 ->  | AJ29: ='>>Convertisseur'!$L$257 ->  | AK29: ='>>Convertisseur'!$M$257 ->  | AL29: ='>>Convertisseur'!$N$257 ->  | AM29: ='>>Convertisseur'!$O$257 ->  | AN29: =IF(AJ29="","",SUM(AH29:AJ29)) ->  | AO29: =IF(AK29="","",SUM(AH29:AK29)) ->  | AV29: 24 | BD29: 16 | BE29: =AN21 -> 0 | BG29: 0 | BO29: 0 | BR29: =IF(BR28="","",IF(BR28=13,"",SEARCH(0,BS23,BR28+1))) ->  | BS29: =SEARCH(1,BS23,BS28+1) ->  | BT29: 5 | BX29: 0 | BY29: 0 | BZ29: 0 | CA29: 0 | CD29: =IF(CD28="","",IF(CD28=13,"",SEARCH(0,CE23,CD28+1))) ->  | CE29: =SEARCH(1,CE23,CE28+1) ->  | CF29: 5 | CJ29: 0 | CN29: 0 | CO29: 0 | CP29: 0 | CQ29: 0 | CS29: 18 | CT29: 21 | CU29: 19 | CZ29: =IF(CZ28=0,0,IF(DD12=1,CZ28+1,0)) -> 0 | DA29: 0 | DB29: 0 | DN29: 0 | DO29: 0 | DP29: 0 | DQ29: 0 | DR29: 6 | DT29: =IF(DT28="","",IF(DT28=13,"",SEARCH(0,DU23,DT28+1))) -> 6 | DU29: =SEARCH(1,DU23,DU28+1) ->  | DV29: 5 | EI29: 20 | EK29: 0 | EL29: 0 | ER29: 20 | ET29: 0 | EU29: 0 | EV29: 0 | EY29: 20 | FA29: 0 | FB29: 0 | FC29: 0 | FH29: 21 | FI29: 0 | FJ29: 0 | FK29: 0 | FR29: 0 | FS29: 0 | FT29: 0 | GG29: =IF(AND(GG14=1,GG15=1,GG16=1,GG17=1,GG18=1,GG19=1),1,0) -> 0 | GH29: =IF(AND(GH14=1,GH15=1,GH16=1,GH17=1,GH18=1,GH19=1),1,0) -> 1 | GI29: =IF(AND(GI14=1,GI15=1,GI16=1,GI17=1,GI18=1,GI19=1),1,0) -> 0 | GL29: =IF(AND(GL14=1,GL15=1,GL16=1,GL17=1,GL18=1,GL19=1),1,0) -> 1 | GM29: =IF(AND(GM14=1,GM15=1,GM16=1,GM17=1,GM18=1,GM19=1),1,0) -> 0 | GN29: =IF(AND(GN14=1,GN15=1,GN16=1,GN17=1,GN18=1,GN19=1),1,0) -> 0
H30: 4 | J30: 0 | N30: 0 | R30: 0 | V30: 0 | Z30: 0 | AD30: =IF(OR(Y2=AH25,Y2=AI25,Y2=AJ25),1,0) -> 0 | AE30: 11 | AO30: 65 | AR30: =IF(OR(AR31=1,AR32=1),1,0) -> 0 | AV30: 25 | BD30: 17 | BE30: =AO21 -> 0 | BG30: 0 | BO30: 0 | BR30: =IF(BR29="","",IF(BR29=13,"",SEARCH(0,BS23,BR29+1))) ->  | BS30: =SEARCH(1,BS23,BS29+1) ->  | BT30: 6 | BX30: 0 | BY30: 0 | BZ30: 0 | CA30: 0 | CD30: =IF(CD29="","",IF(CD29=13,"",SEARCH(0,CE23,CD29+1))) ->  | CE30: =SEARCH(1,CE23,CE29+1) ->  | CF30: 6 | CJ30: 0 | CN30: 0 | CO30: 0 | CP30: 0 | CQ30: 0 | CS30: 19 | CT30: 22 | CU30: 20 | CZ30: 0 | DA30: 0 | DB30: 0 | DN30: 0 | DO30: 0 | DP30: 0 | DQ30: 0 | DR30: 7 | DT30: =IF(DT29="","",IF(DT29=13,"",SEARCH(0,DU23,DT29+1))) -> 7 | DU30: =SEARCH(1,DU23,DU29+1) ->  | DV30: 6 | EI30: 21 | EK30: 0 | EL30: 0 | ER30: 21 | ET30: 0 | EU30: 0 | EV30: 0 | EY30: 21 | FA30: 0 | FB30: 0 | FC30: 0 | FH30: 22 | FI30: 0 | FJ30: 0 | FK30: 0 | FR30: 0 | FS30: 0 | FT30: 0 | GG30: =IF(AND(GG14=1,GG15=1,GG16=1,GG17=1,GG18=1,GG19=1,GG20=1),1,0) -> 0 | GH30: =IF(AND(GH14=1,GH15=1,GH16=1,GH17=1,GH18=1,GH19=1,GH20=1),1,0) -> 1 | GI30: =IF(AND(GI14=1,GI15=1,GI16=1,GI17=1,GI18=1,GI19=1,GI20=1),1,0) -> 0 | GL30: =IF(AND(GL14=1,GL15=1,GL16=1,GL17=1,GL18=1,GL19=1,GL20=1),1,0) -> 1 | GM30: =IF(AND(GM14=1,GM15=1,GM16=1,GM17=1,GM18=1,GM19=1,GM20=1),1,0) -> 0 | GN30: =IF(AND(GN14=1,GN15=1,GN16=1,GN17=1,GN18=1,GN19=1,GN20=1),1,0) -> 0
H31: 0 | J31: 0 | N31: 0 | R31: 0 | V31: 0 | Z31: 0 | AB31: =IF(Z5=6,1,IF(Z5=3,1,0)) -> 0 | AC31: 1 | AD31: =IF(OR(Y2=AH25,Y2=AI25,Y2=AJ25,Y2=AK25),1,0) -> 0 | AE31: 12 | AG31: 1 | AH31: 2 | AI31: =LOOKUP(Y2,'>>Convertisseur'!K265:K301,'>>Convertisseur'!J265:J301) -> 2 | AJ31: 1 | AK31: 1 | AL31: =IF(AJ31>AK31,1,2) -> 2 | AM31: =IF(AL31<>AH31,AG31,1) -> 1 | AN31: =ABS(AJ31-AK31) -> 0 | AO31: =AJ31+AK31 -> 2 | AR31: =IF(AJ56<>"N",0,IF(AND(AJ56="N",K10<>""),0,1)) -> 0 | AV31: 26 | BD31: 18 | BE31: =AP21 -> 0 | BG31: 0 | BO31: 0 | BR31: =IF(BR30="","",IF(BR30=13,"",SEARCH(0,BS23,BR30+1))) ->  | BS31: =SEARCH(1,BS23,BS30+1) ->  | BT31: 7 | BX31: 0 | BY31: 0 | BZ31: 0 | CA31: 0 | CD31: =IF(CD30="","",IF(CD30=13,"",SEARCH(0,CE23,CD30+1))) ->  | CE31: =SEARCH(1,CE23,CE30+1) ->  | CF31: 7 | CI31: =Q31 ->  | CJ31: =R31 -> 0 | CK31: =S31 ->  | CN31: 0 | CO31: 0 | CP31: 0 | CQ31: 0 | CS31: 20 | CT31: 23 | CU31: 21 | CZ31: 0 | DA31: 0 | DB31: 0 | DN31: 0 | DO31: 0 | DP31: 0 | DQ31: 0 | DR31: 8 | DT31: =IF(DT30="","",IF(DT30=13,"",SEARCH(0,DU23,DT30+1))) -> 8 | DU31: =SEARCH(1,DU23,DU30+1) ->  | DV31: 7 | EI31: 22 | EK31: 0 | EL31: 0 | ER31: 22 | ET31: 0 | EU31: 0 | EV31: 0 | EY31: 22 | FA31: 0 | FB31: 0 | FC31: 0 | FH31: 23 | FI31: =IF(R31=0,0,IF(Q31<>"",1,0)) -> 0 | FJ31: 0 | FK31: 0 | FR31: 0 | FS31: 0 | FT31: 0 | GG31: =IF(AND(GG14=1,GG15=1,GG16=1,GG17=1,GG18=1,GG19=1,GG20=1,GG21=1),1,0) -> 0 | GH31: =IF(AND(GH14=1,GH15=1,GH16=1,GH17=1,GH18=1,GH19=1,GH20=1,GH21=1),1,0) -> 1 | GI31: =IF(AND(GI14=1,GI15=1,GI16=1,GI17=1,GI18=1,GI19=1,GI20=1,GI21=1),1,0) -> 0 | GL31: =IF(AND(GL14=1,GL15=1,GL16=1,GL17=1,GL18=1,GL19=1,GL20=1,GL21=1),1,0) -> 1 | GM31: =IF(AND(GM14=1,GM15=1,GM16=1,GM17=1,GM18=1,GM19=1,GM20=1,GM21=1),1,0) -> 0 | GN31: =IF(AND(GN14=1,GN15=1,GN16=1,GN17=1,GN18=1,GN19=1,GN20=1,GN21=1),1,0) -> 0
N32: 0 | Q32: =SUMIF(Q10:Q18,1,Q10:Q18)/1 -> 1 | R32: =SUMIF(R10:R18,2,R10:R18)/2 -> 0 | S32: =SUMIF(S10:S18,3,S10:S18)/3 -> 1 | U32: =SUMIF(U10:U18,1,U10:U18)/1 -> 0 | V32: =SUMIF(V10:V18,2,V10:V18)/2 -> 1 | W32: =SUMIF(W10:W18,3,W10:W18)/3 -> 1 | Z32: 0 | AC32: 0 | AD32: =IF(OR(Y2=AH25,Y2=AI25,Y2=AJ25,Y2=AK25,Y2=AL25),1,0) -> 0 | AE32: 13 | AH32: 1 | AI32: 2 | AJ32: 3 | AK32: 4 | AL32: 5 | AM32: 6 | AN32: 7 | AO32: 8 | AP32: 9 | AR32: =IF(AJ56<>"R",0,IF(AND(AJ56="R",I10<>""),0,1)) -> 0 | AS32: 0 | AV32: 27 | BE32: =AH33 -> 0 | BG32: 0 | BO32: 0 | BR32: =IF(BR31="","",IF(BR31=13,"",SEARCH(0,BS23,BR31+1))) ->  | BS32: =SEARCH(1,BS23,BS31+1) ->  | BT32: 8 | BX32: 0 | BY32: 0 | BZ32: =IF(CC17=1,BZ31+1,0) -> 0 | CA32: 0 | CD32: =IF(CD31="","",IF(CD31=13,"",SEARCH(0,CE23,CD31+1))) ->  | CE32: =SEARCH(1,CE23,CE31+1) ->  | CF32: 8 | CN32: =CONCATENATE(CN10,CN11,CN12,CN13,CN14,CN15,CN16,CN17,CN18,CN19,CN20,CN21,CN22,CN23,CN24,CN25,CN26,CN27,CN28,CN29,CN30,CN31) -> 1100000000000000000000 | CO32: =CONCATENATE(CO10,CO11,CO12,CO13,CO14,CO15,CO16,CO17,CO18,CO19,CO20,CO21,CO22) -> 0100000000000 | CP32: =CONCATENATE(CP10,CP11,CP12,CP13,CP14,CP15,CP16,CP17,CP18,CP19,CP20,CP21,CP22) -> 0000000000000 | CQ32: =CONCATENATE(CQ10,CQ11,CQ12,CQ13,CQ14,CQ15,CQ16,CQ17,CQ18,CQ19,CQ20,CQ21,CQ22) -> 1000000000000 | CS32: =MAX(CS10:CS22) -> 11 | CT32: =MAX(CT10:CT22) -> 14 | CU32: =MAX(CU10:CU22) -> 12 | CV32: =MAX(CS32:CU32) -> 14 | CZ32: 0 | DA32: 0 | DB32: 0 | DN32: 0 | DO32: 0 | DP32: 0 | DQ32: 0 | DR32: 9 | DT32: =IF(DT31="","",IF(DT31=13,"",SEARCH(0,DU23,DT31+1))) -> 9 | DU32: =SEARCH(1,DU23,DU31+1) ->  | DV32: 8 | EI32: 23 | EK32: 0 | EL32: 0 | ER32: 23 | ET32: 0 | EU32: 0 | EV32: 0 | EY32: 23 | FA32: 0 | FB32: 0 | FC32: 0 | FH32: 24 | FI32: =IF('>>Convertisseur_2'!AO24<>"",1,"") ->  | FJ32: =IF('>>Convertisseur_2'!AP24=0,0,(IF('>>Convertisseur_2'!AP24<>"",1,""))) -> 0 | FK32: =IF('>>Convertisseur_2'!AQ24<>"",1,"") ->  | FR32: =IF('>>Convertisseur_2'!AS24<>"",1,"") ->  | FS32: =IF('>>Convertisseur_2'!AT24=0,0,(IF('>>Convertisseur_2'!AT24<>"",1,""))) -> 0 | FT32: =IF('>>Convertisseur_2'!AU24<>"",1,"") -> 
E33: =IF(OR(I33<>0,J33<>0,K33<>0),1,0) -> 0 | F33: =SUM(I33:K33) -> 0 | G33: =SUM(I33:K33) -> 0 | H33: 1 | I33: =BB52+BG52 -> 0 | J33: =BB53+BG53 -> 0 | K33: =BB54+BG54 -> 0 | L33: ='>>Six'!I4 -> 1 | W33: 0 | AB33: 0 | AD33: =IF(OR(Y2=AH25,Y2=AI25,Y2=AJ25,Y2=AK25,Y2=AL25,Y2=AM25),1,0) -> 0 | AE33: 14 | AG33: 1 | AQ33: 12 | AR33: =IF(AI56>=AI57,AI56,AI57) ->  | AT33: 15 | AU33: 16 | AV33: 17 | AW33: 18 | AX33: 19 | AY33: 20 | AZ33: 21 | BA33: 22 | BE33: =AI33 -> 0 | BG33: 0 | BO33: 0 | BR33: =IF(BR32="","",IF(BR32=13,"",SEARCH(0,BS23,BR32+1))) ->  | BS33: =SEARCH(1,BS23,BS32+1) ->  | BT33: 9 | BX33: 0 | BY33: 0 | BZ33: 0 | CA33: 0 | CD33: =IF(CD32="","",IF(CD32=13,"",SEARCH(0,CE23,CD32+1))) ->  | CE33: =SEARCH(1,CE23,CE32+1) ->  | CF33: 9 | CN33: =MAX(CO33:CQ33) -> 1 | CO33: =IF(CO9=13,13,SEARCH(0,CO32,1)-1) -> 0 | CP33: =IF(CP9=13,13,SEARCH(0,CP32,1)-1) -> 0 | CQ33: =IF(CQ9=13,13,SEARCH(0,CQ32,1)-1) -> 1 | CZ33: 0 | DA33: 0 | DB33: 0 | DN33: 0 | DO33: 0 | DP33: 0 | DQ33: 0 | DR33: 10 | DT33: =IF(DT32="","",IF(DT32=13,"",SEARCH(0,DU23,DT32+1))) -> 10 | DU33: =SEARCH(1,DU23,DU32+1) ->  | DV33: 9 | EI33: 24 | EK33: 0 | EL33: 0 | ER33: 24 | ET33: 0 | EU33: 0 | EV33: 0 | EY33: 24 | FA33: 0 | FB33: 0 | FC33: 0 | FH33: 25 | FI33: =IF('>>Convertisseur_2'!AO25<>"",1,"") ->  | FJ33: =IF('>>Convertisseur_2'!AP25=0,0,(IF('>>Convertisseur_2'!AP25<>"",1,""))) -> 0 | FK33: =IF('>>Convertisseur_2'!AQ25<>"",1,"") ->  | FR33: =IF('>>Convertisseur_2'!AS25<>"",1,"") ->  | FS33: =IF('>>Convertisseur_2'!AT25=0,0,(IF('>>Convertisseur_2'!AT25<>"",1,""))) -> 0 | FT33: =IF('>>Convertisseur_2'!AU25<>"",1,"") ->  | GG33: =SUM(GG24:GG32) -> 1 | GH33: =SUM(GH24:GH32) -> 8 | GI33: =SUM(GI24:GI32) -> 0 | GL33: =SUM(GL24:GL32) -> 8 | GM33: =SUM(GM24:GM32) -> 1 | GN33: =SUM(GN24:GN32) -> 0
A34: =#REF! ->  | E34: =IF(OR(I34<>0,J34<>0,K34<>0),1,0) -> 0 | F34: =SUM(I34:K34) -> 0 | G34: =SUM(I34:K34) -> 0 | H34: =H33+3 -> 4 | I34: =BB55+BG55 -> 0 | J34: =BB56+BG56 -> 0 | K34: =BB57+BG57 -> 0 | M34: S.2 | W34: 0 | X34: 1 | AD34: =IF(OR(Y2=AH25,Y2=AI25,Y2=AJ25,Y2=AK25,Y2=AL25,Y2=AM25,Y2=AN25),1,0) -> 0 | AE34: 15 | AG34: =IF(Y2=0,0,IF(OR(Y2=AH33,Y2=AI33,Y2=AJ33,Y2=AK33,Y2=AL33,Y2=AM33,Y2=AN33,Y2=AO33,Y2=AP33),1,0)) -> 0 | AR34: =IF(AI58>=AI59,AI58,AI59) ->  | AV34: 29 | BE34: =AJ33 -> 0 | BG34: 0 | BO34: 0 | BR34: =IF(BR33="","",IF(BR33=13,"",SEARCH(0,BS23,BR33+1))) ->  | BS34: =SEARCH(1,BS23,BS33+1) ->  | BT34: 10 | BX34: 0 | BY34: 0 | BZ34: 0 | CA34: 0 | CD34: =IF(CD33="","",IF(CD33=13,"",SEARCH(0,CE23,CD33+1))) ->  | CE34: =SEARCH(1,CE23,CE33+1) ->  | CF34: 10 | CO34: =SUM(CO10:CO22) -> 1 | CP34: =SUM(CP10:CP22) -> 0 | CQ34: =SUM(CQ10:CQ22) -> 1 | CZ34: 0 | DA34: 0 | DB34: 0 | DN34: 0 | DO34: 0 | DP34: 0 | DQ34: 0 | DR34: 11 | DT34: =IF(DT33="","",IF(DT33=13,"",SEARCH(0,DU23,DT33+1))) -> 11 | DU34: =SEARCH(1,DU23,DU33+1) ->  | DV34: 10 | EI34: 25 | EK34: 1 | EL34: 3216 | ER34: 25 | ET34: 1 | EU34: 33 | EV34: 0 | EY34: 25 | FA34: 0 | FB34: 0 | FC34: 0 | FH34: 26 | FI34: =IF('>>Convertisseur_2'!AO26<>"",1,"") ->  | FJ34: =IF('>>Convertisseur_2'!AP26=0,0,(IF('>>Convertisseur_2'!AP26<>"",1,""))) -> 0 | FK34: =IF('>>Convertisseur_2'!AQ26<>"",1,"") ->  | FR34: =IF('>>Convertisseur_2'!AS26<>"",1,"") ->  | FS34: =IF('>>Convertisseur_2'!AT26=0,0,(IF('>>Convertisseur_2'!AT26<>"",1,""))) -> 0 | FT34: =IF('>>Convertisseur_2'!AU26<>"",1,"") -> 
E35: 0 | F35: 0 | G35: 0 | H35: 7 | I35: =BB58+BG58 -> 0 | J35: =BB59+BG59 -> 0 | K35: =BB60+BG60 -> 0 | L35: ='>>Six'!I6 -> 0 | W35: 0 | X35: 1 | AD35: =IF(OR(Y2=AH25,Y2=AI25,Y2=AJ25,Y2=AK25,Y2=AL25,Y2=AM25,Y2=AN25,Y2=AO25),1,0) -> 0 | AE35: 16 | AG35: =IF(Y2=0,0,IF(OR(Y2=AO34,Y2=AP34,Y2=AN34,Y2=AH34,Y2=AI34,Y2=AJ34,Y2=AK34,Y2=AL34,Y2=AM34),1,0)) -> 0 | AH35: 1 | AI35: 2 | AJ35: 3 | AK35: 4 | AL35: 5 | AM35: 6 | AN35: 7 | AO35: 8 | AP35: 9 | AR35: =IF(AJ58<>"R",0,IF(AND(AJ58="R",I10<>""),0,1)) -> 0 | AS35: 0 | AV35: 30 | BE35: =AK33 -> 0 | BG35: 0 | BO35: 0 | BR35: =IF(BR34="","",IF(BR34=13,"",SEARCH(0,BS23,BR34+1))) ->  | BS35: =SEARCH(1,BS23,BS34+1) ->  | BT35: 11 | BX35: 0 | BY35: 0 | BZ35: 0 | CA35: 0 | CD35: =IF(CD34="","",IF(CD34=13,"",SEARCH(0,CE23,CD34+1))) ->  | CE35: =SEARCH(1,CE23,CE34+1) ->  | CF35: 11 | CN35: =IF(AND(CQ35=1,CP35=1,CO35=1,CJ60>=Q54),1,0) -> 1 | CO35: =IF(CO34>=Q53,1,0) -> 1 | CP35: =IF(CP34>=Q53,1,0) -> 1 | CQ35: =IF(CQ34>=Q53,1,0) -> 1 | CZ35: 0 | DA35: 0 | DB35: 0 | DN35: 0 | DO35: 0 | DP35: 0 | DQ35: 0 | DR35: 12 | DT35: =IF(DT34="","",IF(DT34=13,"",SEARCH(0,DU23,DT34+1))) -> 12 | DU35: =SEARCH(1,DU23,DU34+1) ->  | DV35: 11 | EI35: 26 | EK35: 0 | EL35: 0 | ER35: 26 | ET35: 0 | EU35: 0 | EV35: 0 | EY35: 26 | FA35: 0 | FB35: 0 | FC35: 0 | FH35: 27 | FI35: =IF('>>Convertisseur_2'!AO27<>"",1,"") ->  | FJ35: =IF('>>Convertisseur_2'!AP27=0,0,(IF('>>Convertisseur_2'!AP27<>"",1,""))) -> 0 | FK35: =IF('>>Convertisseur_2'!AQ27<>"",1,"") ->  | FR35: =IF('>>Convertisseur_2'!AS27<>"",1,"") ->  | FS35: =IF('>>Convertisseur_2'!AT27=0,0,(IF('>>Convertisseur_2'!AT27<>"",1,""))) -> 0 | FT35: =IF('>>Convertisseur_2'!AU27<>"",1,"") -> 
A36: =#REF! ->  | E36: 0 | F36: 0 | G36: 0 | H36: 10 | I36: =BB61+BG61 -> 0 | J36: =BB62+BG62 -> 0 | K36: =BB63+BG63 -> 0 | M36: S.4 | N36: =AC32 -> 0 | O36: =IF(AH34=0,"",AH34) ->  | P36: =IF(AI34=0,"",AI34) ->  | W36: 0 | AG36: =IF(OR(AG34=1,AG34=1),1,0) -> 0 | AQ36: 32 | AR36: =IF(AJ58<>"N",0,IF(AND(AJ58="N",K10<>""),0,1)) -> 0 | BE36: =AL33 -> 0 | BG36: 0 | BO36: 0 | BR36: =IF(BR35="","",IF(BR35=13,"",SEARCH(0,BS23,BR35+1))) ->  | BS36: =SEARCH(1,BS23,BS35+1) ->  | BT36: 12 | BX36: 0 | BY36: 0 | BZ36: 0 | CA36: 0 | CD36: =IF(CD35="","",IF(CD35=13,"",SEARCH(0,CE23,CD35+1))) ->  | CE36: =SEARCH(1,CE23,CE35+1) ->  | CF36: 12 | CZ36: 0 | DA36: 0 | DB36: 0 | DN36: 0 | DO36: 0 | DP36: 0 | DQ36: 0 | DR36: 13 | DT36: =IF(DT35="","",IF(DT35=13,"",SEARCH(0,DU23,DT35+1))) -> 13 | DU36: =SEARCH(1,DU23,DU35+1) ->  | DV36: 12 | EI36: 27 | EK36: 1 | EL36: 3254 | ER36: 27 | ET36: 1 | EU36: 55 | EV36: 0 | EY36: 27 | FA36: 0 | FB36: 0 | FC36: 0 | FH36: 28 | FI36: =IF('>>Convertisseur_2'!AO28<>"",1,"") ->  | FJ36: =IF('>>Convertisseur_2'!AP28=0,0,(IF('>>Convertisseur_2'!AP28<>"",1,""))) -> 0 | FK36: =IF('>>Convertisseur_2'!AQ28<>"",1,"") ->  | FR36: =IF('>>Convertisseur_2'!AS28<>"",1,"") ->  | FS36: =IF('>>Convertisseur_2'!AT28=0,0,(IF('>>Convertisseur_2'!AT28<>"",1,""))) -> 0 | FT36: =IF('>>Convertisseur_2'!AU28<>"",1,"") -> 
A37: =#REF! ->  | E37: 0 | F37: 0 | G37: 0 | H37: 13 | I37: =BB64+BG64 -> 0 | J37: =BB65+BG65 -> 0 | K37: =BB66+BG66 -> 0 | L37: ='>>Six'!I8 -> 0 | AB37: =IF(OR(Y2=27,Y2=29,Y2=36),1,0) -> 1 | AG37: =D38 -> 0 | AH37: =E38 -> 0 | AR37: =IF(OR(AR35=1,AR36=1),1,0) -> 0 | AV37: 32 | BE37: =AM33 -> 0 | BG37: 0 | BO37: 0 | BR37: =IF(BR36="","",IF(BR36=13,"",SEARCH(0,BS23,BR36+1))) ->  | BS37: =SEARCH(1,BS23,BS36+1) ->  | BT37: 13 | BX37: 0 | BY37: 0 | BZ37: 0 | CA37: 0 | CD37: =IF(CD36="","",IF(CD36=13,"",SEARCH(0,CE23,CD36+1))) ->  | CE37: =SEARCH(1,CE23,CE36+1) ->  | CF37: 13 | CJ37: =MAX(CK37:CM37) -> 2 | CM37: =IF(CN9=22,22,SEARCH(0,CN32,1)-1) -> 2 | CZ37: 0 | DA37: 0 | DB37: 0 | DN37: 0 | DO37: 0 | DP37: 0 | DQ37: 0 | DT37: =IF(DT36="","",IF(DT36=13,"",SEARCH(0,DU23,DT36+1))) ->  | DU37: =SEARCH(1,DU23,DU36+1) ->  | DV37: 13 | EI37: 28 | EK37: 0 | EL37: 0 | ER37: 28 | ET37: 1 | EU37: 5 | EV37: 0 | EY37: 28 | FA37: 0 | FB37: 0 | FC37: 0 | FH37: 29 | FI37: =IF('>>Convertisseur_2'!AO29<>"",1,"") ->  | FJ37: =IF('>>Convertisseur_2'!AP29=0,0,(IF('>>Convertisseur_2'!AP29<>"",1,""))) -> 0 | FK37: =IF('>>Convertisseur_2'!AQ29<>"",1,"") ->  | FR37: =IF('>>Convertisseur_2'!AS29<>"",1,"") ->  | FS37: =IF('>>Convertisseur_2'!AT29=0,0,(IF('>>Convertisseur_2'!AT29<>"",1,""))) -> 0 | FT37: =IF('>>Convertisseur_2'!AU29<>"",1,"") -> 
A38: 74 | E38: 0 | F38: 0 | G38: 0 | H38: 16 | I38: =BB67+BG67 -> 0 | J38: =BB68+BG68 -> 0 | K38: =BB69+BG69 -> 0 | Q38: =IF(AND(Q10<>"",Q11<>""),0,IF(AND(Q11<>"",Q12<>""),0,1)) -> 1 | R38: =IF(OR(R10=0,R11=0,R12=0),0,IF(AND(R10<>"",R11<>""),0,IF(AND(R11<>"",R12<>""),0,1))) -> 0 | S38: =IF(AND(S10<>"",S11<>""),0,IF(AND(S11<>"",S12<>""),0,1)) -> 1 | T38: =IF(AND(U10<>"",U11<>""),0,IF(AND(U11<>"",U12<>""),0,1)) -> 1 | U38: =IF(OR(V10=0,V11=0,V12=0),0,IF(AND(V10<>"",V11<>""),0,IF(AND(V11<>"",V12<>""),0,1))) -> 0 | V38: =IF(AND(W10<>"",W11<>""),0,IF(AND(W11<>"",W12<>""),0,1)) -> 1 | W38: =IF(AND(W10<>"",W11<>"",W12<>""),3,IF(AND(W10<>"",W11<>"",W12<>""),2,0)) -> 0 | X38: =SUM(Q38:V38) -> 4 | AG38: ='>>BD_AS'!H2 -> 35 | AH38: ='>>BD_AS_3'!H2 -> 35 | AV38: 33 | BE38: =AN33 -> 0 | BG38: 0 | BO38: =MAX(BO25:BO37) -> 1 | BW38: =MAX(BZ38:CA38) -> 2 | BX38: =MAX(BX26:BX37) -> 2 | BY38: =MAX(BY26:BY37) -> 0 | BZ38: =MAX(BZ25:BZ37) -> 2 | CA38: =MAX(CA25:CA37) -> 0 | CZ38: 0 | DA38: 0 | DB38: 0 | DM38: =MAX(DP38:DQ38) -> 1 | DN38: =MAX(DN26:DN37) -> 1 | DO38: =MAX(DO26:DO37) -> 0 | DP38: =MAX(DP25:DP37) -> 1 | DQ38: =MAX(DQ25:DQ37) -> 1 | EI38: 29 | EK38: 0 | EL38: 0 | ER38: 29 | ET38: 0 | EU38: 0 | EV38: 0 | EY38: 29 | FA38: 0 | FB38: 0 | FC38: 0 | FH38: 30 | FI38: =IF('>>Convertisseur_2'!AO30<>"",1,"") ->  | FJ38: =IF('>>Convertisseur_2'!AP30=0,0,(IF('>>Convertisseur_2'!AP30<>"",1,""))) -> 0 | FK38: =IF('>>Convertisseur_2'!AQ30<>"",1,"") ->  | FR38: =IF('>>Convertisseur_2'!AS30<>"",1,"") ->  | FS38: =IF('>>Convertisseur_2'!AT30=0,0,(IF('>>Convertisseur_2'!AT30<>"",1,""))) -> 0 | FT38: =IF('>>Convertisseur_2'!AU30<>"",1,"") -> 
A39: =MAX(T10:T22) -> 81 | E39: 0 | F39: 0 | G39: 0 | H39: 19 | I39: =BB70+BG70 -> 0 | J39: =BB71+BG71 -> 0 | K39: =BB72+BG72 -> 0 | L39: ='>>Six'!I10 -> 0 | N39: Miser N°6-7 fois | Y39: =IF(AND(Y10<>"",Y11<>"",Y12<>"",Y13<>""),0,IF(AND(Y10<>"",Y11<>"",Y12<>""),3,IF(AND(Y10<>"",Y11<>""),2,IF(Y10<>"",1,0)))) -> 0 | AA39: =IF(AND(AA10<>"",AA11<>"",AA12<>"",AA13<>""),0,IF(AND(AA10<>"",AA11<>"",AA12<>""),3,IF(AND(AA10<>"",AA11<>""),2,IF(AA10<>"",1,0)))) -> 1 | AB39: =IF(OR(Y2=2,Y2=5,Y2=8,Y2=11,Y2=14),1,0) -> 0 | AG39: =D36 -> 0 | AH39: =E36 -> 0 | AV39: 34 | BE39: =AO33 -> 0 | BG39: 0 | CZ39: 0 | DA39: 0 | DB39: 0 | EI39: 30 | EK39: 0 | EL39: 0 | ER39: 30 | ET39: 0 | EU39: 0 | EV39: 0 | EY39: 30 | FA39: 0 | FB39: 0 | FC39: 0 | FH39: 31 | FI39: =IF('>>Convertisseur_2'!AO31<>"",1,"") ->  | FJ39: =IF('>>Convertisseur_2'!AP31=0,0,(IF('>>Convertisseur_2'!AP31<>"",1,""))) -> 0 | FK39: =IF('>>Convertisseur_2'!AQ31<>"",1,"") ->  | FR39: =IF('>>Convertisseur_2'!AS31<>"",1,"") ->  | FS39: =IF('>>Convertisseur_2'!AT31=0,0,(IF('>>Convertisseur_2'!AT31<>"",1,""))) -> 0 | FT39: =IF('>>Convertisseur_2'!AU31<>"",1,"") -> 
A40: =#REF! ->  | E40: 0 | F40: 0 | G40: 0 | H40: 22 | I40: =BB73+BG73 -> 0 | J40: =BB74+BG74 -> 0 | K40: =BB75+BG75 -> 0 | R40: ='>>Convertisseur'!N212-1 -> 1 | S40: ='>>Convertisseur'!C45 -> 2 | Y40: 1 | AA40: 1 | AG40: =D42 -> 0 | AH40: =E42 -> 0 | AU40: 1 | AV40: 35 | BE40: =AP33 -> 0 | BG40: 0 | CZ40: =MAX(CZ27:CZ39) -> 0 | DA40: =MAX(DA27:DA39) -> 0 | DB40: =MAX(DB27:DB39) -> 1 | DC40: =IF(DD9=0,13,SEARCH(1,DD23)-1) -> 13 | DD40: =IF(DE9=0,13,SEARCH(1,DE23)-1) -> 1 | DE40: =IF(DF9=0,13,SEARCH(1,DF23)-1) -> 0 | DF40: =IF(DC40=0,1,IF(AND(DC40<DD40,DC40>=V47),0,IF(AND(DC40<DE40,DC40>=V47),0,DC40))) -> 13 | DG40: =IF(DD40=0,1,IF(AND(DD40<DC40,DD40>=V47),0,IF(AND(DD40<DE40,DD40>=V47),0,DD40))) -> 0 | DH40: =IF(DE40=0,1,IF(AND(DE40<DD40,DE40>=V47),0,IF(AND(DE40<DC40,DE40>=V47),0,DE40))) -> 1 | DI40: =ABS(DF40-DG40) -> 13 | DJ40: =ABS(DG40-DH40) -> 1 | DK40: =IF(DI40=1,1,IF(DJ40=1,1,0)) -> 1 | EI40: 31 | EK40: 0 | EL40: 0 | ER40: 31 | ET40: 0 | EU40: 0 | EV40: 0 | EY40: 31 | FA40: 0 | FB40: 0 | FC40: 0 | FH40: 32 | FI40: =IF('>>Convertisseur_2'!AO32<>"",1,"") ->  | FJ40: =IF('>>Convertisseur_2'!AP32=0,0,(IF('>>Convertisseur_2'!AP32<>"",1,""))) -> 0 | FK40: =IF('>>Convertisseur_2'!AQ32<>"",1,"") ->  | FR40: =IF('>>Convertisseur_2'!AS32<>"",1,"") ->  | FS40: =IF('>>Convertisseur_2'!AT32=0,0,(IF('>>Convertisseur_2'!AT32<>"",1,""))) -> 0 | FT40: =IF('>>Convertisseur_2'!AU32<>"",1,"") -> 
E41: 0 | F41: 0 | G41: 0 | H41: 25 | I41: =BB76+BG76 -> 0 | J41: =BB77+BG77 -> 0 | K41: =BB78+BG78 -> 0 | L41: ='>>Six'!I12 -> 0 | R41: =O44 -> -3 | Y41: 1 | AA41: 1 | AG41: ='>>Calculs_AS'!I41 -> 0 | AH41: ='>>Calculs_AS_3'!I41 -> 0 | AV41: 36 | BE41: =AH34 -> 0 | BG41: 0 | CO41: =SUMIF(CO49:CO54,1,CO49:CO54) -> 1 | CP41: =SUMIF(CP49:CP54,1,CP49:CP54) -> 6 | CQ41: =SUMIF(CQ49:CQ54,1,CQ49:CQ54) -> 0 | DD41: =SUMIF(DD49:DD54,1,DD49:DD54) -> 6 | DE41: =SUMIF(DE49:DE54,1,DE49:DE54) -> 1 | DF41: =SUMIF(DF49:DF54,1,DF49:DF54) -> 0 | EI41: 32 | EK41: 0 | EL41: 0 | ER41: 32 | ET41: 0 | EU41: 0 | EV41: 0 | EY41: 32 | FA41: 0 | FB41: 0 | FC41: 0 | FH41: 33 | FI41: =IF('>>Convertisseur_2'!AO33<>"",1,"") ->  | FJ41: =IF('>>Convertisseur_2'!AP33=0,0,(IF('>>Convertisseur_2'!AP33<>"",1,""))) -> 0 | FK41: =IF('>>Convertisseur_2'!AQ33<>"",1,"") ->  | FR41: =IF('>>Convertisseur_2'!AS33<>"",1,"") ->  | FS41: =IF('>>Convertisseur_2'!AT33=0,0,(IF('>>Convertisseur_2'!AT33<>"",1,""))) -> 0 | FT41: =IF('>>Convertisseur_2'!AU33<>"",1,"") -> 
E42: 0 | F42: 0 | G42: 0 | H42: 28 | I42: =BB79+BG79 -> 0 | J42: =BB80+BG80 -> 0 | K42: =BB81+BG81 -> 0 | M42: Transversal | O42: ='>>Six_old'!I48 -> -17 | P42: ='>>Six_old'!J48 -> 1 | R42: =P44 -> 1 | Y42: =IF(Y43=1,1,Y41*2) -> 2 | AA42: =IF(AA43=1,1,AA41*2) -> 2 | AG42: 1 | AJ42: 1 | AK42: 1 | AV42: 37 | BE42: =AI34 -> 0 | BG42: 0 | CO42: =IF(CO10=0,1,0) -> 1 | CP42: =IF(CP10=0,1,0) -> 1 | CQ42: 0 | DD42: =IF(DD10=0,1,0) -> 1 | DE42: 1 | DF42: 0 | EI42: 33 | EK42: 0 | EL42: 0 | ER42: 33 | ET42: 0 | EU42: 0 | EV42: 0 | EY42: 33 | FA42: 0 | FB42: 0 | FC42: 0 | FH42: 34 | FI42: =IF('>>Convertisseur_2'!AO34<>"",1,"") ->  | FJ42: =IF('>>Convertisseur_2'!AP34=0,0,(IF('>>Convertisseur_2'!AP34<>"",1,""))) -> 0 | FK42: =IF('>>Convertisseur_2'!AQ34<>"",1,"") ->  | FR42: =IF('>>Convertisseur_2'!AS34<>"",1,"") ->  | FS42: =IF('>>Convertisseur_2'!AT34=0,0,(IF('>>Convertisseur_2'!AT34<>"",1,""))) -> 0 | FT42: =IF('>>Convertisseur_2'!AU34<>"",1,"") -> 
E43: 0 | F43: 0 | G43: 0 | H43: 31 | I43: =BB82+BG82 -> 0 | J43: =BB83+BG83 -> 0 | K43: =BB84+BG84 -> 0 | L43: ='>>Six'!I14 -> 2 | R43: 1 | Y43: =IF(AC44="Normal",IF(Y45="","",IF(E2<13,"",IF(AC43="Modus 2",IF(AND(Z18=0,Y17=""),1,IF(AND(Z18=0,AA17=""),"",IF(Y18="",1,IF(AA18="","","")))),IF(AND(Z22=0,Y21=""),1,IF(AND(Z22=0,AA21=""),"",IF(Y22="",1,IF(AA22="","",""))))))),IF(Y45="","",IF(E2<13,"",IF(AC43="Modus 2",IF(AND(Z18=0,Y17=""),"",IF(AND(Z18=0,AA17=""),1,IF(Y18="","",IF(AA18="",1,"")))),IF(AND(Z22=0,Y21=""),"",IF(AND(Z22=0,AA21=""),1,IF(Y22="","",IF(AA22="",1,"")))))))) ->  | AA43: =IF(AC44="Normal",IF(Y45="","",IF(E2<13,"",IF(AC43="Modus 2",IF(AND(Z18=0,Y17=""),"",IF(AND(Z18=0,AA17=""),2,IF(Y18="","",IF(AA18="",2,"")))),IF(AND(Z22=0,Y21=""),"",IF(AND(Z22=0,AA21=""),2,IF(Y22="","",IF(AA22="",2,""))))))),IF(Y45="","",IF(E2<13,"",IF(AC43="Modus 2",IF(AND(Z18=0,Y17=""),"2",IF(AND(Z18=0,AA17=""),"",IF(Y18="",2,IF(AA18="","","")))),IF(AND(Z22=0,Y21=""),2,IF(AND(Z22=0,AA21=""),"",IF(Y22="",2,IF(AA22="","","")))))))) ->  | AG43: 9 | AH43: ='>>Convertisseur'!F9 -> 0 | AV43: 38 | BE43: =AJ34 -> 0 | BG43: 0 | CO43: 0 | CP43: 1 | CQ43: 1 | DD43: 1 | DE43: 0 | DF43: 1 | EI43: 34 | EK43: 0 | EL43: 0 | ER43: 34 | ET43: 0 | EU43: 0 | EV43: 0 | EY43: 34 | FA43: 0 | FB43: 0 | FC43: 0 | FH43: 35 | FI43: =IF('>>Convertisseur_2'!AO35<>"",1,"") ->  | FJ43: =IF('>>Convertisseur_2'!AP35=0,0,(IF('>>Convertisseur_2'!AP35<>"",1,""))) -> 0 | FK43: =IF('>>Convertisseur_2'!AQ35<>"",1,"") ->  | FR43: =IF('>>Convertisseur_2'!AS35<>"",1,"") ->  | FS43: =IF('>>Convertisseur_2'!AT35=0,0,(IF('>>Convertisseur_2'!AT35<>"",1,""))) -> 0 | FT43: =IF('>>Convertisseur_2'!AU35<>"",1,"") -> 
A44: 1 | E44: 0 | F44: 0 | G44: 0 | H44: 34 | I44: =BB85+BG85 -> 0 | J44: =BB86+BG86 -> 0 | K44: =BB87+BG87 -> 0 | M44: Sixains | O44: ='>>Six'!I18 -> -3 | P44: ='>>Six'!J18 -> 1 | Y44: 0 | AA44: 0 | AH44: ='>>Convertisseur'!F10 -> 0 | AV44: 39 | BE44: =AK34 -> 0 | BG44: 0 | CO44: 1 | CP44: 1 | CQ44: 1 | DD44: 1 | DE44: 1 | DF44: 1 | EI44: 35 | EK44: 0 | EL44: 0 | ER44: 35 | ET44: 0 | EU44: 0 | EV44: 0 | EY44: 35 | FA44: 0 | FB44: 0 | FC44: 0 | FH44: 36 | FI44: =IF('>>Convertisseur_2'!AO36<>"",1,"") ->  | FJ44: =IF('>>Convertisseur_2'!AP36=0,0,(IF('>>Convertisseur_2'!AP36<>"",1,""))) -> 0 | FK44: =IF('>>Convertisseur_2'!AQ36<>"",1,"") ->  | FR44: =IF('>>Convertisseur_2'!AS36<>"",1,"") ->  | FS44: =IF('>>Convertisseur_2'!AT36=0,0,(IF('>>Convertisseur_2'!AT36<>"",1,""))) -> 0 | FT44: =IF('>>Convertisseur_2'!AU36<>"",1,"") -> 
A45: 2 | L45: ='>>Prog_2'!AL35 -> 0 | M45: 0 | Y45: =IF(X45=0,"",IF(E2<14,"",F18)) ->  | AH45: ='>>Convertisseur'!F11 -> 0 | AV45: 40 | BE45: =AL34 -> 0 | BG45: 0 | CO45: 1 | CP45: 1 | CQ45: 1 | DD45: 1 | DE45: 1 | DF45: 1 | EI45: 36 | EK45: 0 | EL45: 0 | ER45: 36 | ET45: 0 | EU45: 0 | EV45: 0 | EY45: 36 | FA45: 0 | FB45: 0 | FC45: 0 | FH45: 37 | FI45: =IF('>>Convertisseur_2'!AO37<>"",1,"") ->  | FJ45: =IF('>>Convertisseur_2'!AP37=0,0,(IF('>>Convertisseur_2'!AP37<>"",1,""))) -> 0 | FK45: =IF('>>Convertisseur_2'!AQ37<>"",1,"") ->  | FR45: =IF('>>Convertisseur_2'!AS37<>"",1,"") ->  | FS45: =IF('>>Convertisseur_2'!AT37=0,0,(IF('>>Convertisseur_2'!AT37<>"",1,""))) -> 0 | FT45: =IF('>>Convertisseur_2'!AU37<>"",1,"") -> 
E46: Premium | H46: =IF(O49="","",O49) ->  | I46: =IF(P49="","",P49) ->  | J46: =IF(Q49="","",Q49) ->  | K46: =IF(R49="","",R49) ->  | L46: =O51 ->  | M46: =P51 ->  | N46: =Q51 ->  | O46: =R51 ->  | P46: =S49 -> 10 | Q46: =S51 -> 8 | R46: =IF(AND(J46<>I46,J46<>K46,J46<>H46),1,0) -> 0 | S46: =IF(AND(K46<>J46,K46<>I46,K46<>H46),1,0) -> 0 | T46: =15 -> 15 | U46: =IF(U47<>"",1,0) -> 0 | V46: =N49 -> 1 | W46: 1 | X46: =IF(AB46="","",AVERAGE(AB46:AF46)) ->  | Y46: 1 | Z46: 0 | AG46: ='>>BD_AS_2'!H2 -> 35 | AH46: ='>>BD_AS_4'!H2 -> 35 | AV46: 41 | BE46: =AM34 -> 0 | BG46: 0 | CO46: 1 | CP46: 1 | CQ46: 1 | DD46: 1 | DE46: 1 | DF46: 1 | EU46: 0 | FB46: 0
H47: 3 | I47: ='>>Convertisseur'!$A$15 -> 36 | J47: ='>>Convertisseur'!$A$16 -> 2 | K47: ='>>Convertisseur'!$A$17 -> 0 | L47: ='>>Convertisseur'!$A$18 -> 0 | M47: ='>>Convertisseur'!$A$19 -> 0 | N47: ='>>Convertisseur'!$A$20 -> 0 | O47: ='>>Convertisseur'!$A$21 -> 0 | P47: ='>>Convertisseur'!$A$22 -> 0 | Q47: ='>>Convertisseur'!$A$23 -> 0 | R47: ='>>Convertisseur'!$A$24 -> 0 | Z47: 0-3 | AA47: 7_9 | AG47: 4 | AV47: 42 | BE47: =AN34 -> 0 | BG47: 0 | CK47: =IF(CO10=1,1,0) -> 0 | CL47: =IF(CP10=1,1,0) -> 0 | CM47: =IF(CQ10=1,1,0) -> 1 | CO47: 1 | CP47: 1 | CQ47: 1 | DD47: 1 | DE47: 1 | DF47: 1
I48: =LOOKUP(I47,'>>Jonathan'!$A$1:$A$37,'>>Jonathan'!$B$1:$B$37) -> 7 | J48: =LOOKUP(J47,'>>Jonathan'!$A$1:$A$37,'>>Jonathan'!$B$1:$B$37) -> 20 | K48: =LOOKUP(K47,'>>Jonathan'!$A$1:$A$37,'>>Jonathan'!$B$1:$B$37) -> 10 | L48: =LOOKUP(L47,'>>Jonathan'!$A$1:$A$37,'>>Jonathan'!$B$1:$B$37) -> 10 | M48: =LOOKUP(M47,'>>Jonathan'!$A$1:$A$37,'>>Jonathan'!$B$1:$B$37) -> 10 | N48: =LOOKUP(N47,'>>Jonathan'!$A$1:$A$37,'>>Jonathan'!$B$1:$B$37) -> 10 | O48: =LOOKUP(O47,'>>Jonathan'!$A$1:$A$37,'>>Jonathan'!$B$1:$B$37) -> 10 | P48: =LOOKUP(P47,'>>Jonathan'!$A$1:$A$37,'>>Jonathan'!$B$1:$B$37) -> 10 | Q48: =LOOKUP(Q47,'>>Jonathan'!$A$1:$A$37,'>>Jonathan'!$B$1:$B$37) -> 10 | R48: =LOOKUP(R47,'>>Jonathan'!$A$1:$A$37,'>>Jonathan'!$B$1:$B$37) -> 10 | S48: =LOOKUP(S47,'>>Jonathan'!$A$1:$A$37,'>>Jonathan'!$B$1:$B$37) -> 10 | V48: 2 | W48: 2 | X48: =IF(AB48="","",AVERAGE(AB48:AF48)) ->  | Y48: 2 | Z48: 2 | AA48: 3 | AG48: ='>>Calculs_AS_2'!I41 -> 0 | AH48: ='>>Calculs_AS_4'!I41 -> 0 | AV48: 43 | BE48: =AO34 -> 0 | BG48: 0 | CK48: =IF(CK47=0,0,IF(CO11=1,CK47+1,0)) -> 0 | CL48: 0 | CM48: 0 | CO48: =IF(CO41=0,"",CO41) -> 1 | CP48: =IF(CP41=0,"",CP41) -> 6 | CQ48: =IF(CQ41=0,"",CQ41) ->  | CR48: =MIN(CO48:CQ48) -> 1 | DD48: =IF(DD41=0,"",DD41) -> 6 | DE48: =IF(DE41=0,"",DE41) -> 1 | DF48: =IF(DF41=0,"",DF41) ->  | DG48: =MIN(DD48:DF48) -> 1
D49: =IF(D48=1,4,IF(D51>=2,2,IF(OR(AC18<3,AC19<3),0,IF(AC19=AC18,AC18,AC18+AC19)))) -> 7 | E49: Master | H49: 3 | M49: 1 | N49: 1 | S49: 10 | V49: =H72 -> 0 | W49: =SUMIF(I53:V53,1,I53:V53) -> 0 | X49: =SUMIF(I53:V53,2,I53:V53)/2 -> 0 | Y49: =IF(AND(O49<>P49,O49<>Q49,O49<>R49,O49<>O51,O49<>P51,O49<>Q51,O49<>R51),1,0) -> 0 | Z49: =IF(AND(P49<>Q49,P49<>R49,P49<>O49,P49<>P51,P49<>Q51,P49<>R51,P49<>O51),1,0) -> 0 | AA49: =IF(AND(Q49<>R49,Q49<>O49,Q49<>P49,Q49<>Q51,Q49<>R51,Q49<>O51,Q49<>P51),1,0) -> 0 | AB49: =IF(AND(R49<>O49,R49<>P49,R49<>Q49,R49<>R51,R49<>O51,R49<>P51,R49<>Q51),1,0) -> 0 | AC49: =SUM(Y49:AB51) -> 0 | AV49: 44 | BE49: =AP34 -> 0 | BG49: 0 | CK49: 0 | CL49: 0 | CM49: 0 | CO49: =IF(CO42=1,1,0) -> 1 | CP49: =IF(CP42=1,1,0) -> 1 | CQ49: =IF(CQ42=1,1,0) -> 0 | DD49: =IF(DD42=1,1,0) -> 1 | DE49: =IF(DE42=1,1,0) -> 1 | DF49: =IF(DF42=1,1,0) -> 0
E50: Nouveau | H50: 1 | I50: =H46 ->  | J50: =L46 ->  | S50: 12 | T50: 13 | U50: 14 | V50: =E72 -> 1 | AJ50: =LOOKUP(AJ33,'>>BD_R_N'!$D$1:$D$37,'>>BD_R_N'!$B$1:$B$37) -> 0 | AK50: =LOOKUP(AK33,'>>BD_R_N'!$D$1:$D$37,'>>BD_R_N'!$B$1:$B$37) -> 0 | AL50: =LOOKUP(AL33,'>>BD_R_N'!$D$1:$D$37,'>>BD_R_N'!$B$1:$B$37) -> 0 | AM50: =LOOKUP(AM33,'>>BD_R_N'!$D$1:$D$37,'>>BD_R_N'!$B$1:$B$37) -> 0 | AN50: =LOOKUP(AN33,'>>BD_R_N'!$D$1:$D$37,'>>BD_R_N'!$B$1:$B$37) -> 0 | AO50: =LOOKUP(AO33,'>>BD_R_N'!$D$1:$D$37,'>>BD_R_N'!$B$1:$B$37) -> 0 | AP50: =LOOKUP(AP33,'>>BD_R_N'!$D$1:$D$37,'>>BD_R_N'!$B$1:$B$37) -> 0 | AV50: 45 | CK50: 0 | CL50: 0 | CM50: 0 | CO50: =IF(AND(CO43=1,CO42=1),1,0) -> 0 | CP50: =IF(AND(CP43=1,CP42=1),1,0) -> 1 | CQ50: =IF(AND(CQ43=1,CQ42=1),1,0) -> 0 | DD50: =IF(AND(DD43=1,DD42=1),1,0) -> 1 | DE50: =IF(AND(DE43=1,DE42=1),1,0) -> 0 | DF50: =IF(AND(DF43=1,DF42=1),1,0) -> 0
D51: =IF(D48=1,4,IF(OR(AC31<2,AC32<2),0,IF(AC32=AC31,AC31,AC31+AC32))) -> 0 | E51: Ancien | I51: =P46 -> 10 | J51: =Q46 -> 8 | M51: 0 | N51: =IF(OR(O49=Y2,P49=Y2,Q49=Y2,R49=Y2,O51=Y2,P51=Y2,Q51=Y2,R51=Y2,Y2=0),1,0) -> 0 | O51: =IF(R49="","",LOOKUP(O49,'>>Jonathan'!$A$1:$A$37,'>>Jonathan'!$D$1:$D$37)) ->  | P51: =IF(R49="","",LOOKUP(P49,'>>Jonathan'!$A$1:$A$37,'>>Jonathan'!$D$1:$D$37)) ->  | Q51: =IF(R49="","",LOOKUP(Q49,'>>Jonathan'!$A$1:$A$37,'>>Jonathan'!$D$1:$D$37)) ->  | R51: =IF(R49="","",LOOKUP(R49,'>>Jonathan'!A1:A37,'>>Jonathan'!D1:D37)) ->  | S51: =IF(S49="","",LOOKUP(S49,'>>Jonathan'!A1:A37,'>>Jonathan'!D1:D37)) -> 8 | Y51: =IF(AND(O51<>P51,O51<>Q51,O51<>R51,O51<>O49,O51<>P49,O51<>Q49,O51<>R49),1,0) -> 0 | Z51: =IF(AND(P51<>Q51,P51<>R51,P51<>O51,P51<>P49,P51<>Q49,P51<>R49,P51<>O49),1,0) -> 0 | AA51: =IF(AND(Q51<>R51,Q51<>O51,Q51<>P51,Q51<>Q49,Q51<>R49,Q51<>O49,Q51<>P49),1,0) -> 0 | AB51: =IF(AND(R51<>O51,R51<>P51,R51<>Q51,R51<>R49,R51<>O49,R51<>P49,R51<>Q49),1,0) -> 0 | AJ51: =LOOKUP(AJ34,'>>BD_R_N'!$D$1:$D$37,'>>BD_R_N'!$B$1:$B$37) -> 0 | AK51: =LOOKUP(AK34,'>>BD_R_N'!$D$1:$D$37,'>>BD_R_N'!$B$1:$B$37) -> 0 | AL51: =LOOKUP(AL34,'>>BD_R_N'!$D$1:$D$37,'>>BD_R_N'!$B$1:$B$37) -> 0 | AM51: =LOOKUP(AM34,'>>BD_R_N'!$D$1:$D$37,'>>BD_R_N'!$B$1:$B$37) -> 0 | AN51: =LOOKUP(AN34,'>>BD_R_N'!$D$1:$D$37,'>>BD_R_N'!$B$1:$B$37) -> 0 | AO51: =LOOKUP(AO34,'>>BD_R_N'!$D$1:$D$37,'>>BD_R_N'!$B$1:$B$37) -> 0 | AP51: =LOOKUP(AP34,'>>BD_R_N'!$D$1:$D$37,'>>BD_R_N'!$B$1:$B$37) -> 0 | AQ51: =LOOKUP(AQ34,'>>BD_R_N'!$D$1:$D$37,'>>BD_R_N'!$B$1:$B$37) -> 0 | AV51: 46 | AX51: 1 | AY51: 2 | AZ51: 3 | BA51: 4 | BB51: 5 | BC51: 6 | BD51: 7 | BE51: 8 | BF51: 9 | BH51: 1 | BI51: 2 | BJ51: 3 | BK51: 4 | BL51: 5 | BM51: 6 | BN51: 7 | BO51: 8 | BP51: 9 | CK51: 0 | CL51: 0 | CM51: 0 | CO51: =IF(AND(CO44=1,CO43=1,CO42=1),1,0) -> 0 | CP51: =IF(AND(CP44=1,CP43=1,CP42=1),1,0) -> 1 | CQ51: =IF(AND(CQ44=1,CQ43=1,CQ42=1),1,0) -> 0 | DD51: =IF(AND(DD44=1,DD43=1,DD42=1),1,0) -> 1 | DE51: =IF(AND(DE44=1,DE43=1,DE42=1),1,0) -> 0 | DF51: =IF(AND(DF44=1,DF43=1,DF42=1),1,0) -> 0
H52: 1 | I52: 2 | J52: 3 | K52: 4 | L52: 5 | M52: 6 | N52: 7 | O52: 8 | P52: 9 | Q52: 10 | R52: 11 | S52: 12 | T52: 13 | U52: 14 | V52: =SUM(E33:E44) -> 0 | W52: 0 | AC52: Nbre n° max | AG52: =D40 -> 0 | AH52: =E40 -> 0 | AR52: R | AS52: N | AV52: 47 | AW52: 1 | AX52: =IF($O$49=AW52,2,0) -> 0 | AY52: =IF($P$49=AW52,2,0) -> 0 | AZ52: =IF($Q$49=AW52,2,0) -> 0 | BA52: =IF($R$49=AW52,2,0) -> 0 | BB52: =SUM(AX52:BA52) -> 0 | BC52: =IF($O$51=AW52,1,0) -> 0 | BD52: =IF($P$51=AW52,1,0) -> 0 | BE52: =IF($Q$51=AW52,1,0) -> 0 | BF52: =IF($R$51=AW52,1,0) -> 0 | BG52: =SUM(BC52:BF52) -> 0 | BM52: =IF($AM$34=AW52,1,0) -> 0 | BO52: =IF($AO$34=AW52,1,0) -> 0 | BP52: =IF($AP$34=AW52,1,0) -> 0 | CA52: 1 | CK52: 0 | CL52: 0 | CM52: 0 | CO52: =IF(AND(CO45=1,CO44=1,CO43=1,CO42=1),1,0) -> 0 | CP52: =IF(AND(CP45=1,CP44=1,CP43=1,CP42=1),1,0) -> 1 | CQ52: =IF(AND(CQ45=1,CQ44=1,CQ43=1,CQ42=1),1,0) -> 0 | DD52: =IF(AND(DD45=1,DD44=1,DD43=1,DD42=1),1,0) -> 1 | DE52: =IF(AND(DE45=1,DE44=1,DE43=1,DE42=1),1,0) -> 0 | DF52: =IF(AND(DF45=1,DF44=1,DF43=1,DF42=1),1,0) -> 0
H53: =AA63 -> 2 | I53: =IF(ISNA(LOOKUP(I54,$EY$10:$EY$45,$FB$10:$FB$45)),0,LOOKUP(I54,$EY$10:$EY$45,$FB$10:$FB$45)) -> 0 | J53: =IF(ISNA(LOOKUP(J54,$EY$10:$EY$45,$FB$10:$FB$45)),0,LOOKUP(J54,$EY$10:$EY$45,$FB$10:$FB$45)) -> 0 | K53: 0 | L53: 0 | M53: 0 | N53: 0 | O53: 0 | P53: 0 | Q53: 0 | R53: 0 | S53: 0 | T53: 0 | U53: 0 | V53: 0 | W53: 0 | X53: 0 | Y53: 0 | Z53: 0 | AH53: =IF(AB50="R",1,IF(AB50="N",2,0)) -> 0 | AI53: =IF(AI50="R",1,IF(AI50="N",2,0)) -> 0 | AJ53: =IF(AJ50="R",1,IF(AJ50="N",2,0)) -> 0 | AK53: 0 | AL53: 0 | AM53: 0 | AN53: 0 | AO53: 0 | AP53: 0 | AR53: =SUMIF(AH53:AP53,1,AH53:AP53)/1 -> 0 | AS53: =SUMIF(AH53:AP53,2,AH53:AP53)/2 -> 0 | AT53: =SUM(AR53:AS53) -> 0 | AV53: 48 | AW53: 2 | AX53: =IF($O$49=AW53,2,0) -> 0 | AY53: 0 | AZ53: 0 | BA53: 0 | BB53: =SUM(AX53:BA53) -> 0 | BC53: =IF($O$51=AW53,1,0) -> 0 | BD53: =IF($P$51=AW53,1,0) -> 0 | BE53: =IF($Q$51=AW53,1,0) -> 0 | BF53: =IF($R$51=AW53,1,0) -> 0 | BG53: =SUM(BC53:BF53) -> 0 | BM53: =IF($AM$34=AW53,1,0) -> 0 | BO53: =IF($AO$34=AW53,1,0) -> 0 | BP53: =IF($AP$34=AW53,1,0) -> 0 | CA53: 2 | CK53: 0 | CL53: 0 | CM53: 0 | CO53: =IF(AND(CO46=1,CO45=1,CO44=1,CO43=1,CO42=1),1,0) -> 0 | CP53: =IF(AND(CP46=1,CP45=1,CP44=1,CP43=1,CP42=1),1,0) -> 1 | CQ53: =IF(AND(CQ46=1,CQ45=1,CQ44=1,CQ43=1,CQ42=1),1,0) -> 0 | DD53: =IF(AND(DD46=1,DD45=1,DD44=1,DD43=1,DD42=1),1,0) -> 1 | DE53: =IF(AND(DE46=1,DE45=1,DE44=1,DE43=1,DE42=1),1,0) -> 0 | DF53: =IF(AND(DF46=1,DF45=1,DF44=1,DF43=1,DF42=1),1,0) -> 0
W54: 0 | AB54: 1 | AC54: 9 | AD54: 11 | AE54: 16 | AF54: 18 | AH54: =IF(AH51="R",1,IF(AH51="N",2,0)) -> 0 | AI54: 0 | AJ54: 0 | AK54: 0 | AL54: 0 | AM54: 0 | AN54: 0 | AO54: 0 | AP54: 0 | AR54: =SUMIF(AH54:AP54,1,AH54:AP54)/1 -> 0 | AS54: =SUMIF(AH54:AP54,2,AH54:AP54)/2 -> 0 | AT54: =SUM(AR54:AS54) -> 0 | AV54: 49 | AW54: 3 | AX54: 0 | AY54: 0 | AZ54: 0 | BA54: 0 | BB54: 0 | BC54: 0 | BD54: 0 | BE54: 0 | BF54: 0 | BG54: 0 | BM54: 0 | BO54: 0 | BP54: 0 | CA54: 3 | CK54: 0 | CL54: 0 | CM54: 0 | CO54: =IF(AND(CO47=1,CO46=1,CO45=1,CO44=1,CO43=1,CO42=1),1,0) -> 0 | CP54: =IF(AND(CP47=1,CP46=1,CP45=1,CP44=1,CP43=1,CP42=1),1,0) -> 1 | CQ54: =IF(AND(CQ47=1,CQ46=1,CQ45=1,CQ44=1,CQ43=1,CQ42=1),1,0) -> 0 | DD54: =IF(AND(DD47=1,DD46=1,DD45=1,DD44=1,DD43=1,DD42=1),1,0) -> 1 | DE54: =IF(AND(DE47=1,DE46=1,DE45=1,DE44=1,DE43=1,DE42=1),1,0) -> 0 | DF54: =IF(AND(DF47=1,DF46=1,DF45=1,DF44=1,DF43=1,DF42=1),1,0) -> 0
I55: 1 | J55: 2 | K55: 3 | L55: 4 | M55: 5 | AB55: 22 | AC55: 30 | AD55: 33 | AE55: 36 | AV55: 50 | AW55: 4 | AX55: 0 | AY55: 0 | AZ55: 0 | BA55: 0 | BB55: 0 | BC55: 0 | BD55: 0 | BE55: 0 | BF55: 0 | BG55: 0 | BM55: 0 | BO55: 0 | BP55: 0 | CA55: 4 | CK55: 0 | CL55: 0 | CM55: 0
AH56: R | AI56: =IF(AT53=0,"",AR53/AT53) ->  | AJ56: =IF(AT53=0,"",IF(AI56>=AI57,AH56,AH57)) ->  | AV56: 51 | AW56: 5 | AX56: 0 | AY56: 0 | AZ56: 0 | BA56: 0 | BB56: 0 | BC56: 0 | BD56: 0 | BE56: 0 | BF56: 0 | BG56: 0 | BM56: 0 | BO56: 0 | BP56: 0 | CA56: 5 | CK56: 0 | CL56: 0 | CM56: 0 | CO56: =IF($CR$48=CO48,1,0) -> 1 | CP56: =IF($CR$48=CP48,1,0) -> 0 | CQ56: =IF($CR$48=CQ48,1,0) -> 0
E57: 1 | H57: 2 | I57: ='>>Convertisseur'!$A$15 -> 36 | J57: ='>>Convertisseur'!$A$16 -> 2 | K57: ='>>Convertisseur'!$A$17 -> 0 | L57: ='>>Convertisseur'!$A$18 -> 0 | M57: ='>>Convertisseur'!$A$19 -> 0 | N57: ='>>Convertisseur'!$A$20 -> 0 | O57: ='>>Convertisseur'!$A$21 -> 0 | P57: ='>>Convertisseur'!$A$22 -> 0 | Q57: ='>>Convertisseur'!$A$23 -> 0 | R57: ='>>Convertisseur'!A24 -> 0 | S57: ='>>Convertisseur'!A25 -> 0 | T57: ='>>Convertisseur'!A26 -> 0 | U57: ='>>Convertisseur'!A27 -> 0 | V57: ='>>Convertisseur'!A28 -> 0 | W57: ='>>Convertisseur'!A29 -> 0 | X57: ='>>Convertisseur'!A30 -> 0 | Y57: ='>>Convertisseur'!A31 -> 0 | Z57: ='>>Convertisseur'!A32 -> 0 | AA57: 0 | AH57: N | AI57: =IF(AT53=0,"",AS53/AT53) ->  | AV57: 52 | AW57: 6 | AX57: 0 | AY57: 0 | AZ57: 0 | BA57: 0 | BB57: 0 | BC57: 0 | BD57: 0 | BE57: 0 | BF57: 0 | BG57: 0 | BM57: 0 | BO57: 0 | BP57: 0 | CA57: 6 | CK57: 0 | CL57: 0 | CM57: 0 | CO57: =IF($DG$48=DD48,1,0) -> 0 | CP57: =IF($DG$48=DE48,1,0) -> 1 | CQ57: =IF($DG$48=DF48,1,0) -> 0
H58: =S40 -> 2 | I58: =IF(AH24=0,"",IF(AH24="","",AH24)) ->  | J58: =IF(AI24=0,"",IF(AI24="","",AI24)) ->  | AA58: 0 | AH58: R | AI58: =IF(AT54=0,"",AR54/AT54) ->  | AJ58: =IF(AT54=0,"",IF(AI58>=AI59,AH58,AH59)) ->  | AV58: 53 | AW58: 7 | AX58: 0 | AY58: 0 | AZ58: 0 | BA58: 0 | BB58: 0 | BC58: 0 | BD58: 0 | BE58: 0 | BF58: 0 | BG58: 0 | BM58: 0 | BO58: 0 | BP58: 0 | CA58: 7 | CK58: 0 | CL58: 0 | CM58: 0 | CO58: =SUM(CO56:CO57) -> 1 | CP58: =SUM(CP56:CP57) -> 1 | CQ58: =SUM(CQ56:CQ57) -> 0 | CS58: =IF(CQ58=2,CQ48,IF(CP58=2,CP48,IF(CO58=2,CO48,0))) -> 0
I59: =IF(AH25=0,"",IF(AH25="","",AH25)) ->  | J59: =IF(AC27<10,"",IF(AI25=0,"",IF(AI25="","",AI25))) ->  | K59: =IF($AC$27<11,"",IF(AJ25=0,"",IF(AJ25="","",AJ25))) ->  | L59: =IF($AC$27<12,"",IF(AK25=0,"",IF(AK25="","",AK25))) ->  | M59: =IF($AC$27<13,"",IF(AL25=0,"",IF(AL25="","",AL25))) ->  | N59: =IF($AC$27<14,"",IF(AM25=0,"",IF(AM25="","",AM25))) ->  | O59: =IF($AC$27<15,"",IF(AN25=0,"",IF(AN25="","",AN25))) ->  | P59: =IF($AC$27<16,"",IF(AO25=0,"",IF(AO25="","",AO25))) ->  | AH59: N | AI59: =IF(AT54=0,"",AS54/AT54) ->  | AV59: 54 | AW59: 8 | AX59: 0 | AY59: 0 | AZ59: 0 | BA59: 0 | BB59: 0 | BC59: 0 | BD59: 0 | BE59: 0 | BF59: 0 | BG59: 0 | BM59: 0 | BO59: 0 | BP59: 0 | CA59: 8 | CK59: 0 | CL59: 0 | CM59: 0
I60: 9 | J60: 10 | K60: 11 | L60: 12 | M60: 13 | N60: 14 | O60: 15 | P60: 16 | Y60: 741 | AA60: =IF(OR(Y2=11,Y2=22,Y2=33),1,0) -> 0 | AV60: 55 | AW60: 9 | AX60: 0 | AY60: 0 | AZ60: 0 | BA60: 0 | BB60: 0 | BC60: 0 | BD60: 0 | BE60: 0 | BF60: 0 | BG60: 0 | BM60: 0 | BO60: 0 | BP60: 0 | CA60: 9 | CI60: =IF(CP9=0,13,MAX(CN60:CP60)) -> 13 | CJ60: =IF(CV32=0,13,CV32) -> 14 | CK60: =MAX(CK47:CK59) -> 0 | CL60: =MAX(CL47:CL59) -> 0 | CM60: =MAX(CM47:CM59) -> 1 | CN60: =IF(CO9=0,13,SEARCH(1,CO32)-1) -> 1 | CO60: =IF(CP9=0,13,SEARCH(1,CP32)-1) -> 13 | CP60: =IF(CQ9=0,13,SEARCH(1,CQ32)-1) -> 0 | CQ60: =IF(CN60=0,1,IF(AND(CN60<CO60,CN60>=$R$47),0,IF(AND(CN60<CP60,CN60>=$R$47),0,CN60))) -> 0 | CR60: =IF(CO60=0,1,IF(AND(CO60<CN60,CO60>=$R$47),0,IF(AND(CO60<CP60,CO60>=$R$47),0,CO60))) -> 13 | CS60: =IF(CP60=0,1,IF(AND(CP60<CO60,CP60>=$R$47),0,IF(AND(CP60<CN60,CP60>=$R$47),0,CP60))) -> 1 | CT60: =ABS(CQ60-CR60) -> 13 | CU60: =ABS(CR60-CS60) -> 12 | CV60: =IF(CT60=1,1,IF(CU60=1,1,0)) -> 0 | CX60: =IF(DE9=0,13,MAX(DC40:DE40)) -> 13 | CY60: =IF(DK23=0,13,DK23) -> 14 | EU60: 0 | FB60: 0
F61: Mise inv n°2 | H61: 0 | I61: =IF(ISNA(LOOKUP(I62,$EI$10:$EI$45,$EL$10:$EL$45)),0,LOOKUP(I62,$EI$10:$EI$45,$EL$10:$EL$45)) -> 3255 | J61: 3214 | K61: 3216 | L61: 3254 | M61: 0 | N61: 0 | O61: 0 | P61: =IF(ISNA(LOOKUP(P62,$EI$10:$EI$45,$EL$10:$EL$45)),0,LOOKUP(P62,$EI$10:$EI$45,$EL$10:$EL$45)) -> 0 | Q61: =IF(ISNA(LOOKUP(Q62,$EI$10:$EI$45,$EL$10:$EL$45)),0,LOOKUP(Q62,$EI$10:$EI$45,$EL$10:$EL$45)) -> 0 | AV61: 56 | AW61: 10 | AX61: 0 | AY61: 0 | AZ61: 0 | BA61: 0 | BB61: 0 | BC61: 0 | BD61: 0 | BE61: 0 | BF61: 0 | BG61: 0 | BM61: 0 | BO61: 0 | BP61: 0 | CA61: 10 | EU61: 0 | FB61: 0
H62: 0 | I62: 11 | J62: 12 | K62: 25 | L62: 27 | AA62: =IF(OR(Y2=2,Y2=10,Y2=22,Y2=32,Y2=35),1,0) -> 0 | AV62: 57 | AW62: 11 | AX62: 0 | AY62: 0 | AZ62: 0 | BA62: 0 | BB62: 0 | BC62: 0 | BD62: 0 | BE62: 0 | BF62: 0 | BG62: 0 | BM62: 0 | BO62: 0 | BP62: 0 | CA62: 11 | EU62: 0 | FB62: 0
F63: Mise identique 2 | I63: 1 | J63: 2 | K63: 3 | L63: 4 | M63: 5 | N63: 6 | O63: 7 | P63: 8 | Q63: 9 | AA63: 2 | AB63: 2 | AC63: 10 | AD63: 22 | AE63: 32 | AF63: 35 | AH63: R | AI63: =IF(AT5=0,"",AR5/AT5) -> 0.5 | AJ63: =IF(AT5=0,"",IF(AI63>=AI64,AH63,AH64)) -> R | AV63: 58 | AW63: 12 | AX63: 0 | AY63: 0 | AZ63: 0 | BA63: 0 | BB63: 0 | BC63: 0 | BD63: 0 | BE63: 0 | BF63: 0 | BG63: 0 | BM63: 0 | BO63: 0 | BP63: 0 | CA63: 12
I64: =IF(ISNA(LOOKUP(I65,$ER$10:$ER$45,$EU$10:$EU$45)),0,LOOKUP(I65,$ER$10:$ER$45,$EU$10:$EU$45)) -> 5 | J64: =IF(ISNA(LOOKUP(J65,$ER$10:$ER$45,$EU$10:$EU$45)),0,LOOKUP(J65,$ER$10:$ER$45,$EU$10:$EU$45)) -> 5 | K64: 60 | L64: 21 | M64: 33 | N64: 55 | O64: 0 | P64: 0 | Q64: 0 | R64: 0 | S64: 0 | T64: 0 | U64: 0 | V64: 0 | W64: 0 | X64: 0 | Y64: 0 | Z64: 0 | AH64: N | AI64: =IF(AT5=0,"",AS5/AT5) -> 0.5 | AV64: 59 | AW64: 13 | AX64: 0 | AY64: 0 | AZ64: 0 | BA64: 0 | BB64: 0 | BC64: 0 | BD64: 0 | BE64: 0 | BF64: 0 | BG64: 0 | BM64: 0 | BO64: 0 | BP64: 0 | CA64: 13 | EU64: 0 | FB64: 0
F65: Total mise | I65: 19 | J65: 28 | K65: 11 | L65: 12 | M65: 25 | N65: 27 | AH65: R | AI65: =IF(AT6=0,"",AR6/AT6) -> 0.5 | AJ65: =IF(AT6=0,"",IF(AI65>=AI66,AH65,AH66)) -> R | AV65: 60 | AW65: 14 | AX65: 0 | AY65: 0 | AZ65: 0 | BA65: 0 | BB65: 0 | BC65: 0 | BD65: 0 | BE65: 0 | BF65: 0 | BG65: 0 | BM65: 0 | BO65: 0 | BP65: 0 | CA65: 14 | EU65: 0 | FB65: 0
I66: 5 | K66: 1 | L66: 4 | M66: 3 | N66: 2 | AH66: N | AI66: =IF(AT6=0,"",AS6/AT6) -> 0.5 | AV66: 61 | AW66: 15 | AX66: 0 | AY66: 0 | AZ66: 0 | BA66: 0 | BB66: 0 | BC66: 0 | BD66: 0 | BE66: 0 | BF66: 0 | BG66: 0 | BM66: 0 | BO66: 0 | BP66: 0 | CA66: 15 | CI66: =IF(CT9<=3,1,0) -> 1 | CJ66: =CQ70 -> 0 | CN66: =IF($R$8=1,0,IF(Q15<>"",1,0)) -> 0 | CO66: 1 | CP66: 0 | CX66: =IF(DI9<=2,1,0) -> 1 | CY66: =DF70 -> 0 | DC66: =IF($V$8=1,0,IF(U15<>"",1,0)) -> 0 | DD66: 1 | DE66: 0 | EU66: 0 | FB66: 0
F67: Nb après zero | I67: 0 | J67: 2 | K67: 3 | L67: 4 | M67: 5 | N67: 6 | O67: 7 | P67: 8 | Q67: 9 | R67: 10 | S67: 11 | T67: 12 | U67: 13 | V67: 14 | W67: 15 | X67: 16 | Y67: 17 | Z67: 18 | AV67: 62 | AW67: 16 | AX67: 0 | AY67: 0 | AZ67: 0 | BA67: 0 | BB67: 0 | BC67: 0 | BD67: 0 | BE67: 0 | BF67: 0 | BG67: 0 | BM67: 0 | BO67: 0 | BP67: 0 | CA67: 16 | CN67: 0 | CO67: 1 | CP67: 0 | DC67: 0 | DD67: 1 | DE67: 0 | EU67: 0 | FB67: 0
H68: =IF(OR(Y2=H69,Y2=H70,Y2=H71,Y2=H72),1,0) -> 0 | I68: =E33 -> 0 | J68: =E34 -> 0 | K68: =E35 -> 0 | L68: =E36 -> 0 | M68: =E37 -> 0 | N68: =E38 -> 0 | O68: =E39 -> 0 | P68: =E40 -> 0 | Q68: =E41 -> 0 | R68: =E42 -> 0 | S68: =E43 -> 0 | T68: =E44 -> 0 | AV68: 63 | AW68: 17 | AX68: 0 | AY68: 0 | AZ68: 0 | BA68: 0 | BB68: 0 | BC68: 0 | BD68: 0 | BE68: 0 | BF68: 0 | BG68: 0 | BM68: 0 | BO68: 0 | BP68: 0 | CA68: 17 | CN68: 0 | CO68: 1 | CP68: 0 | DC68: 0 | DD68: 1 | DE68: 0 | EU68: 0 | FB68: 0
H69: =IF(OR(I69=$Y$2,J69=$Y$2,K69=$Y$2,L69=$Y$2,M69=$Y$2,N69=$Y$2,O69=$Y$2,P69=$Y$2,Q69=$Y$2,R69=$Y$2,S69=$Y$2,T69=$Y$2),1,0) -> 0 | I69: =IF(I68=1,1,"") ->  | J69: =IF(J68=1,4,"") ->  | K69: =IF(K68=1,7,"") ->  | L69: =IF(L68=1,10,"") ->  | M69: =IF(M68=1,13,"") ->  | N69: =IF(N68=1,16,"") ->  | O69: =IF(O68=1,19,"") ->  | P69: =IF(P68=1,22,"") ->  | Q69: =IF(Q68=1,25,"") ->  | R69: =IF(R68=1,28,"") ->  | S69: =IF(S68=1,31,"") ->  | T69: =IF(T68=1,34,"") ->  | AV69: 64 | AW69: 18 | AX69: 0 | AY69: 0 | AZ69: 0 | BA69: 0 | BB69: 0 | BC69: 0 | BD69: 0 | BE69: 0 | BF69: 0 | BG69: 0 | BM69: 0 | BO69: 0 | BP69: 0 | CA69: 18 | EU69: 0 | FB69: 0
H70: =IF(OR(I70=$Y$2,J70=$Y$2,K70=$Y$2,L70=$Y$2,M70=$Y$2,N70=$Y$2,O70=$Y$2,P70=$Y$2,Q70=$Y$2,R70=$Y$2,S70=$Y$2,T70=$Y$2),1,0) -> 0 | I70: =IF(I68=1,2,"") ->  | J70: =IF(J68=1,5,"") ->  | K70: =IF(K68=1,8,"") ->  | L70: =IF(L68=1,11,"") ->  | M70: =IF(M68=1,14,"") ->  | N70: =IF(N68=1,17,"") ->  | O70: =IF(O68=1,20,"") ->  | P70: =IF(P68=1,23,"") ->  | Q70: =IF(Q68=1,26,"") ->  | R70: =IF(R68=1,29,"") ->  | S70: =IF(S68=1,32,"") ->  | T70: =IF(T68=1,35,"") ->  | AV70: 65 | AW70: 19 | AX70: 0 | AY70: 0 | AZ70: 0 | BA70: 0 | BB70: 0 | BC70: 0 | BD70: 0 | BE70: 0 | BF70: 0 | BG70: 0 | BM70: 0 | BO70: 0 | BP70: 0 | CA70: 19 | CN70: =SUM(CN66:CN69) -> 0 | CO70: =SUM(CO66:CO69) -> 3 | CP70: =SUM(CP66:CP69) -> 0 | CQ70: =SUMIF(CN70:CP70,1) -> 0 | DC70: =SUM(DC66:DC69) -> 0 | DD70: =SUM(DD66:DD69) -> 3 | DE70: =SUM(DE66:DE69) -> 0 | DF70: =SUMIF(DC70:DE70,1) -> 0
H71: =IF(OR(I71=$Y$2,J71=$Y$2,K71=$Y$2,L71=$Y$2,M71=$Y$2,N71=$Y$2,O71=$Y$2,P71=$Y$2,Q71=$Y$2,R71=$Y$2,S71=$Y$2,T71=$Y$2),1,0) -> 0 | I71: =IF(I68=1,3,"") ->  | J71: =IF(J68=1,6,"") ->  | K71: =IF(K68=1,9,"") ->  | L71: =IF(L68=1,12,"") ->  | M71: =IF(M68=1,15,"") ->  | N71: =IF(N68=1,18,"") ->  | O71: =IF(O68=1,21,"") ->  | P71: =IF(P68=1,24,"") ->  | Q71: =IF(Q68=1,27,"") ->  | R71: =IF(R68=1,30,"") ->  | S71: =IF(S68=1,33,"") ->  | T71: =IF(T68=1,36,"") ->  | AV71: 66 | AW71: 20 | AX71: 0 | AY71: 0 | AZ71: 0 | BA71: 0 | BB71: 0 | BC71: 0 | BD71: 0 | BE71: 0 | BF71: 0 | BG71: 0 | BM71: 0 | BO71: 0 | BP71: 0 | CA71: 20
E72: =SUM(I73:K84)+1 -> 1 | H72: =IF(OR(H69=1,H70=1,H71=1),1,0) -> 0 | I72: =IF($I$66=4,$I$65,IF($J$66=4,$J$65,IF($K$66=4,$K$65,IF($L$66=4,$L$65,IF($M$66=4,$M$65,IF($N$66=4,$N$65,IF($O$66=4,$O$65,IF($P$66=4,$P$65,"")))))))) -> 12 | J72: =IF($Q$66=4,$Q$65,IF($R$66=4,$R$65,IF($S$66=4,$S$65,IF($T$66=4,$T$65,IF($U$66=4,$U$65,IF($V$66=4,$V$65,IF($W$66=4,$W$65,IF($X$66=4,$X$65,"")))))))) ->  | K72: =IF($Y$66=4,$Y$65,IF($Z$66=4,$Z$65,"")) ->  | AV72: 67 | AW72: 21 | AX72: 0 | AY72: 0 | AZ72: 0 | BA72: 0 | BB72: 0 | BC72: 0 | BD72: 0 | BE72: 0 | BF72: 0 | BG72: 0 | BM72: 0 | BO72: 0 | BP72: 0 | CA72: 21 | CI72: =IF(CT9<=3,1,0) -> 1 | CJ72: =CQ76 -> 0 | CN72: =IF($R$8=1,0,IF(Q19<>"",1,0)) -> 0 | CO72: 1 | CP72: 0 | CX72: =IF(DI9<=2,1,0) -> 1 | CY72: =DF76 -> 0 | DC72: =IF($V$8=1,0,IF(U19<>"",1,0)) -> 0 | DD72: 1 | DE72: 0
E73: 1 | I73: =IF(I33<>0,1,0) -> 0 | J73: 0 | K73: 0 | AV73: 68 | AW73: 22 | AX73: 0 | AY73: 0 | AZ73: 0 | BA73: 0 | BB73: 0 | BC73: 0 | BD73: 0 | BE73: 0 | BF73: 0 | BG73: 0 | BM73: 0 | BO73: 0 | BP73: 0 | CA73: 22 | CN73: 0 | CO73: 1 | CP73: 0 | DC73: 0 | DD73: 1 | DE73: 0
E74: 2 | I74: 0 | J74: 0 | K74: 0 | AV74: 69 | AW74: 23 | AX74: 0 | AY74: 0 | AZ74: 0 | BA74: 0 | BB74: 0 | BC74: 0 | BD74: 0 | BE74: 0 | BF74: 0 | BG74: 0 | BM74: 0 | BO74: 0 | BP74: 0 | CA74: 23 | CN74: 0 | CO74: 1 | CP74: 0 | DC74: 0 | DD74: 1 | DE74: 0
E75: 3 | I75: 0 | J75: 0 | K75: 0 | AV75: 70 | AW75: 24 | AX75: 0 | AY75: 0 | AZ75: 0 | BA75: 0 | BB75: 0 | BC75: 0 | BD75: 0 | BE75: 0 | BF75: 0 | BG75: 0 | BM75: 0 | BO75: 0 | BP75: 0 | CA75: 24
E76: 4 | I76: 0 | J76: 0 | K76: 0 | AV76: 71 | AW76: 25 | AX76: 0 | AY76: 0 | AZ76: 0 | BA76: 0 | BB76: 0 | BC76: 0 | BD76: 0 | BE76: 0 | BF76: 0 | BG76: 0 | BM76: 0 | BO76: 0 | BP76: 0 | CA76: 25 | CN76: =SUM(CN72:CN75) -> 0 | CO76: =SUM(CO72:CO75) -> 3 | CP76: =SUM(CP72:CP75) -> 0 | CQ76: =SUMIF(CN76:CP76,1) -> 0 | DC76: =SUM(DC72:DC75) -> 0 | DD76: =SUM(DD72:DD75) -> 3 | DE76: =SUM(DE72:DE75) -> 0 | DF76: =SUMIF(DC76:DE76,1) -> 0
E77: 5 | I77: 0 | J77: 0 | K77: 0 | AV77: 72 | AW77: 26 | AX77: 0 | AY77: 0 | AZ77: 0 | BA77: 0 | BB77: 0 | BC77: 0 | BD77: 0 | BE77: 0 | BF77: 0 | BG77: 0 | BM77: 0 | BO77: 0 | BP77: 0 | CA77: 26
E78: 6 | I78: 0 | J78: 0 | K78: 0 | AV78: 73 | AW78: 27 | AX78: 0 | AY78: 0 | AZ78: 0 | BA78: 0 | BB78: 0 | BC78: 0 | BD78: 0 | BE78: 0 | BF78: 0 | BG78: 0 | BM78: 0 | BO78: 0 | BP78: 0 | CA78: 27
E79: 7 | I79: 0 | J79: 0 | K79: 0 | AS79: 5 | AT79: =SUMIF($AT$86:$AT$95,AS79,$AT$86:$AT$95)/AS79 -> 0 | AV79: =AT79/AS79 -> 0 | AW79: 28 | AX79: 0 | AY79: 0 | AZ79: 0 | BA79: 0 | BB79: 0 | BC79: 0 | BD79: 0 | BE79: 0 | BF79: 0 | BG79: 0 | BM79: 0 | BO79: 0 | BP79: 0 | CA79: 28
E80: 8 | I80: 0 | J80: 0 | K80: 0 | O80: =IF(AND(#REF!=1,M11="P"),"I",IF(AND(#REF!=2,O12="I"),"I",IF(AND(#REF!=4,O13="I"),"I",IF(AND(#REF!=8,O14="I"),"I",IF(AND(#REF!=16,M15="P"),"I",IF(AND(#REF!=32,M16="P"),"I",IF(AND(#REF!=64,O17="I"),"I",""))))))) ->  | Y80: =IF(AND(Y33=1,AA11=2),1,IF(AND(Y33=2,Y12=1),1,IF(AND(Y33=4,Y13=1),1,IF(AND(Y33=8,Y14=1),1,IF(AND(Y33=16,AA15=2),1,IF(AND(Y33=32,AA16=2),1,IF(AND(Y33=64,Y17=1),1,""))))))) ->  | AA80: =IF(AND(Y33=1,Y11=1),2,IF(AND(Y33=2,AA12=2),2,IF(AND(Y33=4,AA13=2),2,IF(AND(Y33=8,AA14=2),2,IF(AND(Y33=16,Y15=1),2,IF(AND(Y33=32,Y16=1),2,IF(AND(Y33=64,AA17=2),2,""))))))) ->  | AS80: 4 | AT80: =SUMIF($AT$86:$AT$95,AS80,$AT$86:$AT$95)/AS80 -> 0 | AV80: =AT80/AS80 -> 0 | AW80: 29 | AX80: 0 | AY80: 0 | AZ80: 0 | BA80: 0 | BB80: 0 | BC80: 0 | BD80: 0 | BE80: 0 | BF80: 0 | BG80: 0 | BM80: 0 | BO80: 0 | BP80: 0 | CA80: 29
E81: 9 | I81: 0 | J81: 0 | K81: 0 | O81: =IF(AND(#REF!=128,M18="P"),"I",IF(AND(#REF!=256,O19="I"),"I",IF(AND(#REF!=512,O20="I"),"I",IF(AND(#REF!=1024,M21="P"),"I",IF(AND(#REF!=2048,M22="P"),"I",IF(#REF!>=2050,"P","")))))) ->  | Y81: =IF(AND(Y33=128,Y18=1),1,IF(AND(Y33=256,Y19=1),1,IF(AND(Y33=512,Y20=1),1,IF(AND(Y33=1024,AA21=2),1,IF(AND(Y33=2048,AA22=2),1,IF(Y33>=2050,2,"")))))) ->  | AA81: =IF(AND(Y33=128,AA18=2),2,IF(AND(Y33=256,AA19=2),2,IF(AND(Y33=512,AA20=2),2,IF(AND(Y33=1024,Y21=1),2,IF(AND(Y33=2048,Y22=1),2,IF(Y33>=2050,1,"")))))) ->  | AS81: 3 | AT81: =SUMIF($AT$86:$AT$95,AS81,$AT$86:$AT$95)/AS81 -> 0 | AV81: =AT81/AS81 -> 0 | AW81: 30 | AX81: 0 | AY81: 0 | AZ81: 0 | BA81: 0 | BB81: 0 | BC81: 0 | BD81: 0 | BE81: 0 | BF81: 0 | BG81: 0 | BM81: 0 | BO81: 0 | BP81: 0 | CA81: 30
E82: 10 | I82: 0 | J82: 0 | K82: 0 | AS82: 2 | AT82: =SUMIF($AT$86:$AT$95,AS82,$AT$86:$AT$95)/AS82 -> 0 | AV82: =AT82/AS82 -> 0 | AW82: 31 | AX82: 0 | AY82: 0 | AZ82: 0 | BA82: 0 | BB82: 0 | BC82: 0 | BD82: 0 | BE82: 0 | BF82: 0 | BG82: 0 | BM82: 0 | BO82: 0 | BP82: 0 | CA82: 31
E83: 11 | I83: =IF(I43<>0,1,0) -> 0 | J83: 0 | K83: 0 | AV83: =SUM(AV79:AV82) -> 0 | AW83: 32 | AX83: 0 | AY83: 0 | AZ83: 0 | BA83: 0 | BB83: 0 | BC83: 0 | BD83: 0 | BE83: 0 | BF83: 0 | BG83: 0 | BM83: 0 | BO83: 0 | BP83: 0 | CA83: 32
E84: 12 | I84: 0 | J84: 0 | K84: 0 | AV84: 79 | AW84: 33 | AX84: 0 | AY84: 0 | AZ84: 0 | BA84: 0 | BB84: 0 | BC84: 0 | BD84: 0 | BE84: 0 | BF84: 0 | BG84: 0 | BM84: 0 | BO84: 0 | BP84: 0 | CA84: 33
AV85: 80 | AW85: 34 | AX85: 0 | AY85: 0 | AZ85: 0 | BA85: 0 | BB85: 0 | BC85: 0 | BD85: 0 | BE85: 0 | BF85: 0 | BG85: 0 | BM85: 0 | BO85: 0 | BP85: 0 | CA85: 34
Y86: 0 | Z86: 0 | AF86: =IF(AG86="N",1,IF(G86="R",2,0)) -> 1 | AG86: =LOOKUP(AH86,$Y$86:$Y$122,$Z$86:$Z$122) -> N | AH86: 15 | AI86: =LOOKUP(AH86,AO86:AO122,AP86:AP122) -> 13 | AJ86: =LOOKUP(AH86,AO86:AO122,AQ86:AQ122) -> 14 | AK86: =LOOKUP(AH86,AO86:AO122,AR86:AR122) -> 15 | AM86: =IF(AI86=$Y$2,1,IF(AJ86=$Y$2,1,IF(AK86=$Y$2,1,0))) -> 0 | AO86: 0 | AP86: 0 | AQ86: 0 | AR86: 0 | AT86: =IF(AI86=0,0,SUMIF(AI86:AI95,AI86,AI86:AI95)/AI86) -> 1 | AU86: =IF(AT86=0,1,IF(AT86>1,1,0)) -> 0 | AW86: 35 | AX86: 0 | AY86: 0 | AZ86: 0 | BA86: 0 | BB86: 0 | BC86: 0 | BD86: 0 | BE86: 0 | BF86: 0 | BG86: 0 | BM86: 0 | BO86: 0 | BP86: 0 | BQ86: =IF(BS87=1,1,0) -> 0 | BS86: =IF(BQ87=1,1,0) -> 0 | BU86: =IF(BW87=1,1,0) -> 0 | BW86: =IF(BU87=1,1,0) -> 0 | CA86: 35 | CG86: =IF(CI87=1,1,0) -> 0 | CI86: =IF(CG87=1,1,0) -> 0
Y87: 1 | Z87: R | AF87: =IF(AG87="N",1,IF(G87="R",2,0)) -> 0 | AG87: =LOOKUP(AH87,$Y$86:$Y$122,$Z$86:$Z$122) -> R | AH87: 3 | AI87: =LOOKUP(AH87,AO86:AO122,AP86:AP122) -> 1 | AJ87: =LOOKUP(AH87,AO86:AO122,AQ86:AQ122) -> 2 | AK87: =LOOKUP(AH87,AO86:AO122,AR86:AR122) -> 3 | AM87: =IF(AI87=$Y$2,1,IF(AJ87=$Y$2,1,IF(AK87=$Y$2,1,0))) -> 0 | AO87: 1 | AP87: 1 | AQ87: 2 | AR87: 3 | AT87: =IF(AI87=0,0,SUMIF(AI86:AI95,AI87,AI86:AI95)/AI87) -> 1 | AU87: 0 | AW87: 36 | AX87: 0 | AY87: 0 | AZ87: 0 | BA87: 0 | BB87: 0 | BC87: 0 | BD87: 0 | BE87: 0 | BF87: 0 | BG87: 0 | BM87: 0 | BO87: 0 | BP87: 0 | BQ87: =IF(AND(BQ91>=70,BQ89>=3),1,0) -> 0 | BS87: =IF(AND(BS91>=70,BS89>=3),1,0) -> 0 | BU87: =IF(AND(BU91>=70,BU89>=3),1,0) -> 0 | BW87: =IF(AND(BW91>=70,BW89>=3),1,0) -> 0 | CA87: 36 | CG87: =IF(AND(CG91>=70,CG89>=3),1,0) -> 0 | CI87: =IF(AND(CI91>=70,CI89>=3),1,0) -> 0
Y88: 2 | Z88: N | AF88: 1 | AG88: N | AH88: 10 | AI88: =LOOKUP(AH88,AO86:AO122,AP86:AP122) -> 10 | AJ88: =LOOKUP(AH88,AO86:AO122,AQ86:AQ122) -> 11 | AK88: =LOOKUP(AH88,AO86:AO122,AR86:AR122) -> 12 | AM88: 0 | AO88: 2 | AP88: 1 | AQ88: 2 | AR88: 3 | AT88: =IF(AI88=0,0,SUMIF(AI86:AI95,AI88,AI86:AI95)/AI88) -> 1 | AU88: 0
Y89: 3 | Z89: R | AF89: 0 | AG89: R | AH89: 25 | AI89: =LOOKUP(AH89,AO86:AO122,AP86:AP122) -> 25 | AJ89: =LOOKUP(AH89,AO86:AO122,AQ86:AQ122) -> 26 | AK89: =LOOKUP(AH89,AO86:AO122,AR86:AR122) -> 27 | AM89: 0 | AO89: 3 | AP89: 1 | AQ89: 2 | AR89: 3 | AT89: =IF(AI89=0,0,SUMIF(AI86:AI95,AI89,AI86:AI95)/AI89) -> 1 | AU89: 0 | BQ89: =SUM(BQ93:BQ95) -> 1 | BS89: =SUM(BS93:BS95) -> 1 | BU89: =SUM(BU93:BU95) -> 2 | BW89: =SUM(BW93:BW95) -> 0 | CG89: =SUM(CG93:CG95) -> 1 | CI89: =SUM(CI93:CI95) -> 1
Y90: 4 | Z90: N | AF90: 1 | AG90: N | AH90: 17 | AI90: =LOOKUP(AH90,AO86:AO122,AP86:AP122) -> 16 | AJ90: =LOOKUP(AH90,AO86:AO122,AQ86:AQ122) -> 17 | AK90: =LOOKUP(AH90,AO86:AO122,AR86:AR122) -> 18 | AM90: 0 | AO90: 4 | AP90: 4 | AQ90: 5 | AR90: 6 | AT90: =IF(AI90=0,0,SUMIF(AI86:AI95,AI90,AI86:AI95)/AI90) -> 1 | AU90: 0 | AX90: 1 | AY90: 2 | AZ90: 3 | BA90: 4 | BB90: 5 | BC90: 6 | BD90: 7 | BE90: 8 | BF90: 9 | BH90: 1 | BI90: 2 | BJ90: 3 | BK90: 4 | BL90: 5 | BM90: 6 | BN90: 7 | BO90: 8 | BP90: 9
Y91: 5 | Z91: R | AF91: 0 | AG91: R | AH91: 19 | AI91: =LOOKUP(AH91,AO86:AO122,AP86:AP122) -> 19 | AJ91: =LOOKUP(AH91,AO86:AO122,AQ86:AQ122) -> 20 | AK91: =LOOKUP(AH91,AO86:AO122,AR86:AR122) -> 21 | AM91: 0 | AO91: 5 | AP91: 4 | AQ91: 5 | AR91: 6 | AT91: =IF(AI91=0,0,SUMIF(AI86:AI95,AI91,AI86:AI95)/AI91) -> 1 | AU91: 0 | AW91: 1 | BM91: =IF($AM$21=AW91,1,0) -> 0 | BN91: =IF($AN$21=AW91,1,0) -> 0 | BO91: =IF($AO$21=AW91,1,0) -> 0 | BP91: =IF($AP$21=AW91,1,0) -> 0 | BQ91: =BQ92*100/21 -> 4.761904762 | BS91: =BS92*100/21 -> 4.761904762 | BU91: =BU92*100/21 -> 9.523809524 | BW91: =BW92*100/21 -> 0 | CG91: =CG92*100/21 -> 4.761904762 | CI91: =CI92*100/21 -> 4.761904762
Y92: 6 | Z92: N | AF92: 1 | AG92: N | AH92: 24 | AI92: =LOOKUP(AH92,AO86:AO122,AP86:AP122) -> 22 | AJ92: =LOOKUP(AH92,AO86:AO122,AQ86:AQ122) -> 23 | AK92: =LOOKUP(AH92,AO86:AO122,AR86:AR122) -> 24 | AM92: 0 | AO92: 6 | AP92: 4 | AQ92: 5 | AR92: 6 | AT92: =IF(AI92=0,0,SUMIF(AI86:AI95,AI92,AI86:AI95)/AI92) -> 1 | AU92: =IF(AT92=0,1,IF(AT92>1,1,0)) -> 0 | AW92: 2 | BM92: 0 | BN92: 0 | BO92: 0 | BP92: 0 | BQ92: =SUM(BQ93:BQ113) -> 1 | BS92: =SUM(BS93:BS113) -> 1 | BU92: =SUM(BU93:BU113) -> 2 | BW92: =SUM(BW93:BW113) -> 0 | CG92: =SUM(CG93:CG113) -> 1 | CI92: =SUM(CI93:CI113) -> 1
Y93: 7 | Z93: R | AF93: 0 | AG93: 0 | AH93: 0 | AI93: =LOOKUP(AH93,AO86:AO122,AP86:AP122) -> 0 | AJ93: =LOOKUP(AH93,AO86:AO122,AQ86:AQ122) -> 0 | AK93: =LOOKUP(AH93,AO86:AO122,AR86:AR122) -> 0 | AM93: 0 | AO93: 7 | AP93: 7 | AQ93: 8 | AR93: 9 | AT93: =IF(AI93=0,0,SUMIF(AI86:AI95,AI93,AI86:AI95)/AI93) -> 0 | AU93: =IF(AT93=0,1,IF(AT93>1,1,0)) -> 1 | AW93: 3 | BM93: 0 | BN93: 0 | BO93: 0 | BP93: 0 | BQ93: =IF(I10<>"",1,0) -> 1 | BS93: =IF(K10<>"",1,0) -> 0 | BU93: =IF(M10<>"",1,0) -> 1 | BW93: =IF(O10<>"",1,0) -> 0 | CG93: =IF(Y10<>"",1,0) -> 0 | CI93: =IF(AA10<>"",1,0) -> 1
Y94: 8 | Z94: N | AF94: 1 | AG94: N | AH94: 4 | AI94: =LOOKUP(AH94,AO86:AO122,AP86:AP122) -> 4 | AJ94: =LOOKUP(AH94,AO86:AO122,AQ86:AQ122) -> 5 | AK94: =LOOKUP(AH94,AO86:AO122,AR86:AR122) -> 6 | AM94: 0 | AO94: 8 | AP94: 7 | AQ94: 8 | AR94: 9 | AT94: =IF(AI94=0,0,SUMIF(AI86:AI95,AI94,AI86:AI95)/AI94) -> 1 | AU94: =IF(AT94=0,1,IF(AT94>1,1,0)) -> 0 | AW94: 4 | BM94: 0 | BN94: 0 | BO94: 0 | BP94: 0 | BQ94: =IF(I11<>"",1,0) -> 0 | BS94: 1 | BU94: 1 | BW94: 0 | CG94: 1 | CI94: 0
Y95: 9 | Z95: R | AF95: 0 | AG95: 0 | AI95: =LOOKUP(AH95,AO86:AO122,AP86:AP122) -> 0 | AJ95: =LOOKUP(AH95,AO86:AO122,AQ86:AQ122) -> 0 | AK95: =LOOKUP(AH95,AO86:AO122,AR86:AR122) -> 0 | AM95: 0 | AO95: 9 | AP95: 7 | AQ95: 8 | AR95: 9 | AT95: =IF(AI95=0,0,SUMIF(AI86:AI95,AI95,AI86:AI95)/AI95) -> 0 | AU95: =IF(AT95=0,1,IF(AT95>1,1,0)) -> 1 | AW95: 5 | BM95: 0 | BN95: 0 | BO95: 0 | BP95: 0 | BQ95: 0 | BS95: 0 | BU95: 0 | BW95: 0 | CG95: 0 | CI95: 0
Y96: 10 | Z96: N | AO96: 10 | AP96: 10 | AQ96: 11 | AR96: 12 | AW96: 6 | BM96: 0 | BN96: 0 | BO96: 0 | BP96: 0 | BQ96: 0 | BS96: 0 | BU96: 0 | BW96: 0 | CG96: 0 | CI96: 0
Y97: 11 | Z97: N | AF97: =SUM(AF86:AF96) -> 5 | AG97: N | AM97: =SUM(AM86:AM96) -> 0 | AO97: 11 | AP97: 10 | AQ97: 11 | AR97: 12 | AT97: 10 | AU97: =SUM(AU86:AU96)-AV83 -> 2 | AW97: 7 | BM97: 0 | BN97: 0 | BO97: 0 | BP97: 0 | BQ97: 0 | BS97: 0 | BU97: 0 | BW97: 0 | CG97: 0 | CI97: 0
Y98: 12 | Z98: R | AM98: =IF(AM97=0,0,1) -> 0 | AO98: 12 | AP98: 10 | AQ98: 11 | AR98: 12 | AT98: =AT97-AU97 -> 8 | AW98: 8 | BM98: 0 | BN98: 0 | BO98: 0 | BP98: 0 | BQ98: 0 | BS98: 0 | BU98: 0 | BW98: 0 | CG98: 0 | CI98: 0
Y99: 13 | Z99: N | AF99: =10-AF97 -> 5 | AG99: R | AO99: 13 | AP99: 13 | AQ99: 14 | AR99: 15 | AW99: 9 | BM99: 0 | BN99: 0 | BO99: 0 | BP99: 0 | BQ99: 0 | BS99: 0 | BU99: 0 | BW99: 0 | CG99: 0 | CI99: 0
Y100: 14 | Z100: R | AO100: 14 | AP100: 13 | AQ100: 14 | AR100: 15 | AT100: 5 | AW100: 10 | BM100: 0 | BN100: 0 | BO100: 0 | BP100: 0 | BQ100: 0 | BS100: 0 | BU100: 0 | BW100: 0 | CG100: 0 | CI100: 0
Y101: 15 | Z101: N | AO101: 15 | AP101: 13 | AQ101: 14 | AR101: 15 | AW101: 11 | BM101: 0 | BN101: 0 | BO101: 0 | BP101: 0 | BQ101: 0 | BS101: 0 | BU101: 0 | BW101: 0 | CG101: 0 | CI101: 0
Y102: 16 | Z102: R | AO102: 16 | AP102: 16 | AQ102: 17 | AR102: 18 | AW102: 12 | BM102: 0 | BN102: 0 | BO102: 0 | BP102: 0 | BQ102: 0 | BS102: 0 | BU102: 0 | BW102: 0 | CG102: 0 | CI102: 0
Y103: 17 | Z103: N | AO103: 17 | AP103: 16 | AQ103: 17 | AR103: 18 | AW103: 13 | BM103: 0 | BN103: 0 | BO103: 0 | BP103: 0 | BQ103: 0 | BS103: 0 | BU103: 0 | BW103: 0 | CG103: 0 | CI103: 0
Y104: 18 | Z104: R | AO104: 18 | AP104: 16 | AQ104: 17 | AR104: 18 | AW104: 14 | BM104: 0 | BN104: 0 | BO104: 0 | BP104: 0 | BQ104: 0 | BS104: 0 | BU104: 0 | BW104: 0 | CG104: 0 | CI104: 0
Y105: 19 | Z105: R | AO105: 19 | AP105: 19 | AQ105: 20 | AR105: 21 | AW105: 15 | BM105: 0 | BN105: 0 | BO105: 0 | BP105: 0 | BQ105: 0 | BS105: 0 | BU105: 0 | BW105: 0 | CG105: 0 | CI105: 0
Y106: 20 | Z106: N | AO106: 20 | AP106: 19 | AQ106: 20 | AR106: 21 | AW106: 16 | BM106: 0 | BN106: 0 | BO106: 0 | BP106: 0 | BQ106: 0 | BS106: 0 | BU106: 0 | BW106: 0 | CG106: 0 | CI106: 0
Y107: 21 | Z107: R | AO107: 21 | AP107: 19 | AQ107: 20 | AR107: 21 | AW107: 17 | BM107: 0 | BN107: 0 | BO107: 0 | BP107: 0 | BQ107: 0 | BS107: 0 | BU107: 0 | BW107: 0 | CG107: 0 | CI107: 0
Y108: 22 | Z108: N | AO108: 22 | AP108: 22 | AQ108: 23 | AR108: 24 | AW108: 18 | BM108: 0 | BN108: 0 | BO108: 0 | BP108: 0 | BQ108: 0 | BS108: 0 | BU108: 0 | BW108: 0 | CG108: 0 | CI108: 0
Y109: 23 | Z109: R | AO109: 23 | AP109: 22 | AQ109: 23 | AR109: 24 | AW109: 19 | BM109: 0 | BN109: 0 | BO109: 0 | BP109: 0 | BQ109: 0 | BS109: 0 | BU109: 0 | BW109: 0 | CG109: 0 | CI109: 0
Y110: 24 | Z110: N | AO110: 24 | AP110: 22 | AQ110: 23 | AR110: 24 | AW110: 20 | BM110: 0 | BN110: 0 | BO110: 0 | BP110: 0 | BQ110: 0 | BS110: 0 | BU110: 0 | BW110: 0 | CG110: 0 | CI110: 0
Y111: 25 | Z111: R | AO111: 25 | AP111: 25 | AQ111: 26 | AR111: 27 | AW111: 21 | BM111: 0 | BN111: 0 | BO111: 0 | BP111: 0 | BQ111: 0 | BS111: 0 | BU111: 0 | BW111: 0 | CG111: 0 | CI111: 0
Y112: 26 | Z112: N | AO112: 26 | AP112: 25 | AQ112: 26 | AR112: 27 | AW112: 22 | BM112: 0 | BN112: 0 | BO112: 0 | BP112: 0 | BQ112: 0 | BS112: 0 | BU112: 0 | BW112: 0 | CG112: 0 | CI112: 0
Y113: 27 | Z113: R | AO113: 27 | AP113: 25 | AQ113: 26 | AR113: 27 | AW113: 23 | BM113: 0 | BN113: 0 | BO113: 0 | BP113: 0 | BQ113: 0 | BS113: 0 | BU113: 0 | BW113: 0 | CG113: 0 | CI113: 0
Y114: 28 | Z114: N | AO114: 28 | AP114: 28 | AQ114: 29 | AR114: 30 | AW114: 24 | BM114: 0 | BN114: 0 | BO114: 0 | BP114: 0
Y115: 29 | Z115: N | AO115: 29 | AP115: 28 | AQ115: 29 | AR115: 30 | AW115: 25 | BM115: 0 | BN115: 0 | BO115: 0 | BP115: 0
Y116: 30 | Z116: R | AO116: 30 | AP116: 28 | AQ116: 29 | AR116: 30 | AW116: 26 | BM116: 0 | BN116: 0 | BO116: 0 | BP116: 0
Y117: 31 | Z117: N | AO117: 31 | AP117: 31 | AQ117: 32 | AR117: 33 | AW117: 27 | BM117: 0 | BN117: 0 | BO117: 0 | BP117: 0
Y118: 32 | Z118: R | AO118: 32 | AP118: 31 | AQ118: 32 | AR118: 33 | AW118: 28 | BM118: 0 | BN118: 0 | BO118: 0 | BP118: 0
Y119: 33 | Z119: N | AH119: =IF(OR($Y$2=AH157,$Y$2=AH158,$Y$2=AH159,$Y$2=AH160,$Y$2=AH161,$Y$2=AH162),2,1) -> 1 | AI119: =IF(OR($Y$2=AI157,$Y$2=AI158,$Y$2=AI159,$Y$2=AI160,$Y$2=AI161,$Y$2=AI162),2,1) -> 1 | AO119: 33 | AP119: 31 | AQ119: 32 | AR119: 33 | AW119: 29 | BM119: 0 | BN119: 0 | BO119: 0 | BP119: 0
Y120: 34 | Z120: R | AH120: =IF(ISNA(AH121),50,AH121) -> 24 | AI120: =IF(ISNA(AI121),50,AI121) -> 18 | AO120: 34 | AP120: 34 | AQ120: 35 | AR120: 36 | AW120: 30 | BM120: 0 | BN120: 0 | BO120: 0 | BP120: 0
Y121: 35 | Z121: N | AH121: =LOOKUP(Y2,AH157:AH162,AH157:AH162) -> 24 | AI121: =LOOKUP(Y2,AI157:AI162,AI157:AI162) -> 18 | AO121: 35 | AP121: 34 | AQ121: 35 | AR121: 36 | AW121: 31 | BM121: 0 | BN121: 0 | BO121: 0 | BP121: 0
Y122: 36 | Z122: R | AO122: 36 | AP122: 34 | AQ122: 35 | AR122: 36 | AW122: 32 | BM122: 0 | BN122: 0 | BO122: 0 | BP122: 0
AH123: 1 | AI123: 2 | AW123: 33 | BM123: 0 | BN123: 0 | BO123: 0 | BP123: 0
AW124: 34 | BM124: 0 | BN124: 0 | BO124: 0 | BP124: 0
AF125: =Y2 -> 36 | AH125: 0 | AI125: 0 | AW125: 35 | BM125: 0 | BN125: 0 | BO125: 0 | BP125: 0
AH126: 1 | AI126: 1 | AW126: 36 | BM126: 0 | BN126: 0 | BO126: 0 | BP126: 0
AH127: 2 | AI127: 2
D128: Modus 2 | AH128: 3 | AI128: 3
D129: Modus 1 | AH129: 4 | AI129: 4
D130: Miroir 13 | AH130: 5 | AI130: 5
AH131: 6 | AI131: 6
AH132: 7 | AI132: 7
D133: Standard | AH133: 8 | AI133: 8
D134: Inverse | AH134: 9 | AI134: 9
AH135: 10 | AI135: 10
AH136: 11 | AI136: 11
D137: Start Spin 1 | AH137: 12 | AI137: 12
D138: Start Spin 2 | AH138: 13 | AI138: 19
D139: Start Spin 3 | AH139: 14 | AI139: 20
D140: Start Spin 4 | AH140: 15 | AI140: 21
AH141: 16 | AI141: 22
AH142: 17 | AI142: 23
D143: Nbre Spin 10 | AH143: 18 | AI143: 24
D144: Nbre Spin 15 | AH144: 25 | AI144: 25
D145: Nbre Spin 20 | AH145: 26 | AI145: 26
D146: Nbre Spin 30 | AH146: 27 | AI146: 27
AH147: 28 | AI147: 28
AH148: 29 | AI148: 29
D149: 3 numéros | AH149: 30 | AI149: 30
D150: 4 numéros | AH150: 31 | AI150: 31
AH151: 32 | AI151: 32
AH152: 33 | AI152: 33
D153: Mode 1 | AH153: 34 | AI153: 34
D154: Mode 2 | AH154: 35 | AI154: 35
D155: Mode 3 | AH155: 36 | AI155: 36
D157: Prudent | AH157: 19 | AI157: 13
D158: Agressif | AH158: 20 | AI158: 14
AH159: 21 | AI159: 15
AH160: 22 | AI160: 16
D161: 5 Chiffres | AH161: 23 | AI161: 17
D162: 6 Chiffres | AH162: 24 | AI162: 18
D166: Test
D167: Jeux
D168: Rapide
D170: 8
D171: 9
D172: 10 | I172: 1 | J172: 2 | K172: 3 | L172: 4 | M172: 5 | N172: 6 | O172: 7 | P172: 8 | Q172: 9 | R172: 10 | T172: 0 | U172: 0 | X172: =AH4 -> 0 | Y172: =AI4 -> 0 | Z172: =AJ4 -> 0 | AA172: =AK4 -> 0 | AB172: =AL4 -> 0 | AD172: =IF(OR(I173=1,J173=1,K173=1,L173=1,M173=1,N173=1,O173=1,P173=1,Q173=1,R173=1),1,0) -> 
D173: 11 | I173: =LOOKUP(X172,U172:U208,T172:T208) -> 0 | J173: =LOOKUP(Y172,U172:U208,T172:T208) -> 0 | K173: =LOOKUP(Z172,U172:U208,T172:T208) -> 0 | L173: =LOOKUP(AA172,U172:U208,T172:T208) -> 0 | M173: =LOOKUP(AB172,U172:U208,T172:T208) -> 0 | N173: =LOOKUP(X173,U172:U208,T172:T208) ->  | O173: =LOOKUP(Y173,U172:U208,T172:T208) ->  | P173: =LOOKUP(Z173,U172:U208,T172:T208) ->  | Q173: =LOOKUP(AA173,U172:U208,T172:T208) ->  | R173: =LOOKUP(AB173,U172:U208,T172:T208) ->  | T173: 1 | U173: 1 | X173: =#REF! ->  | Y173: =#REF! ->  | Z173: =#REF! ->  | AA173: =#REF! ->  | AB173: =#REF! ->  | AD173: =IF(OR(I173=2,J173=2,K173=2,L173=2,M173=2,N173=2,O173=2,P173=2,Q173=2,R173=2),1,0) -> 
D174: 12 | T174: 1 | U174: 2 | AD174: =IF(OR(I173=3,J173=3,K173=3,L173=3,M173=3,N173=3,O173=3,P173=3,Q173=3,R173=3),1,0) -> 
D175: 13 | T175: 1 | U175: 3 | AD175: =IF(OR(I173=4,J173=4,K173=4,L173=4,M173=4,N173=4,O173=4,P173=4,Q173=4,R173=4),1,0) -> 
D176: 14 | T176: 2 | U176: 4 | AD176: =IF(OR(I173=5,J173=5,K173=5,L173=5,M173=5,N173=5,O173=5,P173=5,Q173=5,R173=5),1,0) -> 
D177: 15 | T177: 2 | U177: 5 | AD177: =IF(OR(I173=6,J173=6,K173=6,L173=6,M173=6,N173=6,O173=6,P173=6,Q173=6,R173=6),1,0) -> 
D178: 16 | T178: 2 | U178: 6 | AD178: =IF(OR(I173=7,J173=7,K173=7,L173=7,M173=7,N173=7,O173=7,P173=7,Q173=7,R173=7),1,0) -> 
T179: 3 | U179: 7 | AD179: =IF(OR(I173=8,J173=8,K173=8,L173=8,M173=8,N173=8,O173=8,P173=8,Q173=8,R173=8),1,0) -> 
T180: 3 | U180: 8 | AD180: =IF(OR(I173=9,J173=9,K173=9,L173=9,M173=9,N173=9,O173=9,P173=9,Q173=9,R173=9),1,0) -> 
D181: 16 | T181: 3 | U181: 9 | AD181: =IF(OR(I173=10,J173=10,K173=10,L173=10,M173=10,N173=10,O173=10,P173=10,Q173=10,R173=10),1,0) -> 
D182: 32 | T182: 4 | U182: 10 | AD182: =IF(OR(I173=11,J173=11,K173=11,L173=11,M173=11,N173=11,O173=11,P173=11,Q173=11,R173=11),1,0) -> 
D183: 64 | T183: 4 | U183: 11 | AD183: =IF(OR(I173=12,J173=12,K173=12,L173=12,M173=12,N173=12,O173=12,P173=12,Q173=12,R173=12),1,0) -> 
D184: 128 | T184: 4 | U184: 12
T185: 5 | U185: 13
T186: 5 | U186: 14
D187: Normal | T187: 5 | U187: 15
D188: Inverse | T188: 6 | U188: 16
T189: 6 | U189: 17
T190: 6 | U190: 18
T191: 7 | U191: 19
T192: 7 | U192: 20
T193: 7 | U193: 21
T194: 8 | U194: 22
T195: 8 | U195: 23
T196: 8 | U196: 24
T197: 9 | U197: 25
T198: 9 | U198: 26
T199: 9 | U199: 27
T200: 10 | U200: 28
T201: 10 | U201: 29
T202: 10 | U202: 30
T203: 11 | U203: 31
T204: 11 | U204: 32
T205: 11 | U205: 33
... 4 more rows

Sheet >>Convertisseur
AG1: R&N | AK1: P&I | AO1: Douze | AS1: Coll | AW1: 1_18
A2: =IF(G2="0",0,IF(G2="1",1,IF(G2="2",2,IF(G2="3",3,IF(G2="4",4,IF(G2="5",5,IF(G2="6",6,IF(G2="7",7,"")))))))) ->  | B2: =IF(G2="8",8,IF(G2="9",9,IF(G2="10",10,IF(G2="11",11,IF(G2="12",12,IF(G2="12",12,IF(G2="13",13,IF(G2="14",14,"")))))))) ->  | C2: =IF(G2="15",15,IF(G2="16",16,IF(G2="17",17,IF(G2="18",18,IF(G2="19",19,IF(G2="20",20,IF(G2="21",21,""))))))) ->  | D2: =IF(G2="22",22,IF(G2="23",23,IF(G2="24",24,IF(G2="25",25,IF(G2="26",26,IF(G2="27",27,IF(G2="28",28,IF(G2="29",29,"")))))))) ->  | E2: =IF(G2="29",29,IF(G2="30",30,IF(G2="31",31,IF(G2="32",32,IF(G2="33",33,IF(G2="34",34,IF(G2="35",35,IF(G2="36",36,"")))))))) -> 36 | F2: =IF(AND(A2="",B2="",C2="",D2="",E2=""),G2,MAX(A2:E2)) -> 36 | G2: 36 | H2: =IF(ISNUMBER(F2),1,0) -> 1 | I2: =IF(ISNUMBER(G2),1,0) -> 0 | J2: =IF(AND(H2=1,I2=1),G2,F2) -> 36 | K2: =IF(ISNA(G2),F2,G2) -> 36 | L2: =LOOKUP(F$2,'>>BD_R_N'!$A$1:$A$37,'>>BD_R_N'!$B$1:$B$37) -> R | M2: =LOOKUP(G2,'>>BD_R_N'!$A$1:$A$37,'>>BD_R_N'!$B$1:$B$37) ->  | N2: =IF(ISNA(M2),L2,M2) -> R | P2: =G2/2 -> 18 | Q2: =ROUNDUP(P2,0) -> 18 | R2: =IF(P2=0,0,IF(P2=Q2,"P","I")) -> P | S2: =F2 -> 36 | T2: =G2 -> 36 | U2: =IF(ISNA(T2),S2,T2) -> 36 | V2: =IF(J2=0,0,IF(J2<=12,1,IF(J2<=24,2,3))) -> 3 | X2: =LOOKUP(F2,'>>BD_R_N'!$D$1:$D$37,'>>BD_R_N'!$E$1:$E$37) -> 3 | Y2: =LOOKUP(G2,'>>BD_R_N'!$D$1:$D$37,'>>BD_R_N'!$E$1:$E$37) ->  | Z2: =IF(ISNA(Y2),X2,Y2) -> 3 | AB2: =F2 -> 36 | AC2: =G2 -> 36 | AD2: =K2 -> 36 | AE2: =IF(J2=0,0,IF(J2<=18,1,2)) -> 2 | AF2: 1 | AG2: =IF(N2="R","R","") -> R | AH2: =IF(N2=0,0,"") ->  | AI2: =IF(N2="N","N","") ->  | AJ2: 1 | AK2: =IF(R2="P","P","") -> P | AL2: =IF(R2=0,0,"") ->  | AM2: =IF(R2="I","I","") ->  | AN2: 1 | AO2: =IF(V2=1,1,"") ->  | AP2: =IF(V2=0,0,IF(V2=2,2,"")) ->  | AQ2: =IF(V2=3,3,"") -> 3 | AR2: 1 | AS2: =IF(Z2=1,1,"") ->  | AT2: =IF(Z2=0,0,IF(Z2=2,2,"")) ->  | AU2: =IF(Z2=3,3,"") -> 3 | AV2: 1 | AW2: =IF(AE2=1,1,"") ->  | AX2: =IF(AE2=0,0,"") ->  | AY2: =IF(AE2=2,2,"") -> 2
A3: 2 | F3: 2 | G3: 2 | H3: 1 | I3: 0 | J3: 2 | K3: 2 | L3: =LOOKUP(F3,'>>BD_R_N'!$A$1:$A$37,'>>BD_R_N'!$B$1:$B$37) -> N | M3: =LOOKUP(G3,'>>BD_R_N'!$A$1:$A$37,'>>BD_R_N'!$B$1:$B$37) ->  | N3: N | P3: 1 | Q3: 1 | R3: P | S3: 2 | T3: 2 | U3: 2 | V3: 1 | X3: =LOOKUP(F3,'>>BD_R_N'!$D$1:$D$37,'>>BD_R_N'!$E$1:$E$37) -> 2 | Y3: =LOOKUP(G3,'>>BD_R_N'!$D$1:$D$37,'>>BD_R_N'!$E$1:$E$37) ->  | Z3: 2 | AB3: 2 | AC3: 2 | AD3: 2 | AE3: 1 | AF3: 2 | AI3: N | AJ3: 2 | AK3: P | AN3: 2 | AO3: 1 | AR3: 3 | AT3: 2 | AV3: 2 | AW3: 1
F4: 0 | H4: 1 | I4: 0 | J4: 0 | K4: 0 | L4: =LOOKUP(F4,'>>BD_R_N'!$A$1:$A$37,'>>BD_R_N'!$B$1:$B$37) -> 0 | M4: =LOOKUP(G4,'>>BD_R_N'!$A$1:$A$37,'>>BD_R_N'!$B$1:$B$37) -> 0 | N4: 0 | P4: 0 | Q4: 0 | R4: 0 | S4: 0 | T4: 0 | U4: 0 | V4: 0 | X4: =LOOKUP(F4,'>>BD_R_N'!$D$1:$D$37,'>>BD_R_N'!$E$1:$E$37) -> 0 | Y4: =LOOKUP(G4,'>>BD_R_N'!$D$1:$D$37,'>>BD_R_N'!$E$1:$E$37) -> 0 | Z4: 0 | AB4: 0 | AC4: 0 | AD4: 0 | AE4: 0 | AF4: 4 | AH4: 0 | AJ4: 4 | AL4: 0 | AN4: 4 | AP4: 0 | AR4: 9 | AT4: 0 | AV4: 4 | AX4: 0
F5: 0 | H5: 1 | I5: 0 | J5: 0 | K5: 0 | L5: =LOOKUP(F5,'>>BD_R_N'!$A$1:$A$37,'>>BD_R_N'!$B$1:$B$37) -> 0 | M5: =LOOKUP(G5,'>>BD_R_N'!$A$1:$A$37,'>>BD_R_N'!$B$1:$B$37) -> 0 | N5: 0 | P5: 0 | Q5: 0 | R5: 0 | S5: 0 | T5: 0 | U5: 0 | V5: 0 | X5: =LOOKUP(F5,'>>BD_R_N'!$D$1:$D$37,'>>BD_R_N'!$E$1:$E$37) -> 0 | Y5: =LOOKUP(G5,'>>BD_R_N'!$D$1:$D$37,'>>BD_R_N'!$E$1:$E$37) -> 0 | Z5: 0 | AB5: 0 | AC5: 0 | AD5: 0 | AE5: 0 | AF5: 8 | AH5: 0 | AJ5: 8 | AL5: 0 | AN5: 5 | AP5: 0 | AR5: 27 | AT5: 0 | AV5: 8 | AX5: 0
F6: 0 | H6: 1 | I6: 0 | J6: 0 | K6: 0 | L6: =LOOKUP(F6,'>>BD_R_N'!$A$1:$A$37,'>>BD_R_N'!$B$1:$B$37) -> 0 | M6: =LOOKUP(G6,'>>BD_R_N'!$A$1:$A$37,'>>BD_R_N'!$B$1:$B$37) -> 0 | N6: 0 | P6: 0 | Q6: 0 | R6: 0 | S6: 0 | T6: 0 | U6: 0 | V6: 0 | X6: =LOOKUP(F6,'>>BD_R_N'!$D$1:$D$37,'>>BD_R_N'!$E$1:$E$37) -> 0 | Y6: =LOOKUP(G6,'>>BD_R_N'!$D$1:$D$37,'>>BD_R_N'!$E$1:$E$37) -> 0 | Z6: 0 | AB6: 0 | AC6: 0 | AD6: 0 | AE6: 0 | AF6: 16 | AH6: 0 | AJ6: 16 | AL6: 0 | AN6: 8 | AP6: 0 | AR6: 81 | AT6: 0 | AV6: 16 | AX6: 0
F7: 0 | H7: 1 | I7: 0 | J7: 0 | K7: 0 | L7: =LOOKUP(F7,'>>BD_R_N'!$A$1:$A$37,'>>BD_R_N'!$B$1:$B$37) -> 0 | M7: =LOOKUP(G7,'>>BD_R_N'!$A$1:$A$37,'>>BD_R_N'!$B$1:$B$37) -> 0 | N7: 0 | P7: 0 | Q7: 0 | R7: 0 | S7: 0 | T7: 0 | U7: 0 | V7: 0 | X7: =LOOKUP(F7,'>>BD_R_N'!$D$1:$D$37,'>>BD_R_N'!$E$1:$E$37) -> 0 | Y7: =LOOKUP(G7,'>>BD_R_N'!$D$1:$D$37,'>>BD_R_N'!$E$1:$E$37) -> 0 | Z7: 0 | AB7: 0 | AC7: 0 | AD7: 0 | AE7: 0 | AF7: 32 | AH7: 0 | AJ7: 32 | AL7: 0 | AN7: 13 | AP7: 0 | AT7: 0 | AV7: 32 | AX7: 0
F8: 0 | H8: 1 | I8: 0 | J8: 0 | K8: 0 | L8: =LOOKUP(F8,'>>BD_R_N'!$A$1:$A$37,'>>BD_R_N'!$B$1:$B$37) -> 0 | M8: =LOOKUP(G8,'>>BD_R_N'!$A$1:$A$37,'>>BD_R_N'!$B$1:$B$37) -> 0 | N8: 0 | P8: 0 | Q8: 0 | R8: 0 | S8: 0 | T8: 0 | U8: 0 | V8: 0 | X8: =LOOKUP(F8,'>>BD_R_N'!$D$1:$D$37,'>>BD_R_N'!$E$1:$E$37) -> 0 | Y8: =LOOKUP(G8,'>>BD_R_N'!$D$1:$D$37,'>>BD_R_N'!$E$1:$E$37) -> 0 | Z8: 0 | AB8: 0 | AC8: 0 | AD8: 0 | AE8: 0 | AF8: 64 | AH8: 0 | AJ8: 64 | AL8: 0 | AN8: 20 | AP8: 0 | AT8: 0 | AV8: 64 | AX8: 0
F9: 0 | H9: 1 | I9: 0 | J9: 0 | K9: 0 | L9: =LOOKUP(F9,'>>BD_R_N'!$A$1:$A$37,'>>BD_R_N'!$B$1:$B$37) -> 0 | M9: =LOOKUP(G9,'>>BD_R_N'!$A$1:$A$37,'>>BD_R_N'!$B$1:$B$37) -> 0 | N9: 0 | P9: 0 | Q9: 0 | R9: 0 | S9: 0 | T9: 0 | U9: 0 | V9: 0 | X9: =LOOKUP(F9,'>>BD_R_N'!$D$1:$D$37,'>>BD_R_N'!$E$1:$E$37) -> 0 | Y9: =LOOKUP(G9,'>>BD_R_N'!$D$1:$D$37,'>>BD_R_N'!$E$1:$E$37) -> 0 | Z9: 0 | AB9: 0 | AC9: 0 | AD9: 0 | AE9: 0 | AF9: 128 | AH9: 0 | AJ9: 128 | AL9: 0 | AN9: 30 | AP9: 0 | AT9: 0 | AV9: 128 | AX9: 0
F10: 0 | H10: 1 | I10: 0 | J10: 0 | K10: 0 | L10: =LOOKUP(F10,'>>BD_R_N'!$A$1:$A$37,'>>BD_R_N'!$B$1:$B$37) -> 0 | M10: =LOOKUP(G10,'>>BD_R_N'!$A$1:$A$37,'>>BD_R_N'!$B$1:$B$37) -> 0 | N10: 0 | P10: 0 | Q10: 0 | R10: 0 | S10: 0 | T10: 0 | U10: 0 | V10: 0 | X10: =LOOKUP(F10,'>>BD_R_N'!$D$1:$D$37,'>>BD_R_N'!$E$1:$E$37) -> 0 | Y10: =LOOKUP(G10,'>>BD_R_N'!$D$1:$D$37,'>>BD_R_N'!$E$1:$E$37) -> 0 | Z10: 0 | AB10: 0 | AC10: 0 | AD10: 0 | AE10: 0 | AH10: 0 | AL10: 0 | AN10: 47 | AP10: 0 | AT10: 0 | AX10: 0
F11: 0 | H11: 1 | I11: 0 | J11: 0 | K11: 0 | L11: =LOOKUP(F11,'>>BD_R_N'!$A$1:$A$37,'>>BD_R_N'!$B$1:$B$37) -> 0 | M11: =LOOKUP(G11,'>>BD_R_N'!$A$1:$A$37,'>>BD_R_N'!$B$1:$B$37) -> 0 | N11: 0 | P11: 0 | Q11: 0 | R11: 0 | S11: 0 | T11: 0 | U11: 0 | V11: 0 | X11: =LOOKUP(F11,'>>BD_R_N'!$D$1:$D$37,'>>BD_R_N'!$E$1:$E$37) -> 0 | Y11: =LOOKUP(G11,'>>BD_R_N'!$D$1:$D$37,'>>BD_R_N'!$E$1:$E$37) -> 0 | Z11: 0 | AB11: 0 | AC11: 0 | AD11: 0 | AE11: 0 | AH11: 0 | AL11: 0 | AN11: 72 | AP11: 0 | AT11: 0 | AX11: 0
F12: 0 | H12: 1 | I12: 0 | J12: 0 | K12: 0 | L12: =LOOKUP(F12,'>>BD_R_N'!$A$1:$A$37,'>>BD_R_N'!$B$1:$B$37) -> 0 | M12: =LOOKUP(G12,'>>BD_R_N'!$A$1:$A$37,'>>BD_R_N'!$B$1:$B$37) -> 0 | N12: 0 | P12: 0 | Q12: 0 | R12: 0 | S12: 0 | T12: 0 | U12: 0 | V12: 0 | X12: =LOOKUP(F12,'>>BD_R_N'!$D$1:$D$37,'>>BD_R_N'!$E$1:$E$37) -> 0 | Y12: =LOOKUP(G12,'>>BD_R_N'!$D$1:$D$37,'>>BD_R_N'!$E$1:$E$37) -> 0 | Z12: 0 | AB12: 0 | AC12: 0 | AD12: 0 | AE12: 0 | AH12: 0 | AL12: 0 | AP12: 0 | AT12: 0 | AX12: 0
F13: 0 | H13: 1 | I13: 0 | J13: 0 | K13: 0 | L13: =LOOKUP(F13,'>>BD_R_N'!$A$1:$A$37,'>>BD_R_N'!$B$1:$B$37) -> 0 | M13: =LOOKUP(G13,'>>BD_R_N'!$A$1:$A$37,'>>BD_R_N'!$B$1:$B$37) -> 0 | N13: 0 | P13: 0 | Q13: 0 | R13: 0 | S13: 0 | T13: 0 | U13: 0 | V13: 0 | X13: =LOOKUP(F13,'>>BD_R_N'!$D$1:$D$37,'>>BD_R_N'!$E$1:$E$37) -> 0 | Y13: =LOOKUP(G13,'>>BD_R_N'!$D$1:$D$37,'>>BD_R_N'!$E$1:$E$37) -> 0 | Z13: 0 | AB13: 0 | AC13: 0 | AD13: 0 | AE13: 0 | AH13: 0 | AL13: 0 | AP13: 0 | AT13: 0 | AX13: 0
F14: =IF(AND(A14="",B14="",C45="",D14="",E14=""),G14,MAX(A14:E14)) -> 0 | H14: 1 | I14: 0 | J14: 0 | K14: 0 | L14: =LOOKUP(F14,'>>BD_R_N'!$A$1:$A$37,'>>BD_R_N'!$B$1:$B$37) -> 0 | M14: =LOOKUP(G14,'>>BD_R_N'!$A$1:$A$37,'>>BD_R_N'!$B$1:$B$37) -> 0 | N14: 0 | P14: 0 | Q14: 0 | R14: 0 | S14: 0 | T14: 0 | U14: 0 | V14: 0 | X14: =LOOKUP(F14,'>>BD_R_N'!$D$1:$D$37,'>>BD_R_N'!$E$1:$E$37) -> 0 | Y14: =LOOKUP(G14,'>>BD_R_N'!$D$1:$D$37,'>>BD_R_N'!$E$1:$E$37) -> 0 | Z14: 0 | AB14: 0 | AC14: 0 | AD14: 0 | AE14: 0 | AH14: 0 | AL14: 0 | AP14: 0 | AT14: 0 | AX14: 0
A15: =AL15 -> 36 | B15: 1 | C15: 1 | E15: =IF(E16=0,1,E16) -> 1 | K15: =LOOKUP(A15,$L$15:$L$51,$M$15:$M$51) -> 6 | L15: 0 | M15: 0 | AD15: 6 | AG15: =IF(AM15="0",0,IF(AM15="1",1,IF(AM15="2",2,IF(AM15="3",3,IF(AM15="4",4,IF(AM15="5",5,IF(AM15="6",6,IF(AM15="7",7,"")))))))) ->  | AH15: =IF(AM15="8",8,IF(AM15="9",9,IF(AM15="10",10,IF(AM15="11",11,IF(AM15="12",12,IF(AM15="12",12,IF(AM15="13",13,IF(AM15="14",14,"")))))))) ->  | AI15: =IF(AM15="15",15,IF(AM15="16",16,IF(AM15="17",17,IF(AM15="18",18,IF(AM15="19",19,IF(AM15="20",20,IF(AM15="21",21,""))))))) ->  | AJ15: =IF(AM15="22",22,IF(AM15="23",23,IF(AM15="24",24,IF(AM15="25",25,IF(AM15="26",26,IF(AM15="27",27,IF(AM15="28",28,IF(AM15="29",29,"")))))))) ->  | AK15: =IF(AM15="29",29,IF(AM15="30",30,IF(AM15="31",31,IF(AM15="32",32,IF(AM15="33",33,IF(AM15="34",34,IF(AM15="35",35,IF(AM15="36",36,"")))))))) -> 36 | AL15: =IF(AND(AG15="",AH15="",AI15="",AJ15="",AK15=""),AM15,MAX(AG15:AK15)) -> 36 | AM15: 36 | AO15: =C15 -> 1 | AP15: 0 | AU15: =IF(AL15=0,0,IF(AL16=0,0,IF(AL17=0,0,IF(AL18=0,0,IF(AL19=0,0,IF(AL20=0,0,IF(AL21=0,0,MAX(AO15:AO19)))))))) -> 0 | AW15: =LOOKUP(AL15,$AP$15:$AP$51,$AQ$15:$AQ$51) -> 32 | AX15: =LOOKUP(AL15,$AP$15:$AP$51,$AR$15:$AR$51) -> 0 | AY15: =LOOKUP(AL15,$AP$15:$AP$51,$AS$15:$AS$51) -> 0 | AZ15: =LOOKUP(AL15,$AP$15:$AP$51,$AT$15:$AT$51) -> 0 | BB15: =IF(BD15<>0,BC15,"") -> 1 | BC15: 1 | BD15: =AW15 -> 32 | BE15: =LOOKUP(1,BB15:BB34,BD15:BD34) -> 32 | BF15: =LOOKUP(2,$BB$15:$BB$34,$BD$15:$BD$34) -> 4 | BG15: =LOOKUP(3,$BB$15:$BB$34,$BD$15:$BD$34) -> 6 | BH15: =LOOKUP(4,$BB$15:$BB$34,$BD$15:$BD$34) -> 6 | BI15: =LOOKUP(5,$BB$15:$BB$34,$BD$15:$BD$34) -> 6 | BJ15: =LOOKUP(6,$BB$15:$BB$34,$BD$15:$BD$34) -> 6 | BK15: =LOOKUP(7,$BB$15:$BB$34,$BD$15:$BD$34) -> 6 | BL15: =LOOKUP(8,$BB$15:$BB$34,$BD$15:$BD$34) -> 6 | BM15: =LOOKUP(9,$BB$15:$BB$34,$BD$15:$BD$34) -> 6 | BN15: =LOOKUP(10,$BB$15:$BB$34,$BD$15:$BD$34) -> 6
A16: =AL16 -> 2 | B16: =IF(A16="","",1/COUNTIF($A$15:A16,A16)) -> 1 | C16: =IF(A16=0,0,IF(C15=0,0,IF(B16=1,C15+1,0))) -> 2 | E16: =SUM(E17:E24) -> 0 | F16: 7 Chanceux | K16: 1 | L16: 1 | M16: 1 | V16: =SUMIF(V2:V11,1,$V$2:$V$11) -> 1 | AG16: 2 | AL16: 2 | AM16: 2 | AO16: 2 | AP16: 1 | AQ16: 5 | AW16: =LOOKUP(AL16,$AP$15:$AP$51,$AQ$15:$AQ$51) -> 4 | AX16: =LOOKUP(AL16,$AP$15:$AP$51,$AR$15:$AR$51) -> 6 | AY16: =LOOKUP(AL16,$AP$15:$AP$51,$AS$15:$AS$51) -> 0 | AZ16: =LOOKUP(AL16,$AP$15:$AP$51,$AT$15:$AT$51) -> 0 | BC16: =IF(BB15<>"",BB15+1,BC15) -> 2 | BD16: =AX15 -> 0 | BE16: =LOOKUP(11,$BB$15:$BB$34,$BD$15:$BD$34) -> 6 | BF16: =LOOKUP(12,$BB$15:$BB$34,$BD$15:$BD$34) -> 6 | BG16: =LOOKUP(13,$BB$15:$BB$34,$BD$15:$BD$34) -> 6 | BH16: =LOOKUP(14,$BB$15:$BB$34,$BD$15:$BD$34) -> 6 | BI16: =LOOKUP(15,$BB$15:$BB$34,$BD$15:$BD$34) -> 6 | BJ16: =LOOKUP(16,$BB$15:$BB$34,$BD$15:$BD$34) -> 6 | BK16: =LOOKUP(17,$BB$15:$BB$34,$BD$15:$BD$34) -> 6 | BL16: =LOOKUP(18,$BB$15:$BB$34,$BD$15:$BD$34) -> 6 | BM16: =LOOKUP(19,$BB$15:$BB$34,$BD$15:$BD$34) -> 6 | BN16: =LOOKUP(20,$BB$15:$BB$34,$BD$15:$BD$34) -> 6
A17: 0 | B17: =IF(A17="","",1/COUNTIF($A$15:A17,A17)) -> 1 | C17: 0 | E17: =IF(F17=0,1,0) -> 0 | F17: =IF(OR(F2=1,F2=2,F2=3,F2=4,F2=5,F2=6,F2=13,F2=14,F2=15,F2=22,F2=23,F2=24,F2=31,F2=32,F2=33,F2=34,F2=35,F2=36),1,0) -> 1 | G17: ='>>Input'!AG22 -> 0 | K17: 0 | L17: 2 | M17: 1 | N17: =IF(E17=1,1,IF(AND(G17=7,G18=6),1,0)) -> 0 | V17: =SUMIF($V$2:$V$11,2,$V$2:$V$11)/2 -> 0 | AL17: 0 | AO17: 0 | AP17: 2 | AQ17: 4 | AR17: 6 | AW17: =LOOKUP(AL17,$AP$15:$AP$51,$AQ$15:$AQ$51) -> 0 | AX17: =LOOKUP(AL17,$AP$15:$AP$51,$AR$15:$AR$51) -> 0 | AY17: =LOOKUP(AL17,$AP$15:$AP$51,$AS$15:$AS$51) -> 0 | AZ17: =LOOKUP(AL17,$AP$15:$AP$51,$AT$15:$AT$51) -> 0 | BC17: 2 | BD17: =AY15 -> 0
A18: 0 | B18: =IF(A18="","",1/COUNTIF($A$15:A18,A18)) -> 0.5 | C18: 0 | E18: =IF(AND(F18=0,F17=0),1,0) -> 0 | F18: 1 | G18: ='>>Input'!AG23 -> 1 | K18: 0 | L18: 3 | M18: 1 | V18: =SUMIF($V$2:$V$11,3,$V$2:$V$11)/3 -> 1 | AL18: 0 | AO18: 0 | AP18: 3 | AQ18: 5 | AW18: =LOOKUP(AL18,$AP$15:$AP$51,$AQ$15:$AQ$51) -> 0 | AX18: =LOOKUP(AL18,$AP$15:$AP$51,$AR$15:$AR$51) -> 0 | AY18: =LOOKUP(AL18,$AP$15:$AP$51,$AS$15:$AS$51) -> 0 | AZ18: =LOOKUP(AL18,$AP$15:$AP$51,$AT$15:$AT$51) -> 0 | BC18: 2 | BD18: =AZ15 -> 0 | BE18: =BE15 -> 32 | BF18: =IF(BF15<>BE15,BF15,"") -> 4 | BG18: 6
A19: 0 | B19: =IF(A19="","",1/COUNTIF($A$15:A19,A19)) -> 0.3333333333 | C19: 0 | E19: =IF(AND(F19=0,F18=0,F17=0),1,0) -> 0 | F19: 0 | K19: 0 | L19: 4 | M19: 1 | AL19: 0 | AO19: 0 | AP19: 4 | AQ19: 2 | AR19: 8 | AW19: =LOOKUP(AL19,$AP$15:$AP$51,$AQ$15:$AQ$51) -> 0 | AX19: =LOOKUP(AL19,$AP$15:$AP$51,$AR$15:$AR$51) -> 0 | AY19: =LOOKUP(AL19,$AP$15:$AP$51,$AS$15:$AS$51) -> 0 | AZ19: =LOOKUP(AL19,$AP$15:$AP$51,$AT$15:$AT$51) -> 0 | BB19: 2 | BC19: 2 | BD19: =AW16 -> 4 | BE19: =IF(BE16<>BN15,BE16,"") ->  | BF19: =IF(BF16<>BE16,BF16,"") -> 
A20: 0 | B20: =IF(A20="","",1/COUNTIF($A$15:A20,A20)) -> 0.25 | C20: 0 | E20: =IF(AND(F20=0,F19=0,F18=0,F17=0),1,0) -> 0 | F20: 0 | K20: 0 | L20: 5 | M20: 1 | V20: =IF(V16=V17,0,IF(V16=V18,0,V16)) -> 0 | W20: 1 | AL20: 0 | AO20: 0 | AP20: 5 | AQ20: 1 | AR20: 3 | AS20: 7 | AT20: 9 | BB20: 3 | BC20: 3 | BD20: =AX16 -> 6
A21: 0 | B21: =IF(A21="","",1/COUNTIF($A$15:A21,A21)) -> 0.2 | C21: 0 | E21: =IF(AND(F21=0,F20=0,F19=0,F18=0,F17=0),1,0) -> 0 | F21: 0 | L21: 6 | M21: 1 | V21: =IF(V17=V18,0,V17) -> 0 | W21: 2 | AL21: 0 | AO21: 0 | AP21: 6 | AQ21: 2 | AR21: 8 | BC21: 4 | BD21: =AY16 -> 0 | BE21: =IF(AND(BE18<>"",BE19<>""),2,IF(AND(BE18<>"",BE19=""),1,0)) -> 1 | BF21: 1 | BG21: 1 | BH21: 0 | BI21: 0 | BJ21: 0 | BK21: 0 | BL21: 0 | BM21: 0 | BN21: 0 | BO21: =SUM(BE21:BN21) -> 3
A22: 0 | B22: =IF(A22="","",1/COUNTIF($A$15:A22,A22)) -> 0.1666666667 | C22: 0 | E22: =IF(AND(F22=0,F21=0,F20=0,F19=0,F18=0,F17=0),1,0) -> 0 | F22: 0 | J22: Somme_3 | K22: =SUMIF(K15:K20,3,K15:K20)/3 -> 0 | L22: 7 | M22: 2 | V22: =V18 -> 1 | W22: 3 | AL22: 0 | AO22: 0 | AP22: 7 | AQ22: 5 | AR22: 11 | BC22: 4 | BD22: =AZ16 -> 0
A23: 0 | B23: =IF(A23="","",1/COUNTIF($A$15:A23,A23)) -> 0.1428571429 | C23: 0 | E23: =IF(AND(F23=0,F22=0,F21=0,F20=0,F19=0,F18=0,F17=0),1,0) -> 0 | F23: 0 | J23: Somme_4 | K23: =SUMIF(K15:K20,4,K15:K20)/4 -> 0 | L23: 8 | M23: 2 | AL23: 0 | AP23: 8 | AQ23: 4 | AR23: 6 | AS23: 10 | AT23: 12 | BC23: 4 | BD23: =AW17 -> 0
A24: 0 | B24: =IF(A24="","",1/COUNTIF($A$15:A24,A24)) -> 0.125 | C24: 0 | E24: =IF(AND(F24=0,F23=0,F22=0,F21=0,F20=0,F19=0,F18=0,F17=0),1,0) -> 0 | F24: 0 | L24: 9 | M24: 2 | V24: =MAX(V20:V22) -> 1 | AL24: 0 | AP24: 9 | AQ24: 5 | AR24: 11 | BC24: 4 | BD24: =AX17 -> 0
A25: 0 | B25: =IF(A25="","",1/COUNTIF($A$15:A25,A25)) -> 0.1111111111 | C25: 0 | E25: =IF(AND(F25=0,F24=0,F23=0,F22=0,F21=0,F20=0,F19=0,F18=0,F17=0),1,0) -> 0 | F25: 0 | K25: =IF(K22=K23,0,IF(K22>K23,1,2)) -> 0 | L25: 10 | M25: 2 | V25: =MIN(V20:V22) -> 0 | AL25: 0 | AP25: 10 | AQ25: 8 | AR25: 14 | BC25: 4 | BD25: =AY17 -> 0
A26: 0 | B26: =IF(A26="","",1/COUNTIF($A$15:A26,A26)) -> 0.1 | C26: 0 | E26: =IF(AND(F26=0,F25=0,F24=0,F23=0,F22=0,F21=0,F20=0,F19=0,F18=0,F17=0),1,0) -> 0 | F26: 0 | L26: 11 | M26: 2 | AL26: 0 | AP26: 11 | AQ26: 7 | AR26: 9 | AS26: 13 | AT26: 15 | BC26: 4 | BD26: =AZ17 -> 0
A27: 0 | B27: =IF(A27="","",1/COUNTIF($A$15:A27,A27)) -> 0.09090909091 | C27: 0 | E27: =IF(AND(F27=1,F26=1,F25=1,F24=1,F23=1,F22=1,F21=1,F20=1,F19=1,F18=1,F17=1),1,0) -> 0 | F27: 0 | L27: 12 | M27: 2 | V27: =IF(V24=$V$20,$W$20,IF(V24=$V$21,$W$21,IF(V24=$V$22,$W$22))) -> 3 | W27: =IF(X27=1,1,IF(X27=3,2,IF(X27=9,1,IF(X27=27,2,1)))) -> 1 | X27: ='>>Input'!D7 -> 0 | AL27: 0 | AP27: 12 | AQ27: 8 | AR27: 14 | BC27: 4 | BD27: =AW18 -> 0
A28: 0 | B28: =IF(A28="","",1/COUNTIF($A$15:A28,A28)) -> 0.08333333333 | C28: 0 | E28: =IF(AND(F28=1,F27=1,F26=1,F25=1,F24=1,F23=1,F22=1,F21=1,F20=1,F19=1,F18=1,F17=1),1,0) -> 0 | F28: 0 | K28: =SUMIF(K15:K19,1,K15:K19)/1 -> 1 | L28: 13 | M28: 3 | V28: =IF(V25=$V$20,$W$20,IF(V25=$V$21,$W$21,IF(V25=$V$22,$W$22))) -> 1 | W28: =IF(X28=1,3,IF(X28=3,3,IF(X28=9,2,IF(X28=27,1,3)))) -> 3 | AL28: 0 | AP28: 13 | AQ28: 11 | AR28: 17 | BC28: 4 | BD28: =AX18 -> 0
A29: 0 | B29: =IF(A29="","",1/COUNTIF($A$15:A29,A29)) -> 0.07692307692 | C29: 0 | E29: =IF(AND(F29=1,F28=1,F27=1,F26=1,F25=1,F24=1,F23=1,F22=1,F21=1,F20=1,F19=1,F18=1,F17=1),1,0) -> 0 | F29: 0 | K29: =SUMIF(K15:K19,2,K15:K19)/2 -> 0 | L29: 14 | M29: 3 | AL29: 0 | AP29: 14 | AQ29: 10 | AR29: 12 | AS29: 16 | AT29: 18 | BC29: 4 | BD29: =AY18 -> 0
A30: 0 | B30: =IF(A30="","",1/COUNTIF($A$15:A30,A30)) -> 0.07142857143 | C30: 0 | F30: =SUM(F17:F29) -> 2 | K30: =SUMIF(K15:K19,3,K15:K19)/3 -> 0 | L30: 15 | M30: 3 | V30: 2 | Z30: =V30 -> 2 | AE30: 2 | AL30: 0 | AP30: 15 | AQ30: 11 | AR30: 17 | BC30: 4 | BD30: =AZ18 -> 0
A31: 0 | B31: =IF(A31="","",1/COUNTIF($A$15:A31,A31)) -> 0.06666666667 | C31: 0 | E31: =SUM(F17:F18) -> 2 | F31: =SUM(F17:F29) -> 2 | G31: =IF(AND(F31>=7,E31=0),7,0) -> 0 | K31: =SUM(K28:K30) -> 1 | L31: 16 | M31: 3 | N31: =IF(OR(F2=7,F2=8,F2=9,F2=10,F2=11,F2=12,F2=16,F2=17,F2=18,F2=19,F2=20,F2=21,F2=25,F2=26,F2=27,F2=28,F2=29,F2=30),1,0) -> 0 | V31: 8 | Z31: =IF(V31=V30,0,V31) -> 8 | AE31: 8 | AL31: 0 | AP31: 16 | AQ31: 14 | AR31: 20 | BC31: 4 | BD31: =AW19 -> 0
A32: 0 | B32: =IF(A32="","",1/COUNTIF($A$15:A32,A32)) -> 0.0625 | C32: 0 | F32: 3_2 | K32: =SUMIF(K15:K19,4,K15:K19)/4 -> 0 | L32: 17 | M32: 3 | V32: 15 | Z32: =IF(V32=V31,0,IF(V30=V32,0,V32)) -> 15 | AE32: 15 | AL32: 0 | AP32: 17 | AQ32: 13 | AR32: 15 | AS32: 19 | AT32: 21 | BC32: 4 | BD32: =AX19 -> 0
A33: 0 | B33: =IF(A33="","",1/COUNTIF($A$15:A33,A33)) -> 0.05882352941 | C33: 0 | F33: =IF(OR(F2=13,F2=14,F2=15,F2=16,F2=17,F2=18,F2=19,F2=20,F2=21,F2=22,F2=23,F2=24),1,0) -> 0 | K33: =SUMIF(K15:K19,5,K15:K19)/5 -> 0 | L33: 18 | M33: 3 | N33: =IF(G2=0,1,0) -> 0 | V33: 5 | Z33: =IF(V33=V32,0,IF(V31=V33,0,IF(V33=V30,0,V33))) -> 5 | AE33: 5 | AL33: 0 | AP33: 18 | AQ33: 14 | AR33: 20 | BC33: 4 | BD33: =AY19 -> 0
A34: 0 | B34: =IF(A34="","",1/COUNTIF($A$15:A34,A34)) -> 0.05555555556 | C34: 0 | F34: =IF(OR(F3=13,F3=14,F3=15,F3=16,F3=17,F3=18,F3=19,F3=20,F3=21,F3=22,F3=23,F3=24),1,0) -> 0 | K34: =SUMIF(K15:K19,6,K15:K19)/6 -> 1 | L34: 19 | M34: 4 | N34: 0 | V34: 4 | Z34: =IF(V34=V33,0,IF(V32=V34,0,IF(V34=V31,0,IF(V34=V30,0,V34)))) -> 4 | AE34: 4 | AL34: 0 | AP34: 19 | AQ34: 17 | AR34: 23 | BC34: 4 | BD34: =AZ19 -> 0
A35: 0 | B35: =IF(A35="","",1/COUNTIF($A$15:A35,A35)) -> 0.05263157895 | C35: 0 | F35: =IF(OR(F3=13,F3=14,F3=15,F3=16,F3=17,F3=18,F3=19,F3=20,F3=21,F3=22,F3=23,F3=24),1,0) -> 0 | K35: =SUM(K32:K34) -> 1 | L35: 20 | M35: 4 | N35: 1 | V35: 29 | Z35: =IF(V35=V34,0,IF(V33=V35,0,IF(V35=V32,0,IF(V35=V31,0,IF(V35=V30,0,V35))))) -> 29 | AE35: 29 | AL35: 0 | AP35: 20 | AQ35: 16 | AR35: 18 | AS35: 22 | AT35: 24
A36: 0 | B36: =IF(A36="","",1/COUNTIF($A$15:A36,A36)) -> 0.05 | C36: 0 | F36: =IF(AND(F33=1,F34=1,F35=1),1,0) -> 0 | L36: 21 | M36: 4 | N36: 1 | V36: 8 | Z36: =IF(V36=V35,0,IF(V34=V36,0,IF(V36=V33,0,IF(V36=V32,0,IF(V36=V31,0,IF(V36=V30,0,V36)))))) -> 0 | AE36: 0 | AL36: 0 | AP36: 21 | AQ36: 17 | AR36: 23
A37: 0 | B37: =IF(A37="","",1/COUNTIF($A$15:A37,A37)) -> 0.04761904762 | C37: 0 | K37: =IF(K31>K35,1,IF(K35>K31,2,0)) -> 0 | L37: 22 | M37: 4 | N37: 1 | AL37: 0 | AP37: 22 | AQ37: 20 | AR37: 26
A38: 0 | B38: =IF(A38="","",1/COUNTIF($A$15:A38,A38)) -> 0.04545454545 | C38: 0 | F38: 7 after zero | G38: =MAX(C15:C21) -> 2 | L38: 23 | M38: 4 | N38: 1 | AL38: 0 | AP38: 23 | AQ38: 19 | AR38: 21 | AS38: 25 | AT38: 27
A39: 0 | B39: =IF(A39="","",1/COUNTIF($A$15:A39,A39)) -> 0.04347826087 | C39: 0 | F39: =IF(F2=0,1,IF(F3=0,1,IF(F4=0,1,IF(F5=0,1,IF(F6=0,1,IF(F7=0,1,IF(F8=0,1,IF(F9=0,1,0)))))))) -> 1 | G39: =IF(AND(F39=1,G46=0,G38>=5,N47<=1),1,0) -> 0 | L39: 24 | M39: 4 | N39: 1 | AL39: 0 | AP39: 24 | AQ39: 20 | AR39: 26
A40: 0 | B40: =IF(A40="","",1/COUNTIF($A$15:A40,A40)) -> 0.04166666667 | C40: 0 | E40: 1 | F40: =IF(F2=0,1,0) -> 0 | L40: 25 | M40: 5 | N40: 1 | AL40: 0 | AP40: 25 | AQ40: 23 | AR40: 29
A41: 0 | B41: =IF(A41="","",1/COUNTIF($A$15:A41,A41)) -> 0.04 | C41: 0 | E41: 2 | F41: 0 | L41: 26 | M41: 5 | N41: 1 | AL41: 0 | AP41: 26 | AQ41: 22 | AR41: 24 | AS41: 28 | AT41: 30
A42: 0 | B42: =IF(A42="","",1/COUNTIF($A$15:A42,A42)) -> 0.03846153846 | C42: 0 | E42: 3 | F42: 1 | L42: 27 | M42: 5 | N42: 1 | AL42: 0 | AP42: 27 | AQ42: 23 | AR42: 29
A43: 0 | B43: =IF(A43="","",1/COUNTIF($A$15:A43,A43)) -> 0.03703703704 | C43: 0 | E43: 4 | F43: 1 | L43: 28 | M43: 5 | N43: 1 | AL43: 0 | AP43: 28 | AQ43: 26 | AR43: 32
A44: 0 | B44: =IF(A44="","",1/COUNTIF($A$15:A44,A44)) -> 0.03571428571 | C44: 0 | E44: 5 | F44: 1 | L44: 29 | M44: 5 | N44: 1 | AL44: 0 | AP44: 29 | AQ44: 25 | AR44: 27 | AS44: 31 | AT44: 33
C45: =MAX(C15:C44) -> 2 | E45: 6 | F45: 1 | L45: 30 | M45: 5 | N45: 1 | AG45: =IF(AM45="0",0,IF(AM45="1",1,IF(AM45="2",2,IF(AM45="3",3,IF(AM45="4",4,IF(AM45="5",5,IF(AM45="6",6,IF(AM45="7",7,"")))))))) ->  | AH45: =IF(AM45="8",8,IF(AM45="9",9,IF(AM45="10",10,IF(AM45="11",11,IF(AM45="12",12,IF(AM45="12",12,IF(AM45="13",13,IF(AM45="14",14,"")))))))) ->  | AI45: =IF(AM45="15",15,IF(AM45="16",16,IF(AM45="17",17,IF(AM45="18",18,IF(AM45="19",19,IF(AM45="20",20,IF(AM45="21",21,""))))))) ->  | AJ45: =IF(AM45="22",22,IF(AM45="23",23,IF(AM45="24",24,IF(AM45="25",25,IF(AM45="26",26,IF(AM45="27",27,IF(AM45="28",28,IF(AM45="29",29,"")))))))) ->  | AK45: =IF(AM45="29",29,IF(AM45="30",30,IF(AM45="31",31,IF(AM45="32",32,IF(AM45="33",33,IF(AM45="34",34,IF(AM45="35",35,IF(AM45="36",36,"")))))))) ->  | AL45: =IF(AND(AG45="",AH45="",AI45="",AJ45="",AK45=""),AM45,MAX(AG45:AK45)) -> 0 | AP45: 30 | AQ45: 26 | AR45: 32
E46: 7 | F46: 1 | G46: =SUM(F40:F46) -> 5 | L46: 31 | M46: 6 | AL46: 0 | AP46: 31 | AQ46: 29 | AR46: 35
A47: =IF(A15=A16,1,0) -> 0 | F47: Méthode le 21 | L47: 32 | M47: 6 | N47: =SUM(N33:N46) -> 11 | AL47: 0 | AP47: 32 | AQ47: 28 | AR47: 30 | AS47: 34 | AT47: 36
E48: 1 | F48: =IF(OR(F2=4,F2=6,F2=9,F2=11,F2=12,F2=13,F2=14,F2=20,F2=21,F2=22,F2=25,F2=27,F2=28,F2=30,F2=31,F2=33),1,0) -> 0 | L48: 33 | M48: 6 | AL48: 0 | AP48: 33 | AQ48: 29 | AR48: 35
A49: =IF(OR(A15=2,A15=10,A15=22,A15=32,A15=35),1,0) -> 0 | E49: 2 | F49: =IF(OR(F3=4,F3=6,F3=9,F3=11,F3=12,F3=13,F3=14,F3=20,F3=21,F3=22,F3=25,F3=27,F3=28,F3=30,F3=31,F3=33),1,0) -> 0 | L49: 34 | M49: 6 | AL49: 0 | AP49: 34 | AQ49: 32
A50: =IF(OR(A15=1,A15=4,A15=7,A15=33,A15=34),1,0) -> 0 | E50: 3 | F50: =IF(OR(F4=4,F4=6,F4=9,F4=11,F4=12,F4=13,F4=14,F4=20,F4=21,F4=22,F4=25,F4=27,F4=28,F4=30,F4=31,F4=33),1,0) -> 0 | L50: 35 | M50: 6 | AL50: 0 | AP50: 35 | AQ50: 31 | AR50: 33
E51: 4 | F51: =IF(OR(F5=4,F5=6,F5=9,F5=11,F5=12,F5=13,F5=14,F5=20,F5=21,F5=22,F5=25,F5=27,F5=28,F5=30,F5=31,F5=33),1,0) -> 0 | L51: 36 | M51: 6 | AL51: 0 | AP51: 36 | AQ51: 32
F52: =SUM(F48:F51) -> 0 | G52: =IF(N52=1,1,IF(F2=F3,1,IF(F3=F4,1,IF(F4=F5,1,0)))) -> 1 | N52: =IF(F2=0,1,IF(F3=0,1,IF(F4=0,1,IF(F5=0,1,0)))) -> 1 | AL52: 0
F53: =SUM(F48:F50) -> 0 | AL53: 0
AL54: 0
F55: =IF(AND('>>Input'!AF14="4 numéros",F52=4),1,IF(AND('>>Input'!AF14="3 numéros",F53=3),1,0)) -> 0
AG56: 0 | AH56: 5 | AI56: 10 | AJ56: 23 | AK56: 24 | AL56: 26 | AM56: 29 | AN56: 32 | AV56: =AL15 -> 36 | AX56: =IF(AG56=AV56,1,IF(AH56=AV56,1,IF(AI56=AV56,1,IF(AJ56=AV56,1,IF(AK56=AV56,1,IF(AL56=AV56,1,IF(AM56=AV56,1,IF(AN56=1,1,0)))))))) -> 0 | AZ56: =AX56 -> 0 | BA56: 0 | BB56: 0 | BC56: 0 | BD56: =IF(AND(BD57=0,BC56=1,BA56=0,BB56=0),1,0) -> 0
F57: =IF(OR(F2=0,F2=1,F2=2,F2=3,F2=5,F2=7,F2=8,F2=10,F2=15,F2=16,F2=17,F2=18,F2=19,F2=23,F2=24,F2=26,F2=29,F2=32,F2=34,F2=35,F2=36),1,0) -> 1 | AG57: 0 | AH57: 3 | AI57: 5 | AJ57: 7 | AK57: 8 | AL57: 10 | AM57: 15 | AN57: 16 | AO57: 18 | AP57: 23 | AQ57: 24 | AR57: 26 | AS57: 29 | AT57: 32 | AU57: 35 | AV57: =AV56 -> 36 | AX57: =IF(AG57=AV57,1,IF(AH57=AV57,1,IF(AI57=AV57,1,IF(AJ57=AV57,1,IF(AK57=AV57,1,IF(AL57=AV57,1,IF(AM57=AV57,1,IF(AN57=1,1,0)))))))) -> 0 | AY57: =IF(AO57=AV57,1,IF(AP57=AV57,1,IF(AQ57=AV57,1,IF(AR57=AV57,1,IF(AS57=AV57,1,IF(AV57=AT57,1,IF(AU57=AV57,1,0))))))) -> 0 | AZ57: =IF(AX57=1,1,IF(AY57=1,1,0)) -> 0 | BA57: 0 | BB57: 0 | BC57: 0 | BD57: =IF(AND(BB57=0,BA57=0),0,1) -> 0
AG60: 0 | AH60: 1 | AI60: 2 | AJ60: 3 | AK60: 5 | AL60: 7 | AM60: 8 | AN60: 10 | AO60: 15 | AP60: 16 | AQ60: 17 | AR60: 18 | AS60: 19 | AT60: 23 | AU60: 24 | AV60: 26 | AW60: 29 | AX60: 32 | AY60: 34 | AZ60: 35 | BA60: 36
F61: Infernal
E62: =IF(F62=0,10,F62) -> 6 | F62: =LOOKUP(F2,$Z$62:$Z$98,$AE$62:$AE$98) -> 6 | G62: 0 | N62: 10 | R62: 20 | V62: 30 | Z62: 0 | AE62: 0
E63: 2 | F63: 2 | G63: 1 | N63: 11 | R63: 21 | V63: 31 | Z63: 1 | AE63: 1
E64: 10 | F64: 0 | G64: 2 | N64: 12 | R64: 22 | V64: 32 | Z64: 2 | AE64: 2
E65: 10 | F65: 0 | G65: 3 | N65: 13 | R65: 23 | V65: 33 | Z65: 3 | AE65: 3
E66: 10 | F66: 0 | G66: 4 | N66: 14 | R66: 24 | V66: 34 | Z66: 4 | AE66: 4
E67: 10 | F67: 0 | G67: 5 | N67: 15 | R67: 25 | V67: 35 | Z67: 5 | AE67: 5
E68: 10 | F68: 0 | G68: 6 | N68: 16 | R68: 26 | V68: 36 | Z68: 6 | AE68: 6
E69: 10 | F69: 0 | G69: 7 | N69: 17 | R69: 27 | Z69: 7 | AE69: 7
E70: 10 | F70: 0 | G70: 8 | N70: 18 | R70: 28 | Z70: 8 | AE70: 8
E71: 10 | F71: 0 | G71: 9 | N71: 19 | R71: 29 | Z71: 9 | AE71: 9
E72: 10 | F72: 0 | Z72: 10 | AE72: 0
E73: 10 | F73: 0 | Z73: 11 | AE73: 1
E74: 10 | F74: 0 | Z74: 12 | AE74: 2
Z75: 13 | AE75: 3
E76: 0 | F76: =SUMIF($E$62:$E$74,10,$E$62:$E$74)/10 -> 11 | G76: =IF(F76=0,"",1) -> 1 | Z76: 14 | AE76: 4
E77: 1 | F77: =SUMIF($E$62:$E$74,1,$E$62:$E$74)/1 -> 0 | Z77: 15 | AE77: 5
E78: 2 | F78: =SUMIF($E$62:$E$74,2,$E$62:$E$74)/2 -> 1 | G78: 1 | Z78: 16 | AE78: 6
E79: 3 | F79: =SUMIF($E$62:$E$74,E79,$E$62:$E$74)/E79 -> 0 | Z79: 17 | AE79: 7
E80: 4 | F80: 0 | Z80: 18 | AE80: 8
E81: 5 | F81: 0 | Z81: 19 | AE81: 9
E82: 6 | F82: 1 | G82: 1 | Z82: 20 | AE82: 0
E83: 7 | F83: 0 | Z83: 21 | AE83: 1
E84: 8 | F84: 0 | Z84: 22 | AE84: 2
E85: 9 | F85: 0 | Z85: 23 | AE85: 3
G86: =SUM(G76:G85) -> 3 | Z86: 24 | AE86: 4
G87: =IF(F76<>0,E76,IF(F77<>0,E77,IF(F78<>0,E78,IF(F79<>0,E79,IF(F80<>0,E80,IF(F81<>0,E81,IF(F82<>0,E82,IF(F83<>0,E83,"")))))))) -> 0 | N87: =IF(AND(F84<>0,G87=""),E84,IF(AND(F85<>0,G87=""),E85,"")) ->  | R87: =IF(AND(G87="",N87=""),"",MAX(G87:N87)) -> 0 | Z87: 25 | AE87: 5
G88: =IF(AND(R87<>E77,F77<>0),E77,IF(AND(R87<>E78,F78<>0),E78,IF(AND(R87<>E79,F79<>0),E79,IF(AND(R87<>E80,F80<>0),E80,IF(AND(R87<>E81,F81<>0),E81,IF(AND(R87<>E82,F82<>0),E82,IF(AND(R87<>E83,F83<>0),E83,""))))))) -> 2 | N88: =IF(AND(G88="",R87<>E84,F84<>0),E84,IF(AND(G88="",R87<>E85,F85<>0),F85,"")) ->  | R88: =IF(AND(G88="",N88=""),"",MAX(G88:N88)) -> 2 | Z88: 26 | AE88: 6
G89: =IF(AND(R88<>E78,F78<>0,R87<>E78),E78,IF(AND(R88<>E79,F79<>0,R87<>E79),E79,IF(AND(R88<>E80,F80<>0,R87<>E80),E80,IF(AND(R88<>E81,F81<>0),E81,IF(AND(R88<>E82,F82<>0),E82,IF(AND(R88<>E83,F83<>0),E83,"")))))) -> 6 | N89: =IF(AND(G89="",R88<>E84,R87<>E84,F84<>0),E84,IF(AND(G89="",R88<>E85,R87<>E85,F85<>0),E85,"")) ->  | R89: =IF(AND(G89="",N89=""),"",MAX(G89:N89)) -> 6 | Z89: 27 | AE89: 7
G90: =IF(AND(R89<>E79,F79<>0,R88<>E79,R87<>E79),E79,IF(AND(R89<>E80,F80<>0,R88<>E80,R87<>E80),E80,IF(AND(R89<>E81,F81<>0,R88<>E81,R87<>E81),E81,IF(AND(R89<>E82,F82<>0,R87<>E82,R88<>E82),E82,"")))) ->  | N90: =IF(AND(G90="",R89<>E83,F83<>0,R88<>E83,R87<>E83),E83,IF(AND(G90="",R89<>E84,F84<>0,R88<>E84,R87<>E84),E84,IF(AND(G90="",R89<>E85,F85<>0,R88<>E85,R87<>E85),E85,""))) ->  | R90: =IF(AND(G90="",N90=""),"",MAX(G90:N90)) ->  | Z90: 28 | AE90: 8
G91: =IF(AND(R90<>E80,F80<>0,R89<>E80,R88<>E80,R87<>E80),E80,IF(AND(R90<>E81,F81<>0,R89<>E81,R88<>E81,R87<>E81),E81,IF(AND(R90<>E82,F82<>0,R89<>E82,R88<>E82,R87<>E82),E82,""))) ->  | N91: =IF(AND(R90<>E83,F83<>0,R89<>E83,R88<>E83,R87<>E83),E83,IF(AND(R90<>E84,F84<>0,R89<>E84,R88<>E84,R87<>E84),E84,IF(AND(R90<>E85,F85<>0,R89<>E85,R88<>E85,R87<>E85),E85,""))) ->  | R91: =IF(AND(G91="",N91=""),"",MAX(G91:N91)) ->  | Z91: 29 | AE91: 9
Z92: 30 | AE92: 0
R93: =F62 -> 6 | Z93: 31 | AE93: 1
C94: =G86 -> 3 | D94: =IF(R87="","",R87) -> 0 | E94: =IF(R88="","",R88) -> 2 | F94: =IF(R89="","",R89) -> 6 | G94: =IF(R90="","",R90) ->  | L94: =R89 -> 6 | N94: =IF(R91="","",R91) ->  | P94: =R90 ->  | R94: 6 | T94: =R91 ->  | V94: 6 | W94: 1 | Z94: 32 | AE94: 2
D95: =IF(D105<>"",D105,D106) -> 10 | E95: 12 | F95: 16 | H95: 10 | I95: 10 | J95: 10 | K95: 10 | L95: 16 | M95: 10 | R95: =IF(R105<>"",R105,R106) -> 16 | V95: =IF(V105<>"",V105,V106) -> 16 | W95: =IF(W105<>"",W105,W106) -> 11 | Z95: 33 | AE95: 3
D96: =IF(D107<>"",D107,D108) -> 20 | E96: 22 | F96: 26 | H96: 20 | I96: 20 | J96: 20 | K96: 20 | L96: 26 | M96: 20 | R96: =IF(R107<>"",R107,R108) -> 26 | V96: =IF(V107<>"",V107,V108) -> 26 | W96: =IF(W107<>"",W107,W108) -> 21 | Z96: 34 | AE96: 4 | AI96: 0 | AJ96: 10 | AK96: 20 | AL96: 30
D97: =D109 -> 30 | E97: 32 | F97: 36 | H97: 30 | I97: 30 | J97: 30 | K97: 30 | L97: 36 | M97: 30 | R97: =R109 -> 36 | V97: =V109 -> 36 | W97: =W109 -> 31 | Z97: 35 | AE97: 5 | AI97: 1 | AJ97: 11 | AK97: 21 | AL97: 31
Z98: 36 | AE98: 6 | AI98: 2 | AJ98: 12 | AK98: 22 | AL98: 32
AI99: 3 | AJ99: 13 | AK99: 23 | AL99: 33
AI100: 4 | AJ100: 14 | AK100: 24 | AL100: 34
AI101: 5 | AJ101: 15 | AK101: 25 | AL101: 35
AI102: 6 | AJ102: 16 | AK102: 26 | AL102: 36
AI103: 7 | AJ103: 17 | AK103: 27
AI104: 8 | AJ104: 18 | AK104: 28
D105: =IF(D94=0,10,IF(D94=1,11,IF(D94=2,12,IF(D94=3,13,IF(D94=4,14,IF(D94=5,15,"")))))) -> 10 | E105: 12 | H105: 10 | I105: 10 | J105: 10 | K105: 10 | M105: 10 | R105: =IF(R94="","",IF(R94=0,10,IF(R94=1,11,IF(R94=2,12,IF(R94=3,13,IF(R94=4,14,IF(R94=5,15,""))))))) ->  | V105: =IF(V94="","",IF(V94=0,10,IF(V94=1,11,IF(V94=2,12,IF(V94=3,13,IF(V94=4,14,IF(V94=5,15,""))))))) ->  | W105: =IF(W94="","",IF(W94=0,10,IF(W94=1,11,IF(W94=2,12,IF(W94=3,13,IF(W94=4,14,IF(W94=5,15,""))))))) -> 11 | Z105: 0_5 | AI105: 9 | AJ105: 19 | AK105: 29
D106: =IF(D94=6,16,IF(D94=7,17,IF(D94=8,18,IF(D94=9,19,"")))) ->  | F106: 16 | L106: 16 | R106: =IF(R94=6,16,IF(R94=7,17,IF(R94=8,18,IF(R94=9,19,"")))) -> 16 | V106: =IF(V94=6,16,IF(V94=7,17,IF(V94=8,18,IF(V94=9,19,"")))) -> 16 | W106: =IF(W94=6,16,IF(W94=7,17,IF(W94=8,18,IF(W94=9,19,"")))) ->  | Z106: 6_9
D107: =IF(D94=0,20,IF(D94=1,21,IF(D94=2,22,IF(D94=3,23,IF(D94=4,24,IF(D94=5,25,"")))))) -> 20 | E107: 22 | H107: 20 | I107: 20 | J107: 20 | K107: 20 | M107: 20 | R107: =IF(R94="","",IF(R94=0,20,IF(R94=1,21,IF(R94=2,22,IF(R94=3,23,IF(R94=4,24,IF(R94=5,25,""))))))) ->  | V107: =IF(V94="","",IF(V94=0,20,IF(V94=1,21,IF(V94=2,22,IF(V94=3,23,IF(V94=4,24,IF(V94=5,25,""))))))) ->  | W107: =IF(W94="","",IF(W94=0,20,IF(W94=1,21,IF(W94=2,22,IF(W94=3,23,IF(W94=4,24,IF(W94=5,25,""))))))) -> 21 | Z107: 0_5
D108: =IF(D94=6,26,IF(D94=7,27,IF(D94=8,28,IF(D94=9,29,"")))) ->  | F108: 26 | L108: 26 | R108: =IF(R94=6,26,IF(R94=7,27,IF(R94=8,28,IF(R94=9,29,"")))) -> 26 | V108: =IF(V94=6,26,IF(V94=7,27,IF(V94=8,28,IF(V94=9,29,"")))) -> 26 | W108: =IF(W94=6,26,IF(W94=7,27,IF(W94=8,28,IF(W94=9,29,"")))) ->  | Z108: 6_9
D109: =IF(D94=0,30,IF(D94=1,31,IF(D94=2,32,IF(D94=3,33,IF(D94=4,34,IF(D94=5,35,IF(D94=6,36,""))))))) -> 30 | E109: 32 | F109: 36 | H109: 30 | I109: 30 | J109: 30 | K109: 30 | L109: 36 | M109: 30 | R109: =IF(R94="","",IF(R94=0,30,IF(R94=1,31,IF(R94=2,32,IF(R94=3,33,IF(R94=4,34,IF(R94=5,35,IF(R94=6,36,"")))))))) -> 36 | V109: =IF(V94="","",IF(V94=0,30,IF(V94=1,31,IF(V94=2,32,IF(V94=3,33,IF(V94=4,34,IF(V94=5,35,IF(V94=6,36,"")))))))) -> 36 | W109: =IF(W94="","",IF(W94=0,30,IF(W94=1,31,IF(W94=2,32,IF(W94=3,33,IF(W94=4,34,IF(W94=5,35,IF(W94=6,36,"")))))))) -> 31 | Z109: 0_5
F117: 4_N_Plein | K117: =MAX(K118:K126) -> 1 | M117: =IF(AND(F2<>$F$4,F2<>$F$5,F2<>$F$6,F2<>$F$7,F2<>$F$8,F2<>$F$9,F2<>$F$10,F2<>$F$11,F2<>$F$12,F2<>$F$13,F2<>$F$14),1,0) -> 1
A118: 1 | B118: 10 | C118: 19 | D118: 28 | F118: =IF(A118=$F$2,1,0) -> 0 | G118: =IF(B118=$F$2,1,0) -> 0 | H118: =IF(C118=$F$2,1,0) -> 0 | I118: =IF(D118=$F$2,1,0) -> 0 | J118: =SUM(F118:I118) -> 0 | K118: =J118+J128 -> 0 | L118: 1 | M118: =IF(AND(F3<>$F$4,F3<>$F$5,F3<>$F$6,F3<>$F$7,F3<>$F$8,F3<>$F$9,F3<>$F$10,F3<>$F$11,F3<>$F$12,F3<>$F$13,F3<>$F$14),1,0) -> 1
A119: 2 | B119: 11 | C119: 20 | D119: 29 | F119: 0 | G119: 0 | H119: 0 | I119: 0 | J119: 0 | K119: 1 | L119: 2
A120: 3 | B120: 12 | C120: 21 | D120: 30 | F120: 0 | G120: 0 | H120: 0 | I120: 0 | J120: 0 | K120: 0 | L120: 3
A121: 4 | B121: 13 | C121: 22 | D121: 31 | F121: 0 | G121: 0 | H121: 0 | I121: 0 | J121: 0 | K121: 0 | L121: 4 | M121: =SUM(M117:M118) -> 2
A122: 5 | B122: 14 | C122: 23 | D122: 32 | F122: 0 | G122: 0 | H122: 0 | I122: 0 | J122: 0 | K122: 0 | L122: 5
A123: 6 | B123: 15 | C123: 24 | D123: 33 | F123: 0 | G123: 0 | H123: 0 | I123: 0 | J123: 0 | K123: 0 | L123: 6
A124: 7 | B124: 16 | C124: 25 | D124: 34 | F124: 0 | G124: 0 | H124: 0 | I124: 0 | J124: 0 | K124: 0 | L124: 7
A125: 8 | B125: 17 | C125: 26 | D125: 35 | F125: 0 | G125: 0 | H125: 0 | I125: 0 | J125: 0 | K125: 0 | L125: 8
A126: 9 | B126: 18 | C126: 27 | D126: 36 | F126: 0 | G126: 0 | H126: 0 | I126: 1 | J126: 1 | K126: 1 | L126: 9
A128: =IF($K$118=2,A118,IF($K$119=2,A119,IF($K$120=2,A120,IF($K$121=2,A121,IF($K$122=2,A122,IF($K$123=2,A123,IF($K$124=2,A124,IF($K$125=2,A125,0)))))))) -> 0 | B128: =IF($K$118=2,B118,IF($K$119=2,B119,IF($K$120=2,B120,IF($K$121=2,B121,IF($K$122=2,B122,IF($K$123=2,B123,IF($K$124=2,B124,IF($K$125=2,B125,0)))))))) -> 0 | C128: =IF($K$118=2,C118,IF($K$119=2,C119,IF($K$120=2,C120,IF($K$121=2,C121,IF($K$122=2,C122,IF($K$123=2,C123,IF($K$124=2,C124,IF($K$125=2,C125,0)))))))) -> 0 | D128: =IF($K$118=2,D118,IF($K$119=2,D119,IF($K$120=2,D120,IF($K$121=2,D121,IF($K$122=2,D122,IF($K$123=2,D123,IF($K$124=2,D124,IF($K$125=2,D125,0)))))))) -> 0 | F128: =IF(A118=$F$3,1,0) -> 0 | G128: =IF(B118=$F$3,1,0) -> 0 | H128: =IF(C118=$F$3,1,0) -> 0 | I128: =IF(D118=$F$3,1,0) -> 0 | J128: =SUM(F128:I128) -> 0 | M128: 1
A129: =IF($K$126=2,A126,0) -> 0 | B129: =IF($K$126=2,B126,0) -> 0 | C129: =IF($K$126=2,C126,0) -> 0 | D129: =IF($K$126=2,D126,0) -> 0 | F129: 1 | G129: 0 | H129: 0 | I129: 0 | J129: 1 | M129: 2
F130: 0 | G130: 0 | H130: 0 | I130: 0 | J130: 0 | M130: 3
A131: =IF($M$121<>2,"",IF(AND(A128=0,A129=0),"",A128+A129)) ->  | B131: =IF($M$121<>2,"",IF(AND(B128=0,B129=0),"",B128+B129)) ->  | C131: =IF($M$121<>2,"",IF(AND(C128=0,C129=0),"",C128+C129)) ->  | D131: =IF($M$121<>2,"",IF(AND(D128=0,D129=0),"",D128+D129)) ->  | F131: 0 | G131: 0 | H131: 0 | I131: 0 | J131: 0 | M131: 4 | AS131: =IF(AS139<>"",AS139,IF(AS140<>"",AS140,IF(AS141<>"",AS141,IF(AS142<>"",AS142,IF(AS143<>"",AS143,IF(AS144<>"",AS144,IF(AS145<>"",AS145,IF(AS146<>"",AS146,"")))))))) -> 
F132: 0 | G132: 0 | H132: 0 | I132: 0 | J132: 0 | M132: 5
F133: 0 | G133: 0 | H133: 0 | I133: 0 | J133: 0 | M133: 6 | AG133: Masters
F134: 0 | G134: 0 | H134: 0 | I134: 0 | J134: 0 | M134: 7
F135: 0 | G135: 0 | H135: 0 | I135: 0 | J135: 0 | M135: 8 | AE135: =IF(AG135=0,0,IF(AF135=AF136,1,IF(AF135=AF137,1,IF(AF135=AF138,1,IF(AF135=AF139,1,IF(AF135=AF140,1,IF(AF135=AF141,1,IF(AF135=AF142,1,0)))))))) -> 0 | AF135: =A15 -> 36 | AG135: =IF(AF135=11,1,IF(AF135=22,1,IF(AF135=33,1,0))) -> 0 | AI135: 1 | AJ135: 4 | AK135: 9 | AL135: 11 | AM135: 16 | AN135: 18 | AO135: 20 | AP135: 22 | AQ135: 30 | AR135: 33 | AS135: 36
F136: 0 | G136: 0 | H136: 0 | I136: 0 | J136: 0 | M136: 9 | AE136: =IF(AG136=0,0,IF(AF136=AF137,1,IF(AF136=AF138,1,IF(AF136=AF139,1,IF(AF136=AF140,1,IF(AF136=AF141,1,IF(AF136=AF142,1,IF(AF136=AF135,1,0)))))))) -> 0 | AF136: 2 | AG136: 0
AE137: =IF(AG137=0,0,IF(AF137=AF138,1,IF(AF137=AF139,1,IF(AF137=AF140,1,IF(AF137=AF141,1,IF(AF137=AF142,1,IF(AF137=AF136,1,IF(AF137=AF135,1,0)))))))) -> 0 | AF137: 0 | AG137: 0
AE138: =IF(AG138=0,0,IF(AF138=AF139,1,IF(AF138=AF140,1,IF(AF138=AF141,1,IF(AF138=AF142,1,IF(AF138=AF135,1,IF(AF138=AF137,1,IF(AF138=AF136,1,0)))))))) -> 0 | AF138: 0 | AG138: 0
AE139: =IF(AG139=0,0,IF(AF139=AF140,1,IF(AF139=AF141,1,IF(AF139=AF142,1,IF(AF139=AF135,1,IF(AF139=AF136,1,IF(AF139=AF138,1,IF(AF139=AF137,1,0)))))))) -> 0 | AF139: 0 | AG139: 0
F140: 2_N_Plein | AE140: =IF(AG140=0,0,IF(AF140=AF141,1,IF(AF140=AF142,1,IF(AF140=AF135,1,IF(AF140=AF136,1,IF(AF140=AF137,1,IF(AF140=AF139,1,IF(AF140=AF138,1,0)))))))) -> 0 | AF140: 0 | AG140: 0
F141: 26 | AE141: =IF(AG141=0,0,IF(AF141=AF142,1,IF(AF141=AF135,1,IF(AF141=AF136,1,IF(AF141=AF137,1,IF(AF141=AF138,1,IF(AF141=AF140,1,IF(AF141=AF139,1,0)))))))) -> 0 | AF141: 0 | AG141: 0
F142: =IF(F141="","",F141-1) -> 25 | AE142: =IF(AG142=0,0,IF(AF142=AF135,1,IF(AF142=AF136,1,IF(AF142=AF137,1,IF(AF142=AF138,1,IF(AF142=AF139,1,IF(AF142=AF141,1,IF(AF142=AF140,1,0)))))))) -> 0 | AF142: 0 | AG142: 0
F143: =IF(F141="","",F141+1) -> 27 | AF143: 0 | AG143: 0
AE144: 0 | AF144: 0 | AG144: 0
AE145: =SUM(AE135:AE143) -> 0 | AF145: 0 | AG145: 0
AF146: 0 | AG146: 0
AF147: 0 | AG147: 0
J150: Infaillible doublon | AG150: =IF(AE144<>0,0,SUM(AG135:AG147)) -> 0
J152: 0 | K152: 1 | L152: 4 | N152: 0 | Q152: 1
J153: 1 | K153: 1 | L153: 4 | Q153: 2
J154: 2 | K154: 2 | L154: 5 | Q154: 3 | AG154: 10 Magiques
J155: 3 | K155: 3 | L155: 6 | Q155: 4
J156: 4 | K156: 1 | L156: 4 | Q156: 5 | AF156: =A15 -> 36 | AG156: =IF(OR(AF156=$AI$156,AF156=$AJ$156,AF156=$AK$156,AF156=$AL$156,AF156=$AM$156,AF156=$AN$156,AF156=$AO$156,AF156=$AP$156,AF156=$AQ$156,AF156=$AR$156),1,0) -> 0 | AI156: 6 | AJ156: 12 | AK156: 13 | AL156: 14 | AM156: 19 | AN156: 21 | AO156: 25 | AP156: 27 | AQ156: 28 | AR156: 31
J157: 5 | K157: 2 | L157: 5 | Q157: 6 | AF157: =A16 -> 2 | AG157: =IF(OR(AF157=$AI$156,AF157=$AJ$156,AF157=$AK$156,AF157=$AL$156,AF157=$AM$156,AF157=$AN$156,AF157=$AO$156,AF157=$AP$156,AF157=$AQ$156,AF157=$AR$156),1,0) -> 0
J158: 6 | K158: 3 | L158: 6 | Q158: 7 | AF158: =A17 -> 0 | AG158: =IF(OR(AF158=$AI$156,AF158=$AJ$156,AF158=$AK$156,AF158=$AL$156,AF158=$AM$156,AF158=$AN$156,AF158=$AO$156,AF158=$AP$156,AF158=$AQ$156,AF158=$AR$156),1,0) -> 0
J159: 7 | K159: 7 | L159: 10 | Q159: 8 | AF159: =A18 -> 0 | AG159: =IF(OR(AF159=$AI$156,AF159=$AJ$156,AF159=$AK$156,AF159=$AL$156,AF159=$AM$156,AF159=$AN$156,AF159=$AO$156,AF159=$AP$156,AF159=$AQ$156,AF159=$AR$156),1,0) -> 0
J160: 8 | K160: 8 | L160: 11 | Q160: 9 | AT160: =IF(AF160=3,AL160,"") ->  | AU160: =IF(AF160=3,AM160,"") ->  | AV160: =IF(AF160=3,AN160,"") ->  | AW160: =IF(AF160=3,AO160,"") ->  | AX160: =IF(AF160=3,AP160,"") -> 
J161: 9 | K161: 9 | L161: 12 | Q161: 10 | AG161: =SUM(AG157:AG159) -> 0
J162: 10 | K162: 7 | L162: 10 | Q162: 11
J163: 11 | K163: 8 | L163: 11 | Q163: 12 | AG163: =IF(AND(AG156=1,AG161=0),1,0) -> 0
J164: 12 | K164: 9 | L164: 12
J165: 13 | K165: 13 | L165: 16
J166: 14 | K166: 14 | L166: 17
J167: 15 | K167: 15 | L167: 18
J168: 16 | K168: 13 | L168: 16
J169: 17 | K169: 14 | L169: 17
J170: 18 | K170: 15 | L170: 18
J171: 19 | K171: 19 | L171: 22
J172: 20 | K172: 20 | L172: 23
J173: 21 | K173: 21 | L173: 24
J174: 22 | K174: 19 | L174: 22
J175: 23 | K175: 20 | L175: 23
J176: 24 | K176: 21 | L176: 24
J177: 25 | K177: 25 | L177: 28
J178: 26 | K178: 26 | L178: 29
J179: 27 | K179: 27 | L179: 30
J180: 28 | K180: 25 | L180: 28
J181: 29 | K181: 26 | L181: 29
J182: 30 | K182: 27 | L182: 30
J183: 31 | K183: 31 | L183: 34
J184: 32 | K184: 32 | L184: 35
J185: 33 | K185: 33 | L185: 36
J186: 34 | K186: 31 | L186: 34
J187: 35 | K187: 32 | L187: 35
J188: 36 | K188: 33 | L188: 36
J193: =LOOKUP(F2,J152:J188,K152:K188) -> 33 | K193: =LOOKUP(F2,J152:J188,L152:L188) -> 36
I197: =IF(J197=F2,1,IF(K197=F2,1,IF(L197=F2,1,IF(M197=F2,1,IF(N197=F2,1,0))))) -> 0 | J197: =IF(O152="","",O152) ->  | K197: =IF(P152="","",P152) ->  | L197: =IF(O153="","",O153) ->  | M197: =IF(P153="","",P153) ->  | N197: =IF(O154="","",O154) ->  | P197: ='>>Input'!AG16 -> 0
I198: =IF(J198=F2,1,IF(K198=F2,1,IF(L198=F2,1,IF(M198=F2,1,IF(N198=F2,1,0))))) -> 0 | J198: =IF(P154="","",P154) ->  | K198: =IF(O155="","",O155) ->  | L198: =IF(P155="","",P155) ->  | M198: =IF(O156="","",O156) ->  | N198: =IF(P156="","",P156) ->  | P198: ='>>Input'!AG17 -> 0
I199: =IF(J199=F2,1,IF(K199=F2,1,IF(L199=F2,1,IF(M199=F2,1,IF(N199=F2,1,0))))) -> 0 | J199: =IF(O157="","",O157) ->  | K199: =IF(P157="","",P157) ->  | L199: =IF(O158="","",O158) ->  | M199: =IF(P158="","",P158) ->  | N199: =IF(O159="","",O159) -> 
I200: =IF(J200=F2,1,IF(K200=F2,1,IF(L200=F2,1,IF(M200=F2,1,IF(N200=F2,1,0))))) -> 0 | J200: =IF(P159="","",P159) ->  | K200: =IF(O160="","",O160) ->  | L200: =IF(P160="","",P160) ->  | M200: =IF(O161="","",O161) ->  | N200: =IF(P161="","",P161) -> 
I201: =IF(J201=$F$2,1,IF(K201=$F$2,1,IF(L201=$F$2,1,IF(M201=$F$2,1,0)))) -> 0 | J201: =IF(O162="","",O162) ->  | K201: =IF(P162="","",P162) ->  | L201: =IF(O163="","",O163) ->  | M201: =IF(P163="","",P163) -> 
I202: =IF(I197=1,1,IF(I198=1,1,IF(I199=1,1,IF(I200=1,1,IF(I201=1,1,0))))) -> 0
J210: Infaillible Sizaine
K211: N°Sizaine | L211: N° Siz 2
J212: 0 | K212: 0 | L212: 0 | N212: 2 | O212: 6 | P212: 2 | Q212: 1 | R212: =IF(O212<>"",1,"") -> 1
J213: 1 | K213: 1 | L213: 1 | Q213: 2
J214: 2 | K214: 1 | L214: 1 | Q214: 3
J215: 3 | K215: 1 | L215: 1 | Q215: 4
J216: 4 | K216: 1 | L216: 1 | Q216: 5
J217: 5 | K217: 1 | L217: 1 | Q217: 6
J218: 6 | K218: 1 | L218: 1
J219: 7 | K219: 2 | L219: 2
J220: 8 | K220: 2 | L220: 2
J221: 9 | K221: 2 | L221: 2
J222: 10 | K222: 2 | L222: 2
J223: 11 | K223: 2 | L223: 2
J224: 12 | K224: 2 | L224: 2 | R224: =SUM(R212:R223) -> 1
J225: 13 | K225: 3 | L225: 1 | R225: 1
J226: 14 | K226: 3 | L226: 1
J227: 15 | K227: 3 | L227: 1
... 88 more rows

Sheet >>Convertisseur_2
AG1: Sizaine | AK1: Transversale | AO1: Douze | AS1: Coll | AW1: 1_18 | BD1: Siz | BF1: Trans | BH1: Sizaine | BL1: Transversale
A2: =IF(G2="0",0,IF(G2="1",1,IF(G2="2",2,IF(G2="3",3,IF(G2="4",4,IF(G2="5",5,IF(G2="6",6,IF(G2="7",7,"")))))))) ->  | B2: =IF(G2="8",8,IF(G2="9",9,IF(G2="10",10,IF(G2="11",11,IF(G2="12",12,IF(G2="12",12,IF(G2="13",13,IF(G2="14",14,"")))))))) ->  | C2: =IF(G2="15",15,IF(G2="16",16,IF(G2="17",17,IF(G2="18",18,IF(G2="19",19,IF(G2="20",20,IF(G2="21",21,""))))))) ->  | D2: =IF(G2="22",22,IF(G2="23",23,IF(G2="24",24,IF(G2="25",25,IF(G2="26",26,IF(G2="27",27,IF(G2="28",28,IF(G2="29",29,"")))))))) ->  | E2: =IF(G2="29",29,IF(G2="30",30,IF(G2="31",31,IF(G2="32",32,IF(G2="33",33,IF(G2="34",34,IF(G2="35",35,IF(G2="36",36,"")))))))) -> 36 | F2: =IF(AND(A2="",B2="",C2="",D2="",E2=""),G2,MAX(A2:E2)) -> 36 | G2: 36 | H2: =IF(ISNUMBER(F2),1,0) -> 1 | I2: =IF(ISNUMBER(G2),1,0) -> 0 | J2: =IF(AND(H2=1,I2=1),G2,F2) -> 36 | K2: =IF(ISNA(G2),F2,G2) -> 36 | L2: =LOOKUP(F$2,'>>BD_R_N'!$A$1:$A$37,'>>BD_R_N'!$B$1:$B$37) -> R | M2: =LOOKUP(G2,'>>BD_R_N'!$A$1:$A$37,'>>BD_R_N'!$B$1:$B$37) ->  | N2: =IF(ISNA(M2),L2,M2) -> R | P2: =G2/2 -> 18 | Q2: =ROUNDUP(P2,0) -> 18 | R2: =IF(P2=0,0,IF(P2=Q2,"P","I")) -> P | S2: =F2 -> 36 | T2: =G2 -> 36 | U2: =IF(ISNA(T2),S2,T2) -> 36 | V2: =IF(J2=0,0,IF(J2<=12,1,IF(J2<=24,2,3))) -> 3 | X2: =LOOKUP(F2,'>>BD_R_N'!$D$1:$D$37,'>>BD_R_N'!$E$1:$E$37) -> 3 | Y2: =LOOKUP(G2,'>>BD_R_N'!$D$1:$D$37,'>>BD_R_N'!$E$1:$E$37) ->  | Z2: =IF(ISNA(Y2),X2,Y2) -> 3 | AB2: =F2 -> 36 | AC2: =G2 -> 36 | AD2: =K2 -> 36 | AE2: =IF(J2=0,0,IF(J2<=18,1,2)) -> 2 | AF2: 1 | AG2: =IF(N2="R","R","") -> R | AH2: =BD2 -> 2 | AI2: =IF(N2="N","N","") ->  | AJ2: 1 | AK2: =IF(R2="P","P","") -> P | AL2: =BF2 -> 2 | AM2: =IF(R2="I","I","") ->  | AN2: 1 | AO2: =IF(V2=1,1,"") ->  | AP2: =IF(V2=0,0,IF(V2=2,2,"")) ->  | AQ2: =IF(V2=3,3,"") -> 3 | AR2: 1 | AS2: =IF(Z2=1,1,"") ->  | AT2: =IF(Z2=0,0,IF(Z2=2,2,"")) ->  | AU2: =IF(Z2=3,3,"") -> 3 | AV2: 1 | AW2: =IF(AE2=1,1,"") ->  | AX2: =IF(BD2<>0,"",0) ->  | AY2: =IF(AE2=2,2,"") -> 2 | BD2: =LOOKUP(J2,'>>Convertisseur'!$K$265:$K$301,'>>Convertisseur'!$J$265:$J$301) -> 2 | BF2: =LOOKUP(J2,'>>Convertisseur'!$K$265:$K$301,'>>Convertisseur'!$L$265:$L$301) -> 2 | BH2: =IF(AH2=1,1,"") ->  | BI2: =IF(BD2<>0,"",0) ->  | BJ2: =IF(AH2=2,2,"") -> 2 | BL2: =IF(AL2=1,1,"") ->  | BM2: =IF(BD2<>0,"",0) ->  | BN2: =IF(AL2=2,2,"") -> 2
A3: 2 | F3: 2 | G3: 2 | H3: 1 | I3: 0 | J3: =IF(AND(H3=1,I3=1),G3,F3) -> 2 | K3: 2 | L3: =LOOKUP(F3,'>>BD_R_N'!$A$1:$A$37,'>>BD_R_N'!$B$1:$B$37) -> N | M3: =LOOKUP(G3,'>>BD_R_N'!$A$1:$A$37,'>>BD_R_N'!$B$1:$B$37) ->  | N3: =IF(ISNA(M3),L3,M3) -> N | P3: 1 | Q3: 1 | R3: P | S3: 2 | T3: 2 | U3: 2 | V3: =IF(J3=0,0,IF(J3<=12,1,IF(J3<=24,2,3))) -> 1 | X3: =LOOKUP(F3,'>>BD_R_N'!$D$1:$D$37,'>>BD_R_N'!$E$1:$E$37) -> 2 | Y3: =LOOKUP(G3,'>>BD_R_N'!$D$1:$D$37,'>>BD_R_N'!$E$1:$E$37) ->  | Z3: =IF(ISNA(Y3),X3,Y3) -> 2 | AB3: 2 | AC3: 2 | AD3: 2 | AE3: 1 | AF3: 2 | AG3: =IF(N3="R","R","") ->  | AH3: 1 | AI3: N | AJ3: 2 | AK3: =IF(R3="P","P","") -> P | AL3: =BF3 -> 1 | AN3: 2 | AO3: =IF(V3=1,1,"") -> 1 | AR3: 3 | AT3: 2 | AV3: 2 | AW3: 1 | AX3: =IF(BD3<>0,"",0) ->  | BD3: =LOOKUP(J3,'>>Convertisseur'!$K$265:$K$301,'>>Convertisseur'!$J$265:$J$301) -> 1 | BF3: =LOOKUP(J3,'>>Convertisseur'!$K$265:$K$301,'>>Convertisseur'!$L$265:$L$301) -> 1 | BH3: =IF(AH3=1,1,"") -> 1 | BI3: =IF(BD3<>0,"",0) ->  | BJ3: =IF(AH3=2,2,"") ->  | BL3: =IF(AL3=1,1,"") -> 1 | BM3: =IF(BD3<>0,"",0) ->  | BN3: =IF(AL3=2,2,"") -> 
F4: 0 | H4: 1 | I4: 0 | J4: 0 | K4: 0 | L4: =LOOKUP(F4,'>>BD_R_N'!$A$1:$A$37,'>>BD_R_N'!$B$1:$B$37) -> 0 | M4: =LOOKUP(G4,'>>BD_R_N'!$A$1:$A$37,'>>BD_R_N'!$B$1:$B$37) -> 0 | N4: 0 | P4: 0 | Q4: 0 | R4: 0 | S4: 0 | T4: 0 | U4: 0 | V4: 0 | X4: =LOOKUP(F4,'>>BD_R_N'!$D$1:$D$37,'>>BD_R_N'!$E$1:$E$37) -> 0 | Y4: =LOOKUP(G4,'>>BD_R_N'!$D$1:$D$37,'>>BD_R_N'!$E$1:$E$37) -> 0 | Z4: 0 | AB4: 0 | AC4: 0 | AD4: 0 | AE4: 0 | AF4: 4 | AH4: 0 | AJ4: 4 | AL4: 0 | AN4: 3 | AP4: 0 | AR4: 9 | AT4: 0 | AV4: 4 | AX4: 0 | BD4: =LOOKUP(J4,'>>Convertisseur'!$K$265:$K$301,'>>Convertisseur'!$J$265:$J$301) -> 0 | BF4: =LOOKUP(J4,'>>Convertisseur'!$K$265:$K$301,'>>Convertisseur'!$L$265:$L$301) -> 0 | BI4: 0 | BM4: 0
F5: 0 | H5: 1 | I5: 0 | J5: 0 | K5: 0 | L5: =LOOKUP(F5,'>>BD_R_N'!$A$1:$A$37,'>>BD_R_N'!$B$1:$B$37) -> 0 | M5: =LOOKUP(G5,'>>BD_R_N'!$A$1:$A$37,'>>BD_R_N'!$B$1:$B$37) -> 0 | N5: 0 | P5: 0 | Q5: 0 | R5: 0 | S5: 0 | T5: 0 | U5: 0 | V5: 0 | X5: =LOOKUP(F5,'>>BD_R_N'!$D$1:$D$37,'>>BD_R_N'!$E$1:$E$37) -> 0 | Y5: =LOOKUP(G5,'>>BD_R_N'!$D$1:$D$37,'>>BD_R_N'!$E$1:$E$37) -> 0 | Z5: 0 | AB5: 0 | AC5: 0 | AD5: 0 | AE5: 0 | AF5: 8 | AH5: 0 | AJ5: 8 | AL5: 0 | AN5: 4 | AP5: 0 | AR5: 27 | AT5: 0 | AV5: 8 | AX5: 0 | BD5: =LOOKUP(J5,'>>Convertisseur'!$K$265:$K$301,'>>Convertisseur'!$J$265:$J$301) -> 0 | BF5: =LOOKUP(J5,'>>Convertisseur'!$K$265:$K$301,'>>Convertisseur'!$L$265:$L$301) -> 0 | BI5: 0 | BM5: 0
F6: 0 | H6: 1 | I6: 0 | J6: 0 | K6: 0 | L6: =LOOKUP(F6,'>>BD_R_N'!$A$1:$A$37,'>>BD_R_N'!$B$1:$B$37) -> 0 | M6: =LOOKUP(G6,'>>BD_R_N'!$A$1:$A$37,'>>BD_R_N'!$B$1:$B$37) -> 0 | N6: 0 | P6: 0 | Q6: 0 | R6: 0 | S6: 0 | T6: 0 | U6: 0 | V6: 0 | X6: =LOOKUP(F6,'>>BD_R_N'!$D$1:$D$37,'>>BD_R_N'!$E$1:$E$37) -> 0 | Y6: =LOOKUP(G6,'>>BD_R_N'!$D$1:$D$37,'>>BD_R_N'!$E$1:$E$37) -> 0 | Z6: 0 | AB6: 0 | AC6: 0 | AD6: 0 | AE6: 0 | AF6: 16 | AH6: 0 | AJ6: 16 | AL6: 0 | AN6: 6 | AP6: 0 | AR6: 81 | AT6: 0 | AV6: 16 | AX6: 0 | BD6: =LOOKUP(J6,'>>Convertisseur'!$K$265:$K$301,'>>Convertisseur'!$J$265:$J$301) -> 0 | BF6: =LOOKUP(J6,'>>Convertisseur'!$K$265:$K$301,'>>Convertisseur'!$L$265:$L$301) -> 0 | BI6: 0 | BM6: 0
F7: 0 | H7: 1 | I7: 0 | J7: 0 | K7: 0 | L7: =LOOKUP(F7,'>>BD_R_N'!$A$1:$A$37,'>>BD_R_N'!$B$1:$B$37) -> 0 | M7: =LOOKUP(G7,'>>BD_R_N'!$A$1:$A$37,'>>BD_R_N'!$B$1:$B$37) -> 0 | N7: 0 | P7: 0 | Q7: 0 | R7: 0 | S7: 0 | T7: 0 | U7: 0 | V7: 0 | X7: =LOOKUP(F7,'>>BD_R_N'!$D$1:$D$37,'>>BD_R_N'!$E$1:$E$37) -> 0 | Y7: =LOOKUP(G7,'>>BD_R_N'!$D$1:$D$37,'>>BD_R_N'!$E$1:$E$37) -> 0 | Z7: 0 | AB7: 0 | AC7: 0 | AD7: 0 | AE7: 0 | AF7: 32 | AH7: 0 | AJ7: 32 | AL7: 0 | AN7: 9 | AP7: 0 | AT7: 0 | AV7: 32 | AX7: 0 | BD7: =LOOKUP(J7,'>>Convertisseur'!$K$265:$K$301,'>>Convertisseur'!$J$265:$J$301) -> 0 | BF7: =LOOKUP(J7,'>>Convertisseur'!$K$265:$K$301,'>>Convertisseur'!$L$265:$L$301) -> 0 | BI7: 0 | BM7: 0
F8: 0 | H8: 1 | I8: 0 | J8: 0 | K8: 0 | L8: =LOOKUP(F8,'>>BD_R_N'!$A$1:$A$37,'>>BD_R_N'!$B$1:$B$37) -> 0 | M8: =LOOKUP(G8,'>>BD_R_N'!$A$1:$A$37,'>>BD_R_N'!$B$1:$B$37) -> 0 | N8: 0 | P8: 0 | Q8: 0 | R8: 0 | S8: 0 | T8: 0 | U8: 0 | V8: 0 | X8: =LOOKUP(F8,'>>BD_R_N'!$D$1:$D$37,'>>BD_R_N'!$E$1:$E$37) -> 0 | Y8: =LOOKUP(G8,'>>BD_R_N'!$D$1:$D$37,'>>BD_R_N'!$E$1:$E$37) -> 0 | Z8: 0 | AB8: 0 | AC8: 0 | AD8: 0 | AE8: =IF(J8=0,0,IF(J8<=18,1,2)) -> 0 | AF8: 64 | AH8: 0 | AJ8: 64 | AL8: 0 | AN8: 13 | AP8: 0 | AT8: 0 | AV8: 64 | AX8: 0 | BD8: =LOOKUP(J8,'>>Convertisseur'!$K$265:$K$301,'>>Convertisseur'!$J$265:$J$301) -> 0 | BF8: =LOOKUP(J8,'>>Convertisseur'!$K$265:$K$301,'>>Convertisseur'!$L$265:$L$301) -> 0 | BI8: 0 | BM8: 0
F9: 0 | H9: 1 | I9: 0 | J9: 0 | K9: 0 | L9: =LOOKUP(F9,'>>BD_R_N'!$A$1:$A$37,'>>BD_R_N'!$B$1:$B$37) -> 0 | M9: =LOOKUP(G9,'>>BD_R_N'!$A$1:$A$37,'>>BD_R_N'!$B$1:$B$37) -> 0 | N9: 0 | P9: 0 | Q9: 0 | R9: 0 | S9: 0 | T9: 0 | U9: 0 | V9: 0 | X9: =LOOKUP(F9,'>>BD_R_N'!$D$1:$D$37,'>>BD_R_N'!$E$1:$E$37) -> 0 | Y9: =LOOKUP(G9,'>>BD_R_N'!$D$1:$D$37,'>>BD_R_N'!$E$1:$E$37) -> 0 | Z9: 0 | AB9: 0 | AC9: 0 | AD9: 0 | AE9: 0 | AF9: 128 | AH9: 0 | AJ9: 128 | AL9: 0 | AN9: 20 | AP9: 0 | AT9: 0 | AV9: 128 | AX9: 0 | BD9: =LOOKUP(J9,'>>Convertisseur'!$K$265:$K$301,'>>Convertisseur'!$J$265:$J$301) -> 0 | BF9: =LOOKUP(J9,'>>Convertisseur'!$K$265:$K$301,'>>Convertisseur'!$L$265:$L$301) -> 0 | BI9: 0 | BM9: 0
F10: 0 | H10: 1 | I10: 0 | J10: 0 | K10: 0 | L10: =LOOKUP(F10,'>>BD_R_N'!$A$1:$A$37,'>>BD_R_N'!$B$1:$B$37) -> 0 | M10: =LOOKUP(G10,'>>BD_R_N'!$A$1:$A$37,'>>BD_R_N'!$B$1:$B$37) -> 0 | N10: 0 | P10: 0 | Q10: 0 | R10: 0 | S10: 0 | T10: 0 | U10: 0 | V10: 0 | X10: =LOOKUP(F10,'>>BD_R_N'!$D$1:$D$37,'>>BD_R_N'!$E$1:$E$37) -> 0 | Y10: =LOOKUP(G10,'>>BD_R_N'!$D$1:$D$37,'>>BD_R_N'!$E$1:$E$37) -> 0 | Z10: 0 | AB10: 0 | AC10: 0 | AD10: 0 | AE10: 0 | AH10: 0 | AL10: 0 | AN10: 30 | AP10: 0 | AT10: 0 | AX10: 0 | BD10: =LOOKUP(J10,'>>Convertisseur'!$K$265:$K$301,'>>Convertisseur'!$J$265:$J$301) -> 0 | BF10: =LOOKUP(J10,'>>Convertisseur'!$K$265:$K$301,'>>Convertisseur'!$L$265:$L$301) -> 0 | BI10: 0 | BM10: 0
F11: 0 | H11: 1 | I11: 0 | J11: 0 | K11: 0 | L11: =LOOKUP(F11,'>>BD_R_N'!$A$1:$A$37,'>>BD_R_N'!$B$1:$B$37) -> 0 | M11: =LOOKUP(G11,'>>BD_R_N'!$A$1:$A$37,'>>BD_R_N'!$B$1:$B$37) -> 0 | N11: 0 | P11: 0 | Q11: 0 | R11: 0 | S11: 0 | T11: 0 | U11: 0 | V11: 0 | X11: =LOOKUP(F11,'>>BD_R_N'!$D$1:$D$37,'>>BD_R_N'!$E$1:$E$37) -> 0 | Y11: =LOOKUP(G11,'>>BD_R_N'!$D$1:$D$37,'>>BD_R_N'!$E$1:$E$37) -> 0 | Z11: 0 | AB11: 0 | AC11: 0 | AD11: 0 | AE11: 0 | AH11: 0 | AL11: 0 | AN11: 45 | AP11: 0 | AT11: 0 | AX11: 0 | BD11: =LOOKUP(J11,'>>Convertisseur'!$K$265:$K$301,'>>Convertisseur'!$J$265:$J$301) -> 0 | BF11: =LOOKUP(J11,'>>Convertisseur'!$K$265:$K$301,'>>Convertisseur'!$L$265:$L$301) -> 0 | BI11: 0 | BM11: 0
F12: 0 | H12: 1 | I12: 0 | J12: 0 | K12: 0 | L12: =LOOKUP(F12,'>>BD_R_N'!$A$1:$A$37,'>>BD_R_N'!$B$1:$B$37) -> 0 | M12: =LOOKUP(G12,'>>BD_R_N'!$A$1:$A$37,'>>BD_R_N'!$B$1:$B$37) -> 0 | N12: 0 | P12: 0 | Q12: 0 | R12: 0 | S12: 0 | T12: 0 | U12: 0 | V12: 0 | X12: =LOOKUP(F12,'>>BD_R_N'!$D$1:$D$37,'>>BD_R_N'!$E$1:$E$37) -> 0 | Y12: =LOOKUP(G12,'>>BD_R_N'!$D$1:$D$37,'>>BD_R_N'!$E$1:$E$37) -> 0 | Z12: 0 | AB12: 0 | AC12: 0 | AD12: 0 | AE12: 0 | AH12: 0 | AL12: 0 | AP12: 0 | AT12: 0 | AX12: 0 | BD12: =LOOKUP(J12,'>>Convertisseur'!$K$265:$K$301,'>>Convertisseur'!$J$265:$J$301) -> 0 | BF12: =LOOKUP(J12,'>>Convertisseur'!$K$265:$K$301,'>>Convertisseur'!$L$265:$L$301) -> 0 | BI12: 0 | BM12: 0
F13: 0 | H13: 1 | I13: 0 | J13: 0 | K13: 0 | L13: =LOOKUP(F13,'>>BD_R_N'!$A$1:$A$37,'>>BD_R_N'!$B$1:$B$37) -> 0 | M13: =LOOKUP(G13,'>>BD_R_N'!$A$1:$A$37,'>>BD_R_N'!$B$1:$B$37) -> 0 | N13: 0 | P13: 0 | Q13: 0 | R13: 0 | S13: 0 | T13: 0 | U13: 0 | V13: 0 | X13: =LOOKUP(F13,'>>BD_R_N'!$D$1:$D$37,'>>BD_R_N'!$E$1:$E$37) -> 0 | Y13: =LOOKUP(G13,'>>BD_R_N'!$D$1:$D$37,'>>BD_R_N'!$E$1:$E$37) -> 0 | Z13: 0 | AB13: 0 | AC13: 0 | AD13: 0 | AE13: 0 | AH13: 0 | AL13: 0 | AP13: 0 | AT13: 0 | AX13: 0 | BD13: =LOOKUP(J13,'>>Convertisseur'!$K$265:$K$301,'>>Convertisseur'!$J$265:$J$301) -> 0 | BF13: =LOOKUP(J13,'>>Convertisseur'!$K$265:$K$301,'>>Convertisseur'!$L$265:$L$301) -> 0 | BI13: 0 | BM13: 0
A14: =IF(G14="0",0,IF(G14="1",1,IF(G14="2",2,IF(G14="3",3,IF(G14="4",4,IF(G14="5",5,IF(G14="6",6,IF(G14="7",7,"")))))))) ->  | F14: 0 | H14: 1 | I14: 0 | J14: 0 | K14: 0 | L14: =LOOKUP(F14,'>>BD_R_N'!$A$1:$A$37,'>>BD_R_N'!$B$1:$B$37) -> 0 | M14: =LOOKUP(G14,'>>BD_R_N'!$A$1:$A$37,'>>BD_R_N'!$B$1:$B$37) -> 0 | N14: 0 | P14: 0 | Q14: 0 | R14: 0 | S14: 0 | T14: 0 | U14: 0 | V14: 0 | X14: =LOOKUP(F14,'>>BD_R_N'!$D$1:$D$37,'>>BD_R_N'!$E$1:$E$37) -> 0 | Y14: =LOOKUP(G14,'>>BD_R_N'!$D$1:$D$37,'>>BD_R_N'!$E$1:$E$37) -> 0 | Z14: 0 | AB14: 0 | AC14: 0 | AD14: 0 | AE14: 0 | AH14: 0 | AL14: 0 | AP14: 0 | AT14: 0 | AX14: 0 | BD14: =LOOKUP(J14,'>>Convertisseur'!$K$265:$K$301,'>>Convertisseur'!$J$265:$J$301) -> 0 | BF14: =LOOKUP(J14,'>>Convertisseur'!$K$265:$K$301,'>>Convertisseur'!$L$265:$L$301) -> 0 | BI14: 0 | BM14: 0
B15: =IF(G15="8",8,IF(G15="9",9,IF(G15="10",10,IF(G15="11",11,IF(G15="12",12,IF(G15="12",12,IF(G15="13",13,IF(G15="14",14,"")))))))) ->  | C15: =IF(G15="15",15,IF(G15="16",16,IF(G15="17",17,IF(G15="18",18,IF(G15="19",19,IF(G15="20",20,IF(G15="21",21,""))))))) ->  | D15: =IF(G15="22",22,IF(G15="23",23,IF(G15="24",24,IF(G15="25",25,IF(G15="26",26,IF(G15="27",27,IF(G15="28",28,IF(G15="29",29,"")))))))) ->  | E15: =IF(G15="29",29,IF(G15="30",30,IF(G15="31",31,IF(G15="32",32,IF(G15="33",33,IF(G15="34",34,IF(G15="35",35,IF(G15="36",36,"")))))))) ->  | F15: 0 | H15: =IF(ISNUMBER(F15),1,0) -> 1 | I15: =IF(ISNUMBER(G15),1,0) -> 0 | J15: =IF(AND(H15=1,I15=1),G15,F15) -> 0 | K15: =IF(ISNA(G15),F15,G15) -> 0 | L15: =LOOKUP(F15,'>>BD_R_N'!$A$1:$A$37,'>>BD_R_N'!$B$1:$B$37) -> 0 | M15: =LOOKUP(G15,'>>BD_R_N'!$A$1:$A$37,'>>BD_R_N'!$B$1:$B$37) -> 0 | N15: =IF(ISNA(M15),L15,M15) -> 0 | P15: =G15/2 -> 0 | Q15: 0 | R15: =IF(P15=0,0,IF(P15=Q15,"P","I")) -> 0 | S15: =F15 -> 0 | T15: =G15 -> 0 | U15: =IF(ISNA(T15),S15,T15) -> 0 | V15: 0 | X15: =LOOKUP(F15,'>>BD_R_N'!$D$1:$D$37,'>>BD_R_N'!$E$1:$E$37) -> 0 | Y15: =LOOKUP(G15,'>>BD_R_N'!$D$1:$D$37,'>>BD_R_N'!$E$1:$E$37) -> 0 | Z15: =IF(ISNA(Y15),X15,Y15) -> 0 | AB15: =F15 -> 0 | AC15: =G15 -> 0 | AD15: =K15 -> 0 | AE15: =IF(J15=0,0,IF(J15<=18,1,2)) -> 0 | AG15: =IF(N15="R","R","") ->  | AH15: 0 | AI15: =IF(N15="N","N","") ->  | AK15: =IF(R15="P","P","") ->  | AL15: 0 | AM15: =IF(R15="I","I","") ->  | AO15: =IF(V15=1,1,"") ->  | AP15: =IF(V15=0,0,IF(V15=2,2,"")) -> 0 | AQ15: =IF(V15=3,3,"") ->  | AS15: =IF(Z15=1,1,"") ->  | AT15: =IF(Z15=0,0,IF(Z15=2,2,"")) -> 0 | AU15: =IF(Z15=3,3,"") ->  | AW15: =IF(AE15=1,1,"") ->  | AX15: 0 | AY15: =IF(AE15=2,2,"") ->  | BD15: =LOOKUP(J15,'>>Convertisseur'!$K$265:$K$301,'>>Convertisseur'!$J$265:$J$301) -> 0 | BF15: =LOOKUP(J15,'>>Convertisseur'!$K$265:$K$301,'>>Convertisseur'!$L$265:$L$301) -> 0 | BI15: 0 | BM15: 0
F16: 0 | H16: 1 | I16: 0 | J16: 0 | K16: 0 | L16: =LOOKUP(F16,'>>BD_R_N'!$A$1:$A$37,'>>BD_R_N'!$B$1:$B$37) -> 0 | M16: =LOOKUP(G16,'>>BD_R_N'!$A$1:$A$37,'>>BD_R_N'!$B$1:$B$37) -> 0 | N16: 0 | P16: 0 | Q16: 0 | R16: 0 | S16: 0 | T16: 0 | U16: 0 | V16: 0 | X16: =LOOKUP(F16,'>>BD_R_N'!$D$1:$D$37,'>>BD_R_N'!$E$1:$E$37) -> 0 | Y16: =LOOKUP(G16,'>>BD_R_N'!$D$1:$D$37,'>>BD_R_N'!$E$1:$E$37) -> 0 | Z16: 0 | AB16: 0 | AC16: 0 | AD16: 0 | AE16: 0 | AH16: 0 | AL16: 0 | AP16: 0 | AT16: 0 | AX16: 0 | BD16: =LOOKUP(J16,'>>Convertisseur'!$K$265:$K$301,'>>Convertisseur'!$J$265:$J$301) -> 0 | BF16: =LOOKUP(J16,'>>Convertisseur'!$K$265:$K$301,'>>Convertisseur'!$L$265:$L$301) -> 0 | BI16: 0 | BM16: 0
F17: 0 | H17: 1 | I17: 0 | J17: 0 | K17: 0 | L17: =LOOKUP(F17,'>>BD_R_N'!$A$1:$A$37,'>>BD_R_N'!$B$1:$B$37) -> 0 | M17: =LOOKUP(G17,'>>BD_R_N'!$A$1:$A$37,'>>BD_R_N'!$B$1:$B$37) -> 0 | N17: 0 | P17: 0 | Q17: 0 | R17: 0 | S17: 0 | T17: 0 | U17: 0 | V17: 0 | X17: =LOOKUP(F17,'>>BD_R_N'!$D$1:$D$37,'>>BD_R_N'!$E$1:$E$37) -> 0 | Y17: =LOOKUP(G17,'>>BD_R_N'!$D$1:$D$37,'>>BD_R_N'!$E$1:$E$37) -> 0 | Z17: 0 | AB17: 0 | AC17: 0 | AD17: 0 | AE17: 0 | AH17: 0 | AL17: 0 | AP17: 0 | AT17: 0 | AX17: 0 | BD17: =LOOKUP(J17,'>>Convertisseur'!$K$265:$K$301,'>>Convertisseur'!$J$265:$J$301) -> 0 | BF17: =LOOKUP(J17,'>>Convertisseur'!$K$265:$K$301,'>>Convertisseur'!$L$265:$L$301) -> 0 | BI17: 0 | BM17: 0
F18: 0 | H18: 1 | I18: 0 | J18: 0 | K18: 0 | L18: =LOOKUP(F18,'>>BD_R_N'!$A$1:$A$37,'>>BD_R_N'!$B$1:$B$37) -> 0 | M18: =LOOKUP(G18,'>>BD_R_N'!$A$1:$A$37,'>>BD_R_N'!$B$1:$B$37) -> 0 | N18: 0 | P18: 0 | Q18: 0 | R18: 0 | S18: 0 | T18: 0 | U18: 0 | V18: 0 | X18: =LOOKUP(F18,'>>BD_R_N'!$D$1:$D$37,'>>BD_R_N'!$E$1:$E$37) -> 0 | Y18: =LOOKUP(G18,'>>BD_R_N'!$D$1:$D$37,'>>BD_R_N'!$E$1:$E$37) -> 0 | Z18: 0 | AB18: 0 | AC18: 0 | AD18: 0 | AE18: 0 | AH18: 0 | AL18: 0 | AP18: 0 | AT18: 0 | AX18: 0 | BD18: =LOOKUP(J18,'>>Convertisseur'!$K$265:$K$301,'>>Convertisseur'!$J$265:$J$301) -> 0 | BF18: =LOOKUP(J18,'>>Convertisseur'!$K$265:$K$301,'>>Convertisseur'!$L$265:$L$301) -> 0 | BI18: 0 | BM18: 0
F19: 0 | H19: 1 | I19: 0 | J19: 0 | K19: 0 | L19: =LOOKUP(F19,'>>BD_R_N'!$A$1:$A$37,'>>BD_R_N'!$B$1:$B$37) -> 0 | M19: =LOOKUP(G19,'>>BD_R_N'!$A$1:$A$37,'>>BD_R_N'!$B$1:$B$37) -> 0 | N19: 0 | P19: 0 | Q19: 0 | R19: 0 | S19: 0 | T19: 0 | U19: 0 | V19: 0 | X19: =LOOKUP(F19,'>>BD_R_N'!$D$1:$D$37,'>>BD_R_N'!$E$1:$E$37) -> 0 | Y19: =LOOKUP(G19,'>>BD_R_N'!$D$1:$D$37,'>>BD_R_N'!$E$1:$E$37) -> 0 | Z19: 0 | AB19: 0 | AC19: 0 | AD19: 0 | AE19: 0 | AH19: 0 | AL19: 0 | AP19: 0 | AT19: 0 | AX19: 0 | BD19: =LOOKUP(J19,'>>Convertisseur'!$K$265:$K$301,'>>Convertisseur'!$J$265:$J$301) -> 0 | BF19: =LOOKUP(J19,'>>Convertisseur'!$K$265:$K$301,'>>Convertisseur'!$L$265:$L$301) -> 0 | BI19: 0 | BM19: 0
F20: 0 | H20: 1 | I20: 0 | J20: 0 | K20: 0 | L20: =LOOKUP(F20,'>>BD_R_N'!$A$1:$A$37,'>>BD_R_N'!$B$1:$B$37) -> 0 | M20: =LOOKUP(G20,'>>BD_R_N'!$A$1:$A$37,'>>BD_R_N'!$B$1:$B$37) -> 0 | N20: 0 | P20: 0 | Q20: 0 | R20: 0 | S20: 0 | T20: 0 | U20: 0 | V20: 0 | X20: =LOOKUP(F20,'>>BD_R_N'!$D$1:$D$37,'>>BD_R_N'!$E$1:$E$37) -> 0 | Y20: =LOOKUP(G20,'>>BD_R_N'!$D$1:$D$37,'>>BD_R_N'!$E$1:$E$37) -> 0 | Z20: 0 | AB20: 0 | AC20: 0 | AD20: 0 | AE20: 0 | AH20: 0 | AL20: 0 | AP20: 0 | AT20: 0 | AX20: 0 | BD20: =LOOKUP(J20,'>>Convertisseur'!$K$265:$K$301,'>>Convertisseur'!$J$265:$J$301) -> 0 | BF20: =LOOKUP(J20,'>>Convertisseur'!$K$265:$K$301,'>>Convertisseur'!$L$265:$L$301) -> 0 | BI20: 0 | BM20: 0
F21: 0 | H21: 1 | I21: 0 | J21: 0 | K21: 0 | L21: =LOOKUP(F21,'>>BD_R_N'!$A$1:$A$37,'>>BD_R_N'!$B$1:$B$37) -> 0 | M21: =LOOKUP(G21,'>>BD_R_N'!$A$1:$A$37,'>>BD_R_N'!$B$1:$B$37) -> 0 | N21: 0 | P21: 0 | Q21: 0 | R21: 0 | S21: 0 | T21: 0 | U21: 0 | V21: 0 | X21: =LOOKUP(F21,'>>BD_R_N'!$D$1:$D$37,'>>BD_R_N'!$E$1:$E$37) -> 0 | Y21: =LOOKUP(G21,'>>BD_R_N'!$D$1:$D$37,'>>BD_R_N'!$E$1:$E$37) -> 0 | Z21: 0 | AB21: 0 | AC21: 0 | AD21: 0 | AE21: 0 | AH21: 0 | AL21: 0 | AP21: 0 | AT21: 0 | AX21: 0 | BD21: =LOOKUP(J21,'>>Convertisseur'!$K$265:$K$301,'>>Convertisseur'!$J$265:$J$301) -> 0 | BF21: =LOOKUP(J21,'>>Convertisseur'!$K$265:$K$301,'>>Convertisseur'!$L$265:$L$301) -> 0 | BI21: 0 | BM21: 0
F22: 0 | H22: 1 | I22: 0 | J22: 0 | K22: 0 | L22: =LOOKUP(F22,'>>BD_R_N'!$A$1:$A$37,'>>BD_R_N'!$B$1:$B$37) -> 0 | M22: =LOOKUP(G22,'>>BD_R_N'!$A$1:$A$37,'>>BD_R_N'!$B$1:$B$37) -> 0 | N22: 0 | P22: 0 | Q22: 0 | R22: 0 | S22: 0 | T22: 0 | U22: 0 | V22: 0 | X22: =LOOKUP(F22,'>>BD_R_N'!$D$1:$D$37,'>>BD_R_N'!$E$1:$E$37) -> 0 | Y22: =LOOKUP(G22,'>>BD_R_N'!$D$1:$D$37,'>>BD_R_N'!$E$1:$E$37) -> 0 | Z22: 0 | AB22: 0 | AC22: 0 | AD22: 0 | AE22: 0 | AH22: 0 | AL22: 0 | AP22: 0 | AT22: 0 | AX22: 0 | BD22: =LOOKUP(J22,'>>Convertisseur'!$K$265:$K$301,'>>Convertisseur'!$J$265:$J$301) -> 0 | BF22: =LOOKUP(J22,'>>Convertisseur'!$K$265:$K$301,'>>Convertisseur'!$L$265:$L$301) -> 0 | BI22: 0 | BM22: 0
F23: 0 | H23: =IF(ISNUMBER(F23),1,0) -> 1 | I23: 0 | J23: 0 | K23: 0 | L23: =LOOKUP(F23,'>>BD_R_N'!$A$1:$A$37,'>>BD_R_N'!$B$1:$B$37) -> 0 | M23: =LOOKUP(G23,'>>BD_R_N'!$A$1:$A$37,'>>BD_R_N'!$B$1:$B$37) -> 0 | N23: 0 | P23: 0 | Q23: 0 | R23: 0 | S23: 0 | T23: 0 | U23: 0 | V23: 0 | X23: =LOOKUP(F23,'>>BD_R_N'!$D$1:$D$37,'>>BD_R_N'!$E$1:$E$37) -> 0 | Y23: =LOOKUP(G23,'>>BD_R_N'!$D$1:$D$37,'>>BD_R_N'!$E$1:$E$37) -> 0 | Z23: 0 | AB23: 0 | AC23: 0 | AD23: 0 | AE23: 0 | AH23: 0 | AL23: 0 | AP23: 0 | AT23: 0 | AX23: 0 | BD23: =LOOKUP(J23,'>>Convertisseur'!$K$265:$K$301,'>>Convertisseur'!$J$265:$J$301) -> 0 | BF23: =LOOKUP(J23,'>>Convertisseur'!$K$265:$K$301,'>>Convertisseur'!$L$265:$L$301) -> 0 | BI23: 0 | BM23: 0
